{"text_format":"1","workbook":"xlsx","n_sheets":10,"sheets":["Veiledning","Prosjektbeskrivelse","Skisseprosjekt","Referansebygg","Forprosjekt","Detaljprosjekt","Som bygget","Resultater","Utslippsfaktorer","Input_rullegardin"],"not_rendered":{"charts":3,"images":1,"macros":1,"external_links":0,"defined_names":17,"comments":9,"pivot_tables":0},"unopened":[],"bounds":{"document_bytes":16777216,"sheet_cells":100000,"rows_first":2000,"rows_last":500,"rows_between":2000,"halvings":0,"cell_chars":16384,"cell_head_chars":4096},"cells_cut":0,"cells_raw":0,"read":"whole","date_system":"1900"}

{"sheet":"Veiledning","index":0,"n_rows":18,"n_cols":2,"rows_kept":18,"cut":false,"hidden":false,"merged":[]}
[null,"Trondheim kommunes mal for klimagassregnskap i byggeprosjekter"]
[null,"Versjon 2023-04-13. Utviklet av SINTEF AS."]
[null,"Dette dokumentet er ment for å estimere og dokumentere klimagassutslipp (greenhouse gases, GHG) i byggeprosjekter. Beregningene er basert på NS 3720, NS 3451, og TEK veileder for GHG regnskap (fortsatt under utarbeidelse av DiBK). Den inkluderer data fra EPD-Norge og PROfet (estimat av energibehov utviklet av SINTEF)."]
[]
[null,"Hvordan skal denne malen brukes?"]
[]
[null,"Prosedyre - trinn for trinn:"]
[null,"1. Fyll ut prosjektbeskrivelsen og velg opsjoner for klimagassberegning i \"Projektbeskrivelse\"-fanen. Velg hvilken fase som skal rapporteres."]
[]
[null,"2. Fyll inn malene for valgt prosjektfase. Velg produkter og prosesser fra rullegardinmenyen, eller skriv inn egne data. Skriv inn produktmengder."]
[]
[null,"3. Se resultater fra klimagassberegninger i \"Resultater\"-fanen (denne fanen kan ikke endres på)"]
[]
[null,"Fargekoder for celler:"]
[null,"Obligatorisk inndata"]
[null,"Valgfri inndata"]
[null,"Ingen inndata (kan ikke endres)"]
[null,"For mer detaljert beskrivelse av hvordan malen skal brukes, metodikk og valg av data, se brukerveiledningen i  \"Veileder for klimagassberegninger i bygg- og anleggsprosjekter i Trondheim kommune\""]

{"sheet":"Prosjektbeskrivelse","index":1,"n_rows":30,"n_cols":5,"rows_kept":30,"cut":false,"hidden":false,"merged":[]}
[]
[null,"Beskrivelse av prosjekt og klimagassberegning"]
[]
[null,"Prosjektbeskrivelse",null,null,"Kommentar"]
[null,"Prosjektnavn","Fjell barnehage"]
[null,"Prosjektadresse"]
[null,"Prosjektnummer"]
[null,"Dato (når malen er fylt ut)","2023-01-10"]
[null,"Utført av (navn, etternavn)","Kristin Navn"]
[null,"Virksomhet","Grønnbygg AS"]
[]
[null,"Prosjektfase","Detaljprosjekt"]
[null,"Byggeplass","Fossilfri"]
[null,"Beskrivelse av prosjektets mål"]
[]
[null,"Bygningskategori","Barnehage"]
[null,"Energieffektivitetsnivå","Lite energieffektivt"]
[null,"Levetid bygg [år]",50]
[null,"Bruttoareal (BTA) [m2]",145]
[null,"Bruksareal (BRA) [m2]"]
[null,"Oppvarmet bruksareal (BRA) [m2]",135]
[]
[null,"Klimagassberegningsalternativer"]
[null,"Analyseperiode [år]",50]
[null,"Livløpsmoduler inkludert i systemgrensen","Trondheim Kommunes krav"]
[null,"Prosjektfaser som skal rapportes"]
[null,"Kilden for referansebygg"]
[]
[]
[{"$f":"Veiledning!B2","v":"Versjon 2023-04-13. Utviklet av SINTEF AS."}]

{"sheet":"Skisseprosjekt","index":2,"n_rows":55,"n_cols":14,"rows_kept":55,"cut":false,"hidden":false,"merged":[[1,8,1,11],[2,1,2,6]]}
[]
[null,"Skisseprosjekt",null,null,null,null,null,null,"Utslipp A1-A3 + A4 + A5 + B4 + B6 + B8",null,null,null,{"$f":"IF(F8=\"NA\",\"Ikke spesifiert\",SUM(F11:K11))","v":59754.088799999998},"kgCO2e"]
[null,"Denne regneark viser estimert klimagassutslipper fra A1-A3, A4, B4, B6 og B8 moduler, basert på bygningstype (hovedfunksjon) og BTA areal som definert i \"Prosjektbeskrivekse\", og miljømåltype og energieffektivitetnivå, som må velges her i rader 15 og 19. Valgfritt: For bygningens energibruk, verdioverstyring kan skrives i kolon G i sted av nøkkelverdi fra PROfet/TEK17."]
[]
[]
[null,null,null,null,null,"Produktstadiet","Transport","Bygge- og monteringsarbeid","Utskiftning","Energibruk i drift","Transport i drift"]
[null,null,null,null,null,"A1-A3","A4","A5","B4","B6","B8"]
[null,null,null,null,"Utslippsintensitet (kg CO2e/m2BTA/år)",{"$f":"VLOOKUP(_xlfn.CONCAT($D$17,\" \",Prosjektbeskrivelse!$C$16),Input_rullegardin!$S$4:$V$51,2,FALSE)","v":3.87},{"$f":"VLOOKUP(_xlfn.CONCAT($D$17,\" \",Prosjektbeskrivelse!$C$16),Input_rullegardin!$S$4:$V$51,3,FALSE)","v":0.09},null,{"$f":"VLOOKUP(_xlfn.CONCAT($D$17,\" \",Prosjektbeskrivelse!$C$16),Input_rullegardin!$S$4:$V$51,4,FALSE)","v":0.09}]
[null,null,null,null,"Utslippsintensitet - verdier fra egen beregning (kg CO2e/m2BTA/år)"]
[]
[null,null,null,null,"kg CO2e",{"$f":"IF(ISBLANK(F9),IFERROR(F8*Prosjektbeskrivelse!$C$19*Prosjektbeskrivelse!$C$24,\"NA - referansenivå ikke definert for denne bygningstype\"),F9*Prosjektbeskrivelse!$C$19*Prosjektbeskrivelse!$C$24)","v":28057.5},{"$f":"IF(ISBLANK(G9),IFERROR(G8*Prosjektbeskrivelse!$C$19*Prosjektbeskrivelse!$C$24,\"NA - referansenivå ikke definert for denne bygningstype\"),G9*Prosjektbeskrivelse!$C$19*Prosjektbeskrivelse!$C$24)","v":652.5},{"$f":"SUM(M21:M24)+SUM(M28:M30)+SUM(M34:M37)","v":11194.588800000001},{"$f":"IF(ISBLANK(I9),IFERROR(I8*Prosjektbeskrivelse!$C$19*Prosjektbeskrivelse!$C$24,\"NA - referansenivå ikke definert for denne bygningstype\"),I9*Prosjektbeskrivelse!$C$19*Prosjektbeskrivelse!$C$24)","v":652.5},{"$f":"IF(ISBLANK(J9),SUM(J46:J52),J9*Prosjektbeskrivelse!$C$19*Prosjektbeskrivelse!$C$24)","v":19197}]
[null,null,null,null,"Andel",{"$f":"IFERROR(F11/$M$2,0)","v":0.46954945784396268},1.0919754833580526E-2,0.18734431441953478,1.0919754833580526E-2,0.32126671806934159,0]
[]
[]
[null,"Klimagassutslipper fra produktstadiet, transport, og utskiftning (A1-3, A4, B4)"]
[]
[null,null,"Utslippsnivå for A1-A3 og B4 ","Referansenivå"]
[]
[null,"Klimagassutslipper fra energibruk på byggeplass (del av A5)"]
[]
[null,null,"Drivstoff","_Elektrisitet (NO)",8000,{"$f":"VLOOKUP(D21,Utslippsfaktorer!$B$6:$U$332,5,FALSE)","v":"kWh"},null,null,null,null,null,null,{"$f":"IFERROR(VLOOKUP($D21,Utslippsfaktorer!$B$6:$U$332,7,FALSE)*$E21,0)","v":144},"kg CO2e"]
[null,null,"Drivstoff","Biodiesel",3000,{"$f":"VLOOKUP(D22,Utslippsfaktorer!$B$6:$U$332,5,FALSE)","v":"liter"},null,null,null,null,null,null,{"$f":"IFERROR(VLOOKUP($D22,Utslippsfaktorer!$B$6:$U$332,7,FALSE)*$E22,0)","v":5760},"kg CO2e"]
[null,null,"Drivstoff","Diesel, Well to wheel",1000,{"$f":"VLOOKUP(D23,Utslippsfaktorer!$B$6:$U$332,5,FALSE)","v":"liter"},null,null,null,null,null,null,{"$f":"IFERROR(VLOOKUP($D23,Utslippsfaktorer!$B$6:$U$332,7,FALSE)*$E23,0)","v":3240},"kg CO2e"]
[null,null,"Drivstoff","(Velg material eller prosesser)",null,{"$f":"VLOOKUP(D24,Utslippsfaktorer!$B$6:$U$332,5,FALSE)","v":"-"},null,null,null,null,null,null,{"$f":"IFERROR(VLOOKUP($D24,Utslippsfaktorer!$B$6:$U$332,7,FALSE)*$E24,0)","v":0},"kg CO2e"]
[]
[null,"Klimagassutslipper fra graving og sprenging (del av A5)"]
[null,null,null,null,null,null,null,null,"Kilde"]
[null,null,null,"Utgraving og planering av jordmasser",100,"m3",1,"liter diesel/m3","Klimamodul EFFEKT 6.6 (2014)",null,null,"Diesel",{"$f":"IFERROR(VLOOKUP($L28,Utslippsfaktorer!$B$6:$U$332,7,FALSE)*$E28*G28,0)","v":267},"kg CO2e"]
[null,null,null,"Utgraving og planering av steinmasser",100,"m3",1.1000000000000001,"liter diesel/m4","Klimamodul EFFEKT 6.6 (2014)",null,null,"Diesel",{"$f":"IFERROR(VLOOKUP($L29,Utslippsfaktorer!$B$6:$U$332,7,FALSE)*$E29*G29,0)","v":293.70000000000005},"kg CO2e"]
[null,null,null,"Utspregning av grunn",100,"m3",1.26,"kgCO2e/m3","Gjennomsnitt av 10 EPDer for sprengstoff på den norske markedet;Vegard Olsen(2009) Doctoral thesis; ",null,null," ",{"$f":"E30*G30","v":126},"kg CO2e"]
[null,"Klimagassutslipper fra massetransport (del av A5)"]
[null,null,null,null,"jord og leire","sprengstein","grus og pukk","transportmengde","Referanse distanse","Projsektspesifikk","Endelige distanse","Type transport","Utslipp"]
[null,null,null,null,"m3","m3","m3","tonn","km","km","km","-","kgCO2e"]
[null,null,null,"Transport til midlertidig lager",30,20,20,{"$f":"E34*$E$39+F34*$F$39+G34*$G$39","v":105.39999999999998},20,null,{"$f":"IF(ISBLANK(J34),I34,J34)","v":20},"Lastebil 16-32 tonn, EURO 5, diesel",{"$f":"IFERROR(VLOOKUP($L34,Utslippsfaktorer!$B$6:$U$332,7,FALSE)*$K34*H34*1000,0)","v":342.76079999999985}]
[null,null,null,"Transport til deponi",30,20,30,{"$f":"E35*$E$39+F35*$F$39+G35*$G$39","v":121.99999999999999},20,null,{"$f":"IF(ISBLANK(J35),I35,J35)","v":20},"Lastebil 16-32 tonn, EURO 5, diesel",{"$f":"IFERROR(VLOOKUP($L35,Utslippsfaktorer!$B$6:$U$332,7,FALSE)*$K35*H35*1000,0)","v":396.74399999999991}]
[null,null,null,"Transport til knuseverk",10,20,30,96,20,null,{"$f":"IF(ISBLANK(J36),I36,J36)","v":20},"Lastebil 16-32 tonn, EURO 5, diesel",{"$f":"IFERROR(VLOOKUP($L36,Utslippsfaktorer!$B$6:$U$332,7,FALSE)*$K36*H36*1000,0)","v":312.19199999999995}]
[null,null,null,"Transport fra materialtak/sidetak/tilført utenfra",10,20,30,96,20,null,{"$f":"IF(ISBLANK(J37),I37,J37)","v":20},"Lastebil 16-32 tonn, EURO 5, diesel",{"$f":"IFERROR(VLOOKUP($L37,Utslippsfaktorer!$B$6:$U$332,7,FALSE)*$K37*H37*1000,0)","v":312.19199999999995}]
[]
[null,null,null,"Omregningsfaktorer (tonn/m3)",1.3,1.66,1.66]
[]
[null,"Klimagassutslipper fra energibruk i drift (B6)"]
[]
[null,null,"Energieffektivitetsnivå, som ønskes i Reguleringsfase*","TEK10-TEK17"]
[null,null,"*det kan avvike fra effektiviteits nivå i \"Prosjektbeskrivelse\" arken",null,null,"Nøkkelverdi (PROfet)","Verdier fra egen beregning ","Energibruk per m2 per år","Total energibruk","Klimagassutslipp "]
[null,null,null,null,null,"kWh/(m2BRA.år)","kWh/(m2BRA.år)","kWh/(m2BRA.år)","kWh","kgCO2e"]
[null,null,"Oppvarming","_Elektrisitet (NO)",null,{"$f":"VLOOKUP(_xlfn.CONCAT(Prosjektbeskrivelse!$C$16,\" \",$D$43),Input_rullegardin!$I$4:$N$39,4,FALSE)","v":64},null,{"$f":"IF(ISBLANK(G46),F46,G46)","v":64},{"$f":"H46*Prosjektbeskrivelse!$C$21*Prosjektbeskrivelse!$C$24","v":432000},{"$f":"IFERROR(VLOOKUP($D46,Utslippsfaktorer!$B$6:$U$332,7,FALSE)*I46,0)","v":7775.9999999999991}]
[null,null,null,"_Fjernvarme, Trondheim, NO (snitt 2019-2021)",null,null,null,0,{"$f":"H47*Prosjektbeskrivelse!$C$21*Prosjektbeskrivelse!$C$24","v":0},{"$f":"IFERROR(VLOOKUP($D47,Utslippsfaktorer!$B$6:$U$332,7,FALSE)*I47,0)","v":0}]
[null,null,"Vannoppvarming","_Elektrisitet (NO)",null,{"$f":"VLOOKUP(_xlfn.CONCAT(Prosjektbeskrivelse!$C$16,\" \",$D$43),Input_rullegardin!$I$4:$N$39,5,FALSE)","v":19},null,19,{"$f":"H48*Prosjektbeskrivelse!$C$21*Prosjektbeskrivelse!$C$24","v":128250},{"$f":"IFERROR(VLOOKUP($D48,Utslippsfaktorer!$B$6:$U$332,7,FALSE)*I48,0)","v":2308.5}]
[null,null,"Elektriske apparater","_Elektrisitet (NO)",null,{"$f":"VLOOKUP(_xlfn.CONCAT(Prosjektbeskrivelse!$C$16,\" \",$D$43),Input_rullegardin!$I$4:$N$39,6,FALSE)","v":75},null,75,{"$f":"H49*Prosjektbeskrivelse!$C$21*Prosjektbeskrivelse!$C$24","v":506250},{"$f":"IFERROR(VLOOKUP($D49,Utslippsfaktorer!$B$6:$U$332,7,FALSE)*I49,0)","v":9112.5}]
[null,null,"Kjøling","_Elektrisitet (NO)",null,null,null,0,{"$f":"H50*Prosjektbeskrivelse!$C$21*Prosjektbeskrivelse!$C$24","v":0},{"$f":"IFERROR(VLOOKUP($D50,Utslippsfaktorer!$B$6:$U$332,7,FALSE)*I50,0)","v":0}]
[null,null,"Luftbehandling","_Elektrisitet (NO)",null,null,null,0,{"$f":"H51*Prosjektbeskrivelse!$C$21*Prosjektbeskrivelse!$C$24","v":0},{"$f":"IFERROR(VLOOKUP($D51,Utslippsfaktorer!$B$6:$U$332,7,FALSE)*I51,0)","v":0}]
[null,null,"Annet","_Elektrisitet (NO)",null,null,null,0,{"$f":"H52*Prosjektbeskrivelse!$C$21*Prosjektbeskrivelse!$C$24","v":0},{"$f":"IFERROR(VLOOKUP($D52,Utslippsfaktorer!$B$6:$U$332,7,FALSE)*I52,0)","v":0}]
[]
[]
[{"$f":"Veiledning!B2","v":"Versjon 2023-04-13. Utviklet av SINTEF AS."}]

{"sheet":"Referansebygg","index":3,"n_rows":70,"n_cols":16,"rows_kept":70,"cut":false,"hidden":false,"merged":[[66,5,66,6],[67,5,67,6],[12,3,12,4],[4,1,4,3],[1,9,1,11],[60,5,60,6],[61,5,61,6],[62,5,62,6],[65,5,65,6]]}
[]
[null,"Referansebygg",null,null,null,null,null,null,null,"Utslipp A1-A3 + A4 + A5 + B3 + B4 + B6 + C1-4",null,null,{"$f":"SUM(M5,M60,M65)","v":3189633.9408126804},"kgCO2e"]
[]
[]
[null,"Materialer (A1-A3; A4; A5.1;B4,C1-4)",null,null,null,null,null,null,null,null,null,null,{"$f":"SUM(M8,M13,M19,M26,M33,M41)","v":3133419.9408126804},null,null,{"$f":"M5/$M$2","v":0.98237603403929252}]
[null,null,null,null,"Kategori","A1-A3 Produktstadiet","A4 Transport","A5 Materialsvinn","B3 Reparasjon","B4 Utskiftning","B6 Energibruk i drift","C1-C4 Livsløpets sluttstadiet","Klimagassutslipp","Andel %"]
[null,null,null,null,"-","kgCO2e","kgCO2e","kgCO2e","kgCO2e","kgCO2e","kgCO2e","kgCO2e","kgCO2e","-"]
[null,null,21,"Fundamentering",null,{"$f":"IFERROR((SUM(F9:F12)),\"Not assessed\")","v":301122},{"$f":"IFERROR((SUM(G9:G12)),\"Not assessed\")","v":38592.743527839099},{"$f":"IFERROR((SUM(H9:H12)),\"Not assessed\")","v":26892.649939452702},null,{"$f":"IFERROR((SUM(J9:J12)),\"Not assessed\")","v":0},null,{"$f":"IFERROR((SUM(L9:L12)),\"Not assessed\")","v":109371.23257390995},{"$f":"IFERROR((SUM(M9:M12)),\"Not assessed\")","v":475978.62604120176},null,{"$f":"M8/$M$2","v":0.14922672471936643}]
[null,null,null,null,"216 - Direkte fundamentering",301122,38592.743527839099,26892.649939452702,0,0,0,109371.23257390995,{"$f":"SUM(F9:L9)","v":475978.62604120176},{"$f":"IFERROR(M9/$M$8,0)","v":1}]
[null,null,null,null,null,null,null,null,null,null,null,null,{"$f":"SUM(F10:L10)","v":0},{"$f":"IFERROR(M10/$M$8,0)","v":0}]
[null,null,null,null,null,null,null,null,null,null,null,null,0,{"$f":"IFERROR(M11/$M$8,0)","v":0}]
[]
[null,null,22,"Bæresystemer",null,{"$f":"IFERROR((SUM(F14:F18)),\"Not assessed\")","v":313033.1201},6199.4932357822636,13449.705985564011,0,0,0,7864.2422797204681,340546.56160106673,null,{"$f":"M13/$M$2","v":0.10676665972343509}]
[null,null,null,null,"222 - Søyler",163384.88579999999,2540.6443999112994,4752.6873823681972,0,0,0,1933.1726113854222,{"$f":"SUM(F14:L14)","v":172611.39019366491},{"$f":"IFERROR(M14/$M$13,0)","v":0.50686575539667467}]
[null,null,null,null,"223 - Bjelker",149648.23430000001,3658.8488358709646,8697.0186031958146,0,0,0,5931.0696683350461,{"$f":"SUM(F15:L15)","v":167935.17140740185},{"$f":"IFERROR(M15/$M$13,0)","v":0.49313424460332539}]
[null,null,null,null,null,null,null,null,null,null,null,null,0,0]
[null,null,null,null,null,null,null,null,null,null,null,null,0,{"$f":"IFERROR(M17/$M$13,0)","v":0}]
[]
[null,null,23,"Yttervegger",null,{"$f":"IFERROR((SUM(F20:F25)),\"Not assessed\")","v":434171.91206330527},{"$f":"IFERROR((SUM(G20:G25)),\"Not assessed\")","v":25924.811369692659},{"$f":"IFERROR((SUM(H20:H25)),\"Not assessed\")","v":32807.203291910475},null,{"$f":"IFERROR((SUM(J20:J25)),\"Not assessed\")","v":128950.72001526383},null,{"$f":"IFERROR((SUM(L20:L25)),\"Not assessed\")","v":30380.953814469907},{"$f":"IFERROR((SUM(M20:M25)),\"Not assessed\")","v":652235.60055464215},null,{"$f":"M19/$M$2","v":0.20448603590807676}]
[null,null,null,null,"231 - Bærende yttervegger",215048.91568000001,23099.559598481523,11182.210355216062,0,0,0,2740.8738342280499,{"$f":"SUM(F20:L20)","v":252071.55946792563},{"$f":"IFERROR(M20/$M$19,0)","v":0.38647316897999945}]
[null,null,null,null,"232 - Ikke - bærende yttervegger",94603.027999999991,1380.337527909257,13656.784603250127,0,32093.490954365829,0,18453.89298330267,{"$f":"SUM(F21:L21)","v":160187.5340688279},{"$f":"IFERROR(M21/$M$19,0)","v":0.24559765509979689}]
[null,null,null,null,"234 - Vinduer, dører, porter",87451.245541199998,895.70126225338595,0,0,96857.229060897997,0,1060.6782199579347,186264.85408430934,0.28557909737817921]
[null,null,null,null,"235 - Utvendig kledning og overflate",37068.722842105257,549.21298104849302,7968.2083334442841,0,0,0,8125.5087769812526,53711.652933579287,8.2350078542024488E-2]
[null,null,null,null,null,null,null,null,null,null,null,null,0,0]
[]
[null,null,24,"Innervegger",null,{"$f":"IFERROR((SUM(F27:F32)),\"Not assessed\")","v":287327.65868448315},{"$f":"IFERROR((SUM(G27:G32)),\"Not assessed\")","v":2672.2843381702478},{"$f":"IFERROR((SUM(H27:H32)),\"Not assessed\")","v":17646.30666321886},null,{"$f":"IFERROR((SUM(J27:J32)),\"Not assessed\")","v":135882.10766299019},null,{"$f":"IFERROR((SUM(L27:L32)),\"Not assessed\")","v":20398.69111871186},{"$f":"IFERROR((SUM(M27:M32)),\"Not assessed\")","v":463927.04846757429},null,{"$f":"M26/$M$2","v":0.1454483671406416}]
[null,null,null,null,"242 - Ikke - bærende innvervegger",195326.89127043501,1428.2298922201801,15379.4580723892,0,114287.15375289675,0,12753.974971758244,{"$f":"SUM(F27:L27)","v":339175.70795969939},{"$f":"IFERROR(M27/$M$26,0)","v":0.73109707459405815}]
[null,null,null,null,"243 - Systemvegger, glassfelt",21737.395162235302,269.9473701210855,0,0,0,0,251.13188993450981,{"$f":"SUM(F28:L28)","v":22258.474422290896},{"$f":"IFERROR(M28/$M$26,0)","v":4.7978393361228278E-2}]
[null,null,null,null,"244 - Vinduer, dører, foldevegger",60363.804251812784,762.81648492536647,0,0,21594.953910093438,0,3930.4991902600868,86652.073837091681,0.18677952519327645]
[null,null,null,null,"246 - Kledning og overflate",9899.5680000000011,211.29059090361599,2266.8485908296598,0,0,0,3463.0850667590194,15840.792248492296,3.4145006851437058E-2]
[null,null,null,null,null,null,null,null,null,null,null,null,0,0]
[]
[null,null,25,"Dekker",null,{"$f":"IFERROR((SUM(F34:F40)),\"Not assessed\")","v":623963.81682305841},{"$f":"IFERROR((SUM(G34:G40)),\"Not assessed\")","v":25036.329999336769},{"$f":"IFERROR((SUM(H34:H40)),\"Not assessed\")","v":51916.933264609172},null,{"$f":"IFERROR((SUM(J34:J40)),\"Not assessed\")","v":79704.462240603782},null,{"$f":"IFERROR((SUM(L34:L40)),\"Not assessed\")","v":46549.527939039981},{"$f":"IFERROR((SUM(M34:M40)),\"Not assessed\")","v":827171.07026664808},null,{"$f":"M33/$M$2","v":0.25933103472553809}]
[null,null,null,null,"251 - Frittbærende dekker",405659.92972800002,8064.3182082965723,0,0,0,0,9579.3861069601408,{"$f":"SUM(F34:L34)","v":423303.63404325669},{"$f":"IFERROR(M34/$M$33,0)","v":0.51174859622060997}]
[null,null,null,null,"252 - Gulv på grunn",90865.41,8493.7404134419994,9620.4128594096655,0,0,0,6235.5815854860784,{"$f":"SUM(F35:L35)","v":115215.14485833775},{"$f":"IFERROR(M35/$M$33,0)","v":0.13928817024656923}]
[null,null,null,null,"253 - Oppforet gulv, påstøp",19581,7435.9802042479487,26419.91346388383,0,0,0,7182.9622717241009,60619.855939855879,7.3285754445346324E-2]
[null,null,null,null,"255 - Gulvoverflate",55750.202880128083,704.59150781286598,10615.552430233171,0,79704.462240603782,0,19547.297537125894,166322.10659590381,0.2010734086025131]
[null,null,null,null,"256 - Faste himlinger og overflatebehandling",52107.274214930345,337.69966553738107,5261.0545110825033,0,0,0,4004.3004377437692,61710.328829293998,7.4604070484961427E-2]
[null,null,null,null,null,null,null,null,null,null,null,null,{"$f":"SUM(F39:L39)","v":0},{"$f":"IFERROR(M39/$M$33,0)","v":0}]
[]
[null,null,26,"Yttertak",null,{"$f":"IFERROR((SUM(F42:F47)),\"Not assessed\")","v":129562.03994888501},5660.4666173054829,35987.902228248211,0,117202.92059589623,0,85147.704491212702,373561.03388154757,null,{"$f":"M41/$M$2","v":0.1171172118222346}]
[null,null,null,null,"262 - Taktekning",5154.3,76.86868376151358,1141.3975719739683,0,0,0,1145.3540646964102,{"$f":"SUM(F42:L42)","v":7517.9203204318919},{"$f":"IFERROR(M42/$M$41,0)","v":2.0125012082538963E-2}]
[null,null,null,null,"264 - Takoppbygg",124407.73994888501,5583.5979335439697,34846.504656274243,0,117202.92059589623,0,84002.350426516292,{"$f":"SUM(F43:L43)","v":366043.11356111569},{"$f":"IFERROR(M43/$M$41,0)","v":0.97987498791746108}]
[null,null,null,null,null,null,null,null,null,null,null,null,0,0]
[null,null,null,null,null,null,null,null,null,null,null,null,0,0]
[null,null,null,null,null,null,null,null,null,null,null,null,0,0]
[]
[null,null,28,"Trapper, balkonger, m.m.",null,{"$f":"IFERROR((SUM(F49:F54)),\"Not assessed\")","v":8000},{"$f":"IFERROR((SUM(G49:G54)),\"Not assessed\")","v":76.86868376151358},1141.3975719739683,0,0,0,1145.3540646964102,{"$f":"IFERROR((SUM(M49:M54)),\"Not assessed\")","v":10363.620320431892},null,{"$f":"M48/$M$2","v":3.2491566470450105E-3}]
[null,null,null,null,null,8000,76.86868376151358,1141.3975719739683,0,0,0,1145.3540646964102,{"$f":"SUM(F49:L49)","v":10363.620320431892},{"$f":"IFERROR(M49/$M$48,0)","v":1}]
[null,null,null,null,null,null,null,null,null,null,null,null,{"$f":"SUM(F50:L50)","v":0},{"$f":"IFERROR(M50/$M$48,0)","v":0}]
[null,null,null,null,null,null,null,null,null,null,null,null,0,0]
[null,null,null,null,null,null,null,null,null,null,null,null,0,0]
[null,null,null,null,null,null,null,null,null,null,null,null,0,0]
[]
[null,null,49,"Andre elkraftinstallasjoner",null,{"$f":"IFERROR((SUM(F56:F58)),\"Not assessed\")","v":900},76.86868376151358,60,15,800,0,1145.3540646964102,2997.2227484579239,null,{"$f":"M55/$M$2","v":9.3967608950582828E-4}]
[null,null,null,null,"PV installasjon",900,76.86868376151358,60,15,800,0,1145.3540646964102,{"$f":"SUM(F56:L56)","v":2997.2227484579239},{"$f":"IFERROR(M56/$M$55,0)","v":1}]
[null,null,null,null,null,null,null,null,null,null,null,null,{"$f":"SUM(F57:L57)","v":0},{"$f":"IFERROR(M57/$M$55,0)","v":0}]
[]
[]
[null,"Energibruk på byggeplass (del av A5)",null,null,null,null,null,null,null,null,null,null,{"$f":"SUM(M61:M63)","v":32400.000000000004},null,null,{"$f":"M60/$M$2","v":1.0157905452857351E-2}]
[null,null,null,null,null,"_Elektrisitet (NO)",null,0,{"$f":"VLOOKUP($F61,Utslippsfaktorer!$B$6:$U$332,5,FALSE)","v":"kWh"},{"$f":"_xlfn.IFS(AND(Prosjektbeskrivelse!$C$13=\"Utslippsfri\",I61=\"liter\",H61>0),\"Krav for utslippsfri byggeplass!\",AND(Prosjektbeskrivelse!$C$13=\"Fossilfri\",OR(ISNUMBER(FIND(\"Diesel\",F61)),ISNUMBER(FIND(\"LPG\",F61))),H61>0),\"Krav for fossilfri byggeplass!\",TRUE,\"\")","v":""},null,null,{"$f":"IFERROR(VLOOKUP($F61,Utslippsfaktorer!$B$6:$U$332,7,FALSE)*$H61,0)","v":0},{"$f":"IFERROR(M61/$M$60,0)","v":0}]
[null,null,null,null,null,"Diesel, Well to wheel",null,10000,{"$f":"VLOOKUP($F62,Utslippsfaktorer!$B$6:$U$332,5,FALSE)","v":"liter"},{"$f":"_xlfn.IFS(AND(Prosjektbeskrivelse!$C$13=\"Utslippsfri\",I62=\"liter\",H62>0),\"Krav for utslippsfri byggeplass!\",AND(Prosjektbeskrivelse!$C$13=\"Fossilfri\",OR(ISNUMBER(FIND(\"Diesel\",F62)),ISNUMBER(FIND(\"LPG\",F62))),H62>0),\"Krav for fossilfri byggeplass!\",TRUE,\"\")","v":"Krav for fossilfri byggeplass!"},null,null,{"$f":"IFERROR(VLOOKUP($F62,Utslippsfaktorer!$B$6:$U$332,7,FALSE)*$H62,0)","v":32400.000000000004},{"$f":"IFERROR(M62/$M$60,0)","v":1}]
[null,null,null,null,null,"Biodiesel",null,0,{"$f":"VLOOKUP($F63,Utslippsfaktorer!$B$6:$U$332,5,FALSE)","v":"liter"},{"$f":"_xlfn.IFS(AND(Prosjektbeskrivelse!$C$13=\"Utslippsfri\",I63=\"liter\",H63>0),\"Krav for utslippsfri byggeplass!\",AND(Prosjektbeskrivelse!$C$13=\"Fossilfri\",OR(ISNUMBER(FIND(\"Diesel\",F63)),ISNUMBER(FIND(\"LPG\",F63))),H63>0),\"Krav for fossilfri byggeplass!\",TRUE,\"\")","v":""},null,null,{"$f":"IFERROR(VLOOKUP($F63,Utslippsfaktorer!$B$6:$U$332,7,FALSE)*$H63,0)","v":0},0]
[]
[null,"Energibruk i drift (B6)",null,null,null,null,null,null,null,null,null,null,{"$f":"SUM(M66:M68)","v":23814},null,null,{"$f":"M65/$M$2","v":7.4660605078501509E-3}]
[null,null,null,null,"Oppvarming","_Elektrisitet (NO)",null,{"$f":"VLOOKUP(_xlfn.CONCAT(Prosjektbeskrivelse!$C$16,\" \",Input_rullegardin!$C$17),Input_rullegardin!$I$4:$N$39,4,FALSE)*Prosjektbeskrivelse!$C$21*Prosjektbeskrivelse!$C$24","v":688500},"kWh",null,null,null,{"$f":"IFERROR(VLOOKUP(F66,Utslippsfaktorer!$B$6:$U$332,7,FALSE)*$H66,0)","v":12392.999999999998},{"$f":"IFERROR(M66/$M$65,0)","v":0.52040816326530603}]
[null,null,null,null,"Vannoppvarming","_Elektrisitet (NO)",null,{"$f":"VLOOKUP(_xlfn.CONCAT(Prosjektbeskrivelse!$C$16,\" \",Input_rullegardin!$C$17),Input_rullegardin!$I$4:$N$39,5,FALSE)*Prosjektbeskrivelse!$C$21*Prosjektbeskrivelse!$C$24","v":128250},"kWh",null,null,null,{"$f":"IFERROR(VLOOKUP(F67,Utslippsfaktorer!$B$6:$U$332,7,FALSE)*$H67,0)","v":2308.5},{"$f":"IFERROR(M67/$M$65,0)","v":9.6938775510204078E-2}]
[null,null,null,null,"Elektriske apparater","_Elektrisitet (NO)",null,{"$f":"VLOOKUP(_xlfn.CONCAT(Prosjektbeskrivelse!$C$16,\" \",Input_rullegardin!$C$17),Input_rullegardin!$I$4:$N$39,6,FALSE)*Prosjektbeskrivelse!$C$21*Prosjektbeskrivelse!$C$24","v":506250},"kWh",null,null,null,{"$f":"IFERROR(VLOOKUP(F68,Utslippsfaktorer!$B$6:$U$332,7,FALSE)*$H68,0)","v":9112.5},0.38265306122448978]
[]
[{"$f":"Veiledning!$B$2","v":"Versjon 2023-04-13. Utviklet av SINTEF AS."}]

{"sheet":"Forprosjekt","index":4,"n_rows":66,"n_cols":17,"rows_kept":66,"cut":false,"hidden":false,"merged":[[12,3,12,5],[2,1,2,8],[1,11,1,12]]}
[]
[null,"Forprosjekt ",null,null,null,null,null,null,null,null,null,"Utslipp A1-A3 + A4 + A5 + B4 + B6",null,{"$f":"SUM(N4,N49,N54)","v":142610.58425809091},"kgCO2e"]
[null,"Velg først Kategori og velg så Materialer fra rullegardinmenyen. Legg inn Mengde eller skriv inn verdiene manuelt. Alternativt kan nøkkelverdier (gjennomsnittsverdier fra ZEN-rapport 24) brukes."]
["Seksjon1","Bygningselementer",null,null,null,null,null,null,null,null,null,0.05,null,{"$f":"SUM(N7,N13,N18,N23,N28,N33,N38,N43)","v":92096.584258090908},null,null,{"$f":"N4/$N$2","v":0.64579066650072903}]
[null,null,null,null,"Kategori","Materiale eller prosess","Mengde","Enhet","Levetid","A1-A3 Produktstadiet","A4 Transport","A5 Materialsvinn","B4 Utskiftning","Klimagassutslipp","Andel %"]
[null,null,null,null,"-","-","-","-","år","kgCO2e","kgCO2e","kgCO2e","kgCO2e","kgCO2e","-"]
[null,null,21,"Fundamentering",null,null,null,null,null,{"$f":"IF($E$8,J8,SUMIF($D$9:$D$11,$C$7,J$9:J$11))","v":34354.131818181821},{"$f":"IF($E$8,K8,SUMIF($D$9:$D$11,$C$7,K$9:K$11))","v":38.32938},{"$f":"IF($E$8,L8,SUMIF($D$9:$D$11,$C$7,L$9:L$11))","v":1719.6230599090909},{"$f":"IF($E$8,M8,SUMIF($D$9:$D$11,$C$7,M$9:M$11))","v":0},{"$f":"IF($E$8,N8,SUMIF($D$9:$D$11,$C$7,N$9:N$11))","v":36112.084258090908},null,{"$f":"IFERROR(N7/$N$4,0)","v":0.39211100551667172}]
[null,null,null,null,false,"Bygningsdel 21, gjennomsnitt, per m2 bygg",{"$f":"Prosjektbeskrivelse!$C$19*60","v":8700},{"$f":"VLOOKUP($F8,Utslippsfaktorer!$B$6:$U$332,5,FALSE)","v":"m2BTAår"},null,{"$f":"IFERROR(VLOOKUP($F8,Utslippsfaktorer!$B$6:$U$332,7,FALSE)*G8,0)","v":7829.9999999999991},{"$f":"VLOOKUP($F8,Utslippsfaktorer!$B$6:$U$332,8,FALSE)*$G8","v":0},{"$f":"(J8+K8)*$L$4","v":391.5},{"$f":"VLOOKUP($F8,Utslippsfaktorer!$B$6:$U$332,13,FALSE)*$G8","v":1957.4999999999998},{"$f":"SUM(J8:M8)","v":10179},"-"]
[null,null,null,21,"(egen data)",null,null,null,null,null,null,{"$f":"(J9+K9)*$L$4","v":0},null,{"$f":"SUM(J9:M9)","v":0},{"$f":"IFERROR(N9/$N$7,0)","v":0}]
[null,null,null,21,"Betong","Betong B30, bransjereferanse",120,{"$f":"VLOOKUP($F10,Utslippsfaktorer!$B$6:$U$332,5,FALSE)","v":"m3"},{"$f":"VLOOKUP($F10,Utslippsfaktorer!$B$6:$U$332,6,FALSE)","v":60},{"$f":"IFERROR(VLOOKUP($F10,Utslippsfaktorer!$B$6:$U$332,7,FALSE)*$G10,0)","v":33600},{"$f":"VLOOKUP($F10,Utslippsfaktorer!$B$6:$U$332,8,FALSE)*$G10","v":38.304000000000002},1681.9151999999999,{"$f":"VLOOKUP($F10,Utslippsfaktorer!$B$6:$U$332,13,FALSE)*$G10","v":0},35320.2192,{"$f":"IFERROR(N10/$N$7,0)","v":0.97807202009079575}]
[null,null,null,21,"Stål","Stål, konstruksjon u/resirk",300,{"$f":"VLOOKUP($F11,Utslippsfaktorer!$B$6:$U$332,5,FALSE)","v":"kg"},{"$f":"VLOOKUP($F11,Utslippsfaktorer!$B$6:$U$332,6,FALSE)","v":60},{"$f":"IFERROR(VLOOKUP($F11,Utslippsfaktorer!$B$6:$U$332,7,FALSE)*$G11,0)","v":754.13181818181818},{"$f":"VLOOKUP($F11,Utslippsfaktorer!$B$6:$U$332,8,FALSE)*$G11","v":2.538E-2},37.707859909090914,{"$f":"VLOOKUP($F11,Utslippsfaktorer!$B$6:$U$332,13,FALSE)*$G11","v":0},791.86505809090909,2.1927979909204268E-2]
[]
[null,null,22,"Bæresystemer",null,null,null,null,null,{"$f":"IF($E$14,J14,SUMIF($D$15:$D$16,$C$13,J15:J16))","v":3914.9999999999995},{"$f":"IF($E$14,K14,SUMIF($D$15:$D$16,$C$13,K15:K16))","v":0},{"$f":"IF($E$14,L14,SUMIF($D$15:$D$16,$C$13,L15:L16))","v":195.75},{"$f":"IF($E$14,M14,SUMIF($D$15:$D$16,$C$13,M15:M16))","v":978.74999999999989},{"$f":"IF($E$14,N14,SUMIF($D$15:$D$16,$C$13,N15:N16))","v":5089.5},null,{"$f":"IFERROR(N13/$N$4,0)","v":5.5262635862120747E-2}]
[null,null,null,null,true,"Bygningsdel 22, gjennomsnitt, per m2 bygg",{"$f":"Prosjektbeskrivelse!$C$19*60","v":8700},{"$f":"VLOOKUP($F14,Utslippsfaktorer!$B$6:$U$332,5,FALSE)","v":"m2BTAår"},null,{"$f":"IFERROR(VLOOKUP($F14,Utslippsfaktorer!$B$6:$U$332,7,FALSE)*G14,0)","v":3914.9999999999995},{"$f":"VLOOKUP($F14,Utslippsfaktorer!$B$6:$U$332,8,FALSE)*$G14","v":0},{"$f":"(J14+K14)*$L$4","v":195.75},{"$f":"VLOOKUP($F14,Utslippsfaktorer!$B$6:$U$332,13,FALSE)*$G14","v":978.74999999999989},{"$f":"SUM(J14:M14)","v":5089.5},"-"]
[null,null,null,22,"(egen data)",null,null,null,null,null,null,{"$f":"(J15+K15)*$L$4","v":0},null,{"$f":"SUM(J15:M15)","v":0},{"$f":"IFERROR(N15/$N$13,0)","v":0}]
[null,null,null,22,"(Velg kategori)","(Velg material eller prosesser)",null,{"$f":"VLOOKUP($F16,Utslippsfaktorer!$B$6:$U$332,5,FALSE)","v":"-"},{"$f":"VLOOKUP($F16,Utslippsfaktorer!$B$6:$U$332,6,FALSE)","v":0},{"$f":"IFERROR(VLOOKUP($F16,Utslippsfaktorer!$B$6:$U$332,7,FALSE)*$G16,0)","v":0},{"$f":"VLOOKUP($F16,Utslippsfaktorer!$B$6:$U$332,8,FALSE)*$G16","v":0},0,{"$f":"VLOOKUP($F16,Utslippsfaktorer!$B$6:$U$332,13,FALSE)*$G16","v":0},{"$f":"SUM(J16:M16)","v":0},{"$f":"IFERROR(N16/$N$13,0)","v":0}]
[]
[null,null,23,"Yttervegger",null,null,null,null,null,{"$f":"IF($E19,J19,SUMIF($D20:$D21,$C18,J20:J21))","v":7829.9999999999991},{"$f":"IF($E19,K19,SUMIF($D20:$D21,$C18,K20:K21))","v":0},{"$f":"IF($E19,L19,SUMIF($D20:$D21,$C18,L20:L21))","v":391.5},{"$f":"IF($E19,M19,SUMIF($D20:$D21,$C18,M20:M21))","v":1957.4999999999998},{"$f":"IF($E19,N19,SUMIF($D20:$D21,$C18,N20:N21))","v":10179},null,{"$f":"IFERROR(N18/$N$4,0)","v":0.11052527172424149}]
[null,null,null,null,true,"Bygningsdel 23, gjennomsnitt, per m2 bygg",{"$f":"Prosjektbeskrivelse!$C$19*60","v":8700},{"$f":"VLOOKUP($F19,Utslippsfaktorer!$B$6:$U$332,5,FALSE)","v":"m2BTAår"},null,{"$f":"IFERROR(VLOOKUP($F19,Utslippsfaktorer!$B$6:$U$332,7,FALSE)*G19,0)","v":7829.9999999999991},{"$f":"VLOOKUP($F19,Utslippsfaktorer!$B$6:$U$332,8,FALSE)*$G19","v":0},{"$f":"(J19+K19)*$L$4","v":391.5},{"$f":"VLOOKUP($F19,Utslippsfaktorer!$B$6:$U$332,13,FALSE)*$G19","v":1957.4999999999998},{"$f":"SUM(J19:M19)","v":10179},"-"]
[null,null,null,23,"(egen data)",null,null,null,null,null,null,0,null,0,{"$f":"IFERROR(N20/$N$18,0)","v":0}]
[null,null,null,23,"(Velg kategori)","(Velg material eller prosesser)",null,{"$f":"VLOOKUP($F21,Utslippsfaktorer!$B$6:$U$332,5,FALSE)","v":"-"},{"$f":"VLOOKUP($F21,Utslippsfaktorer!$B$6:$U$332,6,FALSE)","v":0},{"$f":"IFERROR(VLOOKUP($F21,Utslippsfaktorer!$B$6:$U$332,7,FALSE)*$G21,0)","v":0},{"$f":"VLOOKUP($F21,Utslippsfaktorer!$B$6:$U$332,8,FALSE)*$G21","v":0},0,{"$f":"VLOOKUP($F21,Utslippsfaktorer!$B$6:$U$332,13,FALSE)*$G21","v":0},{"$f":"SUM(J21:M21)","v":0},{"$f":"IFERROR(N21/$N$18,0)","v":0}]
[]
[null,null,24,"Innervegger",null,null,null,null,null,{"$f":"IF($E24,J24,SUMIF($D25:$D26,$C23,J25:J26))","v":5872.5},{"$f":"IF($E24,K24,SUMIF($D25:$D26,$C23,K25:K26))","v":0},{"$f":"IF($E24,L24,SUMIF($D25:$D26,$C23,L25:L26))","v":293.625},{"$f":"IF($E24,M24,SUMIF($D25:$D26,$C23,M25:M26))","v":1468.125},{"$f":"IF($E24,N24,SUMIF($D25:$D26,$C23,N25:N26))","v":7634.25},null,{"$f":"IFERROR(N23/$N$4,0)","v":8.2893953793181124E-2}]
[null,null,null,null,true,"Bygningsdel 24, gjennomsnitt, per m2 bygg",{"$f":"Prosjektbeskrivelse!$C$19*60","v":8700},{"$f":"VLOOKUP($F24,Utslippsfaktorer!$B$6:$U$332,5,FALSE)","v":"m2BTAår"},null,{"$f":"IFERROR(VLOOKUP($F24,Utslippsfaktorer!$B$6:$U$332,7,FALSE)*G24,0)","v":5872.5},{"$f":"VLOOKUP($F24,Utslippsfaktorer!$B$6:$U$332,8,FALSE)*$G24","v":0},{"$f":"(J24+K24)*$L$4","v":293.625},{"$f":"VLOOKUP($F24,Utslippsfaktorer!$B$6:$U$332,13,FALSE)*$G24","v":1468.125},{"$f":"SUM(J24:M24)","v":7634.25},"-"]
[null,null,null,24,"(egen data)",null,null,null,null,null,null,0,null,0,{"$f":"IFERROR(N25/$N$23,0)","v":0}]
[null,null,null,24,"(Velg kategori)","(Velg material eller prosesser)",null,{"$f":"VLOOKUP($F26,Utslippsfaktorer!$B$6:$U$332,5,FALSE)","v":"-"},{"$f":"VLOOKUP($F26,Utslippsfaktorer!$B$6:$U$332,6,FALSE)","v":0},{"$f":"IFERROR(VLOOKUP($F26,Utslippsfaktorer!$B$6:$U$332,7,FALSE)*$G26,0)","v":0},{"$f":"VLOOKUP($F26,Utslippsfaktorer!$B$6:$U$332,8,FALSE)*$G26","v":0},0,{"$f":"VLOOKUP($F26,Utslippsfaktorer!$B$6:$U$332,13,FALSE)*$G26","v":0},{"$f":"SUM(J26:M26)","v":0},{"$f":"IFERROR(N26/$N$23,0)","v":0}]
[]
[null,null,25,"Dekker",null,null,null,null,null,{"$f":"IF($E29,J29,SUMIF($D30:$D31,$C28,J30:J31))","v":9134.9999999999982},{"$f":"IF($E29,K29,SUMIF($D30:$D31,$C28,K30:K31))","v":0},{"$f":"IF($E29,L29,SUMIF($D30:$D31,$C28,L30:L31))","v":456.74999999999994},{"$f":"IF($E29,M29,SUMIF($D30:$D31,$C28,M30:M31))","v":2283.7499999999995},{"$f":"IF($E29,N29,SUMIF($D30:$D31,$C28,N30:N31))","v":11875.499999999998},null,{"$f":"IFERROR(N28/$N$4,0)","v":0.12894615034494838}]
[null,null,null,null,true,"Bygningsdel 25, gjennomsnitt, per m2 bygg",{"$f":"Prosjektbeskrivelse!$C$19*60","v":8700},{"$f":"VLOOKUP($F29,Utslippsfaktorer!$B$6:$U$332,5,FALSE)","v":"m2BTAår"},null,{"$f":"IFERROR(VLOOKUP($F29,Utslippsfaktorer!$B$6:$U$332,7,FALSE)*G29,0)","v":9134.9999999999982},{"$f":"VLOOKUP($F29,Utslippsfaktorer!$B$6:$U$332,8,FALSE)*$G29","v":0},{"$f":"(J29+K29)*$L$4","v":456.74999999999994},{"$f":"VLOOKUP($F29,Utslippsfaktorer!$B$6:$U$332,13,FALSE)*$G29","v":2283.7499999999995},{"$f":"SUM(J29:M29)","v":11875.499999999998},"-"]
[null,null,null,25,"(egen data)",null,null,null,null,null,null,0,null,0,{"$f":"IFERROR(N30/$N$28,0)","v":0}]
[null,null,null,25,"(Velg kategori)","(Velg material eller prosesser)",null,{"$f":"VLOOKUP($F31,Utslippsfaktorer!$B$6:$U$332,5,FALSE)","v":"-"},{"$f":"VLOOKUP($F31,Utslippsfaktorer!$B$6:$U$332,6,FALSE)","v":0},{"$f":"IFERROR(VLOOKUP($F31,Utslippsfaktorer!$B$6:$U$332,7,FALSE)*$G31,0)","v":0},{"$f":"VLOOKUP($F31,Utslippsfaktorer!$B$6:$U$332,8,FALSE)*$G31","v":0},0,{"$f":"VLOOKUP($F31,Utslippsfaktorer!$B$6:$U$332,13,FALSE)*$G31","v":0},0,0]
[]
[null,null,26,"Yttertak",null,null,null,null,null,{"$f":"IF($E34,J34,SUMIF($D35:$D36,$C33,J35:J36))","v":3262.5},{"$f":"IF($E34,K34,SUMIF($D35:$D36,$C33,K35:K36))","v":0},{"$f":"IF($E34,L34,SUMIF($D35:$D36,$C33,L35:L36))","v":163.125},{"$f":"IF($E34,M34,SUMIF($D35:$D36,$C33,M35:M36))","v":815.625},{"$f":"IF($E34,N34,SUMIF($D35:$D36,$C33,N35:N36))","v":4241.25},null,{"$f":"IFERROR(N33/$N$4,0)","v":4.6052196551767295E-2}]
[null,null,null,null,true,"Bygningsdel 26, gjennomsnitt, per m2 bygg",{"$f":"Prosjektbeskrivelse!$C$19*60","v":8700},{"$f":"VLOOKUP($F34,Utslippsfaktorer!$B$6:$U$332,5,FALSE)","v":"m2BTAår"},null,{"$f":"IFERROR(VLOOKUP($F34,Utslippsfaktorer!$B$6:$U$332,7,FALSE)*G34,0)","v":3262.5},{"$f":"VLOOKUP($F34,Utslippsfaktorer!$B$6:$U$332,8,FALSE)*$G34","v":0},{"$f":"(J34+K34)*$L$4","v":163.125},{"$f":"VLOOKUP($F34,Utslippsfaktorer!$B$6:$U$332,13,FALSE)*$G34","v":815.625},{"$f":"SUM(J34:M34)","v":4241.25},"-"]
[null,null,null,26,"(egen data)",null,null,null,null,null,null,0,null,0,{"$f":"IFERROR(N35/$N$33,0)","v":0}]
[null,null,null,26,"(Velg kategori)","(Velg material eller prosesser)",null,{"$f":"VLOOKUP($F36,Utslippsfaktorer!$B$6:$U$332,5,FALSE)","v":"-"},{"$f":"VLOOKUP($F36,Utslippsfaktorer!$B$6:$U$332,6,FALSE)","v":0},{"$f":"IFERROR(VLOOKUP($F36,Utslippsfaktorer!$B$6:$U$332,7,FALSE)*$G36,0)","v":0},{"$f":"VLOOKUP($F36,Utslippsfaktorer!$B$6:$U$332,8,FALSE)*$G36","v":0},0,{"$f":"VLOOKUP($F36,Utslippsfaktorer!$B$6:$U$332,13,FALSE)*$G36","v":0},{"$f":"SUM(J36:M36)","v":0},{"$f":"IFERROR(N36/$N$33,0)","v":0}]
[]
[null,null,28,"Trapper, balkonger, m.m.",null,null,null,null,null,{"$f":"IF($E39,J39,SUMIF($D40:$D41,$C38,J40:J41))","v":652.50000000000011},{"$f":"IF($E39,K39,SUMIF($D40:$D41,$C38,K40:K41))","v":0},{"$f":"IF($E39,L39,SUMIF($D40:$D41,$C38,L40:L41))","v":32.625000000000007},{"$f":"IF($E39,M39,SUMIF($D40:$D41,$C38,M40:M41))","v":163.12500000000003},{"$f":"IF($E39,N39,SUMIF($D40:$D41,$C38,N40:N41))","v":848.25000000000011},null,{"$f":"IFERROR(N38/$N$4,0)","v":9.210439310353459E-3}]
[null,null,null,null,true,"Bygningsdel 28, gjennomsnitt, per m2 bygg",{"$f":"Prosjektbeskrivelse!$C$19*60","v":8700},{"$f":"VLOOKUP($F39,Utslippsfaktorer!$B$6:$U$332,5,FALSE)","v":"m2BTAår"},null,{"$f":"IFERROR(VLOOKUP($F39,Utslippsfaktorer!$B$6:$U$332,7,FALSE)*G39,0)","v":652.50000000000011},{"$f":"VLOOKUP($F39,Utslippsfaktorer!$B$6:$U$332,8,FALSE)*$G39","v":0},{"$f":"(J39+K39)*$L$4","v":32.625000000000007},{"$f":"VLOOKUP($F39,Utslippsfaktorer!$B$6:$U$332,13,FALSE)*$G39","v":163.12500000000003},{"$f":"SUM(J39:M39)","v":848.25000000000011},"-"]
[null,null,null,28,"(egen data)",null,null,null,null,null,null,0,null,0,{"$f":"IFERROR(N40/$N$38,0)","v":0}]
[null,null,null,28,"(Velg kategori)","(Velg material eller prosesser)",null,{"$f":"VLOOKUP($F41,Utslippsfaktorer!$B$6:$U$332,5,FALSE)","v":"-"},{"$f":"VLOOKUP($F41,Utslippsfaktorer!$B$6:$U$332,6,FALSE)","v":0},{"$f":"IFERROR(VLOOKUP($F41,Utslippsfaktorer!$B$6:$U$332,7,FALSE)*$G41,0)","v":0},{"$f":"VLOOKUP($F41,Utslippsfaktorer!$B$6:$U$332,8,FALSE)*$G41","v":0},0,{"$f":"VLOOKUP($F41,Utslippsfaktorer!$B$6:$U$332,13,FALSE)*$G41","v":0},0,0]
[]
[null,null,49,"Andre elkraftinstallasjoner",null,null,null,null,null,{"$f":"IF($E44,J44,SUMIF($D45:$D46,$C43,J45:J46))","v":12397.499999999998},{"$f":"IF($E44,K44,SUMIF($D45:$D46,$C43,K45:K46))","v":0},{"$f":"IF($E44,L44,SUMIF($D45:$D46,$C43,L45:L46))","v":619.875},{"$f":"IF($E44,M44,SUMIF($D45:$D46,$C43,M45:M46))","v":3099.3749999999995},{"$f":"IF($E44,N44,SUMIF($D45:$D46,$C43,N45:N46))","v":16116.749999999998},null,{"$f":"IFERROR(N43/$N$4,0)","v":0.1749983468967157}]
[null,null,null,null,true,"Bygningsdel 49, gjennomsnitt, per m2 bygg",{"$f":"Prosjektbeskrivelse!$C$19*60","v":8700},{"$f":"VLOOKUP($F44,Utslippsfaktorer!$B$6:$U$332,5,FALSE)","v":"m2BTAår"},null,{"$f":"IFERROR(VLOOKUP($F44,Utslippsfaktorer!$B$6:$U$332,7,FALSE)*G44,0)","v":12397.499999999998},{"$f":"VLOOKUP($F44,Utslippsfaktorer!$B$6:$U$332,8,FALSE)*$G44","v":0},{"$f":"(J44+K44)*$L$4","v":619.875},{"$f":"VLOOKUP($F44,Utslippsfaktorer!$B$6:$U$332,13,FALSE)*$G44","v":3099.3749999999995},{"$f":"SUM(J44:M44)","v":16116.749999999998},"-"]
[null,null,null,49,"(egen data)",null,null,null,null,null,null,0,null,0,{"$f":"IFERROR(N45/$N$43,0)","v":0}]
[null,null,null,49,"(Velg kategori)","(Velg material eller prosesser)",null,{"$f":"VLOOKUP($F46,Utslippsfaktorer!$B$6:$U$332,5,FALSE)","v":"-"},{"$f":"VLOOKUP($F46,Utslippsfaktorer!$B$6:$U$332,6,FALSE)","v":0},{"$f":"IFERROR(VLOOKUP($F46,Utslippsfaktorer!$B$6:$U$332,7,FALSE)*$G46,0)","v":0},{"$f":"VLOOKUP($F46,Utslippsfaktorer!$B$6:$U$332,8,FALSE)*$G46","v":0},0,{"$f":"VLOOKUP($F46,Utslippsfaktorer!$B$6:$U$332,13,FALSE)*$G46","v":0},0,0]
[]
[null,null,null,"LastRow"]
["Seksjon2","Energiforbruk på byggeplass (del av A5)",null,null,null,null,null,null,null,null,null,null,null,{"$f":"SUM(N50:N51)","v":26700},null,null,{"$f":"IFERROR(N49/$N$2,0)","v":0.18722313030903381}]
[null,null,null,null,null,"_Elektrisitet (NO)",null,{"$f":"VLOOKUP($F50,Utslippsfaktorer!$B$6:$U$332,5,FALSE)","v":"kWh"},{"$f":"_xlfn.IFS(AND(Prosjektbeskrivelse!$C$13=\"Utslippsfri\",H50=\"liter\",G50>0),\"Krav for utslippsfri byggeplass!\",AND(Prosjektbeskrivelse!$C$13=\"Fossilfri\",OR(ISNUMBER(FIND(\"Diesel\",F50)),ISNUMBER(FIND(\"LPG\",F50))),G50>0),\"Krav for fossilfri byggeplass!\",TRUE,\"\")","v":""},null,null,null,null,{"$f":"IFERROR(VLOOKUP($F50,Utslippsfaktorer!$B$6:$U$332,7,FALSE)*$G50,0)","v":0},{"$f":"IFERROR(N50/$N$49,0)","v":0}]
[null,null,null,null,null,"Diesel",10000,{"$f":"VLOOKUP($F51,Utslippsfaktorer!$B$6:$U$332,5,FALSE)","v":"liter"},{"$f":"_xlfn.IFS(AND(Prosjektbeskrivelse!$C$13=\"Utslippsfri\",H51=\"liter\",G51>0),\"Krav for utslippsfri byggeplass!\",AND(Prosjektbeskrivelse!$C$13=\"Fossilfri\",OR(ISNUMBER(FIND(\"Diesel\",F51)),ISNUMBER(FIND(\"LPG\",F51))),G51>0),\"Krav for fossilfri byggeplass!\",TRUE,\"\")","v":"Krav for fossilfri byggeplass!"},null,null,null,null,{"$f":"IFERROR(VLOOKUP($F51,Utslippsfaktorer!$B$6:$U$332,7,FALSE)*$G51,0)","v":26700},{"$f":"IFERROR(N51/$N$49,0)","v":1}]
[null,null,null,null,null,"Biodiesel",null,{"$f":"VLOOKUP($F52,Utslippsfaktorer!$B$6:$U$332,5,FALSE)","v":"liter"},{"$f":"_xlfn.IFS(AND(Prosjektbeskrivelse!$C$13=\"Utslippsfri\",H52=\"liter\",G52>0),\"Krav for utslippsfri byggeplass!\",AND(Prosjektbeskrivelse!$C$13=\"Fossilfri\",OR(ISNUMBER(FIND(\"Diesel\",F52)),ISNUMBER(FIND(\"LPG\",F52))),G52>0),\"Krav for fossilfri byggeplass!\",TRUE,\"\")","v":""},null,null,null,null,{"$f":"IFERROR(VLOOKUP($F52,Utslippsfaktorer!$B$6:$U$332,7,FALSE)*$G52,0)","v":0},0]
[]
["Seksjon3","Energibruk i drift (B6)",null,null,null,null,null,null,null,null,null,null,null,{"$f":"SUM(N57:N62)","v":23814},null,null,{"$f":"IFERROR(N54/$N$2,0)","v":0.16698620319023713}]
[null,null,null,null,null,null,null,null,null,"Nøkkelverdi (PROfet)","Verdier fra egen beregning ","Energibruk per m2 per år","Total energibruk","Klimagassutslipp","Andel %"]
[null,null,null,null,null,null,null,null,null,"kWh/(m2BRA.år)","kWh/(m2BRA.år)","kWh/(m2BRA.år)","kWh","kgCO2e","-"]
[null,null,null,null,"Oppvarming","_Elektrisitet (NO)",null,null,null,{"$f":"VLOOKUP(_xlfn.CONCAT(Prosjektbeskrivelse!$C$16,\" \",Prosjektbeskrivelse!$C$17),Input_rullegardin!$I$4:$N$39,4,FALSE)","v":102},null,{"$f":"IF(ISBLANK(K57),J57,K57)","v":102},{"$f":"L57*Prosjektbeskrivelse!$C$21*Prosjektbeskrivelse!$C$24","v":688500},{"$f":"IFERROR(VLOOKUP($F57,Utslippsfaktorer!$B$6:$U$332,7,FALSE)*M57,0)","v":12392.999999999998},{"$f":"IFERROR(N57/$N$54,0)","v":0.52040816326530603}]
[null,null,null,null,null,"_Fjernvarme, Trondheim, NO (snitt 2019-2021)",null,null,null,null,null,0,{"$f":"L58*Prosjektbeskrivelse!$C$21*Prosjektbeskrivelse!$C$24","v":0},{"$f":"IFERROR(VLOOKUP($F58,Utslippsfaktorer!$B$6:$U$332,7,FALSE)*M58,0)","v":0},{"$f":"IFERROR(N58/$N$54,0)","v":0}]
[null,null,null,null,"Vannoppvarming","_Elektrisitet (NO)",null,null,null,{"$f":"VLOOKUP(_xlfn.CONCAT(Prosjektbeskrivelse!$C$16,\" \",Prosjektbeskrivelse!$C$17),Input_rullegardin!I6:N41,5,FALSE)","v":19},null,19,{"$f":"L59*Prosjektbeskrivelse!$C$21*Prosjektbeskrivelse!$C$24","v":128250},{"$f":"IFERROR(VLOOKUP($F59,Utslippsfaktorer!$B$6:$U$332,7,FALSE)*M59,0)","v":2308.5},{"$f":"IFERROR(N59/$N$54,0)","v":9.6938775510204078E-2}]
[null,null,null,null,"Elektriske apparater","_Elektrisitet (NO)",null,null,null,{"$f":"VLOOKUP(_xlfn.CONCAT(Prosjektbeskrivelse!$C$16,\" \",Prosjektbeskrivelse!$C$17),Input_rullegardin!I7:N42,6,FALSE)","v":75},null,75,{"$f":"L60*Prosjektbeskrivelse!$C$21*Prosjektbeskrivelse!$C$24","v":506250},{"$f":"IFERROR(VLOOKUP($F60,Utslippsfaktorer!$B$6:$U$332,7,FALSE)*M60,0)","v":9112.5},0.38265306122448978]
[null,null,null,null,"Kjøling","_Elektrisitet (NO)",null,null,null,null,null,0,{"$f":"L61*Prosjektbeskrivelse!$C$21*Prosjektbeskrivelse!$C$24","v":0},{"$f":"IFERROR(VLOOKUP($F61,Utslippsfaktorer!$B$6:$U$332,7,FALSE)*M61,0)","v":0},0]
[null,null,null,null,"Luftbehandling","_Elektrisitet (NO)",null,null,null,null,null,0,{"$f":"L62*Prosjektbeskrivelse!$C$21*Prosjektbeskrivelse!$C$24","v":0},{"$f":"IFERROR(VLOOKUP($F62,Utslippsfaktorer!$B$6:$U$332,7,FALSE)*M62,0)","v":0},0]
[]
["Seksjon4"]
[]
[{"$f":"Veiledning!$B$2","v":"Versjon 2023-04-13. Utviklet av SINTEF AS."}]

{"sheet":"Detaljprosjekt","index":5,"n_rows":166,"n_cols":25,"rows_kept":166,"cut":false,"hidden":false,"merged":[[1,1,1,3],[5,2,5,3],[1,20,1,21],[1,16,1,19],[155,6,155,8],[155,9,155,10],[155,12,155,13],[155,15,155,16]]}
[]
[null,"Detaljprosjekt",null,null,null,null,null,null,null,null,null,null,null,null,null,null,"Utslipp A1-C4",null,null,null,{"$f":"SUM(V4,V150,V155)","v":107710.54157499367},null,"kgCO2e"]
[]
[null,"Bygningselementer",null,null,null,null,null,null,null,null,null,null,null,null,null,null,null,null,null,null,null,{"$f":"SUM(V8,V18,V37,V61,V82,V103)","v":60502.69157499366},null,null,{"$f":"IFERROR(V4/$U$2,0)","v":0.56171560081580829}]
[null,null,null,null,null,null,null,null,null,"Produktstadiet","Transport","Monterings-arbeid","Bruk","Vedlikehold","Reparasjon","Utskiftning","Ombygging","Riving","Transport","Avfalls-behandling","Avhending"]
[null,null,"Bygningselement",null,"Kategori","Materialer eller prosesser","Mengde","Enhet","Levetid","A1-A3","A4","A5-svinn","B1","B2","B3","B4","B5","C1","C2","C3","C4","Klimagassutslipp","Andel % per bygningselement","Kilde"]
[null,null,null,null,null,null,null,null,"år","kgCO2e","kgCO2e","kgCO2e","kgCO2e","kgCO2e","kgCO2e","kgCO2e","kgCO2e","kgCO2e","kgCO2e","kgCO2e","kgCO2e","kgCO2e","-"]
["seksjon1",null,21,"Fundamentering",null,null,null,null,null,{"$f":"IFERROR(SUM(J9:J17),\"Not assessed\")","v":10375.099014993661},3.5388599999999997,152.59999999999997,0,0,0,0,0,0,0,0,0,10531.237874993662,null,{"$f":"IFERROR(V8/$U$2,0)","v":9.7773511496655766E-2}]
[null,null,21,21,"(egen data)",null,0,null,null,null,null,null,null,null,null,null,null,null,null,null,null,{"$f":"SUM(J9:U9)","v":0},{"$f":"IFERROR(V9/$V$8,0)","v":0}]
[null,null,21,"215 Pelefundamentering ","Betong","Betong B45, bransjereferanse",10,{"$f":"VLOOKUP($F10,Utslippsfaktorer!$B$6:$U$332,5,FALSE)","v":"m3"},{"$f":"VLOOKUP($F10,Utslippsfaktorer!$B$6:$U$332,6,FALSE)","v":60},{"$f":"IFERROR(VLOOKUP($F10,Utslippsfaktorer!$B$6:$U$332,7,FALSE)*$G10,0)","v":3600},{"$f":"VLOOKUP($F10,Utslippsfaktorer!$B$6:$U$332,8,FALSE)*$G10","v":3.1920000000000002},{"$f":"VLOOKUP($F10,Utslippsfaktorer!$B$6:$U$332,9,FALSE)*$G10","v":0},{"$f":"VLOOKUP($F10,Utslippsfaktorer!$B$6:$U$332,10,FALSE)*$G10","v":0},{"$f":"VLOOKUP($F10,Utslippsfaktorer!$B$6:$U$332,11,FALSE)*$G10","v":0},{"$f":"VLOOKUP($F10,Utslippsfaktorer!$B$6:$U$332,12,FALSE)*$G10","v":0},{"$f":"VLOOKUP($F10,Utslippsfaktorer!$B$6:$U$332,13,FALSE)*$G10","v":0},{"$f":"VLOOKUP($F10,Utslippsfaktorer!$B$6:$U$332,14,FALSE)*$G10","v":0},{"$f":"VLOOKUP($F10,Utslippsfaktorer!$B$6:$U$332,16,FALSE)*$G10","v":0},{"$f":"VLOOKUP($F10,Utslippsfaktorer!$B$6:$U$332,17,FALSE)*$G10","v":0},{"$f":"VLOOKUP($F10,Utslippsfaktorer!$B$6:$U$332,18,FALSE)*$G10","v":0},{"$f":"VLOOKUP($F10,Utslippsfaktorer!$B$6:$U$332,19,FALSE)*$G10","v":0},{"$f":"SUM(J10:U10)","v":3603.192},{"$f":"IFERROR(V10/$V$8,0)","v":0.34214325445594101},{"$f":"VLOOKUP($F10,Utslippsfaktorer!$B$6:$U$332,3,FALSE)","v":0}]
[null,null,21,"215 Pelefundamentering ","Stål","Stål, konstruksjon m/resirk",1700,{"$f":"VLOOKUP($F11,Utslippsfaktorer!$B$6:$U$332,5,FALSE)","v":"kg"},{"$f":"VLOOKUP($F11,Utslippsfaktorer!$B$6:$U$332,6,FALSE)","v":60},{"$f":"IFERROR(VLOOKUP($F11,Utslippsfaktorer!$B$6:$U$332,7,FALSE)*$G11,0)","v":2112.3272727272729},{"$f":"VLOOKUP($F11,Utslippsfaktorer!$B$6:$U$332,8,FALSE)*$G11","v":0.14382},{"$f":"VLOOKUP($F11,Utslippsfaktorer!$B$6:$U$332,9,FALSE)*$G11","v":0},{"$f":"VLOOKUP($F11,Utslippsfaktorer!$B$6:$U$332,10,FALSE)*$G11","v":0},{"$f":"VLOOKUP($F11,Utslippsfaktorer!$B$6:$U$332,11,FALSE)*$G11","v":0},{"$f":"VLOOKUP($F11,Utslippsfaktorer!$B$6:$U$332,12,FALSE)*$G11","v":0},{"$f":"VLOOKUP($F11,Utslippsfaktorer!$B$6:$U$332,13,FALSE)*$G11","v":0},{"$f":"VLOOKUP($F11,Utslippsfaktorer!$B$6:$U$332,14,FALSE)*$G11","v":0},{"$f":"VLOOKUP($F11,Utslippsfaktorer!$B$6:$U$332,16,FALSE)*$G11","v":0},{"$f":"VLOOKUP($F11,Utslippsfaktorer!$B$6:$U$332,17,FALSE)*$G11","v":0},{"$f":"VLOOKUP($F11,Utslippsfaktorer!$B$6:$U$332,18,FALSE)*$G11","v":0},{"$f":"VLOOKUP($F11,Utslippsfaktorer!$B$6:$U$332,19,FALSE)*$G11","v":0},2112.4710927272727,{"$f":"IFERROR(V11/$V$8,0)","v":0.20059095785342748},{"$f":"VLOOKUP($F11,Utslippsfaktorer!$B$6:$U$332,3,FALSE)","v":0}]
[null,null,21,"215 Pelefundamentering ","Isolasjon","Ekstrudert polystyren (XPS 400)",40,{"$f":"VLOOKUP($F12,Utslippsfaktorer!$B$6:$U$332,5,FALSE)","v":"m3"},{"$f":"VLOOKUP($F12,Utslippsfaktorer!$B$6:$U$332,6,FALSE)","v":20},{"$f":"IFERROR(VLOOKUP($F12,Utslippsfaktorer!$B$6:$U$332,7,FALSE)*$G12,0)","v":4473.6717422663878},{"$f":"VLOOKUP($F12,Utslippsfaktorer!$B$6:$U$332,8,FALSE)*$G12","v":0.10152},{"$f":"VLOOKUP($F12,Utslippsfaktorer!$B$6:$U$332,9,FALSE)*$G12","v":0},{"$f":"VLOOKUP($F12,Utslippsfaktorer!$B$6:$U$332,10,FALSE)*$G12","v":0},{"$f":"VLOOKUP($F12,Utslippsfaktorer!$B$6:$U$332,11,FALSE)*$G12","v":0},{"$f":"VLOOKUP($F12,Utslippsfaktorer!$B$6:$U$332,12,FALSE)*$G12","v":0},{"$f":"VLOOKUP($F12,Utslippsfaktorer!$B$6:$U$332,13,FALSE)*$G12","v":0},{"$f":"VLOOKUP($F12,Utslippsfaktorer!$B$6:$U$332,14,FALSE)*$G12","v":0},{"$f":"VLOOKUP($F12,Utslippsfaktorer!$B$6:$U$332,16,FALSE)*$G12","v":0},{"$f":"VLOOKUP($F12,Utslippsfaktorer!$B$6:$U$332,17,FALSE)*$G12","v":0},{"$f":"VLOOKUP($F12,Utslippsfaktorer!$B$6:$U$332,18,FALSE)*$G12","v":0},{"$f":"VLOOKUP($F12,Utslippsfaktorer!$B$6:$U$332,19,FALSE)*$G12","v":0},{"$f":"SUM(J12:U12)","v":4473.773262266388},{"$f":"IFERROR(V12/$V$8,0)","v":0.4248098196404172},{"$f":"VLOOKUP($F12,Utslippsfaktorer!$B$6:$U$332,3,FALSE)","v":0}]
[null,null,21,"215 Pelefundamentering ","Bitumen","Bitumen, EPD snitt",40,{"$f":"VLOOKUP($F13,Utslippsfaktorer!$B$6:$U$332,5,FALSE)","v":"m2"},{"$f":"VLOOKUP($F13,Utslippsfaktorer!$B$6:$U$332,6,FALSE)","v":25},{"$f":"IFERROR(VLOOKUP($F13,Utslippsfaktorer!$B$6:$U$332,7,FALSE)*$G13,0)","v":189.1},{"$f":"VLOOKUP($F13,Utslippsfaktorer!$B$6:$U$332,8,FALSE)*$G13","v":0.10152},{"$f":"VLOOKUP($F13,Utslippsfaktorer!$B$6:$U$332,9,FALSE)*$G13","v":152.59999999999997},{"$f":"VLOOKUP($F13,Utslippsfaktorer!$B$6:$U$332,10,FALSE)*$G13","v":0},{"$f":"VLOOKUP($F13,Utslippsfaktorer!$B$6:$U$332,11,FALSE)*$G13","v":0},{"$f":"VLOOKUP($F13,Utslippsfaktorer!$B$6:$U$332,12,FALSE)*$G13","v":0},{"$f":"VLOOKUP($F13,Utslippsfaktorer!$B$6:$U$332,13,FALSE)*$G13","v":0},{"$f":"VLOOKUP($F13,Utslippsfaktorer!$B$6:$U$332,14,FALSE)*$G13","v":0},{"$f":"VLOOKUP($F13,Utslippsfaktorer!$B$6:$U$332,16,FALSE)*$G13","v":0},{"$f":"VLOOKUP($F13,Utslippsfaktorer!$B$6:$U$332,17,FALSE)*$G13","v":0},{"$f":"VLOOKUP($F13,Utslippsfaktorer!$B$6:$U$332,18,FALSE)*$G13","v":0},{"$f":"VLOOKUP($F13,Utslippsfaktorer!$B$6:$U$332,19,FALSE)*$G13","v":0},{"$f":"SUM(J13:U13)","v":341.80151999999998},{"$f":"IFERROR(V13/$V$8,0)","v":3.2455968050214203E-2},{"$f":"VLOOKUP($F13,Utslippsfaktorer!$B$6:$U$332,3,FALSE)","v":0}]
[null,null,21,"216 Pelefundamentering ","(egen data)",null,0,null,null,null,null,null,null,null,null,null,null,null,null,null,null,0,{"$f":"IFERROR(V14/$V$8,0)","v":0}]
[null,null,21,"216 Direkte fundamentering ","(Velg kategori)","(Velg material eller prosesser)",0,{"$f":"VLOOKUP($F15,Utslippsfaktorer!$B$6:$U$332,5,FALSE)","v":"-"},{"$f":"VLOOKUP($F15,Utslippsfaktorer!$B$6:$U$332,6,FALSE)","v":0},{"$f":"IFERROR(VLOOKUP($F15,Utslippsfaktorer!$B$6:$U$332,7,FALSE)*$G15,0)","v":0},{"$f":"VLOOKUP($F15,Utslippsfaktorer!$B$6:$U$332,8,FALSE)*$G15","v":0},{"$f":"VLOOKUP($F15,Utslippsfaktorer!$B$6:$U$332,9,FALSE)*$G15","v":0},{"$f":"VLOOKUP($F15,Utslippsfaktorer!$B$6:$U$332,10,FALSE)*$G15","v":0},{"$f":"VLOOKUP($F15,Utslippsfaktorer!$B$6:$U$332,11,FALSE)*$G15","v":0},{"$f":"VLOOKUP($F15,Utslippsfaktorer!$B$6:$U$332,12,FALSE)*$G15","v":0},{"$f":"VLOOKUP($F15,Utslippsfaktorer!$B$6:$U$332,13,FALSE)*$G15","v":0},{"$f":"VLOOKUP($F15,Utslippsfaktorer!$B$6:$U$332,14,FALSE)*$G15","v":0},{"$f":"VLOOKUP($F15,Utslippsfaktorer!$B$6:$U$332,16,FALSE)*$G15","v":0},{"$f":"VLOOKUP($F15,Utslippsfaktorer!$B$6:$U$332,17,FALSE)*$G15","v":0},{"$f":"VLOOKUP($F15,Utslippsfaktorer!$B$6:$U$332,18,FALSE)*$G15","v":0},{"$f":"VLOOKUP($F15,Utslippsfaktorer!$B$6:$U$332,19,FALSE)*$G15","v":0},0,{"$f":"IFERROR(V15/$V$8,0)","v":0},{"$f":"VLOOKUP($F15,Utslippsfaktorer!$B$6:$U$332,3,FALSE)","v":"-"}]
[null,null,21,"216 Direkte fundamentering ","(egen data)",null,0,null,null,null,null,null,null,null,null,null,null,null,null,null,null,0,{"$f":"IFERROR(V16/$V$8,0)","v":0}]
[]
["seksjon2",null,22,"Bæresystemer",null,null,null,null,null,{"$f":"IFERROR((SUM(J19:J36)),\"Not assessed\")","v":0},0,0,0,0,0,0,0,0,0,0,0,{"$f":"IFERROR((SUM(V19:V36)),\"Not assessed\")","v":0},null,{"$f":"IFERROR(V18/$U$2,0)","v":0}]
[null,null,22,22,"(egen data)",null,0,null,null,null,null,null,null,null,null,null,null,null,null,null,null,{"$f":"SUM(J19:U19)","v":0},{"$f":"IFERROR(V19/$V$18,0)","v":0}]
[null,null,22,"221 Rammer","(Velg kategori)","(Velg material eller prosesser)",0,{"$f":"VLOOKUP($F20,Utslippsfaktorer!$B$6:$U$332,5,FALSE)","v":"-"},{"$f":"VLOOKUP($F20,Utslippsfaktorer!$B$6:$U$332,6,FALSE)","v":0},{"$f":"IFERROR(VLOOKUP($F20,Utslippsfaktorer!$B$6:$U$332,7,FALSE)*$G20,0)","v":0},{"$f":"VLOOKUP($F20,Utslippsfaktorer!$B$6:$U$332,8,FALSE)*$G20","v":0},{"$f":"VLOOKUP($F20,Utslippsfaktorer!$B$6:$U$332,9,FALSE)*$G20","v":0},{"$f":"VLOOKUP($F20,Utslippsfaktorer!$B$6:$U$332,10,FALSE)*$G20","v":0},{"$f":"VLOOKUP($F20,Utslippsfaktorer!$B$6:$U$332,11,FALSE)*$G20","v":0},{"$f":"VLOOKUP($F20,Utslippsfaktorer!$B$6:$U$332,12,FALSE)*$G20","v":0},{"$f":"VLOOKUP($F20,Utslippsfaktorer!$B$6:$U$332,13,FALSE)*$G20","v":0},{"$f":"VLOOKUP($F20,Utslippsfaktorer!$B$6:$U$332,14,FALSE)*$G20","v":0},{"$f":"VLOOKUP($F20,Utslippsfaktorer!$B$6:$U$332,16,FALSE)*$G20","v":0},{"$f":"VLOOKUP($F20,Utslippsfaktorer!$B$6:$U$332,17,FALSE)*$G20","v":0},{"$f":"VLOOKUP($F20,Utslippsfaktorer!$B$6:$U$332,18,FALSE)*$G20","v":0},{"$f":"VLOOKUP($F20,Utslippsfaktorer!$B$6:$U$332,19,FALSE)*$G20","v":0},0,{"$f":"IFERROR(V20/$V$18,0)","v":0},{"$f":"VLOOKUP($F20,Utslippsfaktorer!$B$6:$U$332,3,FALSE)","v":"-"}]
[null,null,22,"221 Rammer","(egen data)",null,0,null,null,null,null,null,null,null,null,null,null,null,null,null,null,0,0]
[null,null,22,"222 Søyler","(Velg kategori)","(Velg material eller prosesser)",0,{"$f":"VLOOKUP($F22,Utslippsfaktorer!$B$6:$U$332,5,FALSE)","v":"-"},{"$f":"VLOOKUP($F22,Utslippsfaktorer!$B$6:$U$332,6,FALSE)","v":0},{"$f":"IFERROR(VLOOKUP($F22,Utslippsfaktorer!$B$6:$U$332,7,FALSE)*$G22,0)","v":0},{"$f":"VLOOKUP($F22,Utslippsfaktorer!$B$6:$U$332,8,FALSE)*$G22","v":0},{"$f":"VLOOKUP($F22,Utslippsfaktorer!$B$6:$U$332,9,FALSE)*$G22","v":0},{"$f":"VLOOKUP($F22,Utslippsfaktorer!$B$6:$U$332,10,FALSE)*$G22","v":0},{"$f":"VLOOKUP($F22,Utslippsfaktorer!$B$6:$U$332,11,FALSE)*$G22","v":0},{"$f":"VLOOKUP($F22,Utslippsfaktorer!$B$6:$U$332,12,FALSE)*$G22","v":0},{"$f":"VLOOKUP($F22,Utslippsfaktorer!$B$6:$U$332,13,FALSE)*$G22","v":0},{"$f":"VLOOKUP($F22,Utslippsfaktorer!$B$6:$U$332,14,FALSE)*$G22","v":0},{"$f":"VLOOKUP($F22,Utslippsfaktorer!$B$6:$U$332,16,FALSE)*$G22","v":0},{"$f":"VLOOKUP($F22,Utslippsfaktorer!$B$6:$U$332,17,FALSE)*$G22","v":0},{"$f":"VLOOKUP($F22,Utslippsfaktorer!$B$6:$U$332,18,FALSE)*$G22","v":0},{"$f":"VLOOKUP($F22,Utslippsfaktorer!$B$6:$U$332,19,FALSE)*$G22","v":0},0,0,{"$f":"VLOOKUP($F22,Utslippsfaktorer!$B$6:$U$332,3,FALSE)","v":"-"}]
[null,null,22,"222 Søyler","(egen data)",null,0,null,null,null,null,null,null,null,null,null,null,null,null,null,null,0,0]
[null,null,22,"223 Bjelker","(Velg kategori)","(Velg material eller prosesser)",0,{"$f":"VLOOKUP($F24,Utslippsfaktorer!$B$6:$U$332,5,FALSE)","v":"-"},{"$f":"VLOOKUP($F24,Utslippsfaktorer!$B$6:$U$332,6,FALSE)","v":0},{"$f":"IFERROR(VLOOKUP($F24,Utslippsfaktorer!$B$6:$U$332,7,FALSE)*$G24,0)","v":0},{"$f":"VLOOKUP($F24,Utslippsfaktorer!$B$6:$U$332,8,FALSE)*$G24","v":0},{"$f":"VLOOKUP($F24,Utslippsfaktorer!$B$6:$U$332,9,FALSE)*$G24","v":0},{"$f":"VLOOKUP($F24,Utslippsfaktorer!$B$6:$U$332,10,FALSE)*$G24","v":0},{"$f":"VLOOKUP($F24,Utslippsfaktorer!$B$6:$U$332,11,FALSE)*$G24","v":0},{"$f":"VLOOKUP($F24,Utslippsfaktorer!$B$6:$U$332,12,FALSE)*$G24","v":0},{"$f":"VLOOKUP($F24,Utslippsfaktorer!$B$6:$U$332,13,FALSE)*$G24","v":0},{"$f":"VLOOKUP($F24,Utslippsfaktorer!$B$6:$U$332,14,FALSE)*$G24","v":0},{"$f":"VLOOKUP($F24,Utslippsfaktorer!$B$6:$U$332,16,FALSE)*$G24","v":0},{"$f":"VLOOKUP($F24,Utslippsfaktorer!$B$6:$U$332,17,FALSE)*$G24","v":0},{"$f":"VLOOKUP($F24,Utslippsfaktorer!$B$6:$U$332,18,FALSE)*$G24","v":0},{"$f":"VLOOKUP($F24,Utslippsfaktorer!$B$6:$U$332,19,FALSE)*$G24","v":0},0,0,{"$f":"VLOOKUP($F24,Utslippsfaktorer!$B$6:$U$332,3,FALSE)","v":"-"}]
[null,null,22,"223 Bjelker","(egen data)",null,0,null,null,null,null,null,null,null,null,null,null,null,null,null,null,0,0]
[null,null,22,"224 Avstivende konstruksjoner","(Velg kategori)","(Velg material eller prosesser)",0,{"$f":"VLOOKUP($F26,Utslippsfaktorer!$B$6:$U$332,5,FALSE)","v":"-"},{"$f":"VLOOKUP($F26,Utslippsfaktorer!$B$6:$U$332,6,FALSE)","v":0},{"$f":"IFERROR(VLOOKUP($F26,Utslippsfaktorer!$B$6:$U$332,7,FALSE)*$G26,0)","v":0},{"$f":"VLOOKUP($F26,Utslippsfaktorer!$B$6:$U$332,8,FALSE)*$G26","v":0},{"$f":"VLOOKUP($F26,Utslippsfaktorer!$B$6:$U$332,9,FALSE)*$G26","v":0},{"$f":"VLOOKUP($F26,Utslippsfaktorer!$B$6:$U$332,10,FALSE)*$G26","v":0},{"$f":"VLOOKUP($F26,Utslippsfaktorer!$B$6:$U$332,11,FALSE)*$G26","v":0},{"$f":"VLOOKUP($F26,Utslippsfaktorer!$B$6:$U$332,12,FALSE)*$G26","v":0},{"$f":"VLOOKUP($F26,Utslippsfaktorer!$B$6:$U$332,13,FALSE)*$G26","v":0},{"$f":"VLOOKUP($F26,Utslippsfaktorer!$B$6:$U$332,14,FALSE)*$G26","v":0},{"$f":"VLOOKUP($F26,Utslippsfaktorer!$B$6:$U$332,16,FALSE)*$G26","v":0},{"$f":"VLOOKUP($F26,Utslippsfaktorer!$B$6:$U$332,17,FALSE)*$G26","v":0},{"$f":"VLOOKUP($F26,Utslippsfaktorer!$B$6:$U$332,18,FALSE)*$G26","v":0},{"$f":"VLOOKUP($F26,Utslippsfaktorer!$B$6:$U$332,19,FALSE)*$G26","v":0},0,0,{"$f":"VLOOKUP($F26,Utslippsfaktorer!$B$6:$U$332,3,FALSE)","v":"-"}]
[null,null,22,"224 Avstivende konstruksjoner","(egen data)",null,0,null,null,null,null,null,null,null,null,null,null,null,null,null,null,0,0]
[null,null,22,"225 Brannbeskyttelse av bærende konstruksjoner","(Velg kategori)","(Velg material eller prosesser)",0,{"$f":"VLOOKUP($F28,Utslippsfaktorer!$B$6:$U$332,5,FALSE)","v":"-"},{"$f":"VLOOKUP($F28,Utslippsfaktorer!$B$6:$U$332,6,FALSE)","v":0},{"$f":"IFERROR(VLOOKUP($F28,Utslippsfaktorer!$B$6:$U$332,7,FALSE)*$G28,0)","v":0},{"$f":"VLOOKUP($F28,Utslippsfaktorer!$B$6:$U$332,8,FALSE)*$G28","v":0},{"$f":"VLOOKUP($F28,Utslippsfaktorer!$B$6:$U$332,9,FALSE)*$G28","v":0},{"$f":"VLOOKUP($F28,Utslippsfaktorer!$B$6:$U$332,10,FALSE)*$G28","v":0},{"$f":"VLOOKUP($F28,Utslippsfaktorer!$B$6:$U$332,11,FALSE)*$G28","v":0},{"$f":"VLOOKUP($F28,Utslippsfaktorer!$B$6:$U$332,12,FALSE)*$G28","v":0},{"$f":"VLOOKUP($F28,Utslippsfaktorer!$B$6:$U$332,13,FALSE)*$G28","v":0},{"$f":"VLOOKUP($F28,Utslippsfaktorer!$B$6:$U$332,14,FALSE)*$G28","v":0},{"$f":"VLOOKUP($F28,Utslippsfaktorer!$B$6:$U$332,16,FALSE)*$G28","v":0},{"$f":"VLOOKUP($F28,Utslippsfaktorer!$B$6:$U$332,17,FALSE)*$G28","v":0},{"$f":"VLOOKUP($F28,Utslippsfaktorer!$B$6:$U$332,18,FALSE)*$G28","v":0},{"$f":"VLOOKUP($F28,Utslippsfaktorer!$B$6:$U$332,19,FALSE)*$G28","v":0},0,0,{"$f":"VLOOKUP($F28,Utslippsfaktorer!$B$6:$U$332,3,FALSE)","v":"-"}]
[null,null,22,"225 Brannbeskyttelse av bærende konstruksjoner","(egen data)",null,0,null,null,null,null,null,null,null,null,null,null,null,null,null,null,0,0]
[null,null,22,"226 Kleding og overflate","(Velg kategori)","(Velg material eller prosesser)",0,{"$f":"VLOOKUP($F30,Utslippsfaktorer!$B$6:$U$332,5,FALSE)","v":"-"},{"$f":"VLOOKUP($F30,Utslippsfaktorer!$B$6:$U$332,6,FALSE)","v":0},{"$f":"IFERROR(VLOOKUP($F30,Utslippsfaktorer!$B$6:$U$332,7,FALSE)*$G30,0)","v":0},{"$f":"VLOOKUP($F30,Utslippsfaktorer!$B$6:$U$332,8,FALSE)*$G30","v":0},{"$f":"VLOOKUP($F30,Utslippsfaktorer!$B$6:$U$332,9,FALSE)*$G30","v":0},{"$f":"VLOOKUP($F30,Utslippsfaktorer!$B$6:$U$332,10,FALSE)*$G30","v":0},{"$f":"VLOOKUP($F30,Utslippsfaktorer!$B$6:$U$332,11,FALSE)*$G30","v":0},{"$f":"VLOOKUP($F30,Utslippsfaktorer!$B$6:$U$332,12,FALSE)*$G30","v":0},{"$f":"VLOOKUP($F30,Utslippsfaktorer!$B$6:$U$332,13,FALSE)*$G30","v":0},{"$f":"VLOOKUP($F30,Utslippsfaktorer!$B$6:$U$332,14,FALSE)*$G30","v":0},{"$f":"VLOOKUP($F30,Utslippsfaktorer!$B$6:$U$332,16,FALSE)*$G30","v":0},{"$f":"VLOOKUP($F30,Utslippsfaktorer!$B$6:$U$332,17,FALSE)*$G30","v":0},{"$f":"VLOOKUP($F30,Utslippsfaktorer!$B$6:$U$332,18,FALSE)*$G30","v":0},{"$f":"VLOOKUP($F30,Utslippsfaktorer!$B$6:$U$332,19,FALSE)*$G30","v":0},0,0,{"$f":"VLOOKUP($F30,Utslippsfaktorer!$B$6:$U$332,3,FALSE)","v":"-"}]
[null,null,22,"226 Kleding og overflate","(egen data)",null,0,null,null,null,null,null,null,null,null,null,null,null,null,null,null,0,0]
[null,null,22,"228 Utstyr og komplettering","(Velg kategori)","(Velg material eller prosesser)",0,{"$f":"VLOOKUP($F32,Utslippsfaktorer!$B$6:$U$332,5,FALSE)","v":"-"},{"$f":"VLOOKUP($F32,Utslippsfaktorer!$B$6:$U$332,6,FALSE)","v":0},{"$f":"IFERROR(VLOOKUP($F32,Utslippsfaktorer!$B$6:$U$332,7,FALSE)*$G32,0)","v":0},{"$f":"VLOOKUP($F32,Utslippsfaktorer!$B$6:$U$332,8,FALSE)*$G32","v":0},{"$f":"VLOOKUP($F32,Utslippsfaktorer!$B$6:$U$332,9,FALSE)*$G32","v":0},{"$f":"VLOOKUP($F32,Utslippsfaktorer!$B$6:$U$332,10,FALSE)*$G32","v":0},{"$f":"VLOOKUP($F32,Utslippsfaktorer!$B$6:$U$332,11,FALSE)*$G32","v":0},{"$f":"VLOOKUP($F32,Utslippsfaktorer!$B$6:$U$332,12,FALSE)*$G32","v":0},{"$f":"VLOOKUP($F32,Utslippsfaktorer!$B$6:$U$332,13,FALSE)*$G32","v":0},{"$f":"VLOOKUP($F32,Utslippsfaktorer!$B$6:$U$332,14,FALSE)*$G32","v":0},{"$f":"VLOOKUP($F32,Utslippsfaktorer!$B$6:$U$332,16,FALSE)*$G32","v":0},{"$f":"VLOOKUP($F32,Utslippsfaktorer!$B$6:$U$332,17,FALSE)*$G32","v":0},{"$f":"VLOOKUP($F32,Utslippsfaktorer!$B$6:$U$332,18,FALSE)*$G32","v":0},{"$f":"VLOOKUP($F32,Utslippsfaktorer!$B$6:$U$332,19,FALSE)*$G32","v":0},0,0,{"$f":"VLOOKUP($F32,Utslippsfaktorer!$B$6:$U$332,3,FALSE)","v":"-"}]
[null,null,22,"228 Utstyr og komplettering","(egen data)",null,0,null,null,null,null,null,null,null,null,null,null,null,null,null,null,0,0]
[null,null,22,"229 Andre deler av bærende konstruksjoner","(Velg kategori)","(Velg material eller prosesser)",0,{"$f":"VLOOKUP($F34,Utslippsfaktorer!$B$6:$U$332,5,FALSE)","v":"-"},{"$f":"VLOOKUP($F34,Utslippsfaktorer!$B$6:$U$332,6,FALSE)","v":0},{"$f":"IFERROR(VLOOKUP($F34,Utslippsfaktorer!$B$6:$U$332,7,FALSE)*$G34,0)","v":0},{"$f":"VLOOKUP($F34,Utslippsfaktorer!$B$6:$U$332,8,FALSE)*$G34","v":0},{"$f":"VLOOKUP($F34,Utslippsfaktorer!$B$6:$U$332,9,FALSE)*$G34","v":0},{"$f":"VLOOKUP($F34,Utslippsfaktorer!$B$6:$U$332,10,FALSE)*$G34","v":0},{"$f":"VLOOKUP($F34,Utslippsfaktorer!$B$6:$U$332,11,FALSE)*$G34","v":0},{"$f":"VLOOKUP($F34,Utslippsfaktorer!$B$6:$U$332,12,FALSE)*$G34","v":0},{"$f":"VLOOKUP($F34,Utslippsfaktorer!$B$6:$U$332,13,FALSE)*$G34","v":0},{"$f":"VLOOKUP($F34,Utslippsfaktorer!$B$6:$U$332,14,FALSE)*$G34","v":0},{"$f":"VLOOKUP($F34,Utslippsfaktorer!$B$6:$U$332,16,FALSE)*$G34","v":0},{"$f":"VLOOKUP($F34,Utslippsfaktorer!$B$6:$U$332,17,FALSE)*$G34","v":0},{"$f":"VLOOKUP($F34,Utslippsfaktorer!$B$6:$U$332,18,FALSE)*$G34","v":0},{"$f":"VLOOKUP($F34,Utslippsfaktorer!$B$6:$U$332,19,FALSE)*$G34","v":0},0,0,{"$f":"VLOOKUP($F34,Utslippsfaktorer!$B$6:$U$332,3,FALSE)","v":"-"}]
[null,null,22,"229 Andre deler av bærende konstruksjoner","(egen data)",null,0,null,null,null,null,null,null,null,null,null,null,null,null,null,null,0,0]
[]
["seksjon3",null,23,"Yttervegger",null,null,null,null,null,{"$f":"IFERROR((SUM(J38:J59)),\"Not assessed\")","v":48241},21.446099999999998,0,0,0,0,0,0,0,0,0,0,48262.446100000001,null,{"$f":"IFERROR(V37/$U$2,0)","v":0.44807541949268898}]
[null,null,23,23,"(egen data)",null,0,null,null,null,null,null,null,null,null,null,null,null,null,null,null,{"$f":"SUM(J38:U38)","v":0},{"$f":"IFERROR(V38/$V$37,0)","v":0}]
[null,null,23,"231 Bærende ytterveggen","Bygningsplater","Bygningsplater - Gipsplater (12-15 mm)",50,{"$f":"VLOOKUP($F39,Utslippsfaktorer!$B$6:$U$332,5,FALSE)","v":"m2"},{"$f":"VLOOKUP($F39,Utslippsfaktorer!$B$6:$U$332,6,FALSE)","v":40},{"$f":"IFERROR(VLOOKUP($F39,Utslippsfaktorer!$B$6:$U$332,7,FALSE)*$G39,0)","v":141},{"$f":"VLOOKUP($F39,Utslippsfaktorer!$B$6:$U$332,8,FALSE)*$G39","v":0.12689999999999999},{"$f":"VLOOKUP($F39,Utslippsfaktorer!$B$6:$U$332,9,FALSE)*$G39","v":0},{"$f":"VLOOKUP($F39,Utslippsfaktorer!$B$6:$U$332,10,FALSE)*$G39","v":0},{"$f":"VLOOKUP($F39,Utslippsfaktorer!$B$6:$U$332,11,FALSE)*$G39","v":0},{"$f":"VLOOKUP($F39,Utslippsfaktorer!$B$6:$U$332,12,FALSE)*$G39","v":0},{"$f":"VLOOKUP($F39,Utslippsfaktorer!$B$6:$U$332,13,FALSE)*$G39","v":0},{"$f":"VLOOKUP($F39,Utslippsfaktorer!$B$6:$U$332,14,FALSE)*$G39","v":0},{"$f":"VLOOKUP($F39,Utslippsfaktorer!$B$6:$U$332,16,FALSE)*$G39","v":0},{"$f":"VLOOKUP($F39,Utslippsfaktorer!$B$6:$U$332,17,FALSE)*$G39","v":0},{"$f":"VLOOKUP($F39,Utslippsfaktorer!$B$6:$U$332,18,FALSE)*$G39","v":0},{"$f":"VLOOKUP($F39,Utslippsfaktorer!$B$6:$U$332,19,FALSE)*$G39","v":0},141.12690000000001,{"$f":"IFERROR(V39/$V$37,0)","v":2.9241555578758782E-3},{"$f":"VLOOKUP($F39,Utslippsfaktorer!$B$6:$U$332,3,FALSE)","v":"Grønn materialguide"}]
[null,null,23,"231 Bærende ytterveggen","Konstruktive materialer ","Konstruktive materialer - Betong (lavkarbon A, B30)",100,{"$f":"VLOOKUP($F40,Utslippsfaktorer!$B$6:$U$332,5,FALSE)","v":"m3"},{"$f":"VLOOKUP($F40,Utslippsfaktorer!$B$6:$U$332,6,FALSE)","v":60},{"$f":"IFERROR(VLOOKUP($F40,Utslippsfaktorer!$B$6:$U$332,7,FALSE)*$G40,0)","v":20000},{"$f":"VLOOKUP($F40,Utslippsfaktorer!$B$6:$U$332,8,FALSE)*$G40","v":20.303999999999998},{"$f":"VLOOKUP($F40,Utslippsfaktorer!$B$6:$U$332,9,FALSE)*$G40","v":0},{"$f":"VLOOKUP($F40,Utslippsfaktorer!$B$6:$U$332,10,FALSE)*$G40","v":0},{"$f":"VLOOKUP($F40,Utslippsfaktorer!$B$6:$U$332,11,FALSE)*$G40","v":0},{"$f":"VLOOKUP($F40,Utslippsfaktorer!$B$6:$U$332,12,FALSE)*$G40","v":0},{"$f":"VLOOKUP($F40,Utslippsfaktorer!$B$6:$U$332,13,FALSE)*$G40","v":0},{"$f":"VLOOKUP($F40,Utslippsfaktorer!$B$6:$U$332,14,FALSE)*$G40","v":0},{"$f":"VLOOKUP($F40,Utslippsfaktorer!$B$6:$U$332,16,FALSE)*$G40","v":0},{"$f":"VLOOKUP($F40,Utslippsfaktorer!$B$6:$U$332,17,FALSE)*$G40","v":0},{"$f":"VLOOKUP($F40,Utslippsfaktorer!$B$6:$U$332,18,FALSE)*$G40","v":0},{"$f":"VLOOKUP($F40,Utslippsfaktorer!$B$6:$U$332,19,FALSE)*$G40","v":0},{"$f":"SUM(J40:U40)","v":20020.304},0.41482157697763272]
[null,null,23,"231 Bærende ytterveggen","Murstein","Fasadesystem med resirkulert murstein",200,{"$f":"VLOOKUP($F41,Utslippsfaktorer!$B$6:$U$332,5,FALSE)","v":"m2"},{"$f":"VLOOKUP($F41,Utslippsfaktorer!$B$6:$U$332,6,FALSE)","v":60},{"$f":"IFERROR(VLOOKUP($F41,Utslippsfaktorer!$B$6:$U$332,7,FALSE)*$G41,0)","v":11100},{"$f":"VLOOKUP($F41,Utslippsfaktorer!$B$6:$U$332,8,FALSE)*$G41","v":0.50759999999999994},{"$f":"VLOOKUP($F41,Utslippsfaktorer!$B$6:$U$332,9,FALSE)*$G41","v":0},{"$f":"VLOOKUP($F41,Utslippsfaktorer!$B$6:$U$332,10,FALSE)*$G41","v":0},{"$f":"VLOOKUP($F41,Utslippsfaktorer!$B$6:$U$332,11,FALSE)*$G41","v":0},{"$f":"VLOOKUP($F41,Utslippsfaktorer!$B$6:$U$332,12,FALSE)*$G41","v":0},{"$f":"VLOOKUP($F41,Utslippsfaktorer!$B$6:$U$332,13,FALSE)*$G41","v":0},{"$f":"VLOOKUP($F41,Utslippsfaktorer!$B$6:$U$332,14,FALSE)*$G41","v":0},{"$f":"VLOOKUP($F41,Utslippsfaktorer!$B$6:$U$332,16,FALSE)*$G41","v":0},{"$f":"VLOOKUP($F41,Utslippsfaktorer!$B$6:$U$332,17,FALSE)*$G41","v":0},{"$f":"VLOOKUP($F41,Utslippsfaktorer!$B$6:$U$332,18,FALSE)*$G41","v":0},{"$f":"VLOOKUP($F41,Utslippsfaktorer!$B$6:$U$332,19,FALSE)*$G41","v":0},{"$f":"SUM(J41:U41)","v":11100.507600000001},0.23000300434419962,{"$f":"VLOOKUP($F41,Utslippsfaktorer!$B$6:$U$332,3,FALSE)","v":"NEPD nr.: 1675-673-EN (2018)"}]
[null,null,23,"231 Bærende ytterveggen","Isolasjon","Ekspandert polystyren (EPS 200)",200,{"$f":"VLOOKUP($F42,Utslippsfaktorer!$B$6:$U$332,5,FALSE)","v":"m3"},{"$f":"VLOOKUP($F42,Utslippsfaktorer!$B$6:$U$332,6,FALSE)","v":20},{"$f":"IFERROR(VLOOKUP($F42,Utslippsfaktorer!$B$6:$U$332,7,FALSE)*$G42,0)","v":17000},{"$f":"VLOOKUP($F42,Utslippsfaktorer!$B$6:$U$332,8,FALSE)*$G42","v":0.50759999999999994},{"$f":"VLOOKUP($F42,Utslippsfaktorer!$B$6:$U$332,9,FALSE)*$G42","v":0},{"$f":"VLOOKUP($F42,Utslippsfaktorer!$B$6:$U$332,10,FALSE)*$G42","v":0},{"$f":"VLOOKUP($F42,Utslippsfaktorer!$B$6:$U$332,11,FALSE)*$G42","v":0},{"$f":"VLOOKUP($F42,Utslippsfaktorer!$B$6:$U$332,12,FALSE)*$G42","v":0},{"$f":"VLOOKUP($F42,Utslippsfaktorer!$B$6:$U$332,13,FALSE)*$G42","v":0},{"$f":"VLOOKUP($F42,Utslippsfaktorer!$B$6:$U$332,14,FALSE)*$G42","v":0},{"$f":"VLOOKUP($F42,Utslippsfaktorer!$B$6:$U$332,16,FALSE)*$G42","v":0},{"$f":"VLOOKUP($F42,Utslippsfaktorer!$B$6:$U$332,17,FALSE)*$G42","v":0},{"$f":"VLOOKUP($F42,Utslippsfaktorer!$B$6:$U$332,18,FALSE)*$G42","v":0},{"$f":"VLOOKUP($F42,Utslippsfaktorer!$B$6:$U$332,19,FALSE)*$G42","v":0},{"$f":"SUM(J42:U42)","v":17000.507600000001},0.35225126312029181,{"$f":"VLOOKUP($F42,Utslippsfaktorer!$B$6:$U$332,3,FALSE)","v":0}]
[null,null,23,"231 Bærende ytterveggen","(egen data)",null,0,null,null,null,null,null,null,null,null,null,null,null,null,null,null,0,0]
[null,null,23,"232 Ikke-bærende ytterveggen","(Velg kategori)","(Velg material eller prosesser)",0,{"$f":"VLOOKUP($F44,Utslippsfaktorer!$B$6:$U$332,5,FALSE)","v":"-"},{"$f":"VLOOKUP($F44,Utslippsfaktorer!$B$6:$U$332,6,FALSE)","v":0},{"$f":"IFERROR(VLOOKUP($F44,Utslippsfaktorer!$B$6:$U$332,7,FALSE)*$G44,0)","v":0},{"$f":"VLOOKUP($F44,Utslippsfaktorer!$B$6:$U$332,8,FALSE)*$G44","v":0},{"$f":"VLOOKUP($F44,Utslippsfaktorer!$B$6:$U$332,9,FALSE)*$G44","v":0},{"$f":"VLOOKUP($F44,Utslippsfaktorer!$B$6:$U$332,10,FALSE)*$G44","v":0},{"$f":"VLOOKUP($F44,Utslippsfaktorer!$B$6:$U$332,11,FALSE)*$G44","v":0},{"$f":"VLOOKUP($F44,Utslippsfaktorer!$B$6:$U$332,12,FALSE)*$G44","v":0},{"$f":"VLOOKUP($F44,Utslippsfaktorer!$B$6:$U$332,13,FALSE)*$G44","v":0},{"$f":"VLOOKUP($F44,Utslippsfaktorer!$B$6:$U$332,14,FALSE)*$G44","v":0},{"$f":"VLOOKUP($F44,Utslippsfaktorer!$B$6:$U$332,16,FALSE)*$G44","v":0},{"$f":"VLOOKUP($F44,Utslippsfaktorer!$B$6:$U$332,17,FALSE)*$G44","v":0},{"$f":"VLOOKUP($F44,Utslippsfaktorer!$B$6:$U$332,18,FALSE)*$G44","v":0},{"$f":"VLOOKUP($F44,Utslippsfaktorer!$B$6:$U$332,19,FALSE)*$G44","v":0},{"$f":"SUM(J44:U44)","v":0},0,{"$f":"VLOOKUP($F44,Utslippsfaktorer!$B$6:$U$332,3,FALSE)","v":"-"}]
[null,null,23,"232 Ikke-bærende ytterveggen","(egen data)",null,0,null,null,null,null,null,null,null,null,null,null,null,null,null,null,0,0]
[null,null,23,"233 Glassfasader","(Velg kategori)","(Velg material eller prosesser)",0,{"$f":"VLOOKUP($F46,Utslippsfaktorer!$B$6:$U$332,5,FALSE)","v":"-"},{"$f":"VLOOKUP($F46,Utslippsfaktorer!$B$6:$U$332,6,FALSE)","v":0},{"$f":"IFERROR(VLOOKUP($F46,Utslippsfaktorer!$B$6:$U$332,7,FALSE)*$G46,0)","v":0},{"$f":"VLOOKUP($F46,Utslippsfaktorer!$B$6:$U$332,8,FALSE)*$G46","v":0},{"$f":"VLOOKUP($F46,Utslippsfaktorer!$B$6:$U$332,9,FALSE)*$G46","v":0},{"$f":"VLOOKUP($F46,Utslippsfaktorer!$B$6:$U$332,10,FALSE)*$G46","v":0},{"$f":"VLOOKUP($F46,Utslippsfaktorer!$B$6:$U$332,11,FALSE)*$G46","v":0},{"$f":"VLOOKUP($F46,Utslippsfaktorer!$B$6:$U$332,12,FALSE)*$G46","v":0},{"$f":"VLOOKUP($F46,Utslippsfaktorer!$B$6:$U$332,13,FALSE)*$G46","v":0},{"$f":"VLOOKUP($F46,Utslippsfaktorer!$B$6:$U$332,14,FALSE)*$G46","v":0},{"$f":"VLOOKUP($F46,Utslippsfaktorer!$B$6:$U$332,16,FALSE)*$G46","v":0},{"$f":"VLOOKUP($F46,Utslippsfaktorer!$B$6:$U$332,17,FALSE)*$G46","v":0},{"$f":"VLOOKUP($F46,Utslippsfaktorer!$B$6:$U$332,18,FALSE)*$G46","v":0},{"$f":"VLOOKUP($F46,Utslippsfaktorer!$B$6:$U$332,19,FALSE)*$G46","v":0},0,0,{"$f":"VLOOKUP($F46,Utslippsfaktorer!$B$6:$U$332,3,FALSE)","v":"-"}]
[null,null,23,"233 Glassfasader","(egen data)",null,0,null,null,null,null,null,null,null,null,null,null,null,null,null,null,0,0]
[null,null,23,"234 Vinduer, dører, porter","(Velg kategori)","(Velg material eller prosesser)",0,{"$f":"VLOOKUP($F48,Utslippsfaktorer!$B$6:$U$332,5,FALSE)","v":"-"},{"$f":"VLOOKUP($F48,Utslippsfaktorer!$B$6:$U$332,6,FALSE)","v":0},{"$f":"IFERROR(VLOOKUP($F48,Utslippsfaktorer!$B$6:$U$332,7,FALSE)*$G48,0)","v":0},{"$f":"VLOOKUP($F48,Utslippsfaktorer!$B$6:$U$332,8,FALSE)*$G48","v":0},{"$f":"VLOOKUP($F48,Utslippsfaktorer!$B$6:$U$332,9,FALSE)*$G48","v":0},{"$f":"VLOOKUP($F48,Utslippsfaktorer!$B$6:$U$332,10,FALSE)*$G48","v":0},{"$f":"VLOOKUP($F48,Utslippsfaktorer!$B$6:$U$332,11,FALSE)*$G48","v":0},{"$f":"VLOOKUP($F48,Utslippsfaktorer!$B$6:$U$332,12,FALSE)*$G48","v":0},{"$f":"VLOOKUP($F48,Utslippsfaktorer!$B$6:$U$332,13,FALSE)*$G48","v":0},{"$f":"VLOOKUP($F48,Utslippsfaktorer!$B$6:$U$332,14,FALSE)*$G48","v":0},{"$f":"VLOOKUP($F48,Utslippsfaktorer!$B$6:$U$332,16,FALSE)*$G48","v":0},{"$f":"VLOOKUP($F48,Utslippsfaktorer!$B$6:$U$332,17,FALSE)*$G48","v":0},{"$f":"VLOOKUP($F48,Utslippsfaktorer!$B$6:$U$332,18,FALSE)*$G48","v":0},{"$f":"VLOOKUP($F48,Utslippsfaktorer!$B$6:$U$332,19,FALSE)*$G48","v":0},0,0,{"$f":"VLOOKUP($F48,Utslippsfaktorer!$B$6:$U$332,3,FALSE)","v":"-"}]
[null,null,23,"234 Vinduer, dører, porter","(egen data)",null,0,null,null,null,null,null,null,null,null,null,null,null,null,null,null,0,0]
[null,null,23,"235 Utvending kleding og overflate","(Velg kategori)","(Velg material eller prosesser)",0,{"$f":"VLOOKUP($F50,Utslippsfaktorer!$B$6:$U$332,5,FALSE)","v":"-"},{"$f":"VLOOKUP($F50,Utslippsfaktorer!$B$6:$U$332,6,FALSE)","v":0},{"$f":"IFERROR(VLOOKUP($F50,Utslippsfaktorer!$B$6:$U$332,7,FALSE)*$G50,0)","v":0},{"$f":"VLOOKUP($F50,Utslippsfaktorer!$B$6:$U$332,8,FALSE)*$G50","v":0},{"$f":"VLOOKUP($F50,Utslippsfaktorer!$B$6:$U$332,9,FALSE)*$G50","v":0},{"$f":"VLOOKUP($F50,Utslippsfaktorer!$B$6:$U$332,10,FALSE)*$G50","v":0},{"$f":"VLOOKUP($F50,Utslippsfaktorer!$B$6:$U$332,11,FALSE)*$G50","v":0},{"$f":"VLOOKUP($F50,Utslippsfaktorer!$B$6:$U$332,12,FALSE)*$G50","v":0},{"$f":"VLOOKUP($F50,Utslippsfaktorer!$B$6:$U$332,13,FALSE)*$G50","v":0},{"$f":"VLOOKUP($F50,Utslippsfaktorer!$B$6:$U$332,14,FALSE)*$G50","v":0},{"$f":"VLOOKUP($F50,Utslippsfaktorer!$B$6:$U$332,16,FALSE)*$G50","v":0},{"$f":"VLOOKUP($F50,Utslippsfaktorer!$B$6:$U$332,17,FALSE)*$G50","v":0},{"$f":"VLOOKUP($F50,Utslippsfaktorer!$B$6:$U$332,18,FALSE)*$G50","v":0},{"$f":"VLOOKUP($F50,Utslippsfaktorer!$B$6:$U$332,19,FALSE)*$G50","v":0},0,0,{"$f":"VLOOKUP($F50,Utslippsfaktorer!$B$6:$U$332,3,FALSE)","v":"-"}]
[null,null,23,"235 Utvending kleding og overflate","(egen data)",null,0,null,null,null,null,null,null,null,null,null,null,null,null,null,null,0,0]
[null,null,23,"236 Innvending overflate","(Velg kategori)","(Velg material eller prosesser)",0,{"$f":"VLOOKUP($F52,Utslippsfaktorer!$B$6:$U$332,5,FALSE)","v":"-"},{"$f":"VLOOKUP($F52,Utslippsfaktorer!$B$6:$U$332,6,FALSE)","v":0},{"$f":"IFERROR(VLOOKUP($F52,Utslippsfaktorer!$B$6:$U$332,7,FALSE)*$G52,0)","v":0},{"$f":"VLOOKUP($F52,Utslippsfaktorer!$B$6:$U$332,8,FALSE)*$G52","v":0},{"$f":"VLOOKUP($F52,Utslippsfaktorer!$B$6:$U$332,9,FALSE)*$G52","v":0},{"$f":"VLOOKUP($F52,Utslippsfaktorer!$B$6:$U$332,10,FALSE)*$G52","v":0},{"$f":"VLOOKUP($F52,Utslippsfaktorer!$B$6:$U$332,11,FALSE)*$G52","v":0},{"$f":"VLOOKUP($F52,Utslippsfaktorer!$B$6:$U$332,12,FALSE)*$G52","v":0},{"$f":"VLOOKUP($F52,Utslippsfaktorer!$B$6:$U$332,13,FALSE)*$G52","v":0},{"$f":"VLOOKUP($F52,Utslippsfaktorer!$B$6:$U$332,14,FALSE)*$G52","v":0},{"$f":"VLOOKUP($F52,Utslippsfaktorer!$B$6:$U$332,16,FALSE)*$G52","v":0},{"$f":"VLOOKUP($F52,Utslippsfaktorer!$B$6:$U$332,17,FALSE)*$G52","v":0},{"$f":"VLOOKUP($F52,Utslippsfaktorer!$B$6:$U$332,18,FALSE)*$G52","v":0},{"$f":"VLOOKUP($F52,Utslippsfaktorer!$B$6:$U$332,19,FALSE)*$G52","v":0},0,0,{"$f":"VLOOKUP($F52,Utslippsfaktorer!$B$6:$U$332,3,FALSE)","v":"-"}]
[null,null,23,"236 Innvending overflate","(egen data)",null,0,null,null,null,null,null,null,null,null,null,null,null,null,null,null,0,0]
[null,null,23,"237 Solavskjerming","(Velg kategori)","(Velg material eller prosesser)",0,{"$f":"VLOOKUP($F54,Utslippsfaktorer!$B$6:$U$332,5,FALSE)","v":"-"},{"$f":"VLOOKUP($F54,Utslippsfaktorer!$B$6:$U$332,6,FALSE)","v":0},{"$f":"IFERROR(VLOOKUP($F54,Utslippsfaktorer!$B$6:$U$332,7,FALSE)*$G54,0)","v":0},{"$f":"VLOOKUP($F54,Utslippsfaktorer!$B$6:$U$332,8,FALSE)*$G54","v":0},{"$f":"VLOOKUP($F54,Utslippsfaktorer!$B$6:$U$332,9,FALSE)*$G54","v":0},{"$f":"VLOOKUP($F54,Utslippsfaktorer!$B$6:$U$332,10,FALSE)*$G54","v":0},{"$f":"VLOOKUP($F54,Utslippsfaktorer!$B$6:$U$332,11,FALSE)*$G54","v":0},{"$f":"VLOOKUP($F54,Utslippsfaktorer!$B$6:$U$332,12,FALSE)*$G54","v":0},{"$f":"VLOOKUP($F54,Utslippsfaktorer!$B$6:$U$332,13,FALSE)*$G54","v":0},{"$f":"VLOOKUP($F54,Utslippsfaktorer!$B$6:$U$332,14,FALSE)*$G54","v":0},{"$f":"VLOOKUP($F54,Utslippsfaktorer!$B$6:$U$332,16,FALSE)*$G54","v":0},{"$f":"VLOOKUP($F54,Utslippsfaktorer!$B$6:$U$332,17,FALSE)*$G54","v":0},{"$f":"VLOOKUP($F54,Utslippsfaktorer!$B$6:$U$332,18,FALSE)*$G54","v":0},{"$f":"VLOOKUP($F54,Utslippsfaktorer!$B$6:$U$332,19,FALSE)*$G54","v":0},0,0,{"$f":"VLOOKUP($F54,Utslippsfaktorer!$B$6:$U$332,3,FALSE)","v":"-"}]
[null,null,23,"237 Solavskjerming","(egen data)",null,0,null,null,null,null,null,null,null,null,null,null,null,null,null,null,0,0]
[null,null,23,"238 Utstyr og komplettering for yttervegger","(Velg kategori)","(Velg material eller prosesser)",0,{"$f":"VLOOKUP($F56,Utslippsfaktorer!$B$6:$U$332,5,FALSE)","v":"-"},{"$f":"VLOOKUP($F56,Utslippsfaktorer!$B$6:$U$332,6,FALSE)","v":0},{"$f":"IFERROR(VLOOKUP($F56,Utslippsfaktorer!$B$6:$U$332,7,FALSE)*$G56,0)","v":0},{"$f":"VLOOKUP($F56,Utslippsfaktorer!$B$6:$U$332,8,FALSE)*$G56","v":0},{"$f":"VLOOKUP($F56,Utslippsfaktorer!$B$6:$U$332,9,FALSE)*$G56","v":0},{"$f":"VLOOKUP($F56,Utslippsfaktorer!$B$6:$U$332,10,FALSE)*$G56","v":0},{"$f":"VLOOKUP($F56,Utslippsfaktorer!$B$6:$U$332,11,FALSE)*$G56","v":0},{"$f":"VLOOKUP($F56,Utslippsfaktorer!$B$6:$U$332,12,FALSE)*$G56","v":0},{"$f":"VLOOKUP($F56,Utslippsfaktorer!$B$6:$U$332,13,FALSE)*$G56","v":0},{"$f":"VLOOKUP($F56,Utslippsfaktorer!$B$6:$U$332,14,FALSE)*$G56","v":0},{"$f":"VLOOKUP($F56,Utslippsfaktorer!$B$6:$U$332,16,FALSE)*$G56","v":0},{"$f":"VLOOKUP($F56,Utslippsfaktorer!$B$6:$U$332,17,FALSE)*$G56","v":0},{"$f":"VLOOKUP($F56,Utslippsfaktorer!$B$6:$U$332,18,FALSE)*$G56","v":0},{"$f":"VLOOKUP($F56,Utslippsfaktorer!$B$6:$U$332,19,FALSE)*$G56","v":0},0,0,{"$f":"VLOOKUP($F56,Utslippsfaktorer!$B$6:$U$332,3,FALSE)","v":"-"}]
[null,null,23,"238 Utstyr og komplettering for yttervegger","(egen data)",null,0,null,null,null,null,null,null,null,null,null,null,null,null,null,null,0,0]
[null,null,23,"239 Ander deler av yttervegg","(Velg kategori)","(Velg material eller prosesser)",0,{"$f":"VLOOKUP($F58,Utslippsfaktorer!$B$6:$U$332,5,FALSE)","v":"-"},{"$f":"VLOOKUP($F58,Utslippsfaktorer!$B$6:$U$332,6,FALSE)","v":0},{"$f":"IFERROR(VLOOKUP($F58,Utslippsfaktorer!$B$6:$U$332,7,FALSE)*$G58,0)","v":0},{"$f":"VLOOKUP($F58,Utslippsfaktorer!$B$6:$U$332,8,FALSE)*$G58","v":0},{"$f":"VLOOKUP($F58,Utslippsfaktorer!$B$6:$U$332,9,FALSE)*$G58","v":0},{"$f":"VLOOKUP($F58,Utslippsfaktorer!$B$6:$U$332,10,FALSE)*$G58","v":0},{"$f":"VLOOKUP($F58,Utslippsfaktorer!$B$6:$U$332,11,FALSE)*$G58","v":0},{"$f":"VLOOKUP($F58,Utslippsfaktorer!$B$6:$U$332,12,FALSE)*$G58","v":0},{"$f":"VLOOKUP($F58,Utslippsfaktorer!$B$6:$U$332,13,FALSE)*$G58","v":0},{"$f":"VLOOKUP($F58,Utslippsfaktorer!$B$6:$U$332,14,FALSE)*$G58","v":0},{"$f":"VLOOKUP($F58,Utslippsfaktorer!$B$6:$U$332,16,FALSE)*$G58","v":0},{"$f":"VLOOKUP($F58,Utslippsfaktorer!$B$6:$U$332,17,FALSE)*$G58","v":0},{"$f":"VLOOKUP($F58,Utslippsfaktorer!$B$6:$U$332,18,FALSE)*$G58","v":0},{"$f":"VLOOKUP($F58,Utslippsfaktorer!$B$6:$U$332,19,FALSE)*$G58","v":0},0,0,{"$f":"VLOOKUP($F58,Utslippsfaktorer!$B$6:$U$332,3,FALSE)","v":"-"}]
[null,null,23,"239 Ander deler av yttervegg","(egen data)",null,0,null,null,null,null,null,null,null,null,null,null,null,null,null,null,0,0]
[]
["seksjon4",null,24,"Innervegger",null,null,null,null,null,{"$f":"IFERROR((SUM(J62:J81)),\"Not assessed\")","v":0},0,0,0,0,0,0,0,0,0,0,0,0,null,{"$f":"IFERROR(V61/$U$2,0)","v":0}]
[null,null,24,24,"(egen data)",null,0,null,null,null,null,null,null,null,null,null,null,null,null,null,null,{"$f":"SUM(J62:U62)","v":0},{"$f":"IFERROR(V62/$V$61,0)","v":0}]
[null,null,24,"241 Bærende innervegger","(Velg kategori)","(Velg material eller prosesser)",0,{"$f":"VLOOKUP($F63,Utslippsfaktorer!$B$6:$U$332,5,FALSE)","v":"-"},{"$f":"VLOOKUP($F63,Utslippsfaktorer!$B$6:$U$332,6,FALSE)","v":0},{"$f":"IFERROR(VLOOKUP($F63,Utslippsfaktorer!$B$6:$U$332,7,FALSE)*$G63,0)","v":0},{"$f":"VLOOKUP($F63,Utslippsfaktorer!$B$6:$U$332,8,FALSE)*$G63","v":0},{"$f":"VLOOKUP($F63,Utslippsfaktorer!$B$6:$U$332,9,FALSE)*$G63","v":0},{"$f":"VLOOKUP($F63,Utslippsfaktorer!$B$6:$U$332,10,FALSE)*$G63","v":0},{"$f":"VLOOKUP($F63,Utslippsfaktorer!$B$6:$U$332,11,FALSE)*$G63","v":0},{"$f":"VLOOKUP($F63,Utslippsfaktorer!$B$6:$U$332,12,FALSE)*$G63","v":0},{"$f":"VLOOKUP($F63,Utslippsfaktorer!$B$6:$U$332,13,FALSE)*$G63","v":0},{"$f":"VLOOKUP($F63,Utslippsfaktorer!$B$6:$U$332,14,FALSE)*$G63","v":0},{"$f":"VLOOKUP($F63,Utslippsfaktorer!$B$6:$U$332,16,FALSE)*$G63","v":0},{"$f":"VLOOKUP($F63,Utslippsfaktorer!$B$6:$U$332,17,FALSE)*$G63","v":0},{"$f":"VLOOKUP($F63,Utslippsfaktorer!$B$6:$U$332,18,FALSE)*$G63","v":0},{"$f":"VLOOKUP($F63,Utslippsfaktorer!$B$6:$U$332,19,FALSE)*$G63","v":0},0,{"$f":"IFERROR(V63/$V$61,0)","v":0},{"$f":"VLOOKUP($F63,Utslippsfaktorer!$B$6:$U$332,3,FALSE)","v":"-"}]
[null,null,24,"241 Bærende innervegger","(egen data)",null,0,null,null,null,null,null,null,null,null,null,null,null,null,null,null,0,0]
[null,null,24,"242 Ikke-bærende innervegger","(Velg kategori)","(Velg material eller prosesser)",200,{"$f":"VLOOKUP($F65,Utslippsfaktorer!$B$6:$U$332,5,FALSE)","v":"-"},{"$f":"VLOOKUP($F65,Utslippsfaktorer!$B$6:$U$332,6,FALSE)","v":0},{"$f":"IFERROR(VLOOKUP($F65,Utslippsfaktorer!$B$6:$U$332,7,FALSE)*$G65,0)","v":0},{"$f":"VLOOKUP($F65,Utslippsfaktorer!$B$6:$U$332,8,FALSE)*$G65","v":0},{"$f":"VLOOKUP($F65,Utslippsfaktorer!$B$6:$U$332,9,FALSE)*$G65","v":0},{"$f":"VLOOKUP($F65,Utslippsfaktorer!$B$6:$U$332,10,FALSE)*$G65","v":0},{"$f":"VLOOKUP($F65,Utslippsfaktorer!$B$6:$U$332,11,FALSE)*$G65","v":0},{"$f":"VLOOKUP($F65,Utslippsfaktorer!$B$6:$U$332,12,FALSE)*$G65","v":0},{"$f":"VLOOKUP($F65,Utslippsfaktorer!$B$6:$U$332,13,FALSE)*$G65","v":0},{"$f":"VLOOKUP($F65,Utslippsfaktorer!$B$6:$U$332,14,FALSE)*$G65","v":0},{"$f":"VLOOKUP($F65,Utslippsfaktorer!$B$6:$U$332,16,FALSE)*$G65","v":0},{"$f":"VLOOKUP($F65,Utslippsfaktorer!$B$6:$U$332,17,FALSE)*$G65","v":0},{"$f":"VLOOKUP($F65,Utslippsfaktorer!$B$6:$U$332,18,FALSE)*$G65","v":0},{"$f":"VLOOKUP($F65,Utslippsfaktorer!$B$6:$U$332,19,FALSE)*$G65","v":0},{"$f":"SUM(J65:U65)","v":0},0,{"$f":"VLOOKUP($F65,Utslippsfaktorer!$B$6:$U$332,3,FALSE)","v":"-"}]
[null,null,24,"242 Ikke-bærende innervegger","(egen data)",null,0,null,null,null,null,null,null,null,null,null,null,null,null,null,null,0,0]
[null,null,24,"243 Systemvegger og glassfelt","(Velg kategori)","(Velg material eller prosesser)",0,{"$f":"VLOOKUP($F67,Utslippsfaktorer!$B$6:$U$332,5,FALSE)","v":"-"},{"$f":"VLOOKUP($F67,Utslippsfaktorer!$B$6:$U$332,6,FALSE)","v":0},{"$f":"IFERROR(VLOOKUP($F67,Utslippsfaktorer!$B$6:$U$332,7,FALSE)*$G67,0)","v":0},{"$f":"VLOOKUP($F67,Utslippsfaktorer!$B$6:$U$332,8,FALSE)*$G67","v":0},{"$f":"VLOOKUP($F67,Utslippsfaktorer!$B$6:$U$332,9,FALSE)*$G67","v":0},{"$f":"VLOOKUP($F67,Utslippsfaktorer!$B$6:$U$332,10,FALSE)*$G67","v":0},{"$f":"VLOOKUP($F67,Utslippsfaktorer!$B$6:$U$332,11,FALSE)*$G67","v":0},{"$f":"VLOOKUP($F67,Utslippsfaktorer!$B$6:$U$332,12,FALSE)*$G67","v":0},{"$f":"VLOOKUP($F67,Utslippsfaktorer!$B$6:$U$332,13,FALSE)*$G67","v":0},{"$f":"VLOOKUP($F67,Utslippsfaktorer!$B$6:$U$332,14,FALSE)*$G67","v":0},{"$f":"VLOOKUP($F67,Utslippsfaktorer!$B$6:$U$332,16,FALSE)*$G67","v":0},{"$f":"VLOOKUP($F67,Utslippsfaktorer!$B$6:$U$332,17,FALSE)*$G67","v":0},{"$f":"VLOOKUP($F67,Utslippsfaktorer!$B$6:$U$332,18,FALSE)*$G67","v":0},{"$f":"VLOOKUP($F67,Utslippsfaktorer!$B$6:$U$332,19,FALSE)*$G67","v":0},0,0,{"$f":"VLOOKUP($F67,Utslippsfaktorer!$B$6:$U$332,3,FALSE)","v":"-"}]
[null,null,24,"243 Systemvegger og glassfelt","(egen data)",null,0,null,null,null,null,null,null,null,null,null,null,null,null,null,null,0,0]
[null,null,24,"244 Vinduer, dører, foldevegger","(Velg kategori)","(Velg material eller prosesser)",0,{"$f":"VLOOKUP($F69,Utslippsfaktorer!$B$6:$U$332,5,FALSE)","v":"-"},{"$f":"VLOOKUP($F69,Utslippsfaktorer!$B$6:$U$332,6,FALSE)","v":0},{"$f":"IFERROR(VLOOKUP($F69,Utslippsfaktorer!$B$6:$U$332,7,FALSE)*$G69,0)","v":0},{"$f":"VLOOKUP($F69,Utslippsfaktorer!$B$6:$U$332,8,FALSE)*$G69","v":0},{"$f":"VLOOKUP($F69,Utslippsfaktorer!$B$6:$U$332,9,FALSE)*$G69","v":0},{"$f":"VLOOKUP($F69,Utslippsfaktorer!$B$6:$U$332,10,FALSE)*$G69","v":0},{"$f":"VLOOKUP($F69,Utslippsfaktorer!$B$6:$U$332,11,FALSE)*$G69","v":0},{"$f":"VLOOKUP($F69,Utslippsfaktorer!$B$6:$U$332,12,FALSE)*$G69","v":0},{"$f":"VLOOKUP($F69,Utslippsfaktorer!$B$6:$U$332,13,FALSE)*$G69","v":0},{"$f":"VLOOKUP($F69,Utslippsfaktorer!$B$6:$U$332,14,FALSE)*$G69","v":0},{"$f":"VLOOKUP($F69,Utslippsfaktorer!$B$6:$U$332,16,FALSE)*$G69","v":0},{"$f":"VLOOKUP($F69,Utslippsfaktorer!$B$6:$U$332,17,FALSE)*$G69","v":0},{"$f":"VLOOKUP($F69,Utslippsfaktorer!$B$6:$U$332,18,FALSE)*$G69","v":0},{"$f":"VLOOKUP($F69,Utslippsfaktorer!$B$6:$U$332,19,FALSE)*$G69","v":0},0,0,{"$f":"VLOOKUP($F69,Utslippsfaktorer!$B$6:$U$332,3,FALSE)","v":"-"}]
[null,null,24,"244 Vinduer, dører, foldevegger","(egen data)",null,0,null,null,null,null,null,null,null,null,null,null,null,null,null,null,0,0]
[null,null,24,"245 Skjørt","(Velg kategori)","(Velg material eller prosesser)",0,{"$f":"VLOOKUP($F71,Utslippsfaktorer!$B$6:$U$332,5,FALSE)","v":"-"},{"$f":"VLOOKUP($F71,Utslippsfaktorer!$B$6:$U$332,6,FALSE)","v":0},{"$f":"IFERROR(VLOOKUP($F71,Utslippsfaktorer!$B$6:$U$332,7,FALSE)*$G71,0)","v":0},{"$f":"VLOOKUP($F71,Utslippsfaktorer!$B$6:$U$332,8,FALSE)*$G71","v":0},{"$f":"VLOOKUP($F71,Utslippsfaktorer!$B$6:$U$332,9,FALSE)*$G71","v":0},{"$f":"VLOOKUP($F71,Utslippsfaktorer!$B$6:$U$332,10,FALSE)*$G71","v":0},{"$f":"VLOOKUP($F71,Utslippsfaktorer!$B$6:$U$332,11,FALSE)*$G71","v":0},{"$f":"VLOOKUP($F71,Utslippsfaktorer!$B$6:$U$332,12,FALSE)*$G71","v":0},{"$f":"VLOOKUP($F71,Utslippsfaktorer!$B$6:$U$332,13,FALSE)*$G71","v":0},{"$f":"VLOOKUP($F71,Utslippsfaktorer!$B$6:$U$332,14,FALSE)*$G71","v":0},{"$f":"VLOOKUP($F71,Utslippsfaktorer!$B$6:$U$332,16,FALSE)*$G71","v":0},{"$f":"VLOOKUP($F71,Utslippsfaktorer!$B$6:$U$332,17,FALSE)*$G71","v":0},{"$f":"VLOOKUP($F71,Utslippsfaktorer!$B$6:$U$332,18,FALSE)*$G71","v":0},{"$f":"VLOOKUP($F71,Utslippsfaktorer!$B$6:$U$332,19,FALSE)*$G71","v":0},0,0,{"$f":"VLOOKUP($F71,Utslippsfaktorer!$B$6:$U$332,3,FALSE)","v":"-"}]
[null,null,24,"245 Skjørt","(egen data)",null,0,null,null,null,null,null,null,null,null,null,null,null,null,null,null,0,0]
[null,null,24,"246 Kledning og overflate","(Velg kategori)","(Velg material eller prosesser)",0,{"$f":"VLOOKUP($F73,Utslippsfaktorer!$B$6:$U$332,5,FALSE)","v":"-"},{"$f":"VLOOKUP($F73,Utslippsfaktorer!$B$6:$U$332,6,FALSE)","v":0},{"$f":"IFERROR(VLOOKUP($F73,Utslippsfaktorer!$B$6:$U$332,7,FALSE)*$G73,0)","v":0},{"$f":"VLOOKUP($F73,Utslippsfaktorer!$B$6:$U$332,8,FALSE)*$G73","v":0},{"$f":"VLOOKUP($F73,Utslippsfaktorer!$B$6:$U$332,9,FALSE)*$G73","v":0},{"$f":"VLOOKUP($F73,Utslippsfaktorer!$B$6:$U$332,10,FALSE)*$G73","v":0},{"$f":"VLOOKUP($F73,Utslippsfaktorer!$B$6:$U$332,11,FALSE)*$G73","v":0},{"$f":"VLOOKUP($F73,Utslippsfaktorer!$B$6:$U$332,12,FALSE)*$G73","v":0},{"$f":"VLOOKUP($F73,Utslippsfaktorer!$B$6:$U$332,13,FALSE)*$G73","v":0},{"$f":"VLOOKUP($F73,Utslippsfaktorer!$B$6:$U$332,14,FALSE)*$G73","v":0},{"$f":"VLOOKUP($F73,Utslippsfaktorer!$B$6:$U$332,16,FALSE)*$G73","v":0},{"$f":"VLOOKUP($F73,Utslippsfaktorer!$B$6:$U$332,17,FALSE)*$G73","v":0},{"$f":"VLOOKUP($F73,Utslippsfaktorer!$B$6:$U$332,18,FALSE)*$G73","v":0},{"$f":"VLOOKUP($F73,Utslippsfaktorer!$B$6:$U$332,19,FALSE)*$G73","v":0},0,0,{"$f":"VLOOKUP($F73,Utslippsfaktorer!$B$6:$U$332,3,FALSE)","v":"-"}]
[null,null,24,"246 Kledning og overflate","(egen data)",null,0,null,null,null,null,null,null,null,null,null,null,null,null,null,null,0,0]
[null,null,24,"248 Utstyr og komplettering for innervegger","(Velg kategori)","(Velg material eller prosesser)",0,{"$f":"VLOOKUP($F75,Utslippsfaktorer!$B$6:$U$332,5,FALSE)","v":"-"},{"$f":"VLOOKUP($F75,Utslippsfaktorer!$B$6:$U$332,6,FALSE)","v":0},{"$f":"IFERROR(VLOOKUP($F75,Utslippsfaktorer!$B$6:$U$332,7,FALSE)*$G75,0)","v":0},{"$f":"VLOOKUP($F75,Utslippsfaktorer!$B$6:$U$332,8,FALSE)*$G75","v":0},{"$f":"VLOOKUP($F75,Utslippsfaktorer!$B$6:$U$332,9,FALSE)*$G75","v":0},{"$f":"VLOOKUP($F75,Utslippsfaktorer!$B$6:$U$332,10,FALSE)*$G75","v":0},{"$f":"VLOOKUP($F75,Utslippsfaktorer!$B$6:$U$332,11,FALSE)*$G75","v":0},{"$f":"VLOOKUP($F75,Utslippsfaktorer!$B$6:$U$332,12,FALSE)*$G75","v":0},{"$f":"VLOOKUP($F75,Utslippsfaktorer!$B$6:$U$332,13,FALSE)*$G75","v":0},{"$f":"VLOOKUP($F75,Utslippsfaktorer!$B$6:$U$332,14,FALSE)*$G75","v":0},{"$f":"VLOOKUP($F75,Utslippsfaktorer!$B$6:$U$332,16,FALSE)*$G75","v":0},{"$f":"VLOOKUP($F75,Utslippsfaktorer!$B$6:$U$332,17,FALSE)*$G75","v":0},{"$f":"VLOOKUP($F75,Utslippsfaktorer!$B$6:$U$332,18,FALSE)*$G75","v":0},{"$f":"VLOOKUP($F75,Utslippsfaktorer!$B$6:$U$332,19,FALSE)*$G75","v":0},0,0,{"$f":"VLOOKUP($F75,Utslippsfaktorer!$B$6:$U$332,3,FALSE)","v":"-"}]
[null,null,24,"248 Utstyr og komplettering for innervegger","(egen data)",null,0,null,null,null,null,null,null,null,null,null,null,null,null,null,null,0,0]
[null,null,24,"249 Andre deler av innervegg","(Velg kategori)","(Velg material eller prosesser)",0,{"$f":"VLOOKUP($F77,Utslippsfaktorer!$B$6:$U$332,5,FALSE)","v":"-"},{"$f":"VLOOKUP($F77,Utslippsfaktorer!$B$6:$U$332,6,FALSE)","v":0},{"$f":"IFERROR(VLOOKUP($F77,Utslippsfaktorer!$B$6:$U$332,7,FALSE)*$G77,0)","v":0},{"$f":"VLOOKUP($F77,Utslippsfaktorer!$B$6:$U$332,8,FALSE)*$G77","v":0},{"$f":"VLOOKUP($F77,Utslippsfaktorer!$B$6:$U$332,9,FALSE)*$G77","v":0},{"$f":"VLOOKUP($F77,Utslippsfaktorer!$B$6:$U$332,10,FALSE)*$G77","v":0},{"$f":"VLOOKUP($F77,Utslippsfaktorer!$B$6:$U$332,11,FALSE)*$G77","v":0},{"$f":"VLOOKUP($F77,Utslippsfaktorer!$B$6:$U$332,12,FALSE)*$G77","v":0},{"$f":"VLOOKUP($F77,Utslippsfaktorer!$B$6:$U$332,13,FALSE)*$G77","v":0},{"$f":"VLOOKUP($F77,Utslippsfaktorer!$B$6:$U$332,14,FALSE)*$G77","v":0},{"$f":"VLOOKUP($F77,Utslippsfaktorer!$B$6:$U$332,16,FALSE)*$G77","v":0},{"$f":"VLOOKUP($F77,Utslippsfaktorer!$B$6:$U$332,17,FALSE)*$G77","v":0},{"$f":"VLOOKUP($F77,Utslippsfaktorer!$B$6:$U$332,18,FALSE)*$G77","v":0},{"$f":"VLOOKUP($F77,Utslippsfaktorer!$B$6:$U$332,19,FALSE)*$G77","v":0},0,0,{"$f":"VLOOKUP($F77,Utslippsfaktorer!$B$6:$U$332,3,FALSE)","v":"-"}]
[null,null,24,"249 Andre deler av innervegg","(egen data)",null,0,null,null,null,null,null,null,null,null,null,null,null,null,null,null,0,0]
[null,null,24,"239 Andre deler av yttervegg","(Velg kategori)","(Velg material eller prosesser)",0,{"$f":"VLOOKUP($F79,Utslippsfaktorer!$B$6:$U$332,5,FALSE)","v":"-"},{"$f":"VLOOKUP($F79,Utslippsfaktorer!$B$6:$U$332,6,FALSE)","v":0},{"$f":"IFERROR(VLOOKUP($F79,Utslippsfaktorer!$B$6:$U$332,7,FALSE)*$G79,0)","v":0},{"$f":"VLOOKUP($F79,Utslippsfaktorer!$B$6:$U$332,8,FALSE)*$G79","v":0},{"$f":"VLOOKUP($F79,Utslippsfaktorer!$B$6:$U$332,9,FALSE)*$G79","v":0},{"$f":"VLOOKUP($F79,Utslippsfaktorer!$B$6:$U$332,10,FALSE)*$G79","v":0},{"$f":"VLOOKUP($F79,Utslippsfaktorer!$B$6:$U$332,11,FALSE)*$G79","v":0},{"$f":"VLOOKUP($F79,Utslippsfaktorer!$B$6:$U$332,12,FALSE)*$G79","v":0},{"$f":"VLOOKUP($F79,Utslippsfaktorer!$B$6:$U$332,13,FALSE)*$G79","v":0},{"$f":"VLOOKUP($F79,Utslippsfaktorer!$B$6:$U$332,14,FALSE)*$G79","v":0},{"$f":"VLOOKUP($F79,Utslippsfaktorer!$B$6:$U$332,16,FALSE)*$G79","v":0},{"$f":"VLOOKUP($F79,Utslippsfaktorer!$B$6:$U$332,17,FALSE)*$G79","v":0},{"$f":"VLOOKUP($F79,Utslippsfaktorer!$B$6:$U$332,18,FALSE)*$G79","v":0},{"$f":"VLOOKUP($F79,Utslippsfaktorer!$B$6:$U$332,19,FALSE)*$G79","v":0},0,0,{"$f":"VLOOKUP($F79,Utslippsfaktorer!$B$6:$U$332,3,FALSE)","v":"-"}]
[null,null,24,"239 Andre deler av yttervegg","(egen data)",null,0,null,null,null,null,null,null,null,null,null,null,null,null,null,null,0,0]
[]
["seksjon5",null,25,"Dekker",null,null,null,null,null,{"$f":"IFERROR((SUM(J83:J102)),\"Not assessed\")","v":945.5},{"$f":"IFERROR((SUM(K83:K102)),\"Not assessed\")","v":0.50759999999999994},{"$f":"IFERROR((SUM(L83:L102)),\"Not assessed\")","v":762.99999999999989},{"$f":"IFERROR((SUM(M83:M102)),\"Not assessed\")","v":0},{"$f":"IFERROR((SUM(N83:N102)),\"Not assessed\")","v":0},{"$f":"IFERROR((SUM(O83:O102)),\"Not assessed\")","v":0},{"$f":"IFERROR((SUM(P83:P102)),\"Not assessed\")","v":0},{"$f":"IFERROR((SUM(Q83:Q102)),\"Not assessed\")","v":0},{"$f":"IFERROR((SUM(R83:R102)),\"Not assessed\")","v":0},{"$f":"IFERROR((SUM(S83:S102)),\"Not assessed\")","v":0},{"$f":"IFERROR((SUM(T83:T102)),\"Not assessed\")","v":0},{"$f":"IFERROR((SUM(U83:U102)),\"Not assessed\")","v":0},{"$f":"IFERROR((SUM(V83:V102)),\"Not assessed\")","v":1709.0075999999999},null,{"$f":"IFERROR(V82/$U$2,0)","v":1.586666982646355E-2}]
[null,null,25,25,"(egen data)",null,0,null,null,null,null,null,null,null,null,null,null,null,null,null,null,{"$f":"SUM(J83:U83)","v":0},{"$f":"IFERROR(V83/$V$82,0)","v":0}]
[null,null,25,"251 Frittbærende dekker","(Velg kategori)","(Velg material eller prosesser)",0,{"$f":"VLOOKUP($F84,Utslippsfaktorer!$B$6:$U$332,5,FALSE)","v":"-"},{"$f":"VLOOKUP($F84,Utslippsfaktorer!$B$6:$U$332,6,FALSE)","v":0},{"$f":"IFERROR(VLOOKUP($F84,Utslippsfaktorer!$B$6:$U$332,7,FALSE)*$G84,0)","v":0},{"$f":"VLOOKUP($F84,Utslippsfaktorer!$B$6:$U$332,8,FALSE)*$G84","v":0},{"$f":"VLOOKUP($F84,Utslippsfaktorer!$B$6:$U$332,9,FALSE)*$G84","v":0},{"$f":"VLOOKUP($F84,Utslippsfaktorer!$B$6:$U$332,10,FALSE)*$G84","v":0},{"$f":"VLOOKUP($F84,Utslippsfaktorer!$B$6:$U$332,11,FALSE)*$G84","v":0},{"$f":"VLOOKUP($F84,Utslippsfaktorer!$B$6:$U$332,12,FALSE)*$G84","v":0},{"$f":"VLOOKUP($F84,Utslippsfaktorer!$B$6:$U$332,13,FALSE)*$G84","v":0},{"$f":"VLOOKUP($F84,Utslippsfaktorer!$B$6:$U$332,14,FALSE)*$G84","v":0},{"$f":"VLOOKUP($F84,Utslippsfaktorer!$B$6:$U$332,16,FALSE)*$G84","v":0},{"$f":"VLOOKUP($F84,Utslippsfaktorer!$B$6:$U$332,17,FALSE)*$G84","v":0},{"$f":"VLOOKUP($F84,Utslippsfaktorer!$B$6:$U$332,18,FALSE)*$G84","v":0},{"$f":"VLOOKUP($F84,Utslippsfaktorer!$B$6:$U$332,19,FALSE)*$G84","v":0},0,{"$f":"IFERROR(V84/$V$82,0)","v":0},{"$f":"VLOOKUP($F84,Utslippsfaktorer!$B$6:$U$332,3,FALSE)","v":"-"}]
[null,null,25,"251 Frittbærende dekker","(egen data)",null,0,null,null,null,null,null,null,null,null,null,null,null,null,null,null,0,0]
[null,null,25,"252 Gulv på grunn, bunnplate","(Velg kategori)","(Velg material eller prosesser)",0,{"$f":"VLOOKUP($F86,Utslippsfaktorer!$B$6:$U$332,5,FALSE)","v":"-"},{"$f":"VLOOKUP($F86,Utslippsfaktorer!$B$6:$U$332,6,FALSE)","v":0},{"$f":"IFERROR(VLOOKUP($F86,Utslippsfaktorer!$B$6:$U$332,7,FALSE)*$G86,0)","v":0},{"$f":"VLOOKUP($F86,Utslippsfaktorer!$B$6:$U$332,8,FALSE)*$G86","v":0},{"$f":"VLOOKUP($F86,Utslippsfaktorer!$B$6:$U$332,9,FALSE)*$G86","v":0},{"$f":"VLOOKUP($F86,Utslippsfaktorer!$B$6:$U$332,10,FALSE)*$G86","v":0},{"$f":"VLOOKUP($F86,Utslippsfaktorer!$B$6:$U$332,11,FALSE)*$G86","v":0},{"$f":"VLOOKUP($F86,Utslippsfaktorer!$B$6:$U$332,12,FALSE)*$G86","v":0},{"$f":"VLOOKUP($F86,Utslippsfaktorer!$B$6:$U$332,13,FALSE)*$G86","v":0},{"$f":"VLOOKUP($F86,Utslippsfaktorer!$B$6:$U$332,14,FALSE)*$G86","v":0},{"$f":"VLOOKUP($F86,Utslippsfaktorer!$B$6:$U$332,16,FALSE)*$G86","v":0},{"$f":"VLOOKUP($F86,Utslippsfaktorer!$B$6:$U$332,17,FALSE)*$G86","v":0},{"$f":"VLOOKUP($F86,Utslippsfaktorer!$B$6:$U$332,18,FALSE)*$G86","v":0},{"$f":"VLOOKUP($F86,Utslippsfaktorer!$B$6:$U$332,19,FALSE)*$G86","v":0},0,0,{"$f":"VLOOKUP($F86,Utslippsfaktorer!$B$6:$U$332,3,FALSE)","v":"-"}]
[null,null,25,"252 Gulv på grunn, bunnplate","(egen data)",null,0,null,null,null,null,null,null,null,null,null,null,null,null,null,null,0,0]
[null,null,25,"253 Oppforet gulv og påstøp","(Velg kategori)","(Velg material eller prosesser)",0,{"$f":"VLOOKUP($F88,Utslippsfaktorer!$B$6:$U$332,5,FALSE)","v":"-"},{"$f":"VLOOKUP($F88,Utslippsfaktorer!$B$6:$U$332,6,FALSE)","v":0},{"$f":"IFERROR(VLOOKUP($F88,Utslippsfaktorer!$B$6:$U$332,7,FALSE)*$G88,0)","v":0},{"$f":"VLOOKUP($F88,Utslippsfaktorer!$B$6:$U$332,8,FALSE)*$G88","v":0},{"$f":"VLOOKUP($F88,Utslippsfaktorer!$B$6:$U$332,9,FALSE)*$G88","v":0},{"$f":"VLOOKUP($F88,Utslippsfaktorer!$B$6:$U$332,10,FALSE)*$G88","v":0},{"$f":"VLOOKUP($F88,Utslippsfaktorer!$B$6:$U$332,11,FALSE)*$G88","v":0},{"$f":"VLOOKUP($F88,Utslippsfaktorer!$B$6:$U$332,12,FALSE)*$G88","v":0},{"$f":"VLOOKUP($F88,Utslippsfaktorer!$B$6:$U$332,13,FALSE)*$G88","v":0},{"$f":"VLOOKUP($F88,Utslippsfaktorer!$B$6:$U$332,14,FALSE)*$G88","v":0},{"$f":"VLOOKUP($F88,Utslippsfaktorer!$B$6:$U$332,16,FALSE)*$G88","v":0},{"$f":"VLOOKUP($F88,Utslippsfaktorer!$B$6:$U$332,17,FALSE)*$G88","v":0},{"$f":"VLOOKUP($F88,Utslippsfaktorer!$B$6:$U$332,18,FALSE)*$G88","v":0},{"$f":"VLOOKUP($F88,Utslippsfaktorer!$B$6:$U$332,19,FALSE)*$G88","v":0},0,0,{"$f":"VLOOKUP($F88,Utslippsfaktorer!$B$6:$U$332,3,FALSE)","v":"-"}]
[null,null,25,"253 Oppforet gulv og påstøp","(egen data)",null,0,null,null,null,null,null,null,null,null,null,null,null,null,null,null,0,0]
[null,null,25,"254 Systemgulv","(Velg kategori)","(Velg material eller prosesser)",0,{"$f":"VLOOKUP($F90,Utslippsfaktorer!$B$6:$U$332,5,FALSE)","v":"-"},{"$f":"VLOOKUP($F90,Utslippsfaktorer!$B$6:$U$332,6,FALSE)","v":0},{"$f":"IFERROR(VLOOKUP($F90,Utslippsfaktorer!$B$6:$U$332,7,FALSE)*$G90,0)","v":0},{"$f":"VLOOKUP($F90,Utslippsfaktorer!$B$6:$U$332,8,FALSE)*$G90","v":0},{"$f":"VLOOKUP($F90,Utslippsfaktorer!$B$6:$U$332,9,FALSE)*$G90","v":0},{"$f":"VLOOKUP($F90,Utslippsfaktorer!$B$6:$U$332,10,FALSE)*$G90","v":0},{"$f":"VLOOKUP($F90,Utslippsfaktorer!$B$6:$U$332,11,FALSE)*$G90","v":0},{"$f":"VLOOKUP($F90,Utslippsfaktorer!$B$6:$U$332,12,FALSE)*$G90","v":0},{"$f":"VLOOKUP($F90,Utslippsfaktorer!$B$6:$U$332,13,FALSE)*$G90","v":0},{"$f":"VLOOKUP($F90,Utslippsfaktorer!$B$6:$U$332,14,FALSE)*$G90","v":0},{"$f":"VLOOKUP($F90,Utslippsfaktorer!$B$6:$U$332,16,FALSE)*$G90","v":0},{"$f":"VLOOKUP($F90,Utslippsfaktorer!$B$6:$U$332,17,FALSE)*$G90","v":0},{"$f":"VLOOKUP($F90,Utslippsfaktorer!$B$6:$U$332,18,FALSE)*$G90","v":0},{"$f":"VLOOKUP($F90,Utslippsfaktorer!$B$6:$U$332,19,FALSE)*$G90","v":0},0,0,{"$f":"VLOOKUP($F90,Utslippsfaktorer!$B$6:$U$332,3,FALSE)","v":"-"}]
[null,null,25,"254 Systemgulv","(egen data)",null,0,null,null,null,null,null,null,null,null,null,null,null,null,null,null,0,0]
[null,null,25,"255 Gulvoverflate","Bitumen","Bitumen, EPD snitt",200,{"$f":"VLOOKUP($F92,Utslippsfaktorer!$B$6:$U$332,5,FALSE)","v":"m2"},{"$f":"VLOOKUP($F92,Utslippsfaktorer!$B$6:$U$332,6,FALSE)","v":25},{"$f":"IFERROR(VLOOKUP($F92,Utslippsfaktorer!$B$6:$U$332,7,FALSE)*$G92,0)","v":945.5},{"$f":"VLOOKUP($F92,Utslippsfaktorer!$B$6:$U$332,8,FALSE)*$G92","v":0.50759999999999994},{"$f":"VLOOKUP($F92,Utslippsfaktorer!$B$6:$U$332,9,FALSE)*$G92","v":762.99999999999989},{"$f":"VLOOKUP($F92,Utslippsfaktorer!$B$6:$U$332,10,FALSE)*$G92","v":0},{"$f":"VLOOKUP($F92,Utslippsfaktorer!$B$6:$U$332,11,FALSE)*$G92","v":0},{"$f":"VLOOKUP($F92,Utslippsfaktorer!$B$6:$U$332,12,FALSE)*$G92","v":0},{"$f":"VLOOKUP($F92,Utslippsfaktorer!$B$6:$U$332,13,FALSE)*$G92","v":0},{"$f":"VLOOKUP($F92,Utslippsfaktorer!$B$6:$U$332,14,FALSE)*$G92","v":0},{"$f":"VLOOKUP($F92,Utslippsfaktorer!$B$6:$U$332,16,FALSE)*$G92","v":0},{"$f":"VLOOKUP($F92,Utslippsfaktorer!$B$6:$U$332,17,FALSE)*$G92","v":0},{"$f":"VLOOKUP($F92,Utslippsfaktorer!$B$6:$U$332,18,FALSE)*$G92","v":0},{"$f":"VLOOKUP($F92,Utslippsfaktorer!$B$6:$U$332,19,FALSE)*$G92","v":0},1709.0075999999999,1,{"$f":"VLOOKUP($F92,Utslippsfaktorer!$B$6:$U$332,3,FALSE)","v":0}]
[null,null,25,"255 Gulvoverflate","(egen data)",null,0,null,null,null,null,null,null,null,null,null,null,null,null,null,null,0,0]
[null,null,25,"256 Faste himlinger og overflatebehandling","(Velg kategori)","(Velg material eller prosesser)",0,{"$f":"VLOOKUP($F94,Utslippsfaktorer!$B$6:$U$332,5,FALSE)","v":"-"},{"$f":"VLOOKUP($F94,Utslippsfaktorer!$B$6:$U$332,6,FALSE)","v":0},{"$f":"IFERROR(VLOOKUP($F94,Utslippsfaktorer!$B$6:$U$332,7,FALSE)*$G94,0)","v":0},{"$f":"VLOOKUP($F94,Utslippsfaktorer!$B$6:$U$332,8,FALSE)*$G94","v":0},{"$f":"VLOOKUP($F94,Utslippsfaktorer!$B$6:$U$332,9,FALSE)*$G94","v":0},{"$f":"VLOOKUP($F94,Utslippsfaktorer!$B$6:$U$332,10,FALSE)*$G94","v":0},{"$f":"VLOOKUP($F94,Utslippsfaktorer!$B$6:$U$332,11,FALSE)*$G94","v":0},{"$f":"VLOOKUP($F94,Utslippsfaktorer!$B$6:$U$332,12,FALSE)*$G94","v":0},{"$f":"VLOOKUP($F94,Utslippsfaktorer!$B$6:$U$332,13,FALSE)*$G94","v":0},{"$f":"VLOOKUP($F94,Utslippsfaktorer!$B$6:$U$332,14,FALSE)*$G94","v":0},{"$f":"VLOOKUP($F94,Utslippsfaktorer!$B$6:$U$332,16,FALSE)*$G94","v":0},{"$f":"VLOOKUP($F94,Utslippsfaktorer!$B$6:$U$332,17,FALSE)*$G94","v":0},{"$f":"VLOOKUP($F94,Utslippsfaktorer!$B$6:$U$332,18,FALSE)*$G94","v":0},{"$f":"VLOOKUP($F94,Utslippsfaktorer!$B$6:$U$332,19,FALSE)*$G94","v":0},0,0,{"$f":"VLOOKUP($F94,Utslippsfaktorer!$B$6:$U$332,3,FALSE)","v":"-"}]
[null,null,25,"256 Faste himlinger og overflatebehandling","(egen data)",null,0,null,null,null,null,null,null,null,null,null,null,null,null,null,null,0,0]
[null,null,25,"257 Systemhimlinger","(Velg kategori)","(Velg material eller prosesser)",0,{"$f":"VLOOKUP($F96,Utslippsfaktorer!$B$6:$U$332,5,FALSE)","v":"-"},{"$f":"VLOOKUP($F96,Utslippsfaktorer!$B$6:$U$332,6,FALSE)","v":0},{"$f":"IFERROR(VLOOKUP($F96,Utslippsfaktorer!$B$6:$U$332,7,FALSE)*$G96,0)","v":0},{"$f":"VLOOKUP($F96,Utslippsfaktorer!$B$6:$U$332,8,FALSE)*$G96","v":0},{"$f":"VLOOKUP($F96,Utslippsfaktorer!$B$6:$U$332,9,FALSE)*$G96","v":0},{"$f":"VLOOKUP($F96,Utslippsfaktorer!$B$6:$U$332,10,FALSE)*$G96","v":0},{"$f":"VLOOKUP($F96,Utslippsfaktorer!$B$6:$U$332,11,FALSE)*$G96","v":0},{"$f":"VLOOKUP($F96,Utslippsfaktorer!$B$6:$U$332,12,FALSE)*$G96","v":0},{"$f":"VLOOKUP($F96,Utslippsfaktorer!$B$6:$U$332,13,FALSE)*$G96","v":0},{"$f":"VLOOKUP($F96,Utslippsfaktorer!$B$6:$U$332,14,FALSE)*$G96","v":0},{"$f":"VLOOKUP($F96,Utslippsfaktorer!$B$6:$U$332,16,FALSE)*$G96","v":0},{"$f":"VLOOKUP($F96,Utslippsfaktorer!$B$6:$U$332,17,FALSE)*$G96","v":0},{"$f":"VLOOKUP($F96,Utslippsfaktorer!$B$6:$U$332,18,FALSE)*$G96","v":0},{"$f":"VLOOKUP($F96,Utslippsfaktorer!$B$6:$U$332,19,FALSE)*$G96","v":0},0,0,{"$f":"VLOOKUP($F96,Utslippsfaktorer!$B$6:$U$332,3,FALSE)","v":"-"}]
[null,null,25,"257 Systemhimlinger","(egen data)",null,0,null,null,null,null,null,null,null,null,null,null,null,null,null,null,0,0]
[null,null,25,"258 Utstyr og komplettering for dekker","(Velg kategori)","(Velg material eller prosesser)",0,{"$f":"VLOOKUP($F98,Utslippsfaktorer!$B$6:$U$332,5,FALSE)","v":"-"},{"$f":"VLOOKUP($F98,Utslippsfaktorer!$B$6:$U$332,6,FALSE)","v":0},{"$f":"IFERROR(VLOOKUP($F98,Utslippsfaktorer!$B$6:$U$332,7,FALSE)*$G98,0)","v":0},{"$f":"VLOOKUP($F98,Utslippsfaktorer!$B$6:$U$332,8,FALSE)*$G98","v":0},{"$f":"VLOOKUP($F98,Utslippsfaktorer!$B$6:$U$332,9,FALSE)*$G98","v":0},{"$f":"VLOOKUP($F98,Utslippsfaktorer!$B$6:$U$332,10,FALSE)*$G98","v":0},{"$f":"VLOOKUP($F98,Utslippsfaktorer!$B$6:$U$332,11,FALSE)*$G98","v":0},{"$f":"VLOOKUP($F98,Utslippsfaktorer!$B$6:$U$332,12,FALSE)*$G98","v":0},{"$f":"VLOOKUP($F98,Utslippsfaktorer!$B$6:$U$332,13,FALSE)*$G98","v":0},{"$f":"VLOOKUP($F98,Utslippsfaktorer!$B$6:$U$332,14,FALSE)*$G98","v":0},{"$f":"VLOOKUP($F98,Utslippsfaktorer!$B$6:$U$332,16,FALSE)*$G98","v":0},{"$f":"VLOOKUP($F98,Utslippsfaktorer!$B$6:$U$332,17,FALSE)*$G98","v":0},{"$f":"VLOOKUP($F98,Utslippsfaktorer!$B$6:$U$332,18,FALSE)*$G98","v":0},{"$f":"VLOOKUP($F98,Utslippsfaktorer!$B$6:$U$332,19,FALSE)*$G98","v":0},0,0,{"$f":"VLOOKUP($F98,Utslippsfaktorer!$B$6:$U$332,3,FALSE)","v":"-"}]
[null,null,25,"258 Utstyr og komplettering for dekker","(egen data)",null,0,null,null,null,null,null,null,null,null,null,null,null,null,null,null,0,0]
[null,null,25,"259 Andre deler av dekker","(Velg kategori)","(Velg material eller prosesser)",0,{"$f":"VLOOKUP($F100,Utslippsfaktorer!$B$6:$U$332,5,FALSE)","v":"-"},{"$f":"VLOOKUP($F100,Utslippsfaktorer!$B$6:$U$332,6,FALSE)","v":0},{"$f":"IFERROR(VLOOKUP($F100,Utslippsfaktorer!$B$6:$U$332,7,FALSE)*$G100,0)","v":0},{"$f":"VLOOKUP($F100,Utslippsfaktorer!$B$6:$U$332,8,FALSE)*$G100","v":0},{"$f":"VLOOKUP($F100,Utslippsfaktorer!$B$6:$U$332,9,FALSE)*$G100","v":0},{"$f":"VLOOKUP($F100,Utslippsfaktorer!$B$6:$U$332,10,FALSE)*$G100","v":0},{"$f":"VLOOKUP($F100,Utslippsfaktorer!$B$6:$U$332,11,FALSE)*$G100","v":0},{"$f":"VLOOKUP($F100,Utslippsfaktorer!$B$6:$U$332,12,FALSE)*$G100","v":0},{"$f":"VLOOKUP($F100,Utslippsfaktorer!$B$6:$U$332,13,FALSE)*$G100","v":0},{"$f":"VLOOKUP($F100,Utslippsfaktorer!$B$6:$U$332,14,FALSE)*$G100","v":0},{"$f":"VLOOKUP($F100,Utslippsfaktorer!$B$6:$U$332,16,FALSE)*$G100","v":0},{"$f":"VLOOKUP($F100,Utslippsfaktorer!$B$6:$U$332,17,FALSE)*$G100","v":0},{"$f":"VLOOKUP($F100,Utslippsfaktorer!$B$6:$U$332,18,FALSE)*$G100","v":0},{"$f":"VLOOKUP($F100,Utslippsfaktorer!$B$6:$U$332,19,FALSE)*$G100","v":0},0,0,{"$f":"VLOOKUP($F100,Utslippsfaktorer!$B$6:$U$332,3,FALSE)","v":"-"}]
[null,null,25,"259 Andre deler av dekker","(egen data)",null,0,null,null,null,null,null,null,null,null,null,null,null,null,null,null,0,0]
[]
["seksjon6",null,26,"Yttertak",null,null,null,null,null,{"$f":"IFERROR((SUM(J104:J123)),\"Not assessed\")","v":0},{"$f":"IFERROR((SUM(K104:K123)),\"Not assessed\")","v":0},{"$f":"IFERROR((SUM(L104:L123)),\"Not assessed\")","v":0},{"$f":"IFERROR((SUM(M104:M123)),\"Not assessed\")","v":0},{"$f":"IFERROR((SUM(N104:N123)),\"Not assessed\")","v":0},{"$f":"IFERROR((SUM(O104:O123)),\"Not assessed\")","v":0},{"$f":"IFERROR((SUM(P104:P123)),\"Not assessed\")","v":0},{"$f":"IFERROR((SUM(Q104:Q123)),\"Not assessed\")","v":0},{"$f":"IFERROR((SUM(R104:R123)),\"Not assessed\")","v":0},{"$f":"IFERROR((SUM(S104:S123)),\"Not assessed\")","v":0},{"$f":"IFERROR((SUM(T104:T123)),\"Not assessed\")","v":0},{"$f":"IFERROR((SUM(U104:U123)),\"Not assessed\")","v":0},{"$f":"IFERROR((SUM(V104:V123)),\"Not assessed\")","v":0},null,{"$f":"IFERROR(V103/$U$2,0)","v":0}]
[null,null,26,26,"(egen data)",null,0,null,null,null,null,null,null,null,null,null,null,null,null,null,null,{"$f":"SUM(J104:U104)","v":0},{"$f":"IFERROR(V104/$V$82,0)","v":0}]
[null,null,26,"261 Primærkonstruksjon for yttertak","(Velg kategori)","(Velg material eller prosesser)",0,{"$f":"VLOOKUP($F105,Utslippsfaktorer!$B$6:$U$332,5,FALSE)","v":"-"},{"$f":"VLOOKUP($F105,Utslippsfaktorer!$B$6:$U$332,6,FALSE)","v":0},{"$f":"IFERROR(VLOOKUP($F105,Utslippsfaktorer!$B$6:$U$332,7,FALSE)*$G105,0)","v":0},{"$f":"VLOOKUP($F105,Utslippsfaktorer!$B$6:$U$332,8,FALSE)*$G105","v":0},{"$f":"VLOOKUP($F105,Utslippsfaktorer!$B$6:$U$332,9,FALSE)*$G105","v":0},{"$f":"VLOOKUP($F105,Utslippsfaktorer!$B$6:$U$332,10,FALSE)*$G105","v":0},{"$f":"VLOOKUP($F105,Utslippsfaktorer!$B$6:$U$332,11,FALSE)*$G105","v":0},{"$f":"VLOOKUP($F105,Utslippsfaktorer!$B$6:$U$332,12,FALSE)*$G105","v":0},{"$f":"VLOOKUP($F105,Utslippsfaktorer!$B$6:$U$332,13,FALSE)*$G105","v":0},{"$f":"VLOOKUP($F105,Utslippsfaktorer!$B$6:$U$332,14,FALSE)*$G105","v":0},{"$f":"VLOOKUP($F105,Utslippsfaktorer!$B$6:$U$332,16,FALSE)*$G105","v":0},{"$f":"VLOOKUP($F105,Utslippsfaktorer!$B$6:$U$332,17,FALSE)*$G105","v":0},{"$f":"VLOOKUP($F105,Utslippsfaktorer!$B$6:$U$332,18,FALSE)*$G105","v":0},{"$f":"VLOOKUP($F105,Utslippsfaktorer!$B$6:$U$332,19,FALSE)*$G105","v":0},0,{"$f":"IFERROR(V105/$V$82,0)","v":0},{"$f":"VLOOKUP($F105,Utslippsfaktorer!$B$6:$U$332,3,FALSE)","v":"-"}]
[null,null,26,"261 Primærkonstruksjon for yttertak","(egen data)",null,0,null,null,null,null,null,null,null,null,null,null,null,null,null,null,0,0]
[null,null,26,"262 Taktekking","(Velg kategori)","(Velg material eller prosesser)",0,{"$f":"VLOOKUP($F107,Utslippsfaktorer!$B$6:$U$332,5,FALSE)","v":"-"},{"$f":"VLOOKUP($F107,Utslippsfaktorer!$B$6:$U$332,6,FALSE)","v":0},{"$f":"IFERROR(VLOOKUP($F107,Utslippsfaktorer!$B$6:$U$332,7,FALSE)*$G107,0)","v":0},{"$f":"VLOOKUP($F107,Utslippsfaktorer!$B$6:$U$332,8,FALSE)*$G107","v":0},{"$f":"VLOOKUP($F107,Utslippsfaktorer!$B$6:$U$332,9,FALSE)*$G107","v":0},{"$f":"VLOOKUP($F107,Utslippsfaktorer!$B$6:$U$332,10,FALSE)*$G107","v":0},{"$f":"VLOOKUP($F107,Utslippsfaktorer!$B$6:$U$332,11,FALSE)*$G107","v":0},{"$f":"VLOOKUP($F107,Utslippsfaktorer!$B$6:$U$332,12,FALSE)*$G107","v":0},{"$f":"VLOOKUP($F107,Utslippsfaktorer!$B$6:$U$332,13,FALSE)*$G107","v":0},{"$f":"VLOOKUP($F107,Utslippsfaktorer!$B$6:$U$332,14,FALSE)*$G107","v":0},{"$f":"VLOOKUP($F107,Utslippsfaktorer!$B$6:$U$332,16,FALSE)*$G107","v":0},{"$f":"VLOOKUP($F107,Utslippsfaktorer!$B$6:$U$332,17,FALSE)*$G107","v":0},{"$f":"VLOOKUP($F107,Utslippsfaktorer!$B$6:$U$332,18,FALSE)*$G107","v":0},{"$f":"VLOOKUP($F107,Utslippsfaktorer!$B$6:$U$332,19,FALSE)*$G107","v":0},0,0,{"$f":"VLOOKUP($F107,Utslippsfaktorer!$B$6:$U$332,3,FALSE)","v":"-"}]
[null,null,26,"262 Taktekking","(egen data)",null,0,null,null,null,null,null,null,null,null,null,null,null,null,null,null,0,0]
[null,null,26,"263 Glasstak","(Velg kategori)","(Velg material eller prosesser)",0,{"$f":"VLOOKUP($F109,Utslippsfaktorer!$B$6:$U$332,5,FALSE)","v":"-"},{"$f":"VLOOKUP($F109,Utslippsfaktorer!$B$6:$U$332,6,FALSE)","v":0},{"$f":"IFERROR(VLOOKUP($F109,Utslippsfaktorer!$B$6:$U$332,7,FALSE)*$G109,0)","v":0},{"$f":"VLOOKUP($F109,Utslippsfaktorer!$B$6:$U$332,8,FALSE)*$G109","v":0},{"$f":"VLOOKUP($F109,Utslippsfaktorer!$B$6:$U$332,9,FALSE)*$G109","v":0},{"$f":"VLOOKUP($F109,Utslippsfaktorer!$B$6:$U$332,10,FALSE)*$G109","v":0},{"$f":"VLOOKUP($F109,Utslippsfaktorer!$B$6:$U$332,11,FALSE)*$G109","v":0},{"$f":"VLOOKUP($F109,Utslippsfaktorer!$B$6:$U$332,12,FALSE)*$G109","v":0},{"$f":"VLOOKUP($F109,Utslippsfaktorer!$B$6:$U$332,13,FALSE)*$G109","v":0},{"$f":"VLOOKUP($F109,Utslippsfaktorer!$B$6:$U$332,14,FALSE)*$G109","v":0},{"$f":"VLOOKUP($F109,Utslippsfaktorer!$B$6:$U$332,16,FALSE)*$G109","v":0},{"$f":"VLOOKUP($F109,Utslippsfaktorer!$B$6:$U$332,17,FALSE)*$G109","v":0},{"$f":"VLOOKUP($F109,Utslippsfaktorer!$B$6:$U$332,18,FALSE)*$G109","v":0},{"$f":"VLOOKUP($F109,Utslippsfaktorer!$B$6:$U$332,19,FALSE)*$G109","v":0},0,0,{"$f":"VLOOKUP($F109,Utslippsfaktorer!$B$6:$U$332,3,FALSE)","v":"-"}]
[null,null,26,"263 Glasstak","(egen data)",null,0,null,null,null,null,null,null,null,null,null,null,null,null,null,null,0,0]
[null,null,26,"264 Takoppbygg","(Velg kategori)","(Velg material eller prosesser)",0,{"$f":"VLOOKUP($F111,Utslippsfaktorer!$B$6:$U$332,5,FALSE)","v":"-"},{"$f":"VLOOKUP($F111,Utslippsfaktorer!$B$6:$U$332,6,FALSE)","v":0},{"$f":"IFERROR(VLOOKUP($F111,Utslippsfaktorer!$B$6:$U$332,7,FALSE)*$G111,0)","v":0},{"$f":"VLOOKUP($F111,Utslippsfaktorer!$B$6:$U$332,8,FALSE)*$G111","v":0},{"$f":"VLOOKUP($F111,Utslippsfaktorer!$B$6:$U$332,9,FALSE)*$G111","v":0},{"$f":"VLOOKUP($F111,Utslippsfaktorer!$B$6:$U$332,10,FALSE)*$G111","v":0},{"$f":"VLOOKUP($F111,Utslippsfaktorer!$B$6:$U$332,11,FALSE)*$G111","v":0},{"$f":"VLOOKUP($F111,Utslippsfaktorer!$B$6:$U$332,12,FALSE)*$G111","v":0},{"$f":"VLOOKUP($F111,Utslippsfaktorer!$B$6:$U$332,13,FALSE)*$G111","v":0},{"$f":"VLOOKUP($F111,Utslippsfaktorer!$B$6:$U$332,14,FALSE)*$G111","v":0},{"$f":"VLOOKUP($F111,Utslippsfaktorer!$B$6:$U$332,16,FALSE)*$G111","v":0},{"$f":"VLOOKUP($F111,Utslippsfaktorer!$B$6:$U$332,17,FALSE)*$G111","v":0},{"$f":"VLOOKUP($F111,Utslippsfaktorer!$B$6:$U$332,18,FALSE)*$G111","v":0},{"$f":"VLOOKUP($F111,Utslippsfaktorer!$B$6:$U$332,19,FALSE)*$G111","v":0},0,0,{"$f":"VLOOKUP($F111,Utslippsfaktorer!$B$6:$U$332,3,FALSE)","v":"-"}]
[null,null,26,"264 Takoppbygg","(egen data)",null,0,null,null,null,null,null,null,null,null,null,null,null,null,null,null,0,0]
[null,null,26,"265 Gesimser","(Velg kategori)","(Velg material eller prosesser)",0,{"$f":"VLOOKUP($F113,Utslippsfaktorer!$B$6:$U$332,5,FALSE)","v":"-"},{"$f":"VLOOKUP($F113,Utslippsfaktorer!$B$6:$U$332,6,FALSE)","v":0},{"$f":"IFERROR(VLOOKUP($F113,Utslippsfaktorer!$B$6:$U$332,7,FALSE)*$G113,0)","v":0},{"$f":"VLOOKUP($F113,Utslippsfaktorer!$B$6:$U$332,8,FALSE)*$G113","v":0},{"$f":"VLOOKUP($F113,Utslippsfaktorer!$B$6:$U$332,9,FALSE)*$G113","v":0},{"$f":"VLOOKUP($F113,Utslippsfaktorer!$B$6:$U$332,10,FALSE)*$G113","v":0},{"$f":"VLOOKUP($F113,Utslippsfaktorer!$B$6:$U$332,11,FALSE)*$G113","v":0},{"$f":"VLOOKUP($F113,Utslippsfaktorer!$B$6:$U$332,12,FALSE)*$G113","v":0},{"$f":"VLOOKUP($F113,Utslippsfaktorer!$B$6:$U$332,13,FALSE)*$G113","v":0},{"$f":"VLOOKUP($F113,Utslippsfaktorer!$B$6:$U$332,14,FALSE)*$G113","v":0},{"$f":"VLOOKUP($F113,Utslippsfaktorer!$B$6:$U$332,16,FALSE)*$G113","v":0},{"$f":"VLOOKUP($F113,Utslippsfaktorer!$B$6:$U$332,17,FALSE)*$G113","v":0},{"$f":"VLOOKUP($F113,Utslippsfaktorer!$B$6:$U$332,18,FALSE)*$G113","v":0},{"$f":"VLOOKUP($F113,Utslippsfaktorer!$B$6:$U$332,19,FALSE)*$G113","v":0},0,0,{"$f":"VLOOKUP($F113,Utslippsfaktorer!$B$6:$U$332,3,FALSE)","v":"-"}]
[null,null,26,"265 Gesimser","(egen data)",null,0,null,null,null,null,null,null,null,null,null,null,null,null,null,null,0,0]
[null,null,26,"266 Himling","(Velg kategori)","(Velg material eller prosesser)",0,{"$f":"VLOOKUP($F115,Utslippsfaktorer!$B$6:$U$332,5,FALSE)","v":"-"},{"$f":"VLOOKUP($F115,Utslippsfaktorer!$B$6:$U$332,6,FALSE)","v":0},{"$f":"IFERROR(VLOOKUP($F115,Utslippsfaktorer!$B$6:$U$332,7,FALSE)*$G115,0)","v":0},{"$f":"VLOOKUP($F115,Utslippsfaktorer!$B$6:$U$332,8,FALSE)*$G115","v":0},{"$f":"VLOOKUP($F115,Utslippsfaktorer!$B$6:$U$332,9,FALSE)*$G115","v":0},{"$f":"VLOOKUP($F115,Utslippsfaktorer!$B$6:$U$332,10,FALSE)*$G115","v":0},{"$f":"VLOOKUP($F115,Utslippsfaktorer!$B$6:$U$332,11,FALSE)*$G115","v":0},{"$f":"VLOOKUP($F115,Utslippsfaktorer!$B$6:$U$332,12,FALSE)*$G115","v":0},{"$f":"VLOOKUP($F115,Utslippsfaktorer!$B$6:$U$332,13,FALSE)*$G115","v":0},{"$f":"VLOOKUP($F115,Utslippsfaktorer!$B$6:$U$332,14,FALSE)*$G115","v":0},{"$f":"VLOOKUP($F115,Utslippsfaktorer!$B$6:$U$332,16,FALSE)*$G115","v":0},{"$f":"VLOOKUP($F115,Utslippsfaktorer!$B$6:$U$332,17,FALSE)*$G115","v":0},{"$f":"VLOOKUP($F115,Utslippsfaktorer!$B$6:$U$332,18,FALSE)*$G115","v":0},{"$f":"VLOOKUP($F115,Utslippsfaktorer!$B$6:$U$332,19,FALSE)*$G115","v":0},0,0,{"$f":"VLOOKUP($F115,Utslippsfaktorer!$B$6:$U$332,3,FALSE)","v":"-"}]
[null,null,26,"266 Himling","(egen data)",null,0,null,null,null,null,null,null,null,null,null,null,null,null,null,null,0,0]
[null,null,26,"267 Prefabrikkerte takelementer","(Velg kategori)","(Velg material eller prosesser)",0,{"$f":"VLOOKUP($F117,Utslippsfaktorer!$B$6:$U$332,5,FALSE)","v":"-"},{"$f":"VLOOKUP($F117,Utslippsfaktorer!$B$6:$U$332,6,FALSE)","v":0},{"$f":"IFERROR(VLOOKUP($F117,Utslippsfaktorer!$B$6:$U$332,7,FALSE)*$G117,0)","v":0},{"$f":"VLOOKUP($F117,Utslippsfaktorer!$B$6:$U$332,8,FALSE)*$G117","v":0},{"$f":"VLOOKUP($F117,Utslippsfaktorer!$B$6:$U$332,9,FALSE)*$G117","v":0},{"$f":"VLOOKUP($F117,Utslippsfaktorer!$B$6:$U$332,10,FALSE)*$G117","v":0},{"$f":"VLOOKUP($F117,Utslippsfaktorer!$B$6:$U$332,11,FALSE)*$G117","v":0},{"$f":"VLOOKUP($F117,Utslippsfaktorer!$B$6:$U$332,12,FALSE)*$G117","v":0},{"$f":"VLOOKUP($F117,Utslippsfaktorer!$B$6:$U$332,13,FALSE)*$G117","v":0},{"$f":"VLOOKUP($F117,Utslippsfaktorer!$B$6:$U$332,14,FALSE)*$G117","v":0},{"$f":"VLOOKUP($F117,Utslippsfaktorer!$B$6:$U$332,16,FALSE)*$G117","v":0},{"$f":"VLOOKUP($F117,Utslippsfaktorer!$B$6:$U$332,17,FALSE)*$G117","v":0},{"$f":"VLOOKUP($F117,Utslippsfaktorer!$B$6:$U$332,18,FALSE)*$G117","v":0},{"$f":"VLOOKUP($F117,Utslippsfaktorer!$B$6:$U$332,19,FALSE)*$G117","v":0},0,0,{"$f":"VLOOKUP($F117,Utslippsfaktorer!$B$6:$U$332,3,FALSE)","v":"-"}]
[null,null,26,"267 Prefabrikkerte takelementer","(egen data)",null,0,null,null,null,null,null,null,null,null,null,null,null,null,null,null,0,0]
[null,null,26,"268 Utstyr og komplettering for yttertak","(Velg kategori)","(Velg material eller prosesser)",0,{"$f":"VLOOKUP($F119,Utslippsfaktorer!$B$6:$U$332,5,FALSE)","v":"-"},{"$f":"VLOOKUP($F119,Utslippsfaktorer!$B$6:$U$332,6,FALSE)","v":0},{"$f":"IFERROR(VLOOKUP($F119,Utslippsfaktorer!$B$6:$U$332,7,FALSE)*$G119,0)","v":0},{"$f":"VLOOKUP($F119,Utslippsfaktorer!$B$6:$U$332,8,FALSE)*$G119","v":0},{"$f":"VLOOKUP($F119,Utslippsfaktorer!$B$6:$U$332,9,FALSE)*$G119","v":0},{"$f":"VLOOKUP($F119,Utslippsfaktorer!$B$6:$U$332,10,FALSE)*$G119","v":0},{"$f":"VLOOKUP($F119,Utslippsfaktorer!$B$6:$U$332,11,FALSE)*$G119","v":0},{"$f":"VLOOKUP($F119,Utslippsfaktorer!$B$6:$U$332,12,FALSE)*$G119","v":0},{"$f":"VLOOKUP($F119,Utslippsfaktorer!$B$6:$U$332,13,FALSE)*$G119","v":0},{"$f":"VLOOKUP($F119,Utslippsfaktorer!$B$6:$U$332,14,FALSE)*$G119","v":0},{"$f":"VLOOKUP($F119,Utslippsfaktorer!$B$6:$U$332,16,FALSE)*$G119","v":0},{"$f":"VLOOKUP($F119,Utslippsfaktorer!$B$6:$U$332,17,FALSE)*$G119","v":0},{"$f":"VLOOKUP($F119,Utslippsfaktorer!$B$6:$U$332,18,FALSE)*$G119","v":0},{"$f":"VLOOKUP($F119,Utslippsfaktorer!$B$6:$U$332,19,FALSE)*$G119","v":0},0,0,{"$f":"VLOOKUP($F119,Utslippsfaktorer!$B$6:$U$332,3,FALSE)","v":"-"}]
[null,null,26,"268 Utstyr og komplettering for yttertak","(egen data)",null,0,null,null,null,null,null,null,null,null,null,null,null,null,null,null,0,0]
[null,null,26,"269 Andre deler av yttertak","(Velg kategori)","(Velg material eller prosesser)",0,{"$f":"VLOOKUP($F121,Utslippsfaktorer!$B$6:$U$332,5,FALSE)","v":"-"},{"$f":"VLOOKUP($F121,Utslippsfaktorer!$B$6:$U$332,6,FALSE)","v":0},{"$f":"IFERROR(VLOOKUP($F121,Utslippsfaktorer!$B$6:$U$332,7,FALSE)*$G121,0)","v":0},{"$f":"VLOOKUP($F121,Utslippsfaktorer!$B$6:$U$332,8,FALSE)*$G121","v":0},{"$f":"VLOOKUP($F121,Utslippsfaktorer!$B$6:$U$332,9,FALSE)*$G121","v":0},{"$f":"VLOOKUP($F121,Utslippsfaktorer!$B$6:$U$332,10,FALSE)*$G121","v":0},{"$f":"VLOOKUP($F121,Utslippsfaktorer!$B$6:$U$332,11,FALSE)*$G121","v":0},{"$f":"VLOOKUP($F121,Utslippsfaktorer!$B$6:$U$332,12,FALSE)*$G121","v":0},{"$f":"VLOOKUP($F121,Utslippsfaktorer!$B$6:$U$332,13,FALSE)*$G121","v":0},{"$f":"VLOOKUP($F121,Utslippsfaktorer!$B$6:$U$332,14,FALSE)*$G121","v":0},{"$f":"VLOOKUP($F121,Utslippsfaktorer!$B$6:$U$332,16,FALSE)*$G121","v":0},{"$f":"VLOOKUP($F121,Utslippsfaktorer!$B$6:$U$332,17,FALSE)*$G121","v":0},{"$f":"VLOOKUP($F121,Utslippsfaktorer!$B$6:$U$332,18,FALSE)*$G121","v":0},{"$f":"VLOOKUP($F121,Utslippsfaktorer!$B$6:$U$332,19,FALSE)*$G121","v":0},0,0,{"$f":"VLOOKUP($F121,Utslippsfaktorer!$B$6:$U$332,3,FALSE)","v":"-"}]
[null,null,26,"269 Andre deler av yttertak","(egen data)",null,0,null,null,null,null,null,null,null,null,null,null,null,null,null,null,0,0]
[]
["seksjon7",null,28,"Trapper, balkonger, m.m.",null,null,null,null,null,{"$f":"IFERROR((SUM(J125:J144)),\"Not assessed\")","v":0},{"$f":"IFERROR((SUM(K125:K144)),\"Not assessed\")","v":0},0,0,0,0,0,0,0,0,0,0,0,null,{"$f":"IFERROR(V124/$U$2,0)","v":0}]
[null,null,28,28,"(egen data)",null,0,null,null,null,null,null,null,null,null,null,null,null,null,null,null,{"$f":"SUM(J125:U125)","v":0},{"$f":"IFERROR(V125/$V$82,0)","v":0}]
[null,null,28,"281 Innvendige trapper","(Velg kategori)","(Velg material eller prosesser)",0,{"$f":"VLOOKUP($F126,Utslippsfaktorer!$B$6:$U$332,5,FALSE)","v":"-"},{"$f":"VLOOKUP($F126,Utslippsfaktorer!$B$6:$U$332,6,FALSE)","v":0},{"$f":"IFERROR(VLOOKUP($F126,Utslippsfaktorer!$B$6:$U$332,7,FALSE)*$G126,0)","v":0},{"$f":"VLOOKUP($F126,Utslippsfaktorer!$B$6:$U$332,8,FALSE)*$G126","v":0},{"$f":"VLOOKUP($F126,Utslippsfaktorer!$B$6:$U$332,9,FALSE)*$G126","v":0},{"$f":"VLOOKUP($F126,Utslippsfaktorer!$B$6:$U$332,10,FALSE)*$G126","v":0},{"$f":"VLOOKUP($F126,Utslippsfaktorer!$B$6:$U$332,11,FALSE)*$G126","v":0},{"$f":"VLOOKUP($F126,Utslippsfaktorer!$B$6:$U$332,12,FALSE)*$G126","v":0},{"$f":"VLOOKUP($F126,Utslippsfaktorer!$B$6:$U$332,13,FALSE)*$G126","v":0},{"$f":"VLOOKUP($F126,Utslippsfaktorer!$B$6:$U$332,14,FALSE)*$G126","v":0},{"$f":"VLOOKUP($F126,Utslippsfaktorer!$B$6:$U$332,16,FALSE)*$G126","v":0},{"$f":"VLOOKUP($F126,Utslippsfaktorer!$B$6:$U$332,17,FALSE)*$G126","v":0},{"$f":"VLOOKUP($F126,Utslippsfaktorer!$B$6:$U$332,18,FALSE)*$G126","v":0},{"$f":"VLOOKUP($F126,Utslippsfaktorer!$B$6:$U$332,19,FALSE)*$G126","v":0},0,{"$f":"IFERROR(V126/$V$82,0)","v":0},{"$f":"VLOOKUP($F126,Utslippsfaktorer!$B$6:$U$332,3,FALSE)","v":"-"}]
[null,null,28,"282 Innvendige trapper","(egen data)",null,0,null,null,null,null,null,null,null,null,null,null,null,null,null,null,0,0]
[null,null,28,"282 Utvendige trapper","(Velg kategori)","(Velg material eller prosesser)",0,{"$f":"VLOOKUP($F128,Utslippsfaktorer!$B$6:$U$332,5,FALSE)","v":"-"},{"$f":"VLOOKUP($F128,Utslippsfaktorer!$B$6:$U$332,6,FALSE)","v":0},{"$f":"IFERROR(VLOOKUP($F128,Utslippsfaktorer!$B$6:$U$332,7,FALSE)*$G128,0)","v":0},{"$f":"VLOOKUP($F128,Utslippsfaktorer!$B$6:$U$332,8,FALSE)*$G128","v":0},{"$f":"VLOOKUP($F128,Utslippsfaktorer!$B$6:$U$332,9,FALSE)*$G128","v":0},{"$f":"VLOOKUP($F128,Utslippsfaktorer!$B$6:$U$332,10,FALSE)*$G128","v":0},{"$f":"VLOOKUP($F128,Utslippsfaktorer!$B$6:$U$332,11,FALSE)*$G128","v":0},{"$f":"VLOOKUP($F128,Utslippsfaktorer!$B$6:$U$332,12,FALSE)*$G128","v":0},{"$f":"VLOOKUP($F128,Utslippsfaktorer!$B$6:$U$332,13,FALSE)*$G128","v":0},{"$f":"VLOOKUP($F128,Utslippsfaktorer!$B$6:$U$332,14,FALSE)*$G128","v":0},{"$f":"VLOOKUP($F128,Utslippsfaktorer!$B$6:$U$332,16,FALSE)*$G128","v":0},{"$f":"VLOOKUP($F128,Utslippsfaktorer!$B$6:$U$332,17,FALSE)*$G128","v":0},{"$f":"VLOOKUP($F128,Utslippsfaktorer!$B$6:$U$332,18,FALSE)*$G128","v":0},{"$f":"VLOOKUP($F128,Utslippsfaktorer!$B$6:$U$332,19,FALSE)*$G128","v":0},0,0,{"$f":"VLOOKUP($F128,Utslippsfaktorer!$B$6:$U$332,3,FALSE)","v":"-"}]
[null,null,28,"283 Utvendige trapper","(egen data)",null,0,null,null,null,null,null,null,null,null,null,null,null,null,null,null,0,0]
[null,null,28,"283 Ramper","(Velg kategori)","(Velg material eller prosesser)",0,{"$f":"VLOOKUP($F130,Utslippsfaktorer!$B$6:$U$332,5,FALSE)","v":"-"},{"$f":"VLOOKUP($F130,Utslippsfaktorer!$B$6:$U$332,6,FALSE)","v":0},{"$f":"IFERROR(VLOOKUP($F130,Utslippsfaktorer!$B$6:$U$332,7,FALSE)*$G130,0)","v":0},{"$f":"VLOOKUP($F130,Utslippsfaktorer!$B$6:$U$332,8,FALSE)*$G130","v":0},{"$f":"VLOOKUP($F130,Utslippsfaktorer!$B$6:$U$332,9,FALSE)*$G130","v":0},{"$f":"VLOOKUP($F130,Utslippsfaktorer!$B$6:$U$332,10,FALSE)*$G130","v":0},{"$f":"VLOOKUP($F130,Utslippsfaktorer!$B$6:$U$332,11,FALSE)*$G130","v":0},{"$f":"VLOOKUP($F130,Utslippsfaktorer!$B$6:$U$332,12,FALSE)*$G130","v":0},{"$f":"VLOOKUP($F130,Utslippsfaktorer!$B$6:$U$332,13,FALSE)*$G130","v":0},{"$f":"VLOOKUP($F130,Utslippsfaktorer!$B$6:$U$332,14,FALSE)*$G130","v":0},{"$f":"VLOOKUP($F130,Utslippsfaktorer!$B$6:$U$332,16,FALSE)*$G130","v":0},{"$f":"VLOOKUP($F130,Utslippsfaktorer!$B$6:$U$332,17,FALSE)*$G130","v":0},{"$f":"VLOOKUP($F130,Utslippsfaktorer!$B$6:$U$332,18,FALSE)*$G130","v":0},{"$f":"VLOOKUP($F130,Utslippsfaktorer!$B$6:$U$332,19,FALSE)*$G130","v":0},0,0,{"$f":"VLOOKUP($F130,Utslippsfaktorer!$B$6:$U$332,3,FALSE)","v":"-"}]
[null,null,28,"284 Ramper","(egen data)",null,0,null,null,null,null,null,null,null,null,null,null,null,null,null,null,0,0]
[null,null,28,"284 Balkonger og verandaer","(Velg kategori)","(Velg material eller prosesser)",0,{"$f":"VLOOKUP($F132,Utslippsfaktorer!$B$6:$U$332,5,FALSE)","v":"-"},{"$f":"VLOOKUP($F132,Utslippsfaktorer!$B$6:$U$332,6,FALSE)","v":0},{"$f":"IFERROR(VLOOKUP($F132,Utslippsfaktorer!$B$6:$U$332,7,FALSE)*$G132,0)","v":0},{"$f":"VLOOKUP($F132,Utslippsfaktorer!$B$6:$U$332,8,FALSE)*$G132","v":0},{"$f":"VLOOKUP($F132,Utslippsfaktorer!$B$6:$U$332,9,FALSE)*$G132","v":0},{"$f":"VLOOKUP($F132,Utslippsfaktorer!$B$6:$U$332,10,FALSE)*$G132","v":0},{"$f":"VLOOKUP($F132,Utslippsfaktorer!$B$6:$U$332,11,FALSE)*$G132","v":0},{"$f":"VLOOKUP($F132,Utslippsfaktorer!$B$6:$U$332,12,FALSE)*$G132","v":0},{"$f":"VLOOKUP($F132,Utslippsfaktorer!$B$6:$U$332,13,FALSE)*$G132","v":0},{"$f":"VLOOKUP($F132,Utslippsfaktorer!$B$6:$U$332,14,FALSE)*$G132","v":0},{"$f":"VLOOKUP($F132,Utslippsfaktorer!$B$6:$U$332,16,FALSE)*$G132","v":0},{"$f":"VLOOKUP($F132,Utslippsfaktorer!$B$6:$U$332,17,FALSE)*$G132","v":0},{"$f":"VLOOKUP($F132,Utslippsfaktorer!$B$6:$U$332,18,FALSE)*$G132","v":0},{"$f":"VLOOKUP($F132,Utslippsfaktorer!$B$6:$U$332,19,FALSE)*$G132","v":0},0,0,{"$f":"VLOOKUP($F132,Utslippsfaktorer!$B$6:$U$332,3,FALSE)","v":"-"}]
[null,null,28,"285 Balkonger og verandaer","(egen data)",null,0,null,null,null,null,null,null,null,null,null,null,null,null,null,null,0,0]
[null,null,28,"285 Tribuner og amfier","(Velg kategori)","(Velg material eller prosesser)",0,{"$f":"VLOOKUP($F134,Utslippsfaktorer!$B$6:$U$332,5,FALSE)","v":"-"},{"$f":"VLOOKUP($F134,Utslippsfaktorer!$B$6:$U$332,6,FALSE)","v":0},{"$f":"IFERROR(VLOOKUP($F134,Utslippsfaktorer!$B$6:$U$332,7,FALSE)*$G134,0)","v":0},{"$f":"VLOOKUP($F134,Utslippsfaktorer!$B$6:$U$332,8,FALSE)*$G134","v":0},{"$f":"VLOOKUP($F134,Utslippsfaktorer!$B$6:$U$332,9,FALSE)*$G134","v":0},{"$f":"VLOOKUP($F134,Utslippsfaktorer!$B$6:$U$332,10,FALSE)*$G134","v":0},{"$f":"VLOOKUP($F134,Utslippsfaktorer!$B$6:$U$332,11,FALSE)*$G134","v":0},{"$f":"VLOOKUP($F134,Utslippsfaktorer!$B$6:$U$332,12,FALSE)*$G134","v":0},{"$f":"VLOOKUP($F134,Utslippsfaktorer!$B$6:$U$332,13,FALSE)*$G134","v":0},{"$f":"VLOOKUP($F134,Utslippsfaktorer!$B$6:$U$332,14,FALSE)*$G134","v":0},{"$f":"VLOOKUP($F134,Utslippsfaktorer!$B$6:$U$332,16,FALSE)*$G134","v":0},{"$f":"VLOOKUP($F134,Utslippsfaktorer!$B$6:$U$332,17,FALSE)*$G134","v":0},{"$f":"VLOOKUP($F134,Utslippsfaktorer!$B$6:$U$332,18,FALSE)*$G134","v":0},{"$f":"VLOOKUP($F134,Utslippsfaktorer!$B$6:$U$332,19,FALSE)*$G134","v":0},0,0,{"$f":"VLOOKUP($F134,Utslippsfaktorer!$B$6:$U$332,3,FALSE)","v":"-"}]
[null,null,28,"286 Tribuner og amfier","(egen data)",null,0,null,null,null,null,null,null,null,null,null,null,null,null,null,null,0,0]
[null,null,28,"286 Baldakiner og skjermtak","(Velg kategori)","(Velg material eller prosesser)",0,{"$f":"VLOOKUP($F136,Utslippsfaktorer!$B$6:$U$332,5,FALSE)","v":"-"},{"$f":"VLOOKUP($F136,Utslippsfaktorer!$B$6:$U$332,6,FALSE)","v":0},{"$f":"IFERROR(VLOOKUP($F136,Utslippsfaktorer!$B$6:$U$332,7,FALSE)*$G136,0)","v":0},{"$f":"VLOOKUP($F136,Utslippsfaktorer!$B$6:$U$332,8,FALSE)*$G136","v":0},{"$f":"VLOOKUP($F136,Utslippsfaktorer!$B$6:$U$332,9,FALSE)*$G136","v":0},{"$f":"VLOOKUP($F136,Utslippsfaktorer!$B$6:$U$332,10,FALSE)*$G136","v":0},{"$f":"VLOOKUP($F136,Utslippsfaktorer!$B$6:$U$332,11,FALSE)*$G136","v":0},{"$f":"VLOOKUP($F136,Utslippsfaktorer!$B$6:$U$332,12,FALSE)*$G136","v":0},{"$f":"VLOOKUP($F136,Utslippsfaktorer!$B$6:$U$332,13,FALSE)*$G136","v":0},{"$f":"VLOOKUP($F136,Utslippsfaktorer!$B$6:$U$332,14,FALSE)*$G136","v":0},{"$f":"VLOOKUP($F136,Utslippsfaktorer!$B$6:$U$332,16,FALSE)*$G136","v":0},{"$f":"VLOOKUP($F136,Utslippsfaktorer!$B$6:$U$332,17,FALSE)*$G136","v":0},{"$f":"VLOOKUP($F136,Utslippsfaktorer!$B$6:$U$332,18,FALSE)*$G136","v":0},{"$f":"VLOOKUP($F136,Utslippsfaktorer!$B$6:$U$332,19,FALSE)*$G136","v":0},0,0,{"$f":"VLOOKUP($F136,Utslippsfaktorer!$B$6:$U$332,3,FALSE)","v":"-"}]
[null,null,28,"287 Baldakiner og skjermtak","(egen data)",null,0,null,null,null,null,null,null,null,null,null,null,null,null,null,null,0,0]
[null,null,28,"287 Andre rekkverk, handlister og fendere","(Velg kategori)","(Velg material eller prosesser)",0,{"$f":"VLOOKUP($F138,Utslippsfaktorer!$B$6:$U$332,5,FALSE)","v":"-"},{"$f":"VLOOKUP($F138,Utslippsfaktorer!$B$6:$U$332,6,FALSE)","v":0},{"$f":"IFERROR(VLOOKUP($F138,Utslippsfaktorer!$B$6:$U$332,7,FALSE)*$G138,0)","v":0},{"$f":"VLOOKUP($F138,Utslippsfaktorer!$B$6:$U$332,8,FALSE)*$G138","v":0},{"$f":"VLOOKUP($F138,Utslippsfaktorer!$B$6:$U$332,9,FALSE)*$G138","v":0},{"$f":"VLOOKUP($F138,Utslippsfaktorer!$B$6:$U$332,10,FALSE)*$G138","v":0},{"$f":"VLOOKUP($F138,Utslippsfaktorer!$B$6:$U$332,11,FALSE)*$G138","v":0},{"$f":"VLOOKUP($F138,Utslippsfaktorer!$B$6:$U$332,12,FALSE)*$G138","v":0},{"$f":"VLOOKUP($F138,Utslippsfaktorer!$B$6:$U$332,13,FALSE)*$G138","v":0},{"$f":"VLOOKUP($F138,Utslippsfaktorer!$B$6:$U$332,14,FALSE)*$G138","v":0},{"$f":"VLOOKUP($F138,Utslippsfaktorer!$B$6:$U$332,16,FALSE)*$G138","v":0},{"$f":"VLOOKUP($F138,Utslippsfaktorer!$B$6:$U$332,17,FALSE)*$G138","v":0},{"$f":"VLOOKUP($F138,Utslippsfaktorer!$B$6:$U$332,18,FALSE)*$G138","v":0},{"$f":"VLOOKUP($F138,Utslippsfaktorer!$B$6:$U$332,19,FALSE)*$G138","v":0},0,0,{"$f":"VLOOKUP($F138,Utslippsfaktorer!$B$6:$U$332,3,FALSE)","v":"-"}]
[null,null,28,"288 Andre rekkverk, handlister og fendere","(egen data)",null,0,null,null,null,null,null,null,null,null,null,null,null,null,null,null,0,0]
[null,null,28,"288 Utstyr og kompletteringer for\ntrapper, balkonger m.m.","(Velg kategori)","(Velg material eller prosesser)",0,{"$f":"VLOOKUP($F140,Utslippsfaktorer!$B$6:$U$332,5,FALSE)","v":"-"},{"$f":"VLOOKUP($F140,Utslippsfaktorer!$B$6:$U$332,6,FALSE)","v":0},{"$f":"IFERROR(VLOOKUP($F140,Utslippsfaktorer!$B$6:$U$332,7,FALSE)*$G140,0)","v":0},{"$f":"VLOOKUP($F140,Utslippsfaktorer!$B$6:$U$332,8,FALSE)*$G140","v":0},{"$f":"VLOOKUP($F140,Utslippsfaktorer!$B$6:$U$332,9,FALSE)*$G140","v":0},{"$f":"VLOOKUP($F140,Utslippsfaktorer!$B$6:$U$332,10,FALSE)*$G140","v":0},{"$f":"VLOOKUP($F140,Utslippsfaktorer!$B$6:$U$332,11,FALSE)*$G140","v":0},{"$f":"VLOOKUP($F140,Utslippsfaktorer!$B$6:$U$332,12,FALSE)*$G140","v":0},{"$f":"VLOOKUP($F140,Utslippsfaktorer!$B$6:$U$332,13,FALSE)*$G140","v":0},{"$f":"VLOOKUP($F140,Utslippsfaktorer!$B$6:$U$332,14,FALSE)*$G140","v":0},{"$f":"VLOOKUP($F140,Utslippsfaktorer!$B$6:$U$332,16,FALSE)*$G140","v":0},{"$f":"VLOOKUP($F140,Utslippsfaktorer!$B$6:$U$332,17,FALSE)*$G140","v":0},{"$f":"VLOOKUP($F140,Utslippsfaktorer!$B$6:$U$332,18,FALSE)*$G140","v":0},{"$f":"VLOOKUP($F140,Utslippsfaktorer!$B$6:$U$332,19,FALSE)*$G140","v":0},0,0,{"$f":"VLOOKUP($F140,Utslippsfaktorer!$B$6:$U$332,3,FALSE)","v":"-"}]
[null,null,28,"289 Utstyr og kompletteringer for\ntrapper, balkonger m.m.","(egen data)",null,0,null,null,null,null,null,null,null,null,null,null,null,null,null,null,0,0]
[null,null,28,"289 Andre trapper, balkonger m.m.","(Velg kategori)","(Velg material eller prosesser)",0,{"$f":"VLOOKUP($F142,Utslippsfaktorer!$B$6:$U$332,5,FALSE)","v":"-"},{"$f":"VLOOKUP($F142,Utslippsfaktorer!$B$6:$U$332,6,FALSE)","v":0},{"$f":"IFERROR(VLOOKUP($F142,Utslippsfaktorer!$B$6:$U$332,7,FALSE)*$G142,0)","v":0},{"$f":"VLOOKUP($F142,Utslippsfaktorer!$B$6:$U$332,8,FALSE)*$G142","v":0},{"$f":"VLOOKUP($F142,Utslippsfaktorer!$B$6:$U$332,9,FALSE)*$G142","v":0},{"$f":"VLOOKUP($F142,Utslippsfaktorer!$B$6:$U$332,10,FALSE)*$G142","v":0},{"$f":"VLOOKUP($F142,Utslippsfaktorer!$B$6:$U$332,11,FALSE)*$G142","v":0},{"$f":"VLOOKUP($F142,Utslippsfaktorer!$B$6:$U$332,12,FALSE)*$G142","v":0},{"$f":"VLOOKUP($F142,Utslippsfaktorer!$B$6:$U$332,13,FALSE)*$G142","v":0},{"$f":"VLOOKUP($F142,Utslippsfaktorer!$B$6:$U$332,14,FALSE)*$G142","v":0},{"$f":"VLOOKUP($F142,Utslippsfaktorer!$B$6:$U$332,16,FALSE)*$G142","v":0},{"$f":"VLOOKUP($F142,Utslippsfaktorer!$B$6:$U$332,17,FALSE)*$G142","v":0},{"$f":"VLOOKUP($F142,Utslippsfaktorer!$B$6:$U$332,18,FALSE)*$G142","v":0},{"$f":"VLOOKUP($F142,Utslippsfaktorer!$B$6:$U$332,19,FALSE)*$G142","v":0},0,0,{"$f":"VLOOKUP($F142,Utslippsfaktorer!$B$6:$U$332,3,FALSE)","v":"-"}]
[null,null,28,"289 Andre trapper, balkonger m.m.","(egen data)",null,0,null,null,null,null,null,null,null,null,null,null,null,null,null,null,0,0]
[]
["seksjon8",null,49,"Andre elkraftinstallasjoner",null,null,null,null,null,{"$f":"IFERROR((SUM(J146:J147)),\"Not assessed\")","v":0},0,0,0,0,0,0,0,0,0,0,0,0,null,{"$f":"IFERROR(V145/$U$2,0)","v":0}]
[null,null,49,49,"(egen data)",null,0,null,null,null,null,null,null,null,null,null,null,null,null,null,null,{"$f":"SUM(J146:U146)","v":0},{"$f":"IFERROR(V146/$V$103,0)","v":0}]
[null,null,49,49,"(Velg kategori)","(Velg material eller prosesser)",0,{"$f":"VLOOKUP($F147,Utslippsfaktorer!$B$6:$U$332,5,FALSE)","v":"-"},{"$f":"VLOOKUP($F147,Utslippsfaktorer!$B$6:$U$332,6,FALSE)","v":0},{"$f":"IFERROR(VLOOKUP($F147,Utslippsfaktorer!$B$6:$U$332,7,FALSE)*$G147,0)","v":0},{"$f":"VLOOKUP($F147,Utslippsfaktorer!$B$6:$U$332,8,FALSE)*$G147","v":0},{"$f":"VLOOKUP($F147,Utslippsfaktorer!$B$6:$U$332,9,FALSE)*$G147","v":0},{"$f":"VLOOKUP($F147,Utslippsfaktorer!$B$6:$U$332,10,FALSE)*$G147","v":0},{"$f":"VLOOKUP($F147,Utslippsfaktorer!$B$6:$U$332,11,FALSE)*$G147","v":0},{"$f":"VLOOKUP($F147,Utslippsfaktorer!$B$6:$U$332,12,FALSE)*$G147","v":0},{"$f":"VLOOKUP($F147,Utslippsfaktorer!$B$6:$U$332,13,FALSE)*$G147","v":0},{"$f":"VLOOKUP($F147,Utslippsfaktorer!$B$6:$U$332,14,FALSE)*$G147","v":0},{"$f":"VLOOKUP($F147,Utslippsfaktorer!$B$6:$U$332,16,FALSE)*$G147","v":0},{"$f":"VLOOKUP($F147,Utslippsfaktorer!$B$6:$U$332,17,FALSE)*$G147","v":0},{"$f":"VLOOKUP($F147,Utslippsfaktorer!$B$6:$U$332,18,FALSE)*$G147","v":0},{"$f":"VLOOKUP($F147,Utslippsfaktorer!$B$6:$U$332,19,FALSE)*$G147","v":0},0,{"$f":"IFERROR(V147/$V$103,0)","v":0},{"$f":"VLOOKUP($F147,Utslippsfaktorer!$B$6:$U$332,3,FALSE)","v":"-"}]
[]
["seksjon9"]
[null,"Energibruk på byggeplass (del av A5)",null,null,null,null,null,null,null,null,null,null,null,null,null,null,null,null,null,null,null,{"$f":"SUM(V151:V153)","v":2670},null,null,{"$f":"IFERROR(V150/$U$2,0)","v":2.478866006017626E-2}]
[null,null,null,null,null,"_Elektrisitet (NO)",0,{"$f":"VLOOKUP($F151,Utslippsfaktorer!$B$6:$U$332,5,FALSE)","v":"kWh"},{"$f":"_xlfn.IFS(AND(Prosjektbeskrivelse!$C$13=\"Utslippsfri\",H151=\"liter\",G151>0),\"Krav for utslippsfri byggeplass!\",AND(Prosjektbeskrivelse!$C$13=\"Fossilfri\",OR(ISNUMBER(FIND(\"Diesel\",F151)),ISNUMBER(FIND(\"LPG\",F151))),G151>0),\"Krav for fossilfri byggeplass!\",TRUE,\"\")","v":""},null,null,null,null,null,null,null,null,null,null,null,null,{"$f":"IFERROR(VLOOKUP($F151,Utslippsfaktorer!$B$6:$U$332,7,FALSE)*$G151,0)","v":0},{"$f":"IFERROR(V151/$V$150,0)","v":0}]
[null,null,null,null,null,"Diesel",1000,{"$f":"VLOOKUP($F152,Utslippsfaktorer!$B$6:$U$332,5,FALSE)","v":"liter"},{"$f":"_xlfn.IFS(AND(Prosjektbeskrivelse!$C$13=\"Utslippsfri\",H152=\"liter\",G152>0),\"Krav for utslippsfri byggeplass!\",AND(Prosjektbeskrivelse!$C$13=\"Fossilfri\",OR(ISNUMBER(FIND(\"Diesel\",F152)),ISNUMBER(FIND(\"LPG\",F152))),G152>0),\"Krav for fossilfri byggeplass!\",TRUE,\"\")","v":"Krav for fossilfri byggeplass!"},null,null,null,null,null,null,null,null,null,null,null,null,{"$f":"IFERROR(VLOOKUP($F152,Utslippsfaktorer!$B$6:$U$332,7,FALSE)*$G152,0)","v":2670},{"$f":"IFERROR(V152/$V$150,0)","v":1}]
[null,null,null,null,null,"Biodiesel",0,{"$f":"VLOOKUP($F153,Utslippsfaktorer!$B$6:$U$332,5,FALSE)","v":"liter"},{"$f":"_xlfn.IFS(AND(Prosjektbeskrivelse!$C$13=\"Utslippsfri\",H153=\"liter\",G153>0),\"Krav for utslippsfri byggeplass!\",AND(Prosjektbeskrivelse!$C$13=\"Fossilfri\",OR(ISNUMBER(FIND(\"Diesel\",F153)),ISNUMBER(FIND(\"LPG\",F153))),G153>0),\"Krav for fossilfri byggeplass!\",TRUE,\"\")","v":""},null,null,null,null,null,null,null,null,null,null,null,null,{"$f":"IFERROR(VLOOKUP($F153,Utslippsfaktorer!$B$6:$U$332,7,FALSE)*$G153,0)","v":0},0]
[]
[null,"Energibruk i drift (B6)",null,null,null,null,null,null,null,null,null,null,null,null,null,null,null,null,null,null,null,{"$f":"SUM(V157:V163)","v":44537.85},null,null,{"$f":"IFERROR(V155/$U$2,0)","v":0.41349573912401544}]
[null,null,null,null,null,null,"Nøkkelverdi (PROfet)",null,null,"Verdier fra egen beregning ",null,null,"Endelige verdier",null,null,"Totalt energibruk",null,null,null,null,null,"Utslipp","% per energibehov"]
[null,null,null,null,"Oppvarming","_Elektrisitet (NO)",{"$f":"VLOOKUP(_xlfn.CONCAT(Prosjektbeskrivelse!$C$16,\" \",Prosjektbeskrivelse!$C$17),Input_rullegardin!$I$4:$N$39,4,FALSE)","v":102},"kWh/(m2·år)",null,null,"kWh/(m2·år)",null,{"$f":"IF(ISBLANK(J157),G157,J157)","v":102},"kWh/(m2BTA.år)",null,{"$f":"M157*Prosjektbeskrivelse!$C$21*Prosjektbeskrivelse!$C$24","v":688500},"kWh",null,null,null,null,{"$f":"IFERROR(VLOOKUP($F157,Utslippsfaktorer!$B$6:$U$332,7,FALSE)*$P157,0)","v":12392.999999999998},{"$f":"IFERROR(V157/$V$155,0)","v":0.2782577066472674}]
[null,null,null,null,null,"_Fjernvarme, Trondheim, NO (snitt 2019-2021)",null,null,null,102,"kWh/(m2·år)",null,102,"kWh/(m2BTA.år)",null,{"$f":"M158*Prosjektbeskrivelse!$C$21*Prosjektbeskrivelse!$C$24","v":688500},"kWh",null,null,null,null,{"$f":"IFERROR(VLOOKUP($F158,Utslippsfaktorer!$B$6:$U$332,7,FALSE)*$P158,0)","v":20723.849999999999},{"$f":"IFERROR(V158/$V$155,0)","v":0.46530872056015277}]
[null,null,null,null,"Vannoppvarming","_Elektrisitet (NO)",{"$f":"VLOOKUP(_xlfn.CONCAT(Prosjektbeskrivelse!$C$16,\" \",Prosjektbeskrivelse!$C$17),Input_rullegardin!$I$4:$N$39,5,FALSE)","v":19},"kWh/(m2·år)",null,null,"kWh/(m2·år)",null,19,"kWh/(m2BTA.år)",null,{"$f":"M159*Prosjektbeskrivelse!$C$21*Prosjektbeskrivelse!$C$24","v":128250},"kWh",null,null,null,null,{"$f":"IFERROR(VLOOKUP($F159,Utslippsfaktorer!$B$6:$U$332,7,FALSE)*$P159,0)","v":2308.5},{"$f":"IFERROR(V159/$V$155,0)","v":5.183231790488315E-2}]
[null,null,null,null,"Elektriske apparater","_Elektrisitet (NO)",{"$f":"VLOOKUP(_xlfn.CONCAT(Prosjektbeskrivelse!$C$16,\" \",Prosjektbeskrivelse!$C$17),Input_rullegardin!$I$4:$N$39,6,FALSE)","v":75},"kWh/(m2·år)",null,null,"kWh/(m2·år)",null,75,"kWh/(m2BTA.år)",null,{"$f":"M160*Prosjektbeskrivelse!$C$21*Prosjektbeskrivelse!$C$24","v":506250},"kWh",null,null,null,null,{"$f":"IFERROR(VLOOKUP($F160,Utslippsfaktorer!$B$6:$U$332,7,FALSE)*$P160,0)","v":9112.5},0.20460125488769665]
[null,null,null,null,"Kjøling","_Elektrisitet (NO)",null,"kWh/(m2·år)",null,null,"kWh/(m2·år)",null,0,"kWh/(m2BTA.år)",null,{"$f":"M161*Prosjektbeskrivelse!$C$21*Prosjektbeskrivelse!$C$24","v":0},"kWh",null,null,null,null,{"$f":"IFERROR(VLOOKUP($F161,Utslippsfaktorer!$B$6:$U$332,7,FALSE)*$P161,0)","v":0},0]
[null,null,null,null,"Luftbehandling","_Elektrisitet (NO)",null,"kWh/(m2·år)",null,null,"kWh/(m2·år)",null,0,"kWh/(m2BTA.år)",null,{"$f":"M162*Prosjektbeskrivelse!$C$21*Prosjektbeskrivelse!$C$24","v":0},"kWh",null,null,null,null,{"$f":"IFERROR(VLOOKUP($F162,Utslippsfaktorer!$B$6:$U$332,7,FALSE)*$P162,0)","v":0},0]
[null,null,null,null,"Annet","_Elektrisitet (NO)",null,"kWh/(m2·år)",null,null,"kWh/(m2·år)",null,0,"kWh/(m2BTA.år)",null,{"$f":"M163*Prosjektbeskrivelse!$C$21*Prosjektbeskrivelse!$C$24","v":0},"kWh",null,null,null,null,{"$f":"IFERROR(VLOOKUP($F163,Utslippsfaktorer!$B$6:$U$332,7,FALSE)*$P163,0)","v":0},0]
[]
[]
[{"$f":"Veiledning!B2","v":"Versjon 2023-04-13. Utviklet av SINTEF AS."}]

{"sheet":"Som bygget","index":6,"n_rows":167,"n_cols":25,"rows_kept":167,"cut":false,"hidden":false,"merged":[[1,20,1,21],[1,1,1,3],[1,16,1,19],[156,6,156,8],[156,9,156,10],[156,12,156,13],[156,15,156,16],[5,2,5,3]]}
[]
[null,"Som bygget",null,null,null,null,null,null,null,null,null,null,null,null,null,null,"Utslipp A1-C4",null,null,null,{"$f":"SUM(V4,V151,V156)","v":98766.143974993669},null,"kgCO2e"]
[]
[null,"Bygningselementer",null,null,null,null,null,null,null,null,null,null,null,null,null,null,null,null,null,null,null,{"$f":"SUM(V8,V18,V37,V62,V83,V104)","v":72282.143974993669},null,null,{"$f":"IFERROR(V4/$U$2,0)","v":0.7318514327469805}]
[null,null,null,null,null,null,null,null,null,"Produktstadiet","Transport","Monterings-arbeid","Bruk","Vedlikehold","Reparasjon","Utskiftning","Ombygging","Riving","Transport","Avfalls-behandling","Avhending"]
[null,null,"Bygningselement",null,"Kategori","Materialer eller prosesser","Mengde","Enhet","Levetid","A1-A3","A4","A5-svinn","B1","B2","B3","B4","B5","C1","C2","C3","C4","Klimagassutslipp","Andel % per bygningselement","Kilde"]
[null,null,null,null,null,null,null,null,"år","kgCO2e","kgCO2e","kgCO2e","kgCO2e","kgCO2e","kgCO2e","kgCO2e","kgCO2e","kgCO2e","kgCO2e","kgCO2e","kgCO2e","kgCO2e","-"]
["seksjon1",null,21,"Fundamentering",null,null,null,null,null,{"$f":"IFERROR(SUM(J9:J17),\"Not assessed\")","v":8775.0990149936606},3.5388599999999997,152.59999999999997,0,0,0,0,0,0,0,0,0,8931.2378749936615,null,{"$f":"IFERROR(V8/$U$2,0)","v":9.0428131701232942E-2}]
[null,null,21,21,"(egen data)",null,0,null,null,null,null,null,null,null,null,null,null,null,null,null,null,{"$f":"SUM(J9:U9)","v":0},{"$f":"IFERROR(V9/$V$8,0)","v":0}]
[null,null,21,"215 Pelefundamentering ","Betong","Betong B30, lavkarbon A",10,{"$f":"VLOOKUP($F10,Utslippsfaktorer!$B$6:$U$332,5,FALSE)","v":"m3"},{"$f":"VLOOKUP($F10,Utslippsfaktorer!$B$6:$U$332,6,FALSE)","v":60},{"$f":"IFERROR(VLOOKUP($F10,Utslippsfaktorer!$B$6:$U$332,7,FALSE)*$G10,0)","v":2000},{"$f":"VLOOKUP($F10,Utslippsfaktorer!$B$6:$U$332,8,FALSE)*$G10","v":3.1920000000000002},{"$f":"VLOOKUP($F10,Utslippsfaktorer!$B$6:$U$332,9,FALSE)*$G10","v":0},{"$f":"VLOOKUP($F10,Utslippsfaktorer!$B$6:$U$332,10,FALSE)*$G10","v":0},{"$f":"VLOOKUP($F10,Utslippsfaktorer!$B$6:$U$332,11,FALSE)*$G10","v":0},{"$f":"VLOOKUP($F10,Utslippsfaktorer!$B$6:$U$332,12,FALSE)*$G10","v":0},{"$f":"VLOOKUP($F10,Utslippsfaktorer!$B$6:$U$332,13,FALSE)*$G10","v":0},{"$f":"VLOOKUP($F10,Utslippsfaktorer!$B$6:$U$332,14,FALSE)*$G10","v":0},{"$f":"VLOOKUP($F10,Utslippsfaktorer!$B$6:$U$332,16,FALSE)*$G10","v":0},{"$f":"VLOOKUP($F10,Utslippsfaktorer!$B$6:$U$332,17,FALSE)*$G10","v":0},{"$f":"VLOOKUP($F10,Utslippsfaktorer!$B$6:$U$332,18,FALSE)*$G10","v":0},{"$f":"VLOOKUP($F10,Utslippsfaktorer!$B$6:$U$332,19,FALSE)*$G10","v":0},{"$f":"SUM(J10:U10)","v":2003.192},{"$f":"IFERROR(V10/$V$8,0)","v":0.22429052143025824},{"$f":"VLOOKUP($F10,Utslippsfaktorer!$B$6:$U$332,3,FALSE)","v":0}]
[null,null,21,"215 Pelefundamentering ","Stål","Stål, konstruksjon m/resirk",1700,{"$f":"VLOOKUP($F11,Utslippsfaktorer!$B$6:$U$332,5,FALSE)","v":"kg"},{"$f":"VLOOKUP($F11,Utslippsfaktorer!$B$6:$U$332,6,FALSE)","v":60},{"$f":"IFERROR(VLOOKUP($F11,Utslippsfaktorer!$B$6:$U$332,7,FALSE)*$G11,0)","v":2112.3272727272729},{"$f":"VLOOKUP($F11,Utslippsfaktorer!$B$6:$U$332,8,FALSE)*$G11","v":0.14382},{"$f":"VLOOKUP($F11,Utslippsfaktorer!$B$6:$U$332,9,FALSE)*$G11","v":0},{"$f":"VLOOKUP($F11,Utslippsfaktorer!$B$6:$U$332,10,FALSE)*$G11","v":0},{"$f":"VLOOKUP($F11,Utslippsfaktorer!$B$6:$U$332,11,FALSE)*$G11","v":0},{"$f":"VLOOKUP($F11,Utslippsfaktorer!$B$6:$U$332,12,FALSE)*$G11","v":0},{"$f":"VLOOKUP($F11,Utslippsfaktorer!$B$6:$U$332,13,FALSE)*$G11","v":0},{"$f":"VLOOKUP($F11,Utslippsfaktorer!$B$6:$U$332,14,FALSE)*$G11","v":0},{"$f":"VLOOKUP($F11,Utslippsfaktorer!$B$6:$U$332,16,FALSE)*$G11","v":0},{"$f":"VLOOKUP($F11,Utslippsfaktorer!$B$6:$U$332,17,FALSE)*$G11","v":0},{"$f":"VLOOKUP($F11,Utslippsfaktorer!$B$6:$U$332,18,FALSE)*$G11","v":0},{"$f":"VLOOKUP($F11,Utslippsfaktorer!$B$6:$U$332,19,FALSE)*$G11","v":0},2112.4710927272727,0.2365261257503761,{"$f":"VLOOKUP($F11,Utslippsfaktorer!$B$6:$U$332,3,FALSE)","v":0}]
[null,null,21,"215 Pelefundamentering ","Isolasjon","Ekstrudert polystyren (XPS 400)",40,{"$f":"VLOOKUP($F12,Utslippsfaktorer!$B$6:$U$332,5,FALSE)","v":"m3"},{"$f":"VLOOKUP($F12,Utslippsfaktorer!$B$6:$U$332,6,FALSE)","v":20},{"$f":"IFERROR(VLOOKUP($F12,Utslippsfaktorer!$B$6:$U$332,7,FALSE)*$G12,0)","v":4473.6717422663878},{"$f":"VLOOKUP($F12,Utslippsfaktorer!$B$6:$U$332,8,FALSE)*$G12","v":0.10152},{"$f":"VLOOKUP($F12,Utslippsfaktorer!$B$6:$U$332,9,FALSE)*$G12","v":0},{"$f":"VLOOKUP($F12,Utslippsfaktorer!$B$6:$U$332,10,FALSE)*$G12","v":0},{"$f":"VLOOKUP($F12,Utslippsfaktorer!$B$6:$U$332,11,FALSE)*$G12","v":0},{"$f":"VLOOKUP($F12,Utslippsfaktorer!$B$6:$U$332,12,FALSE)*$G12","v":0},{"$f":"VLOOKUP($F12,Utslippsfaktorer!$B$6:$U$332,13,FALSE)*$G12","v":0},{"$f":"VLOOKUP($F12,Utslippsfaktorer!$B$6:$U$332,14,FALSE)*$G12","v":0},{"$f":"VLOOKUP($F12,Utslippsfaktorer!$B$6:$U$332,16,FALSE)*$G12","v":0},{"$f":"VLOOKUP($F12,Utslippsfaktorer!$B$6:$U$332,17,FALSE)*$G12","v":0},{"$f":"VLOOKUP($F12,Utslippsfaktorer!$B$6:$U$332,18,FALSE)*$G12","v":0},{"$f":"VLOOKUP($F12,Utslippsfaktorer!$B$6:$U$332,19,FALSE)*$G12","v":0},4473.773262266388,0.50091301171054781,{"$f":"VLOOKUP($F12,Utslippsfaktorer!$B$6:$U$332,3,FALSE)","v":0}]
[null,null,21,"215 Pelefundamentering ","Bitumen","Bitumen, EPD snitt",40,{"$f":"VLOOKUP($F13,Utslippsfaktorer!$B$6:$U$332,5,FALSE)","v":"m2"},{"$f":"VLOOKUP($F13,Utslippsfaktorer!$B$6:$U$332,6,FALSE)","v":25},{"$f":"IFERROR(VLOOKUP($F13,Utslippsfaktorer!$B$6:$U$332,7,FALSE)*$G13,0)","v":189.1},{"$f":"VLOOKUP($F13,Utslippsfaktorer!$B$6:$U$332,8,FALSE)*$G13","v":0.10152},{"$f":"VLOOKUP($F13,Utslippsfaktorer!$B$6:$U$332,9,FALSE)*$G13","v":152.59999999999997},{"$f":"VLOOKUP($F13,Utslippsfaktorer!$B$6:$U$332,10,FALSE)*$G13","v":0},{"$f":"VLOOKUP($F13,Utslippsfaktorer!$B$6:$U$332,11,FALSE)*$G13","v":0},{"$f":"VLOOKUP($F13,Utslippsfaktorer!$B$6:$U$332,12,FALSE)*$G13","v":0},{"$f":"VLOOKUP($F13,Utslippsfaktorer!$B$6:$U$332,13,FALSE)*$G13","v":0},{"$f":"VLOOKUP($F13,Utslippsfaktorer!$B$6:$U$332,14,FALSE)*$G13","v":0},{"$f":"VLOOKUP($F13,Utslippsfaktorer!$B$6:$U$332,16,FALSE)*$G13","v":0},{"$f":"VLOOKUP($F13,Utslippsfaktorer!$B$6:$U$332,17,FALSE)*$G13","v":0},{"$f":"VLOOKUP($F13,Utslippsfaktorer!$B$6:$U$332,18,FALSE)*$G13","v":0},{"$f":"VLOOKUP($F13,Utslippsfaktorer!$B$6:$U$332,19,FALSE)*$G13","v":0},341.80151999999998,3.8270341108817746E-2,{"$f":"VLOOKUP($F13,Utslippsfaktorer!$B$6:$U$332,3,FALSE)","v":0}]
[null,null,21,"216 Pelefundamentering ","(egen data)",null,0,null,null,null,null,null,null,null,null,null,null,null,null,null,null,0,{"$f":"IFERROR(V14/$V$8,0)","v":0}]
[null,null,21,"216 Direkte fundamentering ","(Velg kategori)","(Velg material eller prosesser)",0,{"$f":"VLOOKUP($F15,Utslippsfaktorer!$B$6:$U$332,5,FALSE)","v":"-"},{"$f":"VLOOKUP($F15,Utslippsfaktorer!$B$6:$U$332,6,FALSE)","v":0},{"$f":"IFERROR(VLOOKUP($F15,Utslippsfaktorer!$B$6:$U$332,7,FALSE)*$G15,0)","v":0},{"$f":"VLOOKUP($F15,Utslippsfaktorer!$B$6:$U$332,8,FALSE)*$G15","v":0},{"$f":"VLOOKUP($F15,Utslippsfaktorer!$B$6:$U$332,9,FALSE)*$G15","v":0},{"$f":"VLOOKUP($F15,Utslippsfaktorer!$B$6:$U$332,10,FALSE)*$G15","v":0},{"$f":"VLOOKUP($F15,Utslippsfaktorer!$B$6:$U$332,11,FALSE)*$G15","v":0},{"$f":"VLOOKUP($F15,Utslippsfaktorer!$B$6:$U$332,12,FALSE)*$G15","v":0},{"$f":"VLOOKUP($F15,Utslippsfaktorer!$B$6:$U$332,13,FALSE)*$G15","v":0},{"$f":"VLOOKUP($F15,Utslippsfaktorer!$B$6:$U$332,14,FALSE)*$G15","v":0},{"$f":"VLOOKUP($F15,Utslippsfaktorer!$B$6:$U$332,16,FALSE)*$G15","v":0},{"$f":"VLOOKUP($F15,Utslippsfaktorer!$B$6:$U$332,17,FALSE)*$G15","v":0},{"$f":"VLOOKUP($F15,Utslippsfaktorer!$B$6:$U$332,18,FALSE)*$G15","v":0},{"$f":"VLOOKUP($F15,Utslippsfaktorer!$B$6:$U$332,19,FALSE)*$G15","v":0},0,{"$f":"IFERROR(V15/$V$8,0)","v":0},{"$f":"VLOOKUP($F15,Utslippsfaktorer!$B$6:$U$332,3,FALSE)","v":"-"}]
[null,null,21,"216 Direkte fundamentering ","(egen data)",null,0,null,null,null,null,null,null,null,null,null,null,null,null,null,null,0,{"$f":"IFERROR(V16/$V$8,0)","v":0}]
[]
["seksjon2",null,22,"Bæresystemer",null,null,null,null,null,{"$f":"IFERROR((SUM(J19:J36)),\"Not assessed\")","v":0},0,0,0,0,0,0,0,0,0,0,0,{"$f":"IFERROR((SUM(V19:V36)),\"Not assessed\")","v":0},null,{"$f":"IFERROR(V18/$U$2,0)","v":0}]
[null,null,22,22,"(egen data)",null,0,null,null,null,null,null,null,null,null,null,null,null,null,null,null,{"$f":"SUM(J19:U19)","v":0},{"$f":"IFERROR(V19/$V$18,0)","v":0}]
[null,null,22,"221 Rammer","(Velg kategori)","(Velg material eller prosesser)",0,{"$f":"VLOOKUP($F20,Utslippsfaktorer!$B$6:$U$332,5,FALSE)","v":"-"},{"$f":"VLOOKUP($F20,Utslippsfaktorer!$B$6:$U$332,6,FALSE)","v":0},{"$f":"IFERROR(VLOOKUP($F20,Utslippsfaktorer!$B$6:$U$332,7,FALSE)*$G20,0)","v":0},{"$f":"VLOOKUP($F20,Utslippsfaktorer!$B$6:$U$332,8,FALSE)*$G20","v":0},{"$f":"VLOOKUP($F20,Utslippsfaktorer!$B$6:$U$332,9,FALSE)*$G20","v":0},{"$f":"VLOOKUP($F20,Utslippsfaktorer!$B$6:$U$332,10,FALSE)*$G20","v":0},{"$f":"VLOOKUP($F20,Utslippsfaktorer!$B$6:$U$332,11,FALSE)*$G20","v":0},{"$f":"VLOOKUP($F20,Utslippsfaktorer!$B$6:$U$332,12,FALSE)*$G20","v":0},{"$f":"VLOOKUP($F20,Utslippsfaktorer!$B$6:$U$332,13,FALSE)*$G20","v":0},{"$f":"VLOOKUP($F20,Utslippsfaktorer!$B$6:$U$332,14,FALSE)*$G20","v":0},{"$f":"VLOOKUP($F20,Utslippsfaktorer!$B$6:$U$332,16,FALSE)*$G20","v":0},{"$f":"VLOOKUP($F20,Utslippsfaktorer!$B$6:$U$332,17,FALSE)*$G20","v":0},{"$f":"VLOOKUP($F20,Utslippsfaktorer!$B$6:$U$332,18,FALSE)*$G20","v":0},{"$f":"VLOOKUP($F20,Utslippsfaktorer!$B$6:$U$332,19,FALSE)*$G20","v":0},0,{"$f":"IFERROR(V20/$V$18,0)","v":0},{"$f":"VLOOKUP($F20,Utslippsfaktorer!$B$6:$U$332,3,FALSE)","v":"-"}]
[null,null,22,"221 Rammer","(egen data)",null,0,null,null,null,null,null,null,null,null,null,null,null,null,null,null,0,0]
[null,null,22,"222 Søyler","(Velg kategori)","(Velg material eller prosesser)",0,{"$f":"VLOOKUP($F22,Utslippsfaktorer!$B$6:$U$332,5,FALSE)","v":"-"},{"$f":"VLOOKUP($F22,Utslippsfaktorer!$B$6:$U$332,6,FALSE)","v":0},{"$f":"IFERROR(VLOOKUP($F22,Utslippsfaktorer!$B$6:$U$332,7,FALSE)*$G22,0)","v":0},{"$f":"VLOOKUP($F22,Utslippsfaktorer!$B$6:$U$332,8,FALSE)*$G22","v":0},{"$f":"VLOOKUP($F22,Utslippsfaktorer!$B$6:$U$332,9,FALSE)*$G22","v":0},{"$f":"VLOOKUP($F22,Utslippsfaktorer!$B$6:$U$332,10,FALSE)*$G22","v":0},{"$f":"VLOOKUP($F22,Utslippsfaktorer!$B$6:$U$332,11,FALSE)*$G22","v":0},{"$f":"VLOOKUP($F22,Utslippsfaktorer!$B$6:$U$332,12,FALSE)*$G22","v":0},{"$f":"VLOOKUP($F22,Utslippsfaktorer!$B$6:$U$332,13,FALSE)*$G22","v":0},{"$f":"VLOOKUP($F22,Utslippsfaktorer!$B$6:$U$332,14,FALSE)*$G22","v":0},{"$f":"VLOOKUP($F22,Utslippsfaktorer!$B$6:$U$332,16,FALSE)*$G22","v":0},{"$f":"VLOOKUP($F22,Utslippsfaktorer!$B$6:$U$332,17,FALSE)*$G22","v":0},{"$f":"VLOOKUP($F22,Utslippsfaktorer!$B$6:$U$332,18,FALSE)*$G22","v":0},{"$f":"VLOOKUP($F22,Utslippsfaktorer!$B$6:$U$332,19,FALSE)*$G22","v":0},0,0,{"$f":"VLOOKUP($F22,Utslippsfaktorer!$B$6:$U$332,3,FALSE)","v":"-"}]
[null,null,22,"222 Søyler","(egen data)",null,0,null,null,null,null,null,null,null,null,null,null,null,null,null,null,0,0]
[null,null,22,"223 Bjelker","(Velg kategori)","(Velg material eller prosesser)",0,{"$f":"VLOOKUP($F24,Utslippsfaktorer!$B$6:$U$332,5,FALSE)","v":"-"},{"$f":"VLOOKUP($F24,Utslippsfaktorer!$B$6:$U$332,6,FALSE)","v":0},{"$f":"IFERROR(VLOOKUP($F24,Utslippsfaktorer!$B$6:$U$332,7,FALSE)*$G24,0)","v":0},{"$f":"VLOOKUP($F24,Utslippsfaktorer!$B$6:$U$332,8,FALSE)*$G24","v":0},{"$f":"VLOOKUP($F24,Utslippsfaktorer!$B$6:$U$332,9,FALSE)*$G24","v":0},{"$f":"VLOOKUP($F24,Utslippsfaktorer!$B$6:$U$332,10,FALSE)*$G24","v":0},{"$f":"VLOOKUP($F24,Utslippsfaktorer!$B$6:$U$332,11,FALSE)*$G24","v":0},{"$f":"VLOOKUP($F24,Utslippsfaktorer!$B$6:$U$332,12,FALSE)*$G24","v":0},{"$f":"VLOOKUP($F24,Utslippsfaktorer!$B$6:$U$332,13,FALSE)*$G24","v":0},{"$f":"VLOOKUP($F24,Utslippsfaktorer!$B$6:$U$332,14,FALSE)*$G24","v":0},{"$f":"VLOOKUP($F24,Utslippsfaktorer!$B$6:$U$332,16,FALSE)*$G24","v":0},{"$f":"VLOOKUP($F24,Utslippsfaktorer!$B$6:$U$332,17,FALSE)*$G24","v":0},{"$f":"VLOOKUP($F24,Utslippsfaktorer!$B$6:$U$332,18,FALSE)*$G24","v":0},{"$f":"VLOOKUP($F24,Utslippsfaktorer!$B$6:$U$332,19,FALSE)*$G24","v":0},0,0,{"$f":"VLOOKUP($F24,Utslippsfaktorer!$B$6:$U$332,3,FALSE)","v":"-"}]
[null,null,22,"223 Bjelker","(egen data)",null,0,null,null,null,null,null,null,null,null,null,null,null,null,null,null,0,0]
[null,null,22,"224 Avstivende konstruksjoner","(Velg kategori)","(Velg material eller prosesser)",0,{"$f":"VLOOKUP($F26,Utslippsfaktorer!$B$6:$U$332,5,FALSE)","v":"-"},{"$f":"VLOOKUP($F26,Utslippsfaktorer!$B$6:$U$332,6,FALSE)","v":0},{"$f":"IFERROR(VLOOKUP($F26,Utslippsfaktorer!$B$6:$U$332,7,FALSE)*$G26,0)","v":0},{"$f":"VLOOKUP($F26,Utslippsfaktorer!$B$6:$U$332,8,FALSE)*$G26","v":0},{"$f":"VLOOKUP($F26,Utslippsfaktorer!$B$6:$U$332,9,FALSE)*$G26","v":0},{"$f":"VLOOKUP($F26,Utslippsfaktorer!$B$6:$U$332,10,FALSE)*$G26","v":0},{"$f":"VLOOKUP($F26,Utslippsfaktorer!$B$6:$U$332,11,FALSE)*$G26","v":0},{"$f":"VLOOKUP($F26,Utslippsfaktorer!$B$6:$U$332,12,FALSE)*$G26","v":0},{"$f":"VLOOKUP($F26,Utslippsfaktorer!$B$6:$U$332,13,FALSE)*$G26","v":0},{"$f":"VLOOKUP($F26,Utslippsfaktorer!$B$6:$U$332,14,FALSE)*$G26","v":0},{"$f":"VLOOKUP($F26,Utslippsfaktorer!$B$6:$U$332,16,FALSE)*$G26","v":0},{"$f":"VLOOKUP($F26,Utslippsfaktorer!$B$6:$U$332,17,FALSE)*$G26","v":0},{"$f":"VLOOKUP($F26,Utslippsfaktorer!$B$6:$U$332,18,FALSE)*$G26","v":0},{"$f":"VLOOKUP($F26,Utslippsfaktorer!$B$6:$U$332,19,FALSE)*$G26","v":0},0,0,{"$f":"VLOOKUP($F26,Utslippsfaktorer!$B$6:$U$332,3,FALSE)","v":"-"}]
[null,null,22,"224 Avstivende konstruksjoner","(egen data)",null,0,null,null,null,null,null,null,null,null,null,null,null,null,null,null,0,0]
[null,null,22,"225 Brannbeskyttelse av bærende konstruksjoner","(Velg kategori)","(Velg material eller prosesser)",0,{"$f":"VLOOKUP($F28,Utslippsfaktorer!$B$6:$U$332,5,FALSE)","v":"-"},{"$f":"VLOOKUP($F28,Utslippsfaktorer!$B$6:$U$332,6,FALSE)","v":0},{"$f":"IFERROR(VLOOKUP($F28,Utslippsfaktorer!$B$6:$U$332,7,FALSE)*$G28,0)","v":0},{"$f":"VLOOKUP($F28,Utslippsfaktorer!$B$6:$U$332,8,FALSE)*$G28","v":0},{"$f":"VLOOKUP($F28,Utslippsfaktorer!$B$6:$U$332,9,FALSE)*$G28","v":0},{"$f":"VLOOKUP($F28,Utslippsfaktorer!$B$6:$U$332,10,FALSE)*$G28","v":0},{"$f":"VLOOKUP($F28,Utslippsfaktorer!$B$6:$U$332,11,FALSE)*$G28","v":0},{"$f":"VLOOKUP($F28,Utslippsfaktorer!$B$6:$U$332,12,FALSE)*$G28","v":0},{"$f":"VLOOKUP($F28,Utslippsfaktorer!$B$6:$U$332,13,FALSE)*$G28","v":0},{"$f":"VLOOKUP($F28,Utslippsfaktorer!$B$6:$U$332,14,FALSE)*$G28","v":0},{"$f":"VLOOKUP($F28,Utslippsfaktorer!$B$6:$U$332,16,FALSE)*$G28","v":0},{"$f":"VLOOKUP($F28,Utslippsfaktorer!$B$6:$U$332,17,FALSE)*$G28","v":0},{"$f":"VLOOKUP($F28,Utslippsfaktorer!$B$6:$U$332,18,FALSE)*$G28","v":0},{"$f":"VLOOKUP($F28,Utslippsfaktorer!$B$6:$U$332,19,FALSE)*$G28","v":0},0,0,{"$f":"VLOOKUP($F28,Utslippsfaktorer!$B$6:$U$332,3,FALSE)","v":"-"}]
[null,null,22,"225 Brannbeskyttelse av bærende konstruksjoner","(egen data)",null,0,null,null,null,null,null,null,null,null,null,null,null,null,null,null,0,0]
[null,null,22,"226 Kleding og overflate","(Velg kategori)","(Velg material eller prosesser)",0,{"$f":"VLOOKUP($F30,Utslippsfaktorer!$B$6:$U$332,5,FALSE)","v":"-"},{"$f":"VLOOKUP($F30,Utslippsfaktorer!$B$6:$U$332,6,FALSE)","v":0},{"$f":"IFERROR(VLOOKUP($F30,Utslippsfaktorer!$B$6:$U$332,7,FALSE)*$G30,0)","v":0},{"$f":"VLOOKUP($F30,Utslippsfaktorer!$B$6:$U$332,8,FALSE)*$G30","v":0},{"$f":"VLOOKUP($F30,Utslippsfaktorer!$B$6:$U$332,9,FALSE)*$G30","v":0},{"$f":"VLOOKUP($F30,Utslippsfaktorer!$B$6:$U$332,10,FALSE)*$G30","v":0},{"$f":"VLOOKUP($F30,Utslippsfaktorer!$B$6:$U$332,11,FALSE)*$G30","v":0},{"$f":"VLOOKUP($F30,Utslippsfaktorer!$B$6:$U$332,12,FALSE)*$G30","v":0},{"$f":"VLOOKUP($F30,Utslippsfaktorer!$B$6:$U$332,13,FALSE)*$G30","v":0},{"$f":"VLOOKUP($F30,Utslippsfaktorer!$B$6:$U$332,14,FALSE)*$G30","v":0},{"$f":"VLOOKUP($F30,Utslippsfaktorer!$B$6:$U$332,16,FALSE)*$G30","v":0},{"$f":"VLOOKUP($F30,Utslippsfaktorer!$B$6:$U$332,17,FALSE)*$G30","v":0},{"$f":"VLOOKUP($F30,Utslippsfaktorer!$B$6:$U$332,18,FALSE)*$G30","v":0},{"$f":"VLOOKUP($F30,Utslippsfaktorer!$B$6:$U$332,19,FALSE)*$G30","v":0},0,0,{"$f":"VLOOKUP($F30,Utslippsfaktorer!$B$6:$U$332,3,FALSE)","v":"-"}]
[null,null,22,"226 Kleding og overflate","(egen data)",null,0,null,null,null,null,null,null,null,null,null,null,null,null,null,null,0,0]
[null,null,22,"228 Utstyr og komplettering","(Velg kategori)","(Velg material eller prosesser)",0,{"$f":"VLOOKUP($F32,Utslippsfaktorer!$B$6:$U$332,5,FALSE)","v":"-"},{"$f":"VLOOKUP($F32,Utslippsfaktorer!$B$6:$U$332,6,FALSE)","v":0},{"$f":"IFERROR(VLOOKUP($F32,Utslippsfaktorer!$B$6:$U$332,7,FALSE)*$G32,0)","v":0},{"$f":"VLOOKUP($F32,Utslippsfaktorer!$B$6:$U$332,8,FALSE)*$G32","v":0},{"$f":"VLOOKUP($F32,Utslippsfaktorer!$B$6:$U$332,9,FALSE)*$G32","v":0},{"$f":"VLOOKUP($F32,Utslippsfaktorer!$B$6:$U$332,10,FALSE)*$G32","v":0},{"$f":"VLOOKUP($F32,Utslippsfaktorer!$B$6:$U$332,11,FALSE)*$G32","v":0},{"$f":"VLOOKUP($F32,Utslippsfaktorer!$B$6:$U$332,12,FALSE)*$G32","v":0},{"$f":"VLOOKUP($F32,Utslippsfaktorer!$B$6:$U$332,13,FALSE)*$G32","v":0},{"$f":"VLOOKUP($F32,Utslippsfaktorer!$B$6:$U$332,14,FALSE)*$G32","v":0},{"$f":"VLOOKUP($F32,Utslippsfaktorer!$B$6:$U$332,16,FALSE)*$G32","v":0},{"$f":"VLOOKUP($F32,Utslippsfaktorer!$B$6:$U$332,17,FALSE)*$G32","v":0},{"$f":"VLOOKUP($F32,Utslippsfaktorer!$B$6:$U$332,18,FALSE)*$G32","v":0},{"$f":"VLOOKUP($F32,Utslippsfaktorer!$B$6:$U$332,19,FALSE)*$G32","v":0},0,0,{"$f":"VLOOKUP($F32,Utslippsfaktorer!$B$6:$U$332,3,FALSE)","v":"-"}]
[null,null,22,"228 Utstyr og komplettering","(egen data)",null,0,null,null,null,null,null,null,null,null,null,null,null,null,null,null,0,0]
[null,null,22,"229 Andre deler av bærende konstruksjoner","(Velg kategori)","(Velg material eller prosesser)",0,{"$f":"VLOOKUP($F34,Utslippsfaktorer!$B$6:$U$332,5,FALSE)","v":"-"},{"$f":"VLOOKUP($F34,Utslippsfaktorer!$B$6:$U$332,6,FALSE)","v":0},{"$f":"IFERROR(VLOOKUP($F34,Utslippsfaktorer!$B$6:$U$332,7,FALSE)*$G34,0)","v":0},{"$f":"VLOOKUP($F34,Utslippsfaktorer!$B$6:$U$332,8,FALSE)*$G34","v":0},{"$f":"VLOOKUP($F34,Utslippsfaktorer!$B$6:$U$332,9,FALSE)*$G34","v":0},{"$f":"VLOOKUP($F34,Utslippsfaktorer!$B$6:$U$332,10,FALSE)*$G34","v":0},{"$f":"VLOOKUP($F34,Utslippsfaktorer!$B$6:$U$332,11,FALSE)*$G34","v":0},{"$f":"VLOOKUP($F34,Utslippsfaktorer!$B$6:$U$332,12,FALSE)*$G34","v":0},{"$f":"VLOOKUP($F34,Utslippsfaktorer!$B$6:$U$332,13,FALSE)*$G34","v":0},{"$f":"VLOOKUP($F34,Utslippsfaktorer!$B$6:$U$332,14,FALSE)*$G34","v":0},{"$f":"VLOOKUP($F34,Utslippsfaktorer!$B$6:$U$332,16,FALSE)*$G34","v":0},{"$f":"VLOOKUP($F34,Utslippsfaktorer!$B$6:$U$332,17,FALSE)*$G34","v":0},{"$f":"VLOOKUP($F34,Utslippsfaktorer!$B$6:$U$332,18,FALSE)*$G34","v":0},{"$f":"VLOOKUP($F34,Utslippsfaktorer!$B$6:$U$332,19,FALSE)*$G34","v":0},0,0,{"$f":"VLOOKUP($F34,Utslippsfaktorer!$B$6:$U$332,3,FALSE)","v":"-"}]
[null,null,22,"229 Andre deler av bærende konstruksjoner","(egen data)",null,0,null,null,null,null,null,null,null,null,null,null,null,null,null,null,0,0]
[]
["seksjon3",null,23,"Yttervegger",null,null,null,null,null,{"$f":"IFERROR((SUM(J38:J60)),\"Not assessed\")","v":35921},21.446099999999998,0,0,0,0,0,0,0,0,0,0,35942.446100000001,null,{"$f":"IFERROR(V37/$U$2,0)","v":0.36391464375788701}]
[null,null,23,23,"(egen data)",null,0,null,null,null,null,null,null,null,null,null,null,null,null,null,null,{"$f":"SUM(J38:U38)","v":0},{"$f":"IFERROR(V38/$V$37,0)","v":0}]
[null,null,23,"231 Bærende ytterveggen","Bygningsplater","Bygningsplater - Gipsplater (12-15 mm)",50,{"$f":"VLOOKUP($F39,Utslippsfaktorer!$B$6:$U$332,5,FALSE)","v":"m2"},{"$f":"VLOOKUP($F39,Utslippsfaktorer!$B$6:$U$332,6,FALSE)","v":40},{"$f":"IFERROR(VLOOKUP($F39,Utslippsfaktorer!$B$6:$U$332,7,FALSE)*$G39,0)","v":141},{"$f":"VLOOKUP($F39,Utslippsfaktorer!$B$6:$U$332,8,FALSE)*$G39","v":0.12689999999999999},{"$f":"VLOOKUP($F39,Utslippsfaktorer!$B$6:$U$332,9,FALSE)*$G39","v":0},{"$f":"VLOOKUP($F39,Utslippsfaktorer!$B$6:$U$332,10,FALSE)*$G39","v":0},{"$f":"VLOOKUP($F39,Utslippsfaktorer!$B$6:$U$332,11,FALSE)*$G39","v":0},{"$f":"VLOOKUP($F39,Utslippsfaktorer!$B$6:$U$332,12,FALSE)*$G39","v":0},{"$f":"VLOOKUP($F39,Utslippsfaktorer!$B$6:$U$332,13,FALSE)*$G39","v":0},{"$f":"VLOOKUP($F39,Utslippsfaktorer!$B$6:$U$332,14,FALSE)*$G39","v":0},{"$f":"VLOOKUP($F39,Utslippsfaktorer!$B$6:$U$332,16,FALSE)*$G39","v":0},{"$f":"VLOOKUP($F39,Utslippsfaktorer!$B$6:$U$332,17,FALSE)*$G39","v":0},{"$f":"VLOOKUP($F39,Utslippsfaktorer!$B$6:$U$332,18,FALSE)*$G39","v":0},{"$f":"VLOOKUP($F39,Utslippsfaktorer!$B$6:$U$332,19,FALSE)*$G39","v":0},141.12690000000001,{"$f":"IFERROR(V39/$V$37,0)","v":3.9264689889873692E-3},{"$f":"VLOOKUP($F39,Utslippsfaktorer!$B$6:$U$332,3,FALSE)","v":"Grønn materialguide"}]
[null,null,23,"231 Bærende ytterveggen","Konstruktive materialer ","Konstruktive materialer - Betong (lavkarbon A, B30)",100,{"$f":"VLOOKUP($F40,Utslippsfaktorer!$B$6:$U$332,5,FALSE)","v":"m3"},{"$f":"VLOOKUP($F40,Utslippsfaktorer!$B$6:$U$332,6,FALSE)","v":60},{"$f":"IFERROR(VLOOKUP($F40,Utslippsfaktorer!$B$6:$U$332,7,FALSE)*$G40,0)","v":20000},{"$f":"VLOOKUP($F40,Utslippsfaktorer!$B$6:$U$332,8,FALSE)*$G40","v":20.303999999999998},{"$f":"VLOOKUP($F40,Utslippsfaktorer!$B$6:$U$332,9,FALSE)*$G40","v":0},{"$f":"VLOOKUP($F40,Utslippsfaktorer!$B$6:$U$332,10,FALSE)*$G40","v":0},{"$f":"VLOOKUP($F40,Utslippsfaktorer!$B$6:$U$332,11,FALSE)*$G40","v":0},{"$f":"VLOOKUP($F40,Utslippsfaktorer!$B$6:$U$332,12,FALSE)*$G40","v":0},{"$f":"VLOOKUP($F40,Utslippsfaktorer!$B$6:$U$332,13,FALSE)*$G40","v":0},{"$f":"VLOOKUP($F40,Utslippsfaktorer!$B$6:$U$332,14,FALSE)*$G40","v":0},{"$f":"VLOOKUP($F40,Utslippsfaktorer!$B$6:$U$332,16,FALSE)*$G40","v":0},{"$f":"VLOOKUP($F40,Utslippsfaktorer!$B$6:$U$332,17,FALSE)*$G40","v":0},{"$f":"VLOOKUP($F40,Utslippsfaktorer!$B$6:$U$332,18,FALSE)*$G40","v":0},{"$f":"VLOOKUP($F40,Utslippsfaktorer!$B$6:$U$332,19,FALSE)*$G40","v":0},{"$f":"SUM(J40:U40)","v":20020.304},0.55701005836661743]
[null,null,23,"231 Bærende ytterveggen","Murstein","Fasadesystem med resirkulert murstein",200,{"$f":"VLOOKUP($F41,Utslippsfaktorer!$B$6:$U$332,5,FALSE)","v":"m2"},{"$f":"VLOOKUP($F41,Utslippsfaktorer!$B$6:$U$332,6,FALSE)","v":60},{"$f":"IFERROR(VLOOKUP($F41,Utslippsfaktorer!$B$6:$U$332,7,FALSE)*$G41,0)","v":11100},{"$f":"VLOOKUP($F41,Utslippsfaktorer!$B$6:$U$332,8,FALSE)*$G41","v":0.50759999999999994},{"$f":"VLOOKUP($F41,Utslippsfaktorer!$B$6:$U$332,9,FALSE)*$G41","v":0},{"$f":"VLOOKUP($F41,Utslippsfaktorer!$B$6:$U$332,10,FALSE)*$G41","v":0},{"$f":"VLOOKUP($F41,Utslippsfaktorer!$B$6:$U$332,11,FALSE)*$G41","v":0},{"$f":"VLOOKUP($F41,Utslippsfaktorer!$B$6:$U$332,12,FALSE)*$G41","v":0},{"$f":"VLOOKUP($F41,Utslippsfaktorer!$B$6:$U$332,13,FALSE)*$G41","v":0},{"$f":"VLOOKUP($F41,Utslippsfaktorer!$B$6:$U$332,14,FALSE)*$G41","v":0},{"$f":"VLOOKUP($F41,Utslippsfaktorer!$B$6:$U$332,16,FALSE)*$G41","v":0},{"$f":"VLOOKUP($F41,Utslippsfaktorer!$B$6:$U$332,17,FALSE)*$G41","v":0},{"$f":"VLOOKUP($F41,Utslippsfaktorer!$B$6:$U$332,18,FALSE)*$G41","v":0},{"$f":"VLOOKUP($F41,Utslippsfaktorer!$B$6:$U$332,19,FALSE)*$G41","v":0},11100.507600000001,0.30884118373902214,{"$f":"VLOOKUP($F41,Utslippsfaktorer!$B$6:$U$332,3,FALSE)","v":"NEPD nr.: 1675-673-EN (2018)"}]
[null,null,23,"231 Bærende ytterveggen","Isolasjon","Isolasjon - Glassull",200,{"$f":"VLOOKUP($F42,Utslippsfaktorer!$B$6:$U$332,5,FALSE)","v":"m3"},{"$f":"VLOOKUP($F42,Utslippsfaktorer!$B$6:$U$332,6,FALSE)","v":20},{"$f":"IFERROR(VLOOKUP($F42,Utslippsfaktorer!$B$6:$U$332,7,FALSE)*$G42,0)","v":4680},{"$f":"VLOOKUP($F42,Utslippsfaktorer!$B$6:$U$332,8,FALSE)*$G42","v":0.50759999999999994},{"$f":"VLOOKUP($F42,Utslippsfaktorer!$B$6:$U$332,9,FALSE)*$G42","v":0},{"$f":"VLOOKUP($F42,Utslippsfaktorer!$B$6:$U$332,10,FALSE)*$G42","v":0},{"$f":"VLOOKUP($F42,Utslippsfaktorer!$B$6:$U$332,11,FALSE)*$G42","v":0},{"$f":"VLOOKUP($F42,Utslippsfaktorer!$B$6:$U$332,12,FALSE)*$G42","v":0},{"$f":"VLOOKUP($F42,Utslippsfaktorer!$B$6:$U$332,13,FALSE)*$G42","v":0},{"$f":"VLOOKUP($F42,Utslippsfaktorer!$B$6:$U$332,14,FALSE)*$G42","v":0},{"$f":"VLOOKUP($F42,Utslippsfaktorer!$B$6:$U$332,16,FALSE)*$G42","v":0},{"$f":"VLOOKUP($F42,Utslippsfaktorer!$B$6:$U$332,17,FALSE)*$G42","v":0},{"$f":"VLOOKUP($F42,Utslippsfaktorer!$B$6:$U$332,18,FALSE)*$G42","v":0},{"$f":"VLOOKUP($F42,Utslippsfaktorer!$B$6:$U$332,19,FALSE)*$G42","v":0},4680.5075999999999,0.13022228890537307,{"$f":"VLOOKUP($F42,Utslippsfaktorer!$B$6:$U$332,3,FALSE)","v":"Grønn materialguide"}]
[null,null,23,"231 Bærende ytterveggen","(egen data)",null,0,null,null,null,null,null,null,null,null,null,null,null,null,null,null,0,0]
[null,null,23,"232 Ikke-bærende ytterveggen","(Velg kategori)","(Velg material eller prosesser)",0,{"$f":"VLOOKUP($F44,Utslippsfaktorer!$B$6:$U$332,5,FALSE)","v":"-"},{"$f":"VLOOKUP($F44,Utslippsfaktorer!$B$6:$U$332,6,FALSE)","v":0},{"$f":"IFERROR(VLOOKUP($F44,Utslippsfaktorer!$B$6:$U$332,7,FALSE)*$G44,0)","v":0},{"$f":"VLOOKUP($F44,Utslippsfaktorer!$B$6:$U$332,8,FALSE)*$G44","v":0},{"$f":"VLOOKUP($F44,Utslippsfaktorer!$B$6:$U$332,9,FALSE)*$G44","v":0},{"$f":"VLOOKUP($F44,Utslippsfaktorer!$B$6:$U$332,10,FALSE)*$G44","v":0},{"$f":"VLOOKUP($F44,Utslippsfaktorer!$B$6:$U$332,11,FALSE)*$G44","v":0},{"$f":"VLOOKUP($F44,Utslippsfaktorer!$B$6:$U$332,12,FALSE)*$G44","v":0},{"$f":"VLOOKUP($F44,Utslippsfaktorer!$B$6:$U$332,13,FALSE)*$G44","v":0},{"$f":"VLOOKUP($F44,Utslippsfaktorer!$B$6:$U$332,14,FALSE)*$G44","v":0},{"$f":"VLOOKUP($F44,Utslippsfaktorer!$B$6:$U$332,16,FALSE)*$G44","v":0},{"$f":"VLOOKUP($F44,Utslippsfaktorer!$B$6:$U$332,17,FALSE)*$G44","v":0},{"$f":"VLOOKUP($F44,Utslippsfaktorer!$B$6:$U$332,18,FALSE)*$G44","v":0},{"$f":"VLOOKUP($F44,Utslippsfaktorer!$B$6:$U$332,19,FALSE)*$G44","v":0},0,0,{"$f":"VLOOKUP($F44,Utslippsfaktorer!$B$6:$U$332,3,FALSE)","v":"-"}]
[null,null,23,"232 Ikke-bærende ytterveggen","(Velg kategori)","(Velg material eller prosesser)",0,{"$f":"VLOOKUP($F45,Utslippsfaktorer!$B$6:$U$332,5,FALSE)","v":"-"},{"$f":"VLOOKUP($F45,Utslippsfaktorer!$B$6:$U$332,6,FALSE)","v":0},{"$f":"IFERROR(VLOOKUP($F45,Utslippsfaktorer!$B$6:$U$332,7,FALSE)*$G45,0)","v":0},{"$f":"VLOOKUP($F45,Utslippsfaktorer!$B$6:$U$332,8,FALSE)*$G45","v":0},{"$f":"VLOOKUP($F45,Utslippsfaktorer!$B$6:$U$332,9,FALSE)*$G45","v":0},{"$f":"VLOOKUP($F45,Utslippsfaktorer!$B$6:$U$332,10,FALSE)*$G45","v":0},{"$f":"VLOOKUP($F45,Utslippsfaktorer!$B$6:$U$332,11,FALSE)*$G45","v":0},{"$f":"VLOOKUP($F45,Utslippsfaktorer!$B$6:$U$332,12,FALSE)*$G45","v":0},{"$f":"VLOOKUP($F45,Utslippsfaktorer!$B$6:$U$332,13,FALSE)*$G45","v":0},{"$f":"VLOOKUP($F45,Utslippsfaktorer!$B$6:$U$332,14,FALSE)*$G45","v":0},{"$f":"VLOOKUP($F45,Utslippsfaktorer!$B$6:$U$332,16,FALSE)*$G45","v":0},{"$f":"VLOOKUP($F45,Utslippsfaktorer!$B$6:$U$332,17,FALSE)*$G45","v":0},{"$f":"VLOOKUP($F45,Utslippsfaktorer!$B$6:$U$332,18,FALSE)*$G45","v":0},{"$f":"VLOOKUP($F45,Utslippsfaktorer!$B$6:$U$332,19,FALSE)*$G45","v":0},{"$f":"SUM(J45:U45)","v":0},0,{"$f":"VLOOKUP($F45,Utslippsfaktorer!$B$6:$U$332,3,FALSE)","v":"-"}]
[null,null,23,"232 Ikke-bærende ytterveggen","(egen data)",null,0,null,null,null,null,null,null,null,null,null,null,null,null,null,null,0,0]
[null,null,23,"233 Glassfasader","(Velg kategori)","(Velg material eller prosesser)",0,{"$f":"VLOOKUP($F47,Utslippsfaktorer!$B$6:$U$332,5,FALSE)","v":"-"},{"$f":"VLOOKUP($F47,Utslippsfaktorer!$B$6:$U$332,6,FALSE)","v":0},{"$f":"IFERROR(VLOOKUP($F47,Utslippsfaktorer!$B$6:$U$332,7,FALSE)*$G47,0)","v":0},{"$f":"VLOOKUP($F47,Utslippsfaktorer!$B$6:$U$332,8,FALSE)*$G47","v":0},{"$f":"VLOOKUP($F47,Utslippsfaktorer!$B$6:$U$332,9,FALSE)*$G47","v":0},{"$f":"VLOOKUP($F47,Utslippsfaktorer!$B$6:$U$332,10,FALSE)*$G47","v":0},{"$f":"VLOOKUP($F47,Utslippsfaktorer!$B$6:$U$332,11,FALSE)*$G47","v":0},{"$f":"VLOOKUP($F47,Utslippsfaktorer!$B$6:$U$332,12,FALSE)*$G47","v":0},{"$f":"VLOOKUP($F47,Utslippsfaktorer!$B$6:$U$332,13,FALSE)*$G47","v":0},{"$f":"VLOOKUP($F47,Utslippsfaktorer!$B$6:$U$332,14,FALSE)*$G47","v":0},{"$f":"VLOOKUP($F47,Utslippsfaktorer!$B$6:$U$332,16,FALSE)*$G47","v":0},{"$f":"VLOOKUP($F47,Utslippsfaktorer!$B$6:$U$332,17,FALSE)*$G47","v":0},{"$f":"VLOOKUP($F47,Utslippsfaktorer!$B$6:$U$332,18,FALSE)*$G47","v":0},{"$f":"VLOOKUP($F47,Utslippsfaktorer!$B$6:$U$332,19,FALSE)*$G47","v":0},0,0,{"$f":"VLOOKUP($F47,Utslippsfaktorer!$B$6:$U$332,3,FALSE)","v":"-"}]
[null,null,23,"233 Glassfasader","(egen data)",null,0,null,null,null,null,null,null,null,null,null,null,null,null,null,null,0,0]
[null,null,23,"234 Vinduer, dører, porter","(Velg kategori)","(Velg material eller prosesser)",0,{"$f":"VLOOKUP($F49,Utslippsfaktorer!$B$6:$U$332,5,FALSE)","v":"-"},{"$f":"VLOOKUP($F49,Utslippsfaktorer!$B$6:$U$332,6,FALSE)","v":0},{"$f":"IFERROR(VLOOKUP($F49,Utslippsfaktorer!$B$6:$U$332,7,FALSE)*$G49,0)","v":0},{"$f":"VLOOKUP($F49,Utslippsfaktorer!$B$6:$U$332,8,FALSE)*$G49","v":0},{"$f":"VLOOKUP($F49,Utslippsfaktorer!$B$6:$U$332,9,FALSE)*$G49","v":0},{"$f":"VLOOKUP($F49,Utslippsfaktorer!$B$6:$U$332,10,FALSE)*$G49","v":0},{"$f":"VLOOKUP($F49,Utslippsfaktorer!$B$6:$U$332,11,FALSE)*$G49","v":0},{"$f":"VLOOKUP($F49,Utslippsfaktorer!$B$6:$U$332,12,FALSE)*$G49","v":0},{"$f":"VLOOKUP($F49,Utslippsfaktorer!$B$6:$U$332,13,FALSE)*$G49","v":0},{"$f":"VLOOKUP($F49,Utslippsfaktorer!$B$6:$U$332,14,FALSE)*$G49","v":0},{"$f":"VLOOKUP($F49,Utslippsfaktorer!$B$6:$U$332,16,FALSE)*$G49","v":0},{"$f":"VLOOKUP($F49,Utslippsfaktorer!$B$6:$U$332,17,FALSE)*$G49","v":0},{"$f":"VLOOKUP($F49,Utslippsfaktorer!$B$6:$U$332,18,FALSE)*$G49","v":0},{"$f":"VLOOKUP($F49,Utslippsfaktorer!$B$6:$U$332,19,FALSE)*$G49","v":0},0,0,{"$f":"VLOOKUP($F49,Utslippsfaktorer!$B$6:$U$332,3,FALSE)","v":"-"}]
[null,null,23,"234 Vinduer, dører, porter","(egen data)",null,0,null,null,null,null,null,null,null,null,null,null,null,null,null,null,0,0]
[null,null,23,"235 Utvending kleding og overflate","(Velg kategori)","(Velg material eller prosesser)",0,{"$f":"VLOOKUP($F51,Utslippsfaktorer!$B$6:$U$332,5,FALSE)","v":"-"},{"$f":"VLOOKUP($F51,Utslippsfaktorer!$B$6:$U$332,6,FALSE)","v":0},{"$f":"IFERROR(VLOOKUP($F51,Utslippsfaktorer!$B$6:$U$332,7,FALSE)*$G51,0)","v":0},{"$f":"VLOOKUP($F51,Utslippsfaktorer!$B$6:$U$332,8,FALSE)*$G51","v":0},{"$f":"VLOOKUP($F51,Utslippsfaktorer!$B$6:$U$332,9,FALSE)*$G51","v":0},{"$f":"VLOOKUP($F51,Utslippsfaktorer!$B$6:$U$332,10,FALSE)*$G51","v":0},{"$f":"VLOOKUP($F51,Utslippsfaktorer!$B$6:$U$332,11,FALSE)*$G51","v":0},{"$f":"VLOOKUP($F51,Utslippsfaktorer!$B$6:$U$332,12,FALSE)*$G51","v":0},{"$f":"VLOOKUP($F51,Utslippsfaktorer!$B$6:$U$332,13,FALSE)*$G51","v":0},{"$f":"VLOOKUP($F51,Utslippsfaktorer!$B$6:$U$332,14,FALSE)*$G51","v":0},{"$f":"VLOOKUP($F51,Utslippsfaktorer!$B$6:$U$332,16,FALSE)*$G51","v":0},{"$f":"VLOOKUP($F51,Utslippsfaktorer!$B$6:$U$332,17,FALSE)*$G51","v":0},{"$f":"VLOOKUP($F51,Utslippsfaktorer!$B$6:$U$332,18,FALSE)*$G51","v":0},{"$f":"VLOOKUP($F51,Utslippsfaktorer!$B$6:$U$332,19,FALSE)*$G51","v":0},0,0,{"$f":"VLOOKUP($F51,Utslippsfaktorer!$B$6:$U$332,3,FALSE)","v":"-"}]
[null,null,23,"235 Utvending kleding og overflate","(egen data)",null,0,null,null,null,null,null,null,null,null,null,null,null,null,null,null,0,0]
[null,null,23,"236 Innvending overflate","(Velg kategori)","(Velg material eller prosesser)",0,{"$f":"VLOOKUP($F53,Utslippsfaktorer!$B$6:$U$332,5,FALSE)","v":"-"},{"$f":"VLOOKUP($F53,Utslippsfaktorer!$B$6:$U$332,6,FALSE)","v":0},{"$f":"IFERROR(VLOOKUP($F53,Utslippsfaktorer!$B$6:$U$332,7,FALSE)*$G53,0)","v":0},{"$f":"VLOOKUP($F53,Utslippsfaktorer!$B$6:$U$332,8,FALSE)*$G53","v":0},{"$f":"VLOOKUP($F53,Utslippsfaktorer!$B$6:$U$332,9,FALSE)*$G53","v":0},{"$f":"VLOOKUP($F53,Utslippsfaktorer!$B$6:$U$332,10,FALSE)*$G53","v":0},{"$f":"VLOOKUP($F53,Utslippsfaktorer!$B$6:$U$332,11,FALSE)*$G53","v":0},{"$f":"VLOOKUP($F53,Utslippsfaktorer!$B$6:$U$332,12,FALSE)*$G53","v":0},{"$f":"VLOOKUP($F53,Utslippsfaktorer!$B$6:$U$332,13,FALSE)*$G53","v":0},{"$f":"VLOOKUP($F53,Utslippsfaktorer!$B$6:$U$332,14,FALSE)*$G53","v":0},{"$f":"VLOOKUP($F53,Utslippsfaktorer!$B$6:$U$332,16,FALSE)*$G53","v":0},{"$f":"VLOOKUP($F53,Utslippsfaktorer!$B$6:$U$332,17,FALSE)*$G53","v":0},{"$f":"VLOOKUP($F53,Utslippsfaktorer!$B$6:$U$332,18,FALSE)*$G53","v":0},{"$f":"VLOOKUP($F53,Utslippsfaktorer!$B$6:$U$332,19,FALSE)*$G53","v":0},0,0,{"$f":"VLOOKUP($F53,Utslippsfaktorer!$B$6:$U$332,3,FALSE)","v":"-"}]
[null,null,23,"236 Innvending overflate","(egen data)",null,0,null,null,null,null,null,null,null,null,null,null,null,null,null,null,0,0]
[null,null,23,"237 Solavskjerming","(Velg kategori)","(Velg material eller prosesser)",0,{"$f":"VLOOKUP($F55,Utslippsfaktorer!$B$6:$U$332,5,FALSE)","v":"-"},{"$f":"VLOOKUP($F55,Utslippsfaktorer!$B$6:$U$332,6,FALSE)","v":0},{"$f":"IFERROR(VLOOKUP($F55,Utslippsfaktorer!$B$6:$U$332,7,FALSE)*$G55,0)","v":0},{"$f":"VLOOKUP($F55,Utslippsfaktorer!$B$6:$U$332,8,FALSE)*$G55","v":0},{"$f":"VLOOKUP($F55,Utslippsfaktorer!$B$6:$U$332,9,FALSE)*$G55","v":0},{"$f":"VLOOKUP($F55,Utslippsfaktorer!$B$6:$U$332,10,FALSE)*$G55","v":0},{"$f":"VLOOKUP($F55,Utslippsfaktorer!$B$6:$U$332,11,FALSE)*$G55","v":0},{"$f":"VLOOKUP($F55,Utslippsfaktorer!$B$6:$U$332,12,FALSE)*$G55","v":0},{"$f":"VLOOKUP($F55,Utslippsfaktorer!$B$6:$U$332,13,FALSE)*$G55","v":0},{"$f":"VLOOKUP($F55,Utslippsfaktorer!$B$6:$U$332,14,FALSE)*$G55","v":0},{"$f":"VLOOKUP($F55,Utslippsfaktorer!$B$6:$U$332,16,FALSE)*$G55","v":0},{"$f":"VLOOKUP($F55,Utslippsfaktorer!$B$6:$U$332,17,FALSE)*$G55","v":0},{"$f":"VLOOKUP($F55,Utslippsfaktorer!$B$6:$U$332,18,FALSE)*$G55","v":0},{"$f":"VLOOKUP($F55,Utslippsfaktorer!$B$6:$U$332,19,FALSE)*$G55","v":0},0,0,{"$f":"VLOOKUP($F55,Utslippsfaktorer!$B$6:$U$332,3,FALSE)","v":"-"}]
[null,null,23,"237 Solavskjerming","(egen data)",null,0,null,null,null,null,null,null,null,null,null,null,null,null,null,null,0,0]
[null,null,23,"238 Utstyr og komplettering for yttervegger","(Velg kategori)","(Velg material eller prosesser)",0,{"$f":"VLOOKUP($F57,Utslippsfaktorer!$B$6:$U$332,5,FALSE)","v":"-"},{"$f":"VLOOKUP($F57,Utslippsfaktorer!$B$6:$U$332,6,FALSE)","v":0},{"$f":"IFERROR(VLOOKUP($F57,Utslippsfaktorer!$B$6:$U$332,7,FALSE)*$G57,0)","v":0},{"$f":"VLOOKUP($F57,Utslippsfaktorer!$B$6:$U$332,8,FALSE)*$G57","v":0},{"$f":"VLOOKUP($F57,Utslippsfaktorer!$B$6:$U$332,9,FALSE)*$G57","v":0},{"$f":"VLOOKUP($F57,Utslippsfaktorer!$B$6:$U$332,10,FALSE)*$G57","v":0},{"$f":"VLOOKUP($F57,Utslippsfaktorer!$B$6:$U$332,11,FALSE)*$G57","v":0},{"$f":"VLOOKUP($F57,Utslippsfaktorer!$B$6:$U$332,12,FALSE)*$G57","v":0},{"$f":"VLOOKUP($F57,Utslippsfaktorer!$B$6:$U$332,13,FALSE)*$G57","v":0},{"$f":"VLOOKUP($F57,Utslippsfaktorer!$B$6:$U$332,14,FALSE)*$G57","v":0},{"$f":"VLOOKUP($F57,Utslippsfaktorer!$B$6:$U$332,16,FALSE)*$G57","v":0},{"$f":"VLOOKUP($F57,Utslippsfaktorer!$B$6:$U$332,17,FALSE)*$G57","v":0},{"$f":"VLOOKUP($F57,Utslippsfaktorer!$B$6:$U$332,18,FALSE)*$G57","v":0},{"$f":"VLOOKUP($F57,Utslippsfaktorer!$B$6:$U$332,19,FALSE)*$G57","v":0},0,0,{"$f":"VLOOKUP($F57,Utslippsfaktorer!$B$6:$U$332,3,FALSE)","v":"-"}]
[null,null,23,"238 Utstyr og komplettering for yttervegger","(egen data)",null,0,null,null,null,null,null,null,null,null,null,null,null,null,null,null,0,0]
[null,null,23,"239 Ander deler av yttervegg","(Velg kategori)","(Velg material eller prosesser)",0,{"$f":"VLOOKUP($F59,Utslippsfaktorer!$B$6:$U$332,5,FALSE)","v":"-"},{"$f":"VLOOKUP($F59,Utslippsfaktorer!$B$6:$U$332,6,FALSE)","v":0},{"$f":"IFERROR(VLOOKUP($F59,Utslippsfaktorer!$B$6:$U$332,7,FALSE)*$G59,0)","v":0},{"$f":"VLOOKUP($F59,Utslippsfaktorer!$B$6:$U$332,8,FALSE)*$G59","v":0},{"$f":"VLOOKUP($F59,Utslippsfaktorer!$B$6:$U$332,9,FALSE)*$G59","v":0},{"$f":"VLOOKUP($F59,Utslippsfaktorer!$B$6:$U$332,10,FALSE)*$G59","v":0},{"$f":"VLOOKUP($F59,Utslippsfaktorer!$B$6:$U$332,11,FALSE)*$G59","v":0},{"$f":"VLOOKUP($F59,Utslippsfaktorer!$B$6:$U$332,12,FALSE)*$G59","v":0},{"$f":"VLOOKUP($F59,Utslippsfaktorer!$B$6:$U$332,13,FALSE)*$G59","v":0},{"$f":"VLOOKUP($F59,Utslippsfaktorer!$B$6:$U$332,14,FALSE)*$G59","v":0},{"$f":"VLOOKUP($F59,Utslippsfaktorer!$B$6:$U$332,16,FALSE)*$G59","v":0},{"$f":"VLOOKUP($F59,Utslippsfaktorer!$B$6:$U$332,17,FALSE)*$G59","v":0},{"$f":"VLOOKUP($F59,Utslippsfaktorer!$B$6:$U$332,18,FALSE)*$G59","v":0},{"$f":"VLOOKUP($F59,Utslippsfaktorer!$B$6:$U$332,19,FALSE)*$G59","v":0},0,0,{"$f":"VLOOKUP($F59,Utslippsfaktorer!$B$6:$U$332,3,FALSE)","v":"-"}]
[null,null,23,"239 Ander deler av yttervegg","(egen data)",null,0,null,null,null,null,null,null,null,null,null,null,null,null,null,null,0,0]
[]
["seksjon4",null,24,"Innervegger",null,null,null,null,null,{"$f":"IFERROR((SUM(J63:J82)),\"Not assessed\")","v":27400},8.4599999999999991,0,0,0,0,0,0,0,0,0,0,27408.46,null,{"$f":"IFERROR(V62/$U$2,0)","v":0.27750865728786045}]
[null,null,24,24,"(egen data)",null,0,null,null,null,null,null,null,null,null,null,null,null,null,null,null,{"$f":"SUM(J63:U63)","v":0},{"$f":"IFERROR(V63/$V$62,0)","v":0}]
[null,null,24,"241 Bærende innervegger","(Velg kategori)","(Velg material eller prosesser)",0,{"$f":"VLOOKUP($F64,Utslippsfaktorer!$B$6:$U$332,5,FALSE)","v":"-"},{"$f":"VLOOKUP($F64,Utslippsfaktorer!$B$6:$U$332,6,FALSE)","v":0},{"$f":"IFERROR(VLOOKUP($F64,Utslippsfaktorer!$B$6:$U$332,7,FALSE)*$G64,0)","v":0},{"$f":"VLOOKUP($F64,Utslippsfaktorer!$B$6:$U$332,8,FALSE)*$G64","v":0},{"$f":"VLOOKUP($F64,Utslippsfaktorer!$B$6:$U$332,9,FALSE)*$G64","v":0},{"$f":"VLOOKUP($F64,Utslippsfaktorer!$B$6:$U$332,10,FALSE)*$G64","v":0},{"$f":"VLOOKUP($F64,Utslippsfaktorer!$B$6:$U$332,11,FALSE)*$G64","v":0},{"$f":"VLOOKUP($F64,Utslippsfaktorer!$B$6:$U$332,12,FALSE)*$G64","v":0},{"$f":"VLOOKUP($F64,Utslippsfaktorer!$B$6:$U$332,13,FALSE)*$G64","v":0},{"$f":"VLOOKUP($F64,Utslippsfaktorer!$B$6:$U$332,14,FALSE)*$G64","v":0},{"$f":"VLOOKUP($F64,Utslippsfaktorer!$B$6:$U$332,16,FALSE)*$G64","v":0},{"$f":"VLOOKUP($F64,Utslippsfaktorer!$B$6:$U$332,17,FALSE)*$G64","v":0},{"$f":"VLOOKUP($F64,Utslippsfaktorer!$B$6:$U$332,18,FALSE)*$G64","v":0},{"$f":"VLOOKUP($F64,Utslippsfaktorer!$B$6:$U$332,19,FALSE)*$G64","v":0},0,{"$f":"IFERROR(V64/$V$62,0)","v":0},{"$f":"VLOOKUP($F64,Utslippsfaktorer!$B$6:$U$332,3,FALSE)","v":"-"}]
[null,null,24,"241 Bærende innervegger","(egen data)",null,0,null,null,null,null,null,null,null,null,null,null,null,null,null,null,0,0]
[null,null,24,"242 Ikke-bærende innervegger","Konstruktive materialer ","Konstruktive materialer - Massivtre",200,{"$f":"VLOOKUP($F66,Utslippsfaktorer!$B$6:$U$332,5,FALSE)","v":"m3"},{"$f":"VLOOKUP($F66,Utslippsfaktorer!$B$6:$U$332,6,FALSE)","v":60},{"$f":"IFERROR(VLOOKUP($F66,Utslippsfaktorer!$B$6:$U$332,7,FALSE)*$G66,0)","v":27400},{"$f":"VLOOKUP($F66,Utslippsfaktorer!$B$6:$U$332,8,FALSE)*$G66","v":8.4599999999999991},{"$f":"VLOOKUP($F66,Utslippsfaktorer!$B$6:$U$332,9,FALSE)*$G66","v":0},{"$f":"VLOOKUP($F66,Utslippsfaktorer!$B$6:$U$332,10,FALSE)*$G66","v":0},{"$f":"VLOOKUP($F66,Utslippsfaktorer!$B$6:$U$332,11,FALSE)*$G66","v":0},{"$f":"VLOOKUP($F66,Utslippsfaktorer!$B$6:$U$332,12,FALSE)*$G66","v":0},{"$f":"VLOOKUP($F66,Utslippsfaktorer!$B$6:$U$332,13,FALSE)*$G66","v":0},{"$f":"VLOOKUP($F66,Utslippsfaktorer!$B$6:$U$332,14,FALSE)*$G66","v":0},{"$f":"VLOOKUP($F66,Utslippsfaktorer!$B$6:$U$332,16,FALSE)*$G66","v":0},{"$f":"VLOOKUP($F66,Utslippsfaktorer!$B$6:$U$332,17,FALSE)*$G66","v":0},{"$f":"VLOOKUP($F66,Utslippsfaktorer!$B$6:$U$332,18,FALSE)*$G66","v":0},{"$f":"VLOOKUP($F66,Utslippsfaktorer!$B$6:$U$332,19,FALSE)*$G66","v":0},{"$f":"SUM(J66:U66)","v":27408.46},1,{"$f":"VLOOKUP($F66,Utslippsfaktorer!$B$6:$U$332,3,FALSE)","v":"Grønn materialguide"}]
[null,null,24,"242 Ikke-bærende innervegger","(egen data)",null,0,null,null,null,null,null,null,null,null,null,null,null,null,null,null,0,0]
[null,null,24,"243 Systemvegger og glassfelt","(Velg kategori)","(Velg material eller prosesser)",0,{"$f":"VLOOKUP($F68,Utslippsfaktorer!$B$6:$U$332,5,FALSE)","v":"-"},{"$f":"VLOOKUP($F68,Utslippsfaktorer!$B$6:$U$332,6,FALSE)","v":0},{"$f":"IFERROR(VLOOKUP($F68,Utslippsfaktorer!$B$6:$U$332,7,FALSE)*$G68,0)","v":0},{"$f":"VLOOKUP($F68,Utslippsfaktorer!$B$6:$U$332,8,FALSE)*$G68","v":0},{"$f":"VLOOKUP($F68,Utslippsfaktorer!$B$6:$U$332,9,FALSE)*$G68","v":0},{"$f":"VLOOKUP($F68,Utslippsfaktorer!$B$6:$U$332,10,FALSE)*$G68","v":0},{"$f":"VLOOKUP($F68,Utslippsfaktorer!$B$6:$U$332,11,FALSE)*$G68","v":0},{"$f":"VLOOKUP($F68,Utslippsfaktorer!$B$6:$U$332,12,FALSE)*$G68","v":0},{"$f":"VLOOKUP($F68,Utslippsfaktorer!$B$6:$U$332,13,FALSE)*$G68","v":0},{"$f":"VLOOKUP($F68,Utslippsfaktorer!$B$6:$U$332,14,FALSE)*$G68","v":0},{"$f":"VLOOKUP($F68,Utslippsfaktorer!$B$6:$U$332,16,FALSE)*$G68","v":0},{"$f":"VLOOKUP($F68,Utslippsfaktorer!$B$6:$U$332,17,FALSE)*$G68","v":0},{"$f":"VLOOKUP($F68,Utslippsfaktorer!$B$6:$U$332,18,FALSE)*$G68","v":0},{"$f":"VLOOKUP($F68,Utslippsfaktorer!$B$6:$U$332,19,FALSE)*$G68","v":0},0,0,{"$f":"VLOOKUP($F68,Utslippsfaktorer!$B$6:$U$332,3,FALSE)","v":"-"}]
[null,null,24,"243 Systemvegger og glassfelt","(egen data)",null,0,null,null,null,null,null,null,null,null,null,null,null,null,null,null,0,0]
[null,null,24,"244 Vinduer, dører, foldevegger","(Velg kategori)","(Velg material eller prosesser)",0,{"$f":"VLOOKUP($F70,Utslippsfaktorer!$B$6:$U$332,5,FALSE)","v":"-"},{"$f":"VLOOKUP($F70,Utslippsfaktorer!$B$6:$U$332,6,FALSE)","v":0},{"$f":"IFERROR(VLOOKUP($F70,Utslippsfaktorer!$B$6:$U$332,7,FALSE)*$G70,0)","v":0},{"$f":"VLOOKUP($F70,Utslippsfaktorer!$B$6:$U$332,8,FALSE)*$G70","v":0},{"$f":"VLOOKUP($F70,Utslippsfaktorer!$B$6:$U$332,9,FALSE)*$G70","v":0},{"$f":"VLOOKUP($F70,Utslippsfaktorer!$B$6:$U$332,10,FALSE)*$G70","v":0},{"$f":"VLOOKUP($F70,Utslippsfaktorer!$B$6:$U$332,11,FALSE)*$G70","v":0},{"$f":"VLOOKUP($F70,Utslippsfaktorer!$B$6:$U$332,12,FALSE)*$G70","v":0},{"$f":"VLOOKUP($F70,Utslippsfaktorer!$B$6:$U$332,13,FALSE)*$G70","v":0},{"$f":"VLOOKUP($F70,Utslippsfaktorer!$B$6:$U$332,14,FALSE)*$G70","v":0},{"$f":"VLOOKUP($F70,Utslippsfaktorer!$B$6:$U$332,16,FALSE)*$G70","v":0},{"$f":"VLOOKUP($F70,Utslippsfaktorer!$B$6:$U$332,17,FALSE)*$G70","v":0},{"$f":"VLOOKUP($F70,Utslippsfaktorer!$B$6:$U$332,18,FALSE)*$G70","v":0},{"$f":"VLOOKUP($F70,Utslippsfaktorer!$B$6:$U$332,19,FALSE)*$G70","v":0},0,0,{"$f":"VLOOKUP($F70,Utslippsfaktorer!$B$6:$U$332,3,FALSE)","v":"-"}]
[null,null,24,"244 Vinduer, dører, foldevegger","(egen data)",null,0,null,null,null,null,null,null,null,null,null,null,null,null,null,null,0,0]
[null,null,24,"245 Skjørt","(Velg kategori)","(Velg material eller prosesser)",0,{"$f":"VLOOKUP($F72,Utslippsfaktorer!$B$6:$U$332,5,FALSE)","v":"-"},{"$f":"VLOOKUP($F72,Utslippsfaktorer!$B$6:$U$332,6,FALSE)","v":0},{"$f":"IFERROR(VLOOKUP($F72,Utslippsfaktorer!$B$6:$U$332,7,FALSE)*$G72,0)","v":0},{"$f":"VLOOKUP($F72,Utslippsfaktorer!$B$6:$U$332,8,FALSE)*$G72","v":0},{"$f":"VLOOKUP($F72,Utslippsfaktorer!$B$6:$U$332,9,FALSE)*$G72","v":0},{"$f":"VLOOKUP($F72,Utslippsfaktorer!$B$6:$U$332,10,FALSE)*$G72","v":0},{"$f":"VLOOKUP($F72,Utslippsfaktorer!$B$6:$U$332,11,FALSE)*$G72","v":0},{"$f":"VLOOKUP($F72,Utslippsfaktorer!$B$6:$U$332,12,FALSE)*$G72","v":0},{"$f":"VLOOKUP($F72,Utslippsfaktorer!$B$6:$U$332,13,FALSE)*$G72","v":0},{"$f":"VLOOKUP($F72,Utslippsfaktorer!$B$6:$U$332,14,FALSE)*$G72","v":0},{"$f":"VLOOKUP($F72,Utslippsfaktorer!$B$6:$U$332,16,FALSE)*$G72","v":0},{"$f":"VLOOKUP($F72,Utslippsfaktorer!$B$6:$U$332,17,FALSE)*$G72","v":0},{"$f":"VLOOKUP($F72,Utslippsfaktorer!$B$6:$U$332,18,FALSE)*$G72","v":0},{"$f":"VLOOKUP($F72,Utslippsfaktorer!$B$6:$U$332,19,FALSE)*$G72","v":0},0,0,{"$f":"VLOOKUP($F72,Utslippsfaktorer!$B$6:$U$332,3,FALSE)","v":"-"}]
[null,null,24,"245 Skjørt","(egen data)",null,0,null,null,null,null,null,null,null,null,null,null,null,null,null,null,0,0]
[null,null,24,"246 Kledning og overflate","(Velg kategori)","(Velg material eller prosesser)",0,{"$f":"VLOOKUP($F74,Utslippsfaktorer!$B$6:$U$332,5,FALSE)","v":"-"},{"$f":"VLOOKUP($F74,Utslippsfaktorer!$B$6:$U$332,6,FALSE)","v":0},{"$f":"IFERROR(VLOOKUP($F74,Utslippsfaktorer!$B$6:$U$332,7,FALSE)*$G74,0)","v":0},{"$f":"VLOOKUP($F74,Utslippsfaktorer!$B$6:$U$332,8,FALSE)*$G74","v":0},{"$f":"VLOOKUP($F74,Utslippsfaktorer!$B$6:$U$332,9,FALSE)*$G74","v":0},{"$f":"VLOOKUP($F74,Utslippsfaktorer!$B$6:$U$332,10,FALSE)*$G74","v":0},{"$f":"VLOOKUP($F74,Utslippsfaktorer!$B$6:$U$332,11,FALSE)*$G74","v":0},{"$f":"VLOOKUP($F74,Utslippsfaktorer!$B$6:$U$332,12,FALSE)*$G74","v":0},{"$f":"VLOOKUP($F74,Utslippsfaktorer!$B$6:$U$332,13,FALSE)*$G74","v":0},{"$f":"VLOOKUP($F74,Utslippsfaktorer!$B$6:$U$332,14,FALSE)*$G74","v":0},{"$f":"VLOOKUP($F74,Utslippsfaktorer!$B$6:$U$332,16,FALSE)*$G74","v":0},{"$f":"VLOOKUP($F74,Utslippsfaktorer!$B$6:$U$332,17,FALSE)*$G74","v":0},{"$f":"VLOOKUP($F74,Utslippsfaktorer!$B$6:$U$332,18,FALSE)*$G74","v":0},{"$f":"VLOOKUP($F74,Utslippsfaktorer!$B$6:$U$332,19,FALSE)*$G74","v":0},0,0,{"$f":"VLOOKUP($F74,Utslippsfaktorer!$B$6:$U$332,3,FALSE)","v":"-"}]
[null,null,24,"246 Kledning og overflate","(egen data)",null,0,null,null,null,null,null,null,null,null,null,null,null,null,null,null,0,0]
[null,null,24,"248 Utstyr og komplettering for innervegger","(Velg kategori)","(Velg material eller prosesser)",0,{"$f":"VLOOKUP($F76,Utslippsfaktorer!$B$6:$U$332,5,FALSE)","v":"-"},{"$f":"VLOOKUP($F76,Utslippsfaktorer!$B$6:$U$332,6,FALSE)","v":0},{"$f":"IFERROR(VLOOKUP($F76,Utslippsfaktorer!$B$6:$U$332,7,FALSE)*$G76,0)","v":0},{"$f":"VLOOKUP($F76,Utslippsfaktorer!$B$6:$U$332,8,FALSE)*$G76","v":0},{"$f":"VLOOKUP($F76,Utslippsfaktorer!$B$6:$U$332,9,FALSE)*$G76","v":0},{"$f":"VLOOKUP($F76,Utslippsfaktorer!$B$6:$U$332,10,FALSE)*$G76","v":0},{"$f":"VLOOKUP($F76,Utslippsfaktorer!$B$6:$U$332,11,FALSE)*$G76","v":0},{"$f":"VLOOKUP($F76,Utslippsfaktorer!$B$6:$U$332,12,FALSE)*$G76","v":0},{"$f":"VLOOKUP($F76,Utslippsfaktorer!$B$6:$U$332,13,FALSE)*$G76","v":0},{"$f":"VLOOKUP($F76,Utslippsfaktorer!$B$6:$U$332,14,FALSE)*$G76","v":0},{"$f":"VLOOKUP($F76,Utslippsfaktorer!$B$6:$U$332,16,FALSE)*$G76","v":0},{"$f":"VLOOKUP($F76,Utslippsfaktorer!$B$6:$U$332,17,FALSE)*$G76","v":0},{"$f":"VLOOKUP($F76,Utslippsfaktorer!$B$6:$U$332,18,FALSE)*$G76","v":0},{"$f":"VLOOKUP($F76,Utslippsfaktorer!$B$6:$U$332,19,FALSE)*$G76","v":0},0,0,{"$f":"VLOOKUP($F76,Utslippsfaktorer!$B$6:$U$332,3,FALSE)","v":"-"}]
[null,null,24,"248 Utstyr og komplettering for innervegger","(egen data)",null,0,null,null,null,null,null,null,null,null,null,null,null,null,null,null,0,0]
[null,null,24,"249 Andre deler av innervegg","(Velg kategori)","(Velg material eller prosesser)",0,{"$f":"VLOOKUP($F78,Utslippsfaktorer!$B$6:$U$332,5,FALSE)","v":"-"},{"$f":"VLOOKUP($F78,Utslippsfaktorer!$B$6:$U$332,6,FALSE)","v":0},{"$f":"IFERROR(VLOOKUP($F78,Utslippsfaktorer!$B$6:$U$332,7,FALSE)*$G78,0)","v":0},{"$f":"VLOOKUP($F78,Utslippsfaktorer!$B$6:$U$332,8,FALSE)*$G78","v":0},{"$f":"VLOOKUP($F78,Utslippsfaktorer!$B$6:$U$332,9,FALSE)*$G78","v":0},{"$f":"VLOOKUP($F78,Utslippsfaktorer!$B$6:$U$332,10,FALSE)*$G78","v":0},{"$f":"VLOOKUP($F78,Utslippsfaktorer!$B$6:$U$332,11,FALSE)*$G78","v":0},{"$f":"VLOOKUP($F78,Utslippsfaktorer!$B$6:$U$332,12,FALSE)*$G78","v":0},{"$f":"VLOOKUP($F78,Utslippsfaktorer!$B$6:$U$332,13,FALSE)*$G78","v":0},{"$f":"VLOOKUP($F78,Utslippsfaktorer!$B$6:$U$332,14,FALSE)*$G78","v":0},{"$f":"VLOOKUP($F78,Utslippsfaktorer!$B$6:$U$332,16,FALSE)*$G78","v":0},{"$f":"VLOOKUP($F78,Utslippsfaktorer!$B$6:$U$332,17,FALSE)*$G78","v":0},{"$f":"VLOOKUP($F78,Utslippsfaktorer!$B$6:$U$332,18,FALSE)*$G78","v":0},{"$f":"VLOOKUP($F78,Utslippsfaktorer!$B$6:$U$332,19,FALSE)*$G78","v":0},0,0,{"$f":"VLOOKUP($F78,Utslippsfaktorer!$B$6:$U$332,3,FALSE)","v":"-"}]
[null,null,24,"249 Andre deler av innervegg","(egen data)",null,0,null,null,null,null,null,null,null,null,null,null,null,null,null,null,0,0]
[null,null,24,"239 Andre deler av yttervegg","(Velg kategori)","(Velg material eller prosesser)",0,{"$f":"VLOOKUP($F80,Utslippsfaktorer!$B$6:$U$332,5,FALSE)","v":"-"},{"$f":"VLOOKUP($F80,Utslippsfaktorer!$B$6:$U$332,6,FALSE)","v":0},{"$f":"IFERROR(VLOOKUP($F80,Utslippsfaktorer!$B$6:$U$332,7,FALSE)*$G80,0)","v":0},{"$f":"VLOOKUP($F80,Utslippsfaktorer!$B$6:$U$332,8,FALSE)*$G80","v":0},{"$f":"VLOOKUP($F80,Utslippsfaktorer!$B$6:$U$332,9,FALSE)*$G80","v":0},{"$f":"VLOOKUP($F80,Utslippsfaktorer!$B$6:$U$332,10,FALSE)*$G80","v":0},{"$f":"VLOOKUP($F80,Utslippsfaktorer!$B$6:$U$332,11,FALSE)*$G80","v":0},{"$f":"VLOOKUP($F80,Utslippsfaktorer!$B$6:$U$332,12,FALSE)*$G80","v":0},{"$f":"VLOOKUP($F80,Utslippsfaktorer!$B$6:$U$332,13,FALSE)*$G80","v":0},{"$f":"VLOOKUP($F80,Utslippsfaktorer!$B$6:$U$332,14,FALSE)*$G80","v":0},{"$f":"VLOOKUP($F80,Utslippsfaktorer!$B$6:$U$332,16,FALSE)*$G80","v":0},{"$f":"VLOOKUP($F80,Utslippsfaktorer!$B$6:$U$332,17,FALSE)*$G80","v":0},{"$f":"VLOOKUP($F80,Utslippsfaktorer!$B$6:$U$332,18,FALSE)*$G80","v":0},{"$f":"VLOOKUP($F80,Utslippsfaktorer!$B$6:$U$332,19,FALSE)*$G80","v":0},0,0,{"$f":"VLOOKUP($F80,Utslippsfaktorer!$B$6:$U$332,3,FALSE)","v":"-"}]
[null,null,24,"239 Andre deler av yttervegg","(egen data)",null,0,null,null,null,null,null,null,null,null,null,null,null,null,null,null,0,0]
[]
["seksjon5",null,25,"Dekker",null,null,null,null,null,{"$f":"IFERROR((SUM(J84:J103)),\"Not assessed\")","v":0},{"$f":"IFERROR((SUM(K84:K103)),\"Not assessed\")","v":0},0,0,0,0,0,0,0,0,0,0,0,null,{"$f":"IFERROR(V83/$U$2,0)","v":0}]
[null,null,25,25,"(egen data)",null,0,null,null,null,null,null,null,null,null,null,null,null,null,null,null,{"$f":"SUM(J84:U84)","v":0},{"$f":"IFERROR(V84/$V$83,0)","v":0}]
[null,null,25,"251 Frittbærende dekker","(Velg kategori)","(Velg material eller prosesser)",0,{"$f":"VLOOKUP($F85,Utslippsfaktorer!$B$6:$U$332,5,FALSE)","v":"-"},{"$f":"VLOOKUP($F85,Utslippsfaktorer!$B$6:$U$332,6,FALSE)","v":0},{"$f":"IFERROR(VLOOKUP($F85,Utslippsfaktorer!$B$6:$U$332,7,FALSE)*$G85,0)","v":0},{"$f":"VLOOKUP($F85,Utslippsfaktorer!$B$6:$U$332,8,FALSE)*$G85","v":0},{"$f":"VLOOKUP($F85,Utslippsfaktorer!$B$6:$U$332,9,FALSE)*$G85","v":0},{"$f":"VLOOKUP($F85,Utslippsfaktorer!$B$6:$U$332,10,FALSE)*$G85","v":0},{"$f":"VLOOKUP($F85,Utslippsfaktorer!$B$6:$U$332,11,FALSE)*$G85","v":0},{"$f":"VLOOKUP($F85,Utslippsfaktorer!$B$6:$U$332,12,FALSE)*$G85","v":0},{"$f":"VLOOKUP($F85,Utslippsfaktorer!$B$6:$U$332,13,FALSE)*$G85","v":0},{"$f":"VLOOKUP($F85,Utslippsfaktorer!$B$6:$U$332,14,FALSE)*$G85","v":0},{"$f":"VLOOKUP($F85,Utslippsfaktorer!$B$6:$U$332,16,FALSE)*$G85","v":0},{"$f":"VLOOKUP($F85,Utslippsfaktorer!$B$6:$U$332,17,FALSE)*$G85","v":0},{"$f":"VLOOKUP($F85,Utslippsfaktorer!$B$6:$U$332,18,FALSE)*$G85","v":0},{"$f":"VLOOKUP($F85,Utslippsfaktorer!$B$6:$U$332,19,FALSE)*$G85","v":0},0,{"$f":"IFERROR(V85/$V$83,0)","v":0},{"$f":"VLOOKUP($F85,Utslippsfaktorer!$B$6:$U$332,3,FALSE)","v":"-"}]
[null,null,25,"251 Frittbærende dekker","(egen data)",null,0,null,null,null,null,null,null,null,null,null,null,null,null,null,null,0,0]
[null,null,25,"252 Gulv på grunn, bunnplate","(Velg kategori)","(Velg material eller prosesser)",0,{"$f":"VLOOKUP($F87,Utslippsfaktorer!$B$6:$U$332,5,FALSE)","v":"-"},{"$f":"VLOOKUP($F87,Utslippsfaktorer!$B$6:$U$332,6,FALSE)","v":0},{"$f":"IFERROR(VLOOKUP($F87,Utslippsfaktorer!$B$6:$U$332,7,FALSE)*$G87,0)","v":0},{"$f":"VLOOKUP($F87,Utslippsfaktorer!$B$6:$U$332,8,FALSE)*$G87","v":0},{"$f":"VLOOKUP($F87,Utslippsfaktorer!$B$6:$U$332,9,FALSE)*$G87","v":0},{"$f":"VLOOKUP($F87,Utslippsfaktorer!$B$6:$U$332,10,FALSE)*$G87","v":0},{"$f":"VLOOKUP($F87,Utslippsfaktorer!$B$6:$U$332,11,FALSE)*$G87","v":0},{"$f":"VLOOKUP($F87,Utslippsfaktorer!$B$6:$U$332,12,FALSE)*$G87","v":0},{"$f":"VLOOKUP($F87,Utslippsfaktorer!$B$6:$U$332,13,FALSE)*$G87","v":0},{"$f":"VLOOKUP($F87,Utslippsfaktorer!$B$6:$U$332,14,FALSE)*$G87","v":0},{"$f":"VLOOKUP($F87,Utslippsfaktorer!$B$6:$U$332,16,FALSE)*$G87","v":0},{"$f":"VLOOKUP($F87,Utslippsfaktorer!$B$6:$U$332,17,FALSE)*$G87","v":0},{"$f":"VLOOKUP($F87,Utslippsfaktorer!$B$6:$U$332,18,FALSE)*$G87","v":0},{"$f":"VLOOKUP($F87,Utslippsfaktorer!$B$6:$U$332,19,FALSE)*$G87","v":0},0,0,{"$f":"VLOOKUP($F87,Utslippsfaktorer!$B$6:$U$332,3,FALSE)","v":"-"}]
[null,null,25,"252 Gulv på grunn, bunnplate","(egen data)",null,0,null,null,null,null,null,null,null,null,null,null,null,null,null,null,0,0]
[null,null,25,"253 Oppforet gulv og påstøp","(Velg kategori)","(Velg material eller prosesser)",0,{"$f":"VLOOKUP($F89,Utslippsfaktorer!$B$6:$U$332,5,FALSE)","v":"-"},{"$f":"VLOOKUP($F89,Utslippsfaktorer!$B$6:$U$332,6,FALSE)","v":0},{"$f":"IFERROR(VLOOKUP($F89,Utslippsfaktorer!$B$6:$U$332,7,FALSE)*$G89,0)","v":0},{"$f":"VLOOKUP($F89,Utslippsfaktorer!$B$6:$U$332,8,FALSE)*$G89","v":0},{"$f":"VLOOKUP($F89,Utslippsfaktorer!$B$6:$U$332,9,FALSE)*$G89","v":0},{"$f":"VLOOKUP($F89,Utslippsfaktorer!$B$6:$U$332,10,FALSE)*$G89","v":0},{"$f":"VLOOKUP($F89,Utslippsfaktorer!$B$6:$U$332,11,FALSE)*$G89","v":0},{"$f":"VLOOKUP($F89,Utslippsfaktorer!$B$6:$U$332,12,FALSE)*$G89","v":0},{"$f":"VLOOKUP($F89,Utslippsfaktorer!$B$6:$U$332,13,FALSE)*$G89","v":0},{"$f":"VLOOKUP($F89,Utslippsfaktorer!$B$6:$U$332,14,FALSE)*$G89","v":0},{"$f":"VLOOKUP($F89,Utslippsfaktorer!$B$6:$U$332,16,FALSE)*$G89","v":0},{"$f":"VLOOKUP($F89,Utslippsfaktorer!$B$6:$U$332,17,FALSE)*$G89","v":0},{"$f":"VLOOKUP($F89,Utslippsfaktorer!$B$6:$U$332,18,FALSE)*$G89","v":0},{"$f":"VLOOKUP($F89,Utslippsfaktorer!$B$6:$U$332,19,FALSE)*$G89","v":0},0,0,{"$f":"VLOOKUP($F89,Utslippsfaktorer!$B$6:$U$332,3,FALSE)","v":"-"}]
[null,null,25,"253 Oppforet gulv og påstøp","(egen data)",null,0,null,null,null,null,null,null,null,null,null,null,null,null,null,null,0,0]
[null,null,25,"254 Systemgulv","(Velg kategori)","(Velg material eller prosesser)",0,{"$f":"VLOOKUP($F91,Utslippsfaktorer!$B$6:$U$332,5,FALSE)","v":"-"},{"$f":"VLOOKUP($F91,Utslippsfaktorer!$B$6:$U$332,6,FALSE)","v":0},{"$f":"IFERROR(VLOOKUP($F91,Utslippsfaktorer!$B$6:$U$332,7,FALSE)*$G91,0)","v":0},{"$f":"VLOOKUP($F91,Utslippsfaktorer!$B$6:$U$332,8,FALSE)*$G91","v":0},{"$f":"VLOOKUP($F91,Utslippsfaktorer!$B$6:$U$332,9,FALSE)*$G91","v":0},{"$f":"VLOOKUP($F91,Utslippsfaktorer!$B$6:$U$332,10,FALSE)*$G91","v":0},{"$f":"VLOOKUP($F91,Utslippsfaktorer!$B$6:$U$332,11,FALSE)*$G91","v":0},{"$f":"VLOOKUP($F91,Utslippsfaktorer!$B$6:$U$332,12,FALSE)*$G91","v":0},{"$f":"VLOOKUP($F91,Utslippsfaktorer!$B$6:$U$332,13,FALSE)*$G91","v":0},{"$f":"VLOOKUP($F91,Utslippsfaktorer!$B$6:$U$332,14,FALSE)*$G91","v":0},{"$f":"VLOOKUP($F91,Utslippsfaktorer!$B$6:$U$332,16,FALSE)*$G91","v":0},{"$f":"VLOOKUP($F91,Utslippsfaktorer!$B$6:$U$332,17,FALSE)*$G91","v":0},{"$f":"VLOOKUP($F91,Utslippsfaktorer!$B$6:$U$332,18,FALSE)*$G91","v":0},{"$f":"VLOOKUP($F91,Utslippsfaktorer!$B$6:$U$332,19,FALSE)*$G91","v":0},0,0,{"$f":"VLOOKUP($F91,Utslippsfaktorer!$B$6:$U$332,3,FALSE)","v":"-"}]
[null,null,25,"254 Systemgulv","(egen data)",null,0,null,null,null,null,null,null,null,null,null,null,null,null,null,null,0,0]
[null,null,25,"255 Gulvoverflate","Bitumen","(Velg material eller prosesser)",200,{"$f":"VLOOKUP($F93,Utslippsfaktorer!$B$6:$U$332,5,FALSE)","v":"-"},{"$f":"VLOOKUP($F93,Utslippsfaktorer!$B$6:$U$332,6,FALSE)","v":0},{"$f":"IFERROR(VLOOKUP($F93,Utslippsfaktorer!$B$6:$U$332,7,FALSE)*$G93,0)","v":0},{"$f":"VLOOKUP($F93,Utslippsfaktorer!$B$6:$U$332,8,FALSE)*$G93","v":0},{"$f":"VLOOKUP($F93,Utslippsfaktorer!$B$6:$U$332,9,FALSE)*$G93","v":0},{"$f":"VLOOKUP($F93,Utslippsfaktorer!$B$6:$U$332,10,FALSE)*$G93","v":0},{"$f":"VLOOKUP($F93,Utslippsfaktorer!$B$6:$U$332,11,FALSE)*$G93","v":0},{"$f":"VLOOKUP($F93,Utslippsfaktorer!$B$6:$U$332,12,FALSE)*$G93","v":0},{"$f":"VLOOKUP($F93,Utslippsfaktorer!$B$6:$U$332,13,FALSE)*$G93","v":0},{"$f":"VLOOKUP($F93,Utslippsfaktorer!$B$6:$U$332,14,FALSE)*$G93","v":0},{"$f":"VLOOKUP($F93,Utslippsfaktorer!$B$6:$U$332,16,FALSE)*$G93","v":0},{"$f":"VLOOKUP($F93,Utslippsfaktorer!$B$6:$U$332,17,FALSE)*$G93","v":0},{"$f":"VLOOKUP($F93,Utslippsfaktorer!$B$6:$U$332,18,FALSE)*$G93","v":0},{"$f":"VLOOKUP($F93,Utslippsfaktorer!$B$6:$U$332,19,FALSE)*$G93","v":0},0,0,{"$f":"VLOOKUP($F93,Utslippsfaktorer!$B$6:$U$332,3,FALSE)","v":"-"}]
[null,null,25,"255 Gulvoverflate","(egen data)",null,0,null,null,null,null,null,null,null,null,null,null,null,null,null,null,0,0]
[null,null,25,"256 Faste himlinger og overflatebehandling","(Velg kategori)","(Velg material eller prosesser)",0,{"$f":"VLOOKUP($F95,Utslippsfaktorer!$B$6:$U$332,5,FALSE)","v":"-"},{"$f":"VLOOKUP($F95,Utslippsfaktorer!$B$6:$U$332,6,FALSE)","v":0},{"$f":"IFERROR(VLOOKUP($F95,Utslippsfaktorer!$B$6:$U$332,7,FALSE)*$G95,0)","v":0},{"$f":"VLOOKUP($F95,Utslippsfaktorer!$B$6:$U$332,8,FALSE)*$G95","v":0},{"$f":"VLOOKUP($F95,Utslippsfaktorer!$B$6:$U$332,9,FALSE)*$G95","v":0},{"$f":"VLOOKUP($F95,Utslippsfaktorer!$B$6:$U$332,10,FALSE)*$G95","v":0},{"$f":"VLOOKUP($F95,Utslippsfaktorer!$B$6:$U$332,11,FALSE)*$G95","v":0},{"$f":"VLOOKUP($F95,Utslippsfaktorer!$B$6:$U$332,12,FALSE)*$G95","v":0},{"$f":"VLOOKUP($F95,Utslippsfaktorer!$B$6:$U$332,13,FALSE)*$G95","v":0},{"$f":"VLOOKUP($F95,Utslippsfaktorer!$B$6:$U$332,14,FALSE)*$G95","v":0},{"$f":"VLOOKUP($F95,Utslippsfaktorer!$B$6:$U$332,16,FALSE)*$G95","v":0},{"$f":"VLOOKUP($F95,Utslippsfaktorer!$B$6:$U$332,17,FALSE)*$G95","v":0},{"$f":"VLOOKUP($F95,Utslippsfaktorer!$B$6:$U$332,18,FALSE)*$G95","v":0},{"$f":"VLOOKUP($F95,Utslippsfaktorer!$B$6:$U$332,19,FALSE)*$G95","v":0},0,0,{"$f":"VLOOKUP($F95,Utslippsfaktorer!$B$6:$U$332,3,FALSE)","v":"-"}]
[null,null,25,"256 Faste himlinger og overflatebehandling","(egen data)",null,0,null,null,null,null,null,null,null,null,null,null,null,null,null,null,0,0]
[null,null,25,"257 Systemhimlinger","(Velg kategori)","(Velg material eller prosesser)",0,{"$f":"VLOOKUP($F97,Utslippsfaktorer!$B$6:$U$332,5,FALSE)","v":"-"},{"$f":"VLOOKUP($F97,Utslippsfaktorer!$B$6:$U$332,6,FALSE)","v":0},{"$f":"IFERROR(VLOOKUP($F97,Utslippsfaktorer!$B$6:$U$332,7,FALSE)*$G97,0)","v":0},{"$f":"VLOOKUP($F97,Utslippsfaktorer!$B$6:$U$332,8,FALSE)*$G97","v":0},{"$f":"VLOOKUP($F97,Utslippsfaktorer!$B$6:$U$332,9,FALSE)*$G97","v":0},{"$f":"VLOOKUP($F97,Utslippsfaktorer!$B$6:$U$332,10,FALSE)*$G97","v":0},{"$f":"VLOOKUP($F97,Utslippsfaktorer!$B$6:$U$332,11,FALSE)*$G97","v":0},{"$f":"VLOOKUP($F97,Utslippsfaktorer!$B$6:$U$332,12,FALSE)*$G97","v":0},{"$f":"VLOOKUP($F97,Utslippsfaktorer!$B$6:$U$332,13,FALSE)*$G97","v":0},{"$f":"VLOOKUP($F97,Utslippsfaktorer!$B$6:$U$332,14,FALSE)*$G97","v":0},{"$f":"VLOOKUP($F97,Utslippsfaktorer!$B$6:$U$332,16,FALSE)*$G97","v":0},{"$f":"VLOOKUP($F97,Utslippsfaktorer!$B$6:$U$332,17,FALSE)*$G97","v":0},{"$f":"VLOOKUP($F97,Utslippsfaktorer!$B$6:$U$332,18,FALSE)*$G97","v":0},{"$f":"VLOOKUP($F97,Utslippsfaktorer!$B$6:$U$332,19,FALSE)*$G97","v":0},0,0,{"$f":"VLOOKUP($F97,Utslippsfaktorer!$B$6:$U$332,3,FALSE)","v":"-"}]
[null,null,25,"257 Systemhimlinger","(egen data)",null,0,null,null,null,null,null,null,null,null,null,null,null,null,null,null,0,0]
[null,null,25,"258 Utstyr og komplettering for dekker","(Velg kategori)","(Velg material eller prosesser)",0,{"$f":"VLOOKUP($F99,Utslippsfaktorer!$B$6:$U$332,5,FALSE)","v":"-"},{"$f":"VLOOKUP($F99,Utslippsfaktorer!$B$6:$U$332,6,FALSE)","v":0},{"$f":"IFERROR(VLOOKUP($F99,Utslippsfaktorer!$B$6:$U$332,7,FALSE)*$G99,0)","v":0},{"$f":"VLOOKUP($F99,Utslippsfaktorer!$B$6:$U$332,8,FALSE)*$G99","v":0},{"$f":"VLOOKUP($F99,Utslippsfaktorer!$B$6:$U$332,9,FALSE)*$G99","v":0},{"$f":"VLOOKUP($F99,Utslippsfaktorer!$B$6:$U$332,10,FALSE)*$G99","v":0},{"$f":"VLOOKUP($F99,Utslippsfaktorer!$B$6:$U$332,11,FALSE)*$G99","v":0},{"$f":"VLOOKUP($F99,Utslippsfaktorer!$B$6:$U$332,12,FALSE)*$G99","v":0},{"$f":"VLOOKUP($F99,Utslippsfaktorer!$B$6:$U$332,13,FALSE)*$G99","v":0},{"$f":"VLOOKUP($F99,Utslippsfaktorer!$B$6:$U$332,14,FALSE)*$G99","v":0},{"$f":"VLOOKUP($F99,Utslippsfaktorer!$B$6:$U$332,16,FALSE)*$G99","v":0},{"$f":"VLOOKUP($F99,Utslippsfaktorer!$B$6:$U$332,17,FALSE)*$G99","v":0},{"$f":"VLOOKUP($F99,Utslippsfaktorer!$B$6:$U$332,18,FALSE)*$G99","v":0},{"$f":"VLOOKUP($F99,Utslippsfaktorer!$B$6:$U$332,19,FALSE)*$G99","v":0},0,0,{"$f":"VLOOKUP($F99,Utslippsfaktorer!$B$6:$U$332,3,FALSE)","v":"-"}]
[null,null,25,"258 Utstyr og komplettering for dekker","(egen data)",null,0,null,null,null,null,null,null,null,null,null,null,null,null,null,null,0,0]
[null,null,25,"259 Andre deler av dekker","(Velg kategori)","(Velg material eller prosesser)",0,{"$f":"VLOOKUP($F101,Utslippsfaktorer!$B$6:$U$332,5,FALSE)","v":"-"},{"$f":"VLOOKUP($F101,Utslippsfaktorer!$B$6:$U$332,6,FALSE)","v":0},{"$f":"IFERROR(VLOOKUP($F101,Utslippsfaktorer!$B$6:$U$332,7,FALSE)*$G101,0)","v":0},{"$f":"VLOOKUP($F101,Utslippsfaktorer!$B$6:$U$332,8,FALSE)*$G101","v":0},{"$f":"VLOOKUP($F101,Utslippsfaktorer!$B$6:$U$332,9,FALSE)*$G101","v":0},{"$f":"VLOOKUP($F101,Utslippsfaktorer!$B$6:$U$332,10,FALSE)*$G101","v":0},{"$f":"VLOOKUP($F101,Utslippsfaktorer!$B$6:$U$332,11,FALSE)*$G101","v":0},{"$f":"VLOOKUP($F101,Utslippsfaktorer!$B$6:$U$332,12,FALSE)*$G101","v":0},{"$f":"VLOOKUP($F101,Utslippsfaktorer!$B$6:$U$332,13,FALSE)*$G101","v":0},{"$f":"VLOOKUP($F101,Utslippsfaktorer!$B$6:$U$332,14,FALSE)*$G101","v":0},{"$f":"VLOOKUP($F101,Utslippsfaktorer!$B$6:$U$332,16,FALSE)*$G101","v":0},{"$f":"VLOOKUP($F101,Utslippsfaktorer!$B$6:$U$332,17,FALSE)*$G101","v":0},{"$f":"VLOOKUP($F101,Utslippsfaktorer!$B$6:$U$332,18,FALSE)*$G101","v":0},{"$f":"VLOOKUP($F101,Utslippsfaktorer!$B$6:$U$332,19,FALSE)*$G101","v":0},0,0,{"$f":"VLOOKUP($F101,Utslippsfaktorer!$B$6:$U$332,3,FALSE)","v":"-"}]
[null,null,25,"259 Andre deler av dekker","(egen data)",null,0,null,null,null,null,null,null,null,null,null,null,null,null,null,null,0,0]
[]
["seksjon6",null,26,"Yttertak",null,null,null,null,null,{"$f":"IFERROR((SUM(J105:J124)),\"Not assessed\")","v":0},{"$f":"IFERROR((SUM(K105:K124)),\"Not assessed\")","v":0},0,0,0,0,0,0,0,0,0,0,0,null,{"$f":"IFERROR(V104/$U$2,0)","v":0}]
[null,null,26,26,"(egen data)",null,0,null,null,null,null,null,null,null,null,null,null,null,null,null,null,{"$f":"SUM(J105:U105)","v":0},{"$f":"IFERROR(V105/$V$83,0)","v":0}]
[null,null,26,"261 Primærkonstruksjon for yttertak","(Velg kategori)","(Velg material eller prosesser)",0,{"$f":"VLOOKUP($F106,Utslippsfaktorer!$B$6:$U$332,5,FALSE)","v":"-"},{"$f":"VLOOKUP($F106,Utslippsfaktorer!$B$6:$U$332,6,FALSE)","v":0},{"$f":"IFERROR(VLOOKUP($F106,Utslippsfaktorer!$B$6:$U$332,7,FALSE)*$G106,0)","v":0},{"$f":"VLOOKUP($F106,Utslippsfaktorer!$B$6:$U$332,8,FALSE)*$G106","v":0},{"$f":"VLOOKUP($F106,Utslippsfaktorer!$B$6:$U$332,9,FALSE)*$G106","v":0},{"$f":"VLOOKUP($F106,Utslippsfaktorer!$B$6:$U$332,10,FALSE)*$G106","v":0},{"$f":"VLOOKUP($F106,Utslippsfaktorer!$B$6:$U$332,11,FALSE)*$G106","v":0},{"$f":"VLOOKUP($F106,Utslippsfaktorer!$B$6:$U$332,12,FALSE)*$G106","v":0},{"$f":"VLOOKUP($F106,Utslippsfaktorer!$B$6:$U$332,13,FALSE)*$G106","v":0},{"$f":"VLOOKUP($F106,Utslippsfaktorer!$B$6:$U$332,14,FALSE)*$G106","v":0},{"$f":"VLOOKUP($F106,Utslippsfaktorer!$B$6:$U$332,16,FALSE)*$G106","v":0},{"$f":"VLOOKUP($F106,Utslippsfaktorer!$B$6:$U$332,17,FALSE)*$G106","v":0},{"$f":"VLOOKUP($F106,Utslippsfaktorer!$B$6:$U$332,18,FALSE)*$G106","v":0},{"$f":"VLOOKUP($F106,Utslippsfaktorer!$B$6:$U$332,19,FALSE)*$G106","v":0},0,{"$f":"IFERROR(V106/$V$83,0)","v":0},{"$f":"VLOOKUP($F106,Utslippsfaktorer!$B$6:$U$332,3,FALSE)","v":"-"}]
[null,null,26,"261 Primærkonstruksjon for yttertak","(egen data)",null,0,null,null,null,null,null,null,null,null,null,null,null,null,null,null,0,0]
[null,null,26,"262 Taktekking","(Velg kategori)","(Velg material eller prosesser)",0,{"$f":"VLOOKUP($F108,Utslippsfaktorer!$B$6:$U$332,5,FALSE)","v":"-"},{"$f":"VLOOKUP($F108,Utslippsfaktorer!$B$6:$U$332,6,FALSE)","v":0},{"$f":"IFERROR(VLOOKUP($F108,Utslippsfaktorer!$B$6:$U$332,7,FALSE)*$G108,0)","v":0},{"$f":"VLOOKUP($F108,Utslippsfaktorer!$B$6:$U$332,8,FALSE)*$G108","v":0},{"$f":"VLOOKUP($F108,Utslippsfaktorer!$B$6:$U$332,9,FALSE)*$G108","v":0},{"$f":"VLOOKUP($F108,Utslippsfaktorer!$B$6:$U$332,10,FALSE)*$G108","v":0},{"$f":"VLOOKUP($F108,Utslippsfaktorer!$B$6:$U$332,11,FALSE)*$G108","v":0},{"$f":"VLOOKUP($F108,Utslippsfaktorer!$B$6:$U$332,12,FALSE)*$G108","v":0},{"$f":"VLOOKUP($F108,Utslippsfaktorer!$B$6:$U$332,13,FALSE)*$G108","v":0},{"$f":"VLOOKUP($F108,Utslippsfaktorer!$B$6:$U$332,14,FALSE)*$G108","v":0},{"$f":"VLOOKUP($F108,Utslippsfaktorer!$B$6:$U$332,16,FALSE)*$G108","v":0},{"$f":"VLOOKUP($F108,Utslippsfaktorer!$B$6:$U$332,17,FALSE)*$G108","v":0},{"$f":"VLOOKUP($F108,Utslippsfaktorer!$B$6:$U$332,18,FALSE)*$G108","v":0},{"$f":"VLOOKUP($F108,Utslippsfaktorer!$B$6:$U$332,19,FALSE)*$G108","v":0},0,0,{"$f":"VLOOKUP($F108,Utslippsfaktorer!$B$6:$U$332,3,FALSE)","v":"-"}]
[null,null,26,"262 Taktekking","(egen data)",null,0,null,null,null,null,null,null,null,null,null,null,null,null,null,null,0,0]
[null,null,26,"263 Glasstak","(Velg kategori)","(Velg material eller prosesser)",0,{"$f":"VLOOKUP($F110,Utslippsfaktorer!$B$6:$U$332,5,FALSE)","v":"-"},{"$f":"VLOOKUP($F110,Utslippsfaktorer!$B$6:$U$332,6,FALSE)","v":0},{"$f":"IFERROR(VLOOKUP($F110,Utslippsfaktorer!$B$6:$U$332,7,FALSE)*$G110,0)","v":0},{"$f":"VLOOKUP($F110,Utslippsfaktorer!$B$6:$U$332,8,FALSE)*$G110","v":0},{"$f":"VLOOKUP($F110,Utslippsfaktorer!$B$6:$U$332,9,FALSE)*$G110","v":0},{"$f":"VLOOKUP($F110,Utslippsfaktorer!$B$6:$U$332,10,FALSE)*$G110","v":0},{"$f":"VLOOKUP($F110,Utslippsfaktorer!$B$6:$U$332,11,FALSE)*$G110","v":0},{"$f":"VLOOKUP($F110,Utslippsfaktorer!$B$6:$U$332,12,FALSE)*$G110","v":0},{"$f":"VLOOKUP($F110,Utslippsfaktorer!$B$6:$U$332,13,FALSE)*$G110","v":0},{"$f":"VLOOKUP($F110,Utslippsfaktorer!$B$6:$U$332,14,FALSE)*$G110","v":0},{"$f":"VLOOKUP($F110,Utslippsfaktorer!$B$6:$U$332,16,FALSE)*$G110","v":0},{"$f":"VLOOKUP($F110,Utslippsfaktorer!$B$6:$U$332,17,FALSE)*$G110","v":0},{"$f":"VLOOKUP($F110,Utslippsfaktorer!$B$6:$U$332,18,FALSE)*$G110","v":0},{"$f":"VLOOKUP($F110,Utslippsfaktorer!$B$6:$U$332,19,FALSE)*$G110","v":0},0,0,{"$f":"VLOOKUP($F110,Utslippsfaktorer!$B$6:$U$332,3,FALSE)","v":"-"}]
[null,null,26,"263 Glasstak","(egen data)",null,0,null,null,null,null,null,null,null,null,null,null,null,null,null,null,0,0]
[null,null,26,"264 Takoppbygg","(Velg kategori)","(Velg material eller prosesser)",0,{"$f":"VLOOKUP($F112,Utslippsfaktorer!$B$6:$U$332,5,FALSE)","v":"-"},{"$f":"VLOOKUP($F112,Utslippsfaktorer!$B$6:$U$332,6,FALSE)","v":0},{"$f":"IFERROR(VLOOKUP($F112,Utslippsfaktorer!$B$6:$U$332,7,FALSE)*$G112,0)","v":0},{"$f":"VLOOKUP($F112,Utslippsfaktorer!$B$6:$U$332,8,FALSE)*$G112","v":0},{"$f":"VLOOKUP($F112,Utslippsfaktorer!$B$6:$U$332,9,FALSE)*$G112","v":0},{"$f":"VLOOKUP($F112,Utslippsfaktorer!$B$6:$U$332,10,FALSE)*$G112","v":0},{"$f":"VLOOKUP($F112,Utslippsfaktorer!$B$6:$U$332,11,FALSE)*$G112","v":0},{"$f":"VLOOKUP($F112,Utslippsfaktorer!$B$6:$U$332,12,FALSE)*$G112","v":0},{"$f":"VLOOKUP($F112,Utslippsfaktorer!$B$6:$U$332,13,FALSE)*$G112","v":0},{"$f":"VLOOKUP($F112,Utslippsfaktorer!$B$6:$U$332,14,FALSE)*$G112","v":0},{"$f":"VLOOKUP($F112,Utslippsfaktorer!$B$6:$U$332,16,FALSE)*$G112","v":0},{"$f":"VLOOKUP($F112,Utslippsfaktorer!$B$6:$U$332,17,FALSE)*$G112","v":0},{"$f":"VLOOKUP($F112,Utslippsfaktorer!$B$6:$U$332,18,FALSE)*$G112","v":0},{"$f":"VLOOKUP($F112,Utslippsfaktorer!$B$6:$U$332,19,FALSE)*$G112","v":0},0,0,{"$f":"VLOOKUP($F112,Utslippsfaktorer!$B$6:$U$332,3,FALSE)","v":"-"}]
[null,null,26,"264 Takoppbygg","(egen data)",null,0,null,null,null,null,null,null,null,null,null,null,null,null,null,null,0,0]
[null,null,26,"265 Gesimser","(Velg kategori)","(Velg material eller prosesser)",0,{"$f":"VLOOKUP($F114,Utslippsfaktorer!$B$6:$U$332,5,FALSE)","v":"-"},{"$f":"VLOOKUP($F114,Utslippsfaktorer!$B$6:$U$332,6,FALSE)","v":0},{"$f":"IFERROR(VLOOKUP($F114,Utslippsfaktorer!$B$6:$U$332,7,FALSE)*$G114,0)","v":0},{"$f":"VLOOKUP($F114,Utslippsfaktorer!$B$6:$U$332,8,FALSE)*$G114","v":0},{"$f":"VLOOKUP($F114,Utslippsfaktorer!$B$6:$U$332,9,FALSE)*$G114","v":0},{"$f":"VLOOKUP($F114,Utslippsfaktorer!$B$6:$U$332,10,FALSE)*$G114","v":0},{"$f":"VLOOKUP($F114,Utslippsfaktorer!$B$6:$U$332,11,FALSE)*$G114","v":0},{"$f":"VLOOKUP($F114,Utslippsfaktorer!$B$6:$U$332,12,FALSE)*$G114","v":0},{"$f":"VLOOKUP($F114,Utslippsfaktorer!$B$6:$U$332,13,FALSE)*$G114","v":0},{"$f":"VLOOKUP($F114,Utslippsfaktorer!$B$6:$U$332,14,FALSE)*$G114","v":0},{"$f":"VLOOKUP($F114,Utslippsfaktorer!$B$6:$U$332,16,FALSE)*$G114","v":0},{"$f":"VLOOKUP($F114,Utslippsfaktorer!$B$6:$U$332,17,FALSE)*$G114","v":0},{"$f":"VLOOKUP($F114,Utslippsfaktorer!$B$6:$U$332,18,FALSE)*$G114","v":0},{"$f":"VLOOKUP($F114,Utslippsfaktorer!$B$6:$U$332,19,FALSE)*$G114","v":0},0,0,{"$f":"VLOOKUP($F114,Utslippsfaktorer!$B$6:$U$332,3,FALSE)","v":"-"}]
[null,null,26,"265 Gesimser","(egen data)",null,0,null,null,null,null,null,null,null,null,null,null,null,null,null,null,0,0]
[null,null,26,"266 Himling","(Velg kategori)","(Velg material eller prosesser)",0,{"$f":"VLOOKUP($F116,Utslippsfaktorer!$B$6:$U$332,5,FALSE)","v":"-"},{"$f":"VLOOKUP($F116,Utslippsfaktorer!$B$6:$U$332,6,FALSE)","v":0},{"$f":"IFERROR(VLOOKUP($F116,Utslippsfaktorer!$B$6:$U$332,7,FALSE)*$G116,0)","v":0},{"$f":"VLOOKUP($F116,Utslippsfaktorer!$B$6:$U$332,8,FALSE)*$G116","v":0},{"$f":"VLOOKUP($F116,Utslippsfaktorer!$B$6:$U$332,9,FALSE)*$G116","v":0},{"$f":"VLOOKUP($F116,Utslippsfaktorer!$B$6:$U$332,10,FALSE)*$G116","v":0},{"$f":"VLOOKUP($F116,Utslippsfaktorer!$B$6:$U$332,11,FALSE)*$G116","v":0},{"$f":"VLOOKUP($F116,Utslippsfaktorer!$B$6:$U$332,12,FALSE)*$G116","v":0},{"$f":"VLOOKUP($F116,Utslippsfaktorer!$B$6:$U$332,13,FALSE)*$G116","v":0},{"$f":"VLOOKUP($F116,Utslippsfaktorer!$B$6:$U$332,14,FALSE)*$G116","v":0},{"$f":"VLOOKUP($F116,Utslippsfaktorer!$B$6:$U$332,16,FALSE)*$G116","v":0},{"$f":"VLOOKUP($F116,Utslippsfaktorer!$B$6:$U$332,17,FALSE)*$G116","v":0},{"$f":"VLOOKUP($F116,Utslippsfaktorer!$B$6:$U$332,18,FALSE)*$G116","v":0},{"$f":"VLOOKUP($F116,Utslippsfaktorer!$B$6:$U$332,19,FALSE)*$G116","v":0},0,0,{"$f":"VLOOKUP($F116,Utslippsfaktorer!$B$6:$U$332,3,FALSE)","v":"-"}]
[null,null,26,"266 Himling","(egen data)",null,0,null,null,null,null,null,null,null,null,null,null,null,null,null,null,0,0]
[null,null,26,"267 Prefabrikkerte takelementer","(Velg kategori)","(Velg material eller prosesser)",0,{"$f":"VLOOKUP($F118,Utslippsfaktorer!$B$6:$U$332,5,FALSE)","v":"-"},{"$f":"VLOOKUP($F118,Utslippsfaktorer!$B$6:$U$332,6,FALSE)","v":0},{"$f":"IFERROR(VLOOKUP($F118,Utslippsfaktorer!$B$6:$U$332,7,FALSE)*$G118,0)","v":0},{"$f":"VLOOKUP($F118,Utslippsfaktorer!$B$6:$U$332,8,FALSE)*$G118","v":0},{"$f":"VLOOKUP($F118,Utslippsfaktorer!$B$6:$U$332,9,FALSE)*$G118","v":0},{"$f":"VLOOKUP($F118,Utslippsfaktorer!$B$6:$U$332,10,FALSE)*$G118","v":0},{"$f":"VLOOKUP($F118,Utslippsfaktorer!$B$6:$U$332,11,FALSE)*$G118","v":0},{"$f":"VLOOKUP($F118,Utslippsfaktorer!$B$6:$U$332,12,FALSE)*$G118","v":0},{"$f":"VLOOKUP($F118,Utslippsfaktorer!$B$6:$U$332,13,FALSE)*$G118","v":0},{"$f":"VLOOKUP($F118,Utslippsfaktorer!$B$6:$U$332,14,FALSE)*$G118","v":0},{"$f":"VLOOKUP($F118,Utslippsfaktorer!$B$6:$U$332,16,FALSE)*$G118","v":0},{"$f":"VLOOKUP($F118,Utslippsfaktorer!$B$6:$U$332,17,FALSE)*$G118","v":0},{"$f":"VLOOKUP($F118,Utslippsfaktorer!$B$6:$U$332,18,FALSE)*$G118","v":0},{"$f":"VLOOKUP($F118,Utslippsfaktorer!$B$6:$U$332,19,FALSE)*$G118","v":0},0,0,{"$f":"VLOOKUP($F118,Utslippsfaktorer!$B$6:$U$332,3,FALSE)","v":"-"}]
[null,null,26,"267 Prefabrikkerte takelementer","(egen data)",null,0,null,null,null,null,null,null,null,null,null,null,null,null,null,null,0,0]
[null,null,26,"268 Utstyr og komplettering for yttertak","(Velg kategori)","(Velg material eller prosesser)",0,{"$f":"VLOOKUP($F120,Utslippsfaktorer!$B$6:$U$332,5,FALSE)","v":"-"},{"$f":"VLOOKUP($F120,Utslippsfaktorer!$B$6:$U$332,6,FALSE)","v":0},{"$f":"IFERROR(VLOOKUP($F120,Utslippsfaktorer!$B$6:$U$332,7,FALSE)*$G120,0)","v":0},{"$f":"VLOOKUP($F120,Utslippsfaktorer!$B$6:$U$332,8,FALSE)*$G120","v":0},{"$f":"VLOOKUP($F120,Utslippsfaktorer!$B$6:$U$332,9,FALSE)*$G120","v":0},{"$f":"VLOOKUP($F120,Utslippsfaktorer!$B$6:$U$332,10,FALSE)*$G120","v":0},{"$f":"VLOOKUP($F120,Utslippsfaktorer!$B$6:$U$332,11,FALSE)*$G120","v":0},{"$f":"VLOOKUP($F120,Utslippsfaktorer!$B$6:$U$332,12,FALSE)*$G120","v":0},{"$f":"VLOOKUP($F120,Utslippsfaktorer!$B$6:$U$332,13,FALSE)*$G120","v":0},{"$f":"VLOOKUP($F120,Utslippsfaktorer!$B$6:$U$332,14,FALSE)*$G120","v":0},{"$f":"VLOOKUP($F120,Utslippsfaktorer!$B$6:$U$332,16,FALSE)*$G120","v":0},{"$f":"VLOOKUP($F120,Utslippsfaktorer!$B$6:$U$332,17,FALSE)*$G120","v":0},{"$f":"VLOOKUP($F120,Utslippsfaktorer!$B$6:$U$332,18,FALSE)*$G120","v":0},{"$f":"VLOOKUP($F120,Utslippsfaktorer!$B$6:$U$332,19,FALSE)*$G120","v":0},0,0,{"$f":"VLOOKUP($F120,Utslippsfaktorer!$B$6:$U$332,3,FALSE)","v":"-"}]
[null,null,26,"268 Utstyr og komplettering for yttertak","(egen data)",null,0,null,null,null,null,null,null,null,null,null,null,null,null,null,null,0,0]
[null,null,26,"269 Andre deler av yttertak","(Velg kategori)","(Velg material eller prosesser)",0,{"$f":"VLOOKUP($F122,Utslippsfaktorer!$B$6:$U$332,5,FALSE)","v":"-"},{"$f":"VLOOKUP($F122,Utslippsfaktorer!$B$6:$U$332,6,FALSE)","v":0},{"$f":"IFERROR(VLOOKUP($F122,Utslippsfaktorer!$B$6:$U$332,7,FALSE)*$G122,0)","v":0},{"$f":"VLOOKUP($F122,Utslippsfaktorer!$B$6:$U$332,8,FALSE)*$G122","v":0},{"$f":"VLOOKUP($F122,Utslippsfaktorer!$B$6:$U$332,9,FALSE)*$G122","v":0},{"$f":"VLOOKUP($F122,Utslippsfaktorer!$B$6:$U$332,10,FALSE)*$G122","v":0},{"$f":"VLOOKUP($F122,Utslippsfaktorer!$B$6:$U$332,11,FALSE)*$G122","v":0},{"$f":"VLOOKUP($F122,Utslippsfaktorer!$B$6:$U$332,12,FALSE)*$G122","v":0},{"$f":"VLOOKUP($F122,Utslippsfaktorer!$B$6:$U$332,13,FALSE)*$G122","v":0},{"$f":"VLOOKUP($F122,Utslippsfaktorer!$B$6:$U$332,14,FALSE)*$G122","v":0},{"$f":"VLOOKUP($F122,Utslippsfaktorer!$B$6:$U$332,16,FALSE)*$G122","v":0},{"$f":"VLOOKUP($F122,Utslippsfaktorer!$B$6:$U$332,17,FALSE)*$G122","v":0},{"$f":"VLOOKUP($F122,Utslippsfaktorer!$B$6:$U$332,18,FALSE)*$G122","v":0},{"$f":"VLOOKUP($F122,Utslippsfaktorer!$B$6:$U$332,19,FALSE)*$G122","v":0},0,0,{"$f":"VLOOKUP($F122,Utslippsfaktorer!$B$6:$U$332,3,FALSE)","v":"-"}]
[null,null,26,"269 Andre deler av yttertak","(egen data)",null,0,null,null,null,null,null,null,null,null,null,null,null,null,null,null,0,0]
[]
["seksjon7",null,28,"Trapper, balkonger, m.m.",null,null,null,null,null,{"$f":"IFERROR((SUM(J126:J145)),\"Not assessed\")","v":0},{"$f":"IFERROR((SUM(K126:K145)),\"Not assessed\")","v":0},0,0,0,0,0,0,0,0,0,0,0,null,{"$f":"IFERROR(V125/$U$2,0)","v":0}]
[null,null,28,28,"(egen data)",null,0,null,null,null,null,null,null,null,null,null,null,null,null,null,null,{"$f":"SUM(J126:U126)","v":0},{"$f":"IFERROR(V126/$V$83,0)","v":0}]
[null,null,28,"281 Innvendige trapper","(Velg kategori)","(Velg material eller prosesser)",0,{"$f":"VLOOKUP($F127,Utslippsfaktorer!$B$6:$U$332,5,FALSE)","v":"-"},{"$f":"VLOOKUP($F127,Utslippsfaktorer!$B$6:$U$332,6,FALSE)","v":0},{"$f":"IFERROR(VLOOKUP($F127,Utslippsfaktorer!$B$6:$U$332,7,FALSE)*$G127,0)","v":0},{"$f":"VLOOKUP($F127,Utslippsfaktorer!$B$6:$U$332,8,FALSE)*$G127","v":0},{"$f":"VLOOKUP($F127,Utslippsfaktorer!$B$6:$U$332,9,FALSE)*$G127","v":0},{"$f":"VLOOKUP($F127,Utslippsfaktorer!$B$6:$U$332,10,FALSE)*$G127","v":0},{"$f":"VLOOKUP($F127,Utslippsfaktorer!$B$6:$U$332,11,FALSE)*$G127","v":0},{"$f":"VLOOKUP($F127,Utslippsfaktorer!$B$6:$U$332,12,FALSE)*$G127","v":0},{"$f":"VLOOKUP($F127,Utslippsfaktorer!$B$6:$U$332,13,FALSE)*$G127","v":0},{"$f":"VLOOKUP($F127,Utslippsfaktorer!$B$6:$U$332,14,FALSE)*$G127","v":0},{"$f":"VLOOKUP($F127,Utslippsfaktorer!$B$6:$U$332,16,FALSE)*$G127","v":0},{"$f":"VLOOKUP($F127,Utslippsfaktorer!$B$6:$U$332,17,FALSE)*$G127","v":0},{"$f":"VLOOKUP($F127,Utslippsfaktorer!$B$6:$U$332,18,FALSE)*$G127","v":0},{"$f":"VLOOKUP($F127,Utslippsfaktorer!$B$6:$U$332,19,FALSE)*$G127","v":0},0,{"$f":"IFERROR(V127/$V$83,0)","v":0},{"$f":"VLOOKUP($F127,Utslippsfaktorer!$B$6:$U$332,3,FALSE)","v":"-"}]
[null,null,28,"282 Innvendige trapper","(egen data)",null,0,null,null,null,null,null,null,null,null,null,null,null,null,null,null,0,0]
[null,null,28,"282 Utvendige trapper","(Velg kategori)","(Velg material eller prosesser)",0,{"$f":"VLOOKUP($F129,Utslippsfaktorer!$B$6:$U$332,5,FALSE)","v":"-"},{"$f":"VLOOKUP($F129,Utslippsfaktorer!$B$6:$U$332,6,FALSE)","v":0},{"$f":"IFERROR(VLOOKUP($F129,Utslippsfaktorer!$B$6:$U$332,7,FALSE)*$G129,0)","v":0},{"$f":"VLOOKUP($F129,Utslippsfaktorer!$B$6:$U$332,8,FALSE)*$G129","v":0},{"$f":"VLOOKUP($F129,Utslippsfaktorer!$B$6:$U$332,9,FALSE)*$G129","v":0},{"$f":"VLOOKUP($F129,Utslippsfaktorer!$B$6:$U$332,10,FALSE)*$G129","v":0},{"$f":"VLOOKUP($F129,Utslippsfaktorer!$B$6:$U$332,11,FALSE)*$G129","v":0},{"$f":"VLOOKUP($F129,Utslippsfaktorer!$B$6:$U$332,12,FALSE)*$G129","v":0},{"$f":"VLOOKUP($F129,Utslippsfaktorer!$B$6:$U$332,13,FALSE)*$G129","v":0},{"$f":"VLOOKUP($F129,Utslippsfaktorer!$B$6:$U$332,14,FALSE)*$G129","v":0},{"$f":"VLOOKUP($F129,Utslippsfaktorer!$B$6:$U$332,16,FALSE)*$G129","v":0},{"$f":"VLOOKUP($F129,Utslippsfaktorer!$B$6:$U$332,17,FALSE)*$G129","v":0},{"$f":"VLOOKUP($F129,Utslippsfaktorer!$B$6:$U$332,18,FALSE)*$G129","v":0},{"$f":"VLOOKUP($F129,Utslippsfaktorer!$B$6:$U$332,19,FALSE)*$G129","v":0},0,0,{"$f":"VLOOKUP($F129,Utslippsfaktorer!$B$6:$U$332,3,FALSE)","v":"-"}]
[null,null,28,"283 Utvendige trapper","(egen data)",null,0,null,null,null,null,null,null,null,null,null,null,null,null,null,null,0,0]
[null,null,28,"283 Ramper","(Velg kategori)","(Velg material eller prosesser)",0,{"$f":"VLOOKUP($F131,Utslippsfaktorer!$B$6:$U$332,5,FALSE)","v":"-"},{"$f":"VLOOKUP($F131,Utslippsfaktorer!$B$6:$U$332,6,FALSE)","v":0},{"$f":"IFERROR(VLOOKUP($F131,Utslippsfaktorer!$B$6:$U$332,7,FALSE)*$G131,0)","v":0},{"$f":"VLOOKUP($F131,Utslippsfaktorer!$B$6:$U$332,8,FALSE)*$G131","v":0},{"$f":"VLOOKUP($F131,Utslippsfaktorer!$B$6:$U$332,9,FALSE)*$G131","v":0},{"$f":"VLOOKUP($F131,Utslippsfaktorer!$B$6:$U$332,10,FALSE)*$G131","v":0},{"$f":"VLOOKUP($F131,Utslippsfaktorer!$B$6:$U$332,11,FALSE)*$G131","v":0},{"$f":"VLOOKUP($F131,Utslippsfaktorer!$B$6:$U$332,12,FALSE)*$G131","v":0},{"$f":"VLOOKUP($F131,Utslippsfaktorer!$B$6:$U$332,13,FALSE)*$G131","v":0},{"$f":"VLOOKUP($F131,Utslippsfaktorer!$B$6:$U$332,14,FALSE)*$G131","v":0},{"$f":"VLOOKUP($F131,Utslippsfaktorer!$B$6:$U$332,16,FALSE)*$G131","v":0},{"$f":"VLOOKUP($F131,Utslippsfaktorer!$B$6:$U$332,17,FALSE)*$G131","v":0},{"$f":"VLOOKUP($F131,Utslippsfaktorer!$B$6:$U$332,18,FALSE)*$G131","v":0},{"$f":"VLOOKUP($F131,Utslippsfaktorer!$B$6:$U$332,19,FALSE)*$G131","v":0},0,0,{"$f":"VLOOKUP($F131,Utslippsfaktorer!$B$6:$U$332,3,FALSE)","v":"-"}]
[null,null,28,"284 Ramper","(egen data)",null,0,null,null,null,null,null,null,null,null,null,null,null,null,null,null,0,0]
[null,null,28,"284 Balkonger og verandaer","(Velg kategori)","(Velg material eller prosesser)",0,{"$f":"VLOOKUP($F133,Utslippsfaktorer!$B$6:$U$332,5,FALSE)","v":"-"},{"$f":"VLOOKUP($F133,Utslippsfaktorer!$B$6:$U$332,6,FALSE)","v":0},{"$f":"IFERROR(VLOOKUP($F133,Utslippsfaktorer!$B$6:$U$332,7,FALSE)*$G133,0)","v":0},{"$f":"VLOOKUP($F133,Utslippsfaktorer!$B$6:$U$332,8,FALSE)*$G133","v":0},{"$f":"VLOOKUP($F133,Utslippsfaktorer!$B$6:$U$332,9,FALSE)*$G133","v":0},{"$f":"VLOOKUP($F133,Utslippsfaktorer!$B$6:$U$332,10,FALSE)*$G133","v":0},{"$f":"VLOOKUP($F133,Utslippsfaktorer!$B$6:$U$332,11,FALSE)*$G133","v":0},{"$f":"VLOOKUP($F133,Utslippsfaktorer!$B$6:$U$332,12,FALSE)*$G133","v":0},{"$f":"VLOOKUP($F133,Utslippsfaktorer!$B$6:$U$332,13,FALSE)*$G133","v":0},{"$f":"VLOOKUP($F133,Utslippsfaktorer!$B$6:$U$332,14,FALSE)*$G133","v":0},{"$f":"VLOOKUP($F133,Utslippsfaktorer!$B$6:$U$332,16,FALSE)*$G133","v":0},{"$f":"VLOOKUP($F133,Utslippsfaktorer!$B$6:$U$332,17,FALSE)*$G133","v":0},{"$f":"VLOOKUP($F133,Utslippsfaktorer!$B$6:$U$332,18,FALSE)*$G133","v":0},{"$f":"VLOOKUP($F133,Utslippsfaktorer!$B$6:$U$332,19,FALSE)*$G133","v":0},0,0,{"$f":"VLOOKUP($F133,Utslippsfaktorer!$B$6:$U$332,3,FALSE)","v":"-"}]
[null,null,28,"285 Balkonger og verandaer","(egen data)",null,0,null,null,null,null,null,null,null,null,null,null,null,null,null,null,0,0]
[null,null,28,"285 Tribuner og amfier","(Velg kategori)","(Velg material eller prosesser)",0,{"$f":"VLOOKUP($F135,Utslippsfaktorer!$B$6:$U$332,5,FALSE)","v":"-"},{"$f":"VLOOKUP($F135,Utslippsfaktorer!$B$6:$U$332,6,FALSE)","v":0},{"$f":"IFERROR(VLOOKUP($F135,Utslippsfaktorer!$B$6:$U$332,7,FALSE)*$G135,0)","v":0},{"$f":"VLOOKUP($F135,Utslippsfaktorer!$B$6:$U$332,8,FALSE)*$G135","v":0},{"$f":"VLOOKUP($F135,Utslippsfaktorer!$B$6:$U$332,9,FALSE)*$G135","v":0},{"$f":"VLOOKUP($F135,Utslippsfaktorer!$B$6:$U$332,10,FALSE)*$G135","v":0},{"$f":"VLOOKUP($F135,Utslippsfaktorer!$B$6:$U$332,11,FALSE)*$G135","v":0},{"$f":"VLOOKUP($F135,Utslippsfaktorer!$B$6:$U$332,12,FALSE)*$G135","v":0},{"$f":"VLOOKUP($F135,Utslippsfaktorer!$B$6:$U$332,13,FALSE)*$G135","v":0},{"$f":"VLOOKUP($F135,Utslippsfaktorer!$B$6:$U$332,14,FALSE)*$G135","v":0},{"$f":"VLOOKUP($F135,Utslippsfaktorer!$B$6:$U$332,16,FALSE)*$G135","v":0},{"$f":"VLOOKUP($F135,Utslippsfaktorer!$B$6:$U$332,17,FALSE)*$G135","v":0},{"$f":"VLOOKUP($F135,Utslippsfaktorer!$B$6:$U$332,18,FALSE)*$G135","v":0},{"$f":"VLOOKUP($F135,Utslippsfaktorer!$B$6:$U$332,19,FALSE)*$G135","v":0},0,0,{"$f":"VLOOKUP($F135,Utslippsfaktorer!$B$6:$U$332,3,FALSE)","v":"-"}]
[null,null,28,"286 Tribuner og amfier","(egen data)",null,0,null,null,null,null,null,null,null,null,null,null,null,null,null,null,0,0]
[null,null,28,"286 Baldakiner og skjermtak","(Velg kategori)","(Velg material eller prosesser)",0,{"$f":"VLOOKUP($F137,Utslippsfaktorer!$B$6:$U$332,5,FALSE)","v":"-"},{"$f":"VLOOKUP($F137,Utslippsfaktorer!$B$6:$U$332,6,FALSE)","v":0},{"$f":"IFERROR(VLOOKUP($F137,Utslippsfaktorer!$B$6:$U$332,7,FALSE)*$G137,0)","v":0},{"$f":"VLOOKUP($F137,Utslippsfaktorer!$B$6:$U$332,8,FALSE)*$G137","v":0},{"$f":"VLOOKUP($F137,Utslippsfaktorer!$B$6:$U$332,9,FALSE)*$G137","v":0},{"$f":"VLOOKUP($F137,Utslippsfaktorer!$B$6:$U$332,10,FALSE)*$G137","v":0},{"$f":"VLOOKUP($F137,Utslippsfaktorer!$B$6:$U$332,11,FALSE)*$G137","v":0},{"$f":"VLOOKUP($F137,Utslippsfaktorer!$B$6:$U$332,12,FALSE)*$G137","v":0},{"$f":"VLOOKUP($F137,Utslippsfaktorer!$B$6:$U$332,13,FALSE)*$G137","v":0},{"$f":"VLOOKUP($F137,Utslippsfaktorer!$B$6:$U$332,14,FALSE)*$G137","v":0},{"$f":"VLOOKUP($F137,Utslippsfaktorer!$B$6:$U$332,16,FALSE)*$G137","v":0},{"$f":"VLOOKUP($F137,Utslippsfaktorer!$B$6:$U$332,17,FALSE)*$G137","v":0},{"$f":"VLOOKUP($F137,Utslippsfaktorer!$B$6:$U$332,18,FALSE)*$G137","v":0},{"$f":"VLOOKUP($F137,Utslippsfaktorer!$B$6:$U$332,19,FALSE)*$G137","v":0},0,0,{"$f":"VLOOKUP($F137,Utslippsfaktorer!$B$6:$U$332,3,FALSE)","v":"-"}]
[null,null,28,"287 Baldakiner og skjermtak","(egen data)",null,0,null,null,null,null,null,null,null,null,null,null,null,null,null,null,0,0]
[null,null,28,"287 Andre rekkverk, handlister og fendere","(Velg kategori)","(Velg material eller prosesser)",0,{"$f":"VLOOKUP($F139,Utslippsfaktorer!$B$6:$U$332,5,FALSE)","v":"-"},{"$f":"VLOOKUP($F139,Utslippsfaktorer!$B$6:$U$332,6,FALSE)","v":0},{"$f":"IFERROR(VLOOKUP($F139,Utslippsfaktorer!$B$6:$U$332,7,FALSE)*$G139,0)","v":0},{"$f":"VLOOKUP($F139,Utslippsfaktorer!$B$6:$U$332,8,FALSE)*$G139","v":0},{"$f":"VLOOKUP($F139,Utslippsfaktorer!$B$6:$U$332,9,FALSE)*$G139","v":0},{"$f":"VLOOKUP($F139,Utslippsfaktorer!$B$6:$U$332,10,FALSE)*$G139","v":0},{"$f":"VLOOKUP($F139,Utslippsfaktorer!$B$6:$U$332,11,FALSE)*$G139","v":0},{"$f":"VLOOKUP($F139,Utslippsfaktorer!$B$6:$U$332,12,FALSE)*$G139","v":0},{"$f":"VLOOKUP($F139,Utslippsfaktorer!$B$6:$U$332,13,FALSE)*$G139","v":0},{"$f":"VLOOKUP($F139,Utslippsfaktorer!$B$6:$U$332,14,FALSE)*$G139","v":0},{"$f":"VLOOKUP($F139,Utslippsfaktorer!$B$6:$U$332,16,FALSE)*$G139","v":0},{"$f":"VLOOKUP($F139,Utslippsfaktorer!$B$6:$U$332,17,FALSE)*$G139","v":0},{"$f":"VLOOKUP($F139,Utslippsfaktorer!$B$6:$U$332,18,FALSE)*$G139","v":0},{"$f":"VLOOKUP($F139,Utslippsfaktorer!$B$6:$U$332,19,FALSE)*$G139","v":0},0,0,{"$f":"VLOOKUP($F139,Utslippsfaktorer!$B$6:$U$332,3,FALSE)","v":"-"}]
[null,null,28,"288 Andre rekkverk, handlister og fendere","(egen data)",null,0,null,null,null,null,null,null,null,null,null,null,null,null,null,null,0,0]
[null,null,28,"288 Utstyr og kompletteringer for\ntrapper, balkonger m.m.","(Velg kategori)","(Velg material eller prosesser)",0,{"$f":"VLOOKUP($F141,Utslippsfaktorer!$B$6:$U$332,5,FALSE)","v":"-"},{"$f":"VLOOKUP($F141,Utslippsfaktorer!$B$6:$U$332,6,FALSE)","v":0},{"$f":"IFERROR(VLOOKUP($F141,Utslippsfaktorer!$B$6:$U$332,7,FALSE)*$G141,0)","v":0},{"$f":"VLOOKUP($F141,Utslippsfaktorer!$B$6:$U$332,8,FALSE)*$G141","v":0},{"$f":"VLOOKUP($F141,Utslippsfaktorer!$B$6:$U$332,9,FALSE)*$G141","v":0},{"$f":"VLOOKUP($F141,Utslippsfaktorer!$B$6:$U$332,10,FALSE)*$G141","v":0},{"$f":"VLOOKUP($F141,Utslippsfaktorer!$B$6:$U$332,11,FALSE)*$G141","v":0},{"$f":"VLOOKUP($F141,Utslippsfaktorer!$B$6:$U$332,12,FALSE)*$G141","v":0},{"$f":"VLOOKUP($F141,Utslippsfaktorer!$B$6:$U$332,13,FALSE)*$G141","v":0},{"$f":"VLOOKUP($F141,Utslippsfaktorer!$B$6:$U$332,14,FALSE)*$G141","v":0},{"$f":"VLOOKUP($F141,Utslippsfaktorer!$B$6:$U$332,16,FALSE)*$G141","v":0},{"$f":"VLOOKUP($F141,Utslippsfaktorer!$B$6:$U$332,17,FALSE)*$G141","v":0},{"$f":"VLOOKUP($F141,Utslippsfaktorer!$B$6:$U$332,18,FALSE)*$G141","v":0},{"$f":"VLOOKUP($F141,Utslippsfaktorer!$B$6:$U$332,19,FALSE)*$G141","v":0},0,0,{"$f":"VLOOKUP($F141,Utslippsfaktorer!$B$6:$U$332,3,FALSE)","v":"-"}]
[null,null,28,"289 Utstyr og kompletteringer for\ntrapper, balkonger m.m.","(egen data)",null,0,null,null,null,null,null,null,null,null,null,null,null,null,null,null,0,0]
[null,null,28,"289 Andre trapper, balkonger m.m.","(Velg kategori)","(Velg material eller prosesser)",0,{"$f":"VLOOKUP($F143,Utslippsfaktorer!$B$6:$U$332,5,FALSE)","v":"-"},{"$f":"VLOOKUP($F143,Utslippsfaktorer!$B$6:$U$332,6,FALSE)","v":0},{"$f":"IFERROR(VLOOKUP($F143,Utslippsfaktorer!$B$6:$U$332,7,FALSE)*$G143,0)","v":0},{"$f":"VLOOKUP($F143,Utslippsfaktorer!$B$6:$U$332,8,FALSE)*$G143","v":0},{"$f":"VLOOKUP($F143,Utslippsfaktorer!$B$6:$U$332,9,FALSE)*$G143","v":0},{"$f":"VLOOKUP($F143,Utslippsfaktorer!$B$6:$U$332,10,FALSE)*$G143","v":0},{"$f":"VLOOKUP($F143,Utslippsfaktorer!$B$6:$U$332,11,FALSE)*$G143","v":0},{"$f":"VLOOKUP($F143,Utslippsfaktorer!$B$6:$U$332,12,FALSE)*$G143","v":0},{"$f":"VLOOKUP($F143,Utslippsfaktorer!$B$6:$U$332,13,FALSE)*$G143","v":0},{"$f":"VLOOKUP($F143,Utslippsfaktorer!$B$6:$U$332,14,FALSE)*$G143","v":0},{"$f":"VLOOKUP($F143,Utslippsfaktorer!$B$6:$U$332,16,FALSE)*$G143","v":0},{"$f":"VLOOKUP($F143,Utslippsfaktorer!$B$6:$U$332,17,FALSE)*$G143","v":0},{"$f":"VLOOKUP($F143,Utslippsfaktorer!$B$6:$U$332,18,FALSE)*$G143","v":0},{"$f":"VLOOKUP($F143,Utslippsfaktorer!$B$6:$U$332,19,FALSE)*$G143","v":0},0,0,{"$f":"VLOOKUP($F143,Utslippsfaktorer!$B$6:$U$332,3,FALSE)","v":"-"}]
[null,null,28,"289 Andre trapper, balkonger m.m.","(egen data)",null,0,null,null,null,null,null,null,null,null,null,null,null,null,null,null,0,0]
[]
["seksjon8",null,49,"Andre elkraftinstallasjoner",null,null,null,null,null,{"$f":"IFERROR((SUM(J147:J148)),\"Not assessed\")","v":0},0,0,0,0,0,0,0,0,0,0,0,0,null,{"$f":"IFERROR(V146/$U$2,0)","v":0}]
[null,null,49,49,"(egen data)",null,0,null,null,null,null,null,null,null,null,null,null,null,null,null,null,{"$f":"SUM(J147:U147)","v":0},{"$f":"IFERROR(V147/$V$104,0)","v":0}]
[null,null,49,49,"(Velg kategori)","(Velg material eller prosesser)",0,{"$f":"VLOOKUP($F148,Utslippsfaktorer!$B$6:$U$332,5,FALSE)","v":"-"},{"$f":"VLOOKUP($F148,Utslippsfaktorer!$B$6:$U$332,6,FALSE)","v":0},{"$f":"IFERROR(VLOOKUP($F148,Utslippsfaktorer!$B$6:$U$332,7,FALSE)*$G148,0)","v":0},{"$f":"VLOOKUP($F148,Utslippsfaktorer!$B$6:$U$332,8,FALSE)*$G148","v":0},{"$f":"VLOOKUP($F148,Utslippsfaktorer!$B$6:$U$332,9,FALSE)*$G148","v":0},{"$f":"VLOOKUP($F148,Utslippsfaktorer!$B$6:$U$332,10,FALSE)*$G148","v":0},{"$f":"VLOOKUP($F148,Utslippsfaktorer!$B$6:$U$332,11,FALSE)*$G148","v":0},{"$f":"VLOOKUP($F148,Utslippsfaktorer!$B$6:$U$332,12,FALSE)*$G148","v":0},{"$f":"VLOOKUP($F148,Utslippsfaktorer!$B$6:$U$332,13,FALSE)*$G148","v":0},{"$f":"VLOOKUP($F148,Utslippsfaktorer!$B$6:$U$332,14,FALSE)*$G148","v":0},{"$f":"VLOOKUP($F148,Utslippsfaktorer!$B$6:$U$332,16,FALSE)*$G148","v":0},{"$f":"VLOOKUP($F148,Utslippsfaktorer!$B$6:$U$332,17,FALSE)*$G148","v":0},{"$f":"VLOOKUP($F148,Utslippsfaktorer!$B$6:$U$332,18,FALSE)*$G148","v":0},{"$f":"VLOOKUP($F148,Utslippsfaktorer!$B$6:$U$332,19,FALSE)*$G148","v":0},0,{"$f":"IFERROR(V148/$V$104,0)","v":0},{"$f":"VLOOKUP($F148,Utslippsfaktorer!$B$6:$U$332,3,FALSE)","v":"-"}]
[]
["seksjon9"]
[null,"Energibruk på byggeplass (del av A5)",null,null,null,null,null,null,null,null,null,null,null,null,null,null,null,null,null,null,null,{"$f":"SUM(V152:V154)","v":2670},null,null,{"$f":"IFERROR(V151/$U$2,0)","v":2.7033555148979087E-2}]
[null,null,null,null,null,"_Elektrisitet (NO)",0,{"$f":"VLOOKUP($F152,Utslippsfaktorer!$B$6:$U$332,5,FALSE)","v":"kWh"},{"$f":"_xlfn.IFS(AND(Prosjektbeskrivelse!$C$13=\"Utslippsfri\",H152=\"liter\",G152>0),\"Krav for utslippsfri byggeplass!\",AND(Prosjektbeskrivelse!$C$13=\"Fossilfri\",OR(ISNUMBER(FIND(\"Diesel\",F152)),ISNUMBER(FIND(\"LPG\",F152))),G152>0),\"Krav for fossilfri byggeplass!\",TRUE,\"\")","v":""},null,null,null,null,null,null,null,null,null,null,null,null,{"$f":"IFERROR(VLOOKUP($F152,Utslippsfaktorer!$B$6:$U$332,7,FALSE)*$G152,0)","v":0},{"$f":"IFERROR(V152/$V$151,0)","v":0}]
[null,null,null,null,null,"Diesel",1000,{"$f":"VLOOKUP($F153,Utslippsfaktorer!$B$6:$U$332,5,FALSE)","v":"liter"},{"$f":"_xlfn.IFS(AND(Prosjektbeskrivelse!$C$13=\"Utslippsfri\",H153=\"liter\",G153>0),\"Krav for utslippsfri byggeplass!\",AND(Prosjektbeskrivelse!$C$13=\"Fossilfri\",OR(ISNUMBER(FIND(\"Diesel\",F153)),ISNUMBER(FIND(\"LPG\",F153))),G153>0),\"Krav for fossilfri byggeplass!\",TRUE,\"\")","v":"Krav for fossilfri byggeplass!"},null,null,null,null,null,null,null,null,null,null,null,null,{"$f":"IFERROR(VLOOKUP($F153,Utslippsfaktorer!$B$6:$U$332,7,FALSE)*$G153,0)","v":2670},1]
[null,null,null,null,null,"Biodiesel",0,{"$f":"VLOOKUP($F154,Utslippsfaktorer!$B$6:$U$332,5,FALSE)","v":"liter"},{"$f":"_xlfn.IFS(AND(Prosjektbeskrivelse!$C$13=\"Utslippsfri\",H154=\"liter\",G154>0),\"Krav for utslippsfri byggeplass!\",AND(Prosjektbeskrivelse!$C$13=\"Fossilfri\",OR(ISNUMBER(FIND(\"Diesel\",F154)),ISNUMBER(FIND(\"LPG\",F154))),G154>0),\"Krav for fossilfri byggeplass!\",TRUE,\"\")","v":""},null,null,null,null,null,null,null,null,null,null,null,null,{"$f":"IFERROR(VLOOKUP($F154,Utslippsfaktorer!$B$6:$U$332,7,FALSE)*$G154,0)","v":0},{"$f":"IFERROR(V154/$V$151,0)","v":0}]
[]
[null,"Energibruk i drift (B6)",null,null,null,null,null,null,null,null,null,null,null,null,null,null,null,null,null,null,null,{"$f":"SUM(V158:V164)","v":23814},null,null,{"$f":"IFERROR(V156/$U$2,0)","v":0.24111501210404046}]
[null,null,null,null,null,null,"Nøkkelverdi (PROfet)",null,null,"Verdier fra egen beregning ",null,null,"Endelige verdier",null,null,"Totalt energibruk",null,null,null,null,null,"Utslipp","% per energibehov"]
[null,null,null,null,"Oppvarming","_Elektrisitet (NO)",{"$f":"VLOOKUP(_xlfn.CONCAT(Prosjektbeskrivelse!$C$16,\" \",Prosjektbeskrivelse!$C$17),Input_rullegardin!$I$4:$N$39,4,FALSE)","v":102},"kWh/(m2·år)",null,null,"kWh/(m2·år)",null,{"$f":"IF(ISBLANK(J158),G158,J158)","v":102},"kWh/(m2BTA.år)",null,{"$f":"M158*Prosjektbeskrivelse!$C$21*Prosjektbeskrivelse!$C$24","v":688500},"kWh",null,null,null,null,{"$f":"IFERROR(VLOOKUP($F158,Utslippsfaktorer!$B$6:$U$332,7,FALSE)*$P158,0)","v":12392.999999999998},{"$f":"IFERROR(V158/$V$156,0)","v":0.52040816326530603}]
[null,null,null,null,null,"_Fjernvarme, Trondheim, NO (snitt 2019-2021)",null,null,null,null,"kWh/(m2·år)",null,0,"kWh/(m2BTA.år)",null,{"$f":"M159*Prosjektbeskrivelse!$C$21*Prosjektbeskrivelse!$C$24","v":0},"kWh",null,null,null,null,{"$f":"IFERROR(VLOOKUP($F159,Utslippsfaktorer!$B$6:$U$332,7,FALSE)*$P159,0)","v":0},{"$f":"IFERROR(V159/$V$156,0)","v":0}]
[null,null,null,null,"Vannoppvarming","_Elektrisitet (NO)",{"$f":"VLOOKUP(_xlfn.CONCAT(Prosjektbeskrivelse!$C$16,\" \",Prosjektbeskrivelse!$C$17),Input_rullegardin!$I$4:$N$39,5,FALSE)","v":19},"kWh/(m2·år)",null,null,"kWh/(m2·år)",null,19,"kWh/(m2BTA.år)",null,{"$f":"M160*Prosjektbeskrivelse!$C$21*Prosjektbeskrivelse!$C$24","v":128250},"kWh",null,null,null,null,{"$f":"IFERROR(VLOOKUP($F160,Utslippsfaktorer!$B$6:$U$332,7,FALSE)*$P160,0)","v":2308.5},{"$f":"IFERROR(V160/$V$156,0)","v":9.6938775510204078E-2}]
[null,null,null,null,"Elektriske apparater","_Elektrisitet (NO)",{"$f":"VLOOKUP(_xlfn.CONCAT(Prosjektbeskrivelse!$C$16,\" \",Prosjektbeskrivelse!$C$17),Input_rullegardin!$I$4:$N$39,6,FALSE)","v":75},"kWh/(m2·år)",null,null,"kWh/(m2·år)",null,75,"kWh/(m2BTA.år)",null,{"$f":"M161*Prosjektbeskrivelse!$C$21*Prosjektbeskrivelse!$C$24","v":506250},"kWh",null,null,null,null,{"$f":"IFERROR(VLOOKUP($F161,Utslippsfaktorer!$B$6:$U$332,7,FALSE)*$P161,0)","v":9112.5},0.38265306122448978]
[null,null,null,null,"Kjøling","_Elektrisitet (NO)",null,"kWh/(m2·år)",null,null,"kWh/(m2·år)",null,0,"kWh/(m2BTA.år)",null,{"$f":"M162*Prosjektbeskrivelse!$C$21*Prosjektbeskrivelse!$C$24","v":0},"kWh",null,null,null,null,{"$f":"IFERROR(VLOOKUP($F162,Utslippsfaktorer!$B$6:$U$332,7,FALSE)*$P162,0)","v":0},0]
[null,null,null,null,"Luftbehandling","_Elektrisitet (NO)",null,"kWh/(m2·år)",null,null,"kWh/(m2·år)",null,0,"kWh/(m2BTA.år)",null,{"$f":"M163*Prosjektbeskrivelse!$C$21*Prosjektbeskrivelse!$C$24","v":0},"kWh",null,null,null,null,{"$f":"IFERROR(VLOOKUP($F163,Utslippsfaktorer!$B$6:$U$332,7,FALSE)*$P163,0)","v":0},0]
[null,null,null,null,"Annet","_Elektrisitet (NO)",null,"kWh/(m2·år)",null,null,"kWh/(m2·år)",null,0,"kWh/(m2BTA.år)",null,{"$f":"M164*Prosjektbeskrivelse!$C$21*Prosjektbeskrivelse!$C$24","v":0},"kWh",null,null,null,null,{"$f":"IFERROR(VLOOKUP($F164,Utslippsfaktorer!$B$6:$U$332,7,FALSE)*$P164,0)","v":0},0]
[]
[]
[{"$f":"Veiledning!B2","v":"Versjon 2023-04-13. Utviklet av SINTEF AS."}]

{"sheet":"Resultater","index":7,"n_rows":162,"n_cols":21,"rows_kept":162,"cut":false,"hidden":false,"merged":[[60,17,60,18],[126,2,126,16],[60,15,60,16],[127,15,127,16],[92,2,92,16],[93,15,93,16],[59,2,59,16],[4,1,5,1],[3,19,3,20],[3,17,3,18],[3,15,3,16]]}
[]
[null,null,"Klimagassregnskap, resultater"]
[]
[null,null,null,null,"Produktstadiet","Transport","Bygge- og monterings-arbeid","Bygge- og monterings-arbeid","Vedlikehold","Reparasjon","Utskiftning","Energibruk i drift","Transport i drift","Sluttstadiet",null,"TEK17 krav ",null,"Trondheim kommunes krav",null,"Alle moduler"]
[null,"Prosjektspesifikke verdier?",null,null,"A1-A3","A4","A5-Svinn","A5-Arbeid","B2","B3","B4","B6","B8","C1-C4",null,"Totalt klimagassutslipp","Klimagassutslipp per år og per m2 BTA","Totalt","Klimagassutslipp per år og per m2 BTA","Totalt","Klimagassutslipp per år og per m2 BTA"]
[null,null,null,null,"kgCO2e","kgCO2e","kgCO2e","kgCO2e","kgCO2e","kgCO2e","kgCO2e","kgCO2e","kgCO2e","kgCO2e",null,"kgCO2e","kgCO2e/(m2BTA.år)","kgCO2e","kgCO2e/(m2BTA.år)","kgCO2e","kgCO2e/(m2BTA.år)"]
[]
[null,{"$f":"IF(COUNTA(Skisseprosjekt!F9:K9,Skisseprosjekt!G46:G52)=0,\"Nei\",\"Ja\")","v":"Nei"},"Skisseprosjekt/Reguleringsfase",null,{"$f":"Skisseprosjekt!F11","v":28057.5},{"$f":"Skisseprosjekt!G11","v":652.5},"-",{"$f":"Skisseprosjekt!H11","v":11194.588800000001},"-","-",{"$f":"Skisseprosjekt!I11","v":652.5},{"$f":"Skisseprosjekt!J11","v":19197},{"$f":"Skisseprosjekt!K11","v":0},"-",null,"-","-",{"$f":"SUM(E8:F8,H8,K8:M8)","v":59754.088799999998},{"$f":"IFERROR(R8/(Prosjektbeskrivelse!$C$19*Prosjektbeskrivelse!$C$18),0)","v":8.241943282758621},"-","-"]
[]
[]
[null,null,"Referansebygg",null,{"$f":"SUM(E12:E21)","v":2098080.5476197321},{"$f":"SUM(F12:F21)","v":104239.86645564954},{"$f":"SUM(G12:G21)","v":179902.09894497739},{"$f":"SUM(H12:H21)","v":32400.000000000004},"-",{"$f":"SUM(J12:J21)","v":0},{"$f":"SUM(K12:K21)","v":462540.21051475394},{"$f":"SUM(L12:L21)","v":23814},null,{"$f":"SUM(N12:N21)","v":302003.0603464577},null,{"$f":"SUM(P12:P17)","v":2833707.5885956157},{"$f":"SUM(Q12:Q17)","v":390.85621911663662},{"$f":"SUM(R12:R21)","v":2900976.7235351126},{"$f":"SUM(S12:S21)","v":400.13472048760173},3202979.7838815707,441.79031501814762]
[null,"-","21 Fundamentering",null,{"$f":"Referansebygg!$F$8","v":301122},{"$f":"Referansebygg!$G$8","v":38592.743527839099},{"$f":"Referansebygg!$H$8","v":26892.649939452702},"-","-",{"$f":"Referansebygg!$I$9","v":0},{"$f":"Referansebygg!$J$9","v":0},"-","-",{"$f":"Referansebygg!$L$8","v":109371.23257390995},null,{"$f":"IFERROR(SUM(E12:G12,K12),0)","v":366607.39346729178},{"$f":"IFERROR(P12/(Prosjektbeskrivelse!$C$19*Prosjektbeskrivelse!$C$18),0)","v":50.566537029971279},{"$f":"IFERROR(SUM(E12:I12,K12:L12),0)","v":366607.39346729178},{"$f":"IFERROR(R12/(Prosjektbeskrivelse!$C$19*Prosjektbeskrivelse!$C$18),0)","v":50.566537029971279},{"$f":"IFERROR(SUM(E12:N12),0)","v":475978.62604120176},{"$f":"IFERROR(T12/(Prosjektbeskrivelse!$C$19*Prosjektbeskrivelse!$C$18),0)","v":65.652224281545074}]
[null,"-","22 Bæresystemer",null,{"$f":"Referansebygg!$F$13","v":313033.1201},{"$f":"Referansebygg!$G$13","v":6199.4932357822636},{"$f":"Referansebygg!$H$13","v":13449.705985564011},"-","-",{"$f":"Referansebygg!$I$13","v":0},{"$f":"Referansebygg!$J$13","v":0},"-","-",{"$f":"Referansebygg!$L$13","v":7864.2422797204681},null,332682.31932134624,{"$f":"IFERROR(P13/(Prosjektbeskrivelse!$C$19*Prosjektbeskrivelse!$C$18),0)","v":45.887216458116725},332682.31932134624,{"$f":"IFERROR(R13/(Prosjektbeskrivelse!$C$19*Prosjektbeskrivelse!$C$18),0)","v":45.887216458116725},340546.56160106673,{"$f":"IFERROR(T13/(Prosjektbeskrivelse!$C$19*Prosjektbeskrivelse!$C$18),0)","v":46.971939531181619}]
[null,"-","23 Yttervegger",null,{"$f":"Referansebygg!$F$19","v":434171.91206330527},{"$f":"Referansebygg!$G$19","v":25924.811369692659},{"$f":"Referansebygg!$H$19","v":32807.203291910475},"-","-",{"$f":"Referansebygg!I19","v":0},{"$f":"Referansebygg!$J$19","v":128950.72001526383},"-","-",{"$f":"Referansebygg!$L$19","v":30380.953814469907},null,621854.64674017229,{"$f":"IFERROR(P14/(Prosjektbeskrivelse!$C$19*Prosjektbeskrivelse!$C$18),0)","v":85.773054722782391},621854.64674017229,{"$f":"IFERROR(R14/(Prosjektbeskrivelse!$C$19*Prosjektbeskrivelse!$C$18),0)","v":85.773054722782391},652235.60055464215,{"$f":"IFERROR(T14/(Prosjektbeskrivelse!$C$19*Prosjektbeskrivelse!$C$18),0)","v":89.96353111098513}]
[null,"-","24 Innervegger",null,{"$f":"Referansebygg!$F$26","v":287327.65868448315},{"$f":"Referansebygg!$G$26","v":2672.2843381702478},{"$f":"Referansebygg!$H$26","v":17646.30666321886},"-","-",{"$f":"Referansebygg!I26","v":0},{"$f":"Referansebygg!$J$26","v":135882.10766299019},"-","-",{"$f":"Referansebygg!$L$26","v":20398.69111871186},null,443528.35734886245,{"$f":"IFERROR(P15/(Prosjektbeskrivelse!$C$19*Prosjektbeskrivelse!$C$18),0)","v":61.176325151567234},443528.35734886245,{"$f":"IFERROR(R15/(Prosjektbeskrivelse!$C$19*Prosjektbeskrivelse!$C$18),0)","v":61.176325151567234},463927.04846757429,{"$f":"IFERROR(T15/(Prosjektbeskrivelse!$C$19*Prosjektbeskrivelse!$C$18),0)","v":63.98993771966542}]
[null,"-","25 Dekker",null,{"$f":"Referansebygg!$F$33","v":623963.81682305841},{"$f":"Referansebygg!$G$33","v":25036.329999336769},{"$f":"Referansebygg!$H$33","v":51916.933264609172},"-","-",{"$f":"Referansebygg!I33","v":0},{"$f":"Referansebygg!$J$33","v":79704.462240603782},"-","-",{"$f":"Referansebygg!$L$33","v":46549.527939039981},null,780621.5423276081,{"$f":"IFERROR(P16/(Prosjektbeskrivelse!$C$19*Prosjektbeskrivelse!$C$18),0)","v":107.67193687277353},780621.5423276081,{"$f":"IFERROR(R16/(Prosjektbeskrivelse!$C$19*Prosjektbeskrivelse!$C$18),0)","v":107.67193687277353},827171.07026664808,{"$f":"IFERROR(T16/(Prosjektbeskrivelse!$C$19*Prosjektbeskrivelse!$C$18),0)","v":114.0925614160894}]
[null,"-","26 Yttertak",null,{"$f":"Referansebygg!$F$41","v":129562.03994888501},{"$f":"Referansebygg!$G$41","v":5660.4666173054829},{"$f":"Referansebygg!$H$41","v":35987.902228248211},"-","-",{"$f":"Referansebygg!I41","v":0},{"$f":"Referansebygg!$J$41","v":117202.92059589623},"-","-",{"$f":"Referansebygg!$L$41","v":85147.704491212702},null,288413.3293903349,{"$f":"IFERROR(P17/(Prosjektbeskrivelse!$C$19*Prosjektbeskrivelse!$C$18),0)","v":39.781148881425501},288413.3293903349,{"$f":"IFERROR(R17/(Prosjektbeskrivelse!$C$19*Prosjektbeskrivelse!$C$18),0)","v":39.781148881425501},373561.03388154763,{"$f":"IFERROR(T17/(Prosjektbeskrivelse!$C$19*Prosjektbeskrivelse!$C$18),0)","v":51.525659845730708}]
[null,"-","28 Trapper, balkonger, m.m.",null,{"$f":"Referansebygg!$F$48","v":8000},{"$f":"Referansebygg!$G$48","v":76.86868376151358},{"$f":"Referansebygg!$H$48","v":1141.3975719739683},"-","-",{"$f":"Referansebygg!I42","v":0},{"$f":"Referansebygg!$J$48","v":0},"-","-",{"$f":"Referansebygg!$L$48","v":1145.3540646964102},null,"-",{"$f":"IFERROR(P18/(Prosjektbeskrivelse!$C$19*Prosjektbeskrivelse!$C$18),0)","v":0},9218.2662557354815,{"$f":"IFERROR(R18/(Prosjektbeskrivelse!$C$19*Prosjektbeskrivelse!$C$18),0)","v":1.2714850007911009},{"$f":"IFERROR(SUM(E18:N18),0)","v":10363.620320431892},{"$f":"IFERROR(T18/(Prosjektbeskrivelse!$C$19*Prosjektbeskrivelse!$C$18),0)","v":1.4294648717837093}]
[null,"-","49 Andre elkraftinstallasjoner",null,{"$f":"Referansebygg!$F$55","v":900},{"$f":"Referansebygg!$G$55","v":76.86868376151358},{"$f":"Referansebygg!$H$55","v":60},"-","-",{"$f":"Referansebygg!I42","v":0},{"$f":"Referansebygg!$J$55","v":800},"-","-",{"$f":"Referansebygg!$L$55","v":1145.3540646964102},null,"-",{"$f":"IFERROR(P19/(Prosjektbeskrivelse!$C$19*Prosjektbeskrivelse!$C$18),0)","v":0},1836.8686837615137,{"$f":"IFERROR(R19/(Prosjektbeskrivelse!$C$19*Prosjektbeskrivelse!$C$18),0)","v":0.25336119776020877},{"$f":"IFERROR(SUM(E19:N19),0)","v":2982.2227484579239},{"$f":"IFERROR(T19/(Prosjektbeskrivelse!$C$19*Prosjektbeskrivelse!$C$18),0)","v":0.41134106875281706}]
[null,"-","Energibruk konstruksjon",null,"-","-","-",{"$f":"Referansebygg!$M$60","v":32400.000000000004},"-","-","-","-","-","-",null,"-","-",32400.000000000004,{"$f":"IFERROR(R20/(Prosjektbeskrivelse!$C$19*Prosjektbeskrivelse!$C$18),0)","v":4.4689655172413802},32400.000000000004,{"$f":"IFERROR(T20/(Prosjektbeskrivelse!$C$19*Prosjektbeskrivelse!$C$18),0)","v":4.4689655172413802}]
[null,"-","Energibruk i drift",null,"-","-","-","-","-","-","-",{"$f":"Referansebygg!$M$65","v":23814},"-","-",null,"-","-",23814,{"$f":"IFERROR(R21/(Prosjektbeskrivelse!$C$19*Prosjektbeskrivelse!$C$18),0)","v":3.2846896551724138},23814,{"$f":"IFERROR(T21/(Prosjektbeskrivelse!$C$19*Prosjektbeskrivelse!$C$18),0)","v":3.2846896551724138}]
[]
[null,null,"Forprosjekt",null,{"$f":"SUM(E24:E33)","v":77419.131818181821},{"$f":"SUM(F24:F33)","v":38.32938},{"$f":"SUM(G24:G33)","v":3872.8730599090909},{"$f":"SUM(H24:H33)","v":26700},null,null,{"$f":"SUM(K24:K33)","v":10766.25},{"$f":"SUM(L24:L33)","v":23814},null,null,null,{"$f":"SUM(P24:P29)","v":75131.584258090908},{"$f":"SUM(Q24:Q29)","v":10.362977139047022},{"$f":"SUM(R24:R33)","v":142610.58425809091},{"$f":"SUM(S24:S33)","v":19.67042541490909},{"$f":"SUM(T24:T33)","v":142610.58425809091},{"$f":"SUM(U24:U33)","v":19.67042541490909}]
[null,{"$f":"IF(AND(Forprosjekt!E8=FALSE,SUMIF(Forprosjekt!E9:E11,\"(egen data)\",Forprosjekt!N9:N11)>0),\"Ja\",\"Nei\")","v":"Nei"},"21 Fundamentering",null,{"$f":"Forprosjekt!J7","v":34354.131818181821},{"$f":"Forprosjekt!K7","v":38.32938},{"$f":"Forprosjekt!L7","v":1719.6230599090909},"-","-","-",{"$f":"Forprosjekt!M7","v":0},"-","-","-",null,{"$f":"IFERROR(SUM(E24:G24,K24),0)","v":36112.084258090916},{"$f":"IFERROR(P24/(Prosjektbeskrivelse!$C$19*Prosjektbeskrivelse!$C$18),0)","v":4.980977139047023},{"$f":"IFERROR(SUM(E24:I24,K24:L24),0)","v":36112.084258090916},{"$f":"IFERROR(R24/(Prosjektbeskrivelse!$C$19*Prosjektbeskrivelse!$C$18),0)","v":4.980977139047023},{"$f":"IFERROR(SUM(E24:N24),0)","v":36112.084258090916},{"$f":"IFERROR(T24/(Prosjektbeskrivelse!$C$19*Prosjektbeskrivelse!$C$18),0)","v":4.980977139047023}]
[null,{"$f":"IF(AND(Forprosjekt!E14=FALSE,SUMIF(Forprosjekt!E15:E16,\"(egen data)\",Forprosjekt!N15:N16)>0),\"Ja\",\"Nei\")","v":"Nei"},"22 Bæresystemer",null,{"$f":"Forprosjekt!$J$13","v":3914.9999999999995},{"$f":"Forprosjekt!$K$13","v":0},{"$f":"Forprosjekt!$L$13","v":195.75},"-","-","-",{"$f":"Forprosjekt!$M$13","v":978.74999999999989},"-","-","-",null,5089.5,{"$f":"IFERROR(P25/(Prosjektbeskrivelse!$C$19*Prosjektbeskrivelse!$C$18),0)","v":0.70199999999999996},5089.5,{"$f":"IFERROR(R25/(Prosjektbeskrivelse!$C$19*Prosjektbeskrivelse!$C$18),0)","v":0.70199999999999996},5089.5,{"$f":"IFERROR(T25/(Prosjektbeskrivelse!$C$19*Prosjektbeskrivelse!$C$18),0)","v":0.70199999999999996}]
[null,{"$f":"IF(AND(Forprosjekt!E19=FALSE,SUMIF(Forprosjekt!E20:E21,\"(egen data)\",Forprosjekt!N20:N21)>0),\"Ja\",\"Nei\")","v":"Nei"},"23 Yttervegger",null,{"$f":"Forprosjekt!$J$18","v":7829.9999999999991},{"$f":"Forprosjekt!$K$18","v":0},{"$f":"Forprosjekt!$L$18","v":391.5},"-","-","-",{"$f":"Forprosjekt!$M$18","v":1957.4999999999998},"-","-","-",null,10179,{"$f":"IFERROR(P26/(Prosjektbeskrivelse!$C$19*Prosjektbeskrivelse!$C$18),0)","v":1.4039999999999999},10179,{"$f":"IFERROR(R26/(Prosjektbeskrivelse!$C$19*Prosjektbeskrivelse!$C$18),0)","v":1.4039999999999999},10179,{"$f":"IFERROR(T26/(Prosjektbeskrivelse!$C$19*Prosjektbeskrivelse!$C$18),0)","v":1.4039999999999999}]
[null,{"$f":"IF(AND(Forprosjekt!E24=FALSE,SUMIF(Forprosjekt!E25:E26,\"(egen data)\",Forprosjekt!N25:N26)>0),\"Ja\",\"Nei\")","v":"Nei"},"24 Innervegger",null,{"$f":"Forprosjekt!$J$23","v":5872.5},{"$f":"Forprosjekt!$K$23","v":0},{"$f":"Forprosjekt!$L$23","v":293.625},"-","-","-",{"$f":"Forprosjekt!$M$23","v":1468.125},"-","-","-",null,7634.25,{"$f":"IFERROR(P27/(Prosjektbeskrivelse!$C$19*Prosjektbeskrivelse!$C$18),0)","v":1.0529999999999999},7634.25,{"$f":"IFERROR(R27/(Prosjektbeskrivelse!$C$19*Prosjektbeskrivelse!$C$18),0)","v":1.0529999999999999},7634.25,{"$f":"IFERROR(T27/(Prosjektbeskrivelse!$C$19*Prosjektbeskrivelse!$C$18),0)","v":1.0529999999999999}]
[null,{"$f":"IF(AND(Forprosjekt!E29=FALSE,SUMIF(Forprosjekt!E29:E31,\"(egen data)\",Forprosjekt!N30:N31)>0),\"Ja\",\"Nei\")","v":"Nei"},"25 Dekker",null,{"$f":"Forprosjekt!$J$28","v":9134.9999999999982},{"$f":"Forprosjekt!$K$28","v":0},{"$f":"Forprosjekt!$L$28","v":456.74999999999994},"-","-","-",{"$f":"Forprosjekt!$M$28","v":2283.7499999999995},"-","-","-",null,11875.499999999998,{"$f":"IFERROR(P28/(Prosjektbeskrivelse!$C$19*Prosjektbeskrivelse!$C$18),0)","v":1.6379999999999997},11875.499999999998,{"$f":"IFERROR(R28/(Prosjektbeskrivelse!$C$19*Prosjektbeskrivelse!$C$18),0)","v":1.6379999999999997},11875.499999999998,{"$f":"IFERROR(T28/(Prosjektbeskrivelse!$C$19*Prosjektbeskrivelse!$C$18),0)","v":1.6379999999999997}]
[null,{"$f":"IF(AND(Forprosjekt!E34=FALSE,SUMIF(Forprosjekt!E35:E36,\"(egen data)\",Forprosjekt!N35:N36)>0),\"Ja\",\"Nei\")","v":"Nei"},"26 Yttertak",null,{"$f":"Forprosjekt!$J$33","v":3262.5},{"$f":"Forprosjekt!$K$33","v":0},{"$f":"Forprosjekt!$L$33","v":163.125},"-","-","-",{"$f":"Forprosjekt!$M$33","v":815.625},"-","-","-",null,4241.25,{"$f":"IFERROR(P29/(Prosjektbeskrivelse!$C$19*Prosjektbeskrivelse!$C$18),0)","v":0.58499999999999996},4241.25,{"$f":"IFERROR(R29/(Prosjektbeskrivelse!$C$19*Prosjektbeskrivelse!$C$18),0)","v":0.58499999999999996},4241.25,{"$f":"IFERROR(T29/(Prosjektbeskrivelse!$C$19*Prosjektbeskrivelse!$C$18),0)","v":0.58499999999999996}]
[null,{"$f":"IF(AND(Forprosjekt!E39=FALSE,SUMIF(Forprosjekt!E40:E41,\"(egen data)\",Forprosjekt!N40:N41)>0),\"Ja\",\"Nei\")","v":"Nei"},"28 Trapper, balkonger, m.m.",null,{"$f":"Forprosjekt!$J$38","v":652.50000000000011},{"$f":"Forprosjekt!$K$38","v":0},{"$f":"Forprosjekt!$L$38","v":32.625000000000007},"-","-","-",{"$f":"Forprosjekt!$M$38","v":163.12500000000003},"-","-","-",null,"-",{"$f":"IFERROR(P30/(Prosjektbeskrivelse!$C$19*Prosjektbeskrivelse!$C$18),0)","v":0},848.25000000000011,{"$f":"IFERROR(R30/(Prosjektbeskrivelse!$C$19*Prosjektbeskrivelse!$C$18),0)","v":0.11700000000000002},848.25000000000011,{"$f":"IFERROR(T30/(Prosjektbeskrivelse!$C$19*Prosjektbeskrivelse!$C$18),0)","v":0.11700000000000002}]
[null,{"$f":"IF(AND(Forprosjekt!E44=FALSE,SUMIF(Forprosjekt!E45:E46,\"(egen data)\",Forprosjekt!N45:N46)>0),\"Ja\",\"Nei\")","v":"Nei"},"49 Andre elkraftinstallasjoner",null,{"$f":"Forprosjekt!$J$43","v":12397.499999999998},{"$f":"Forprosjekt!$K$43","v":0},{"$f":"Forprosjekt!$L$43","v":619.875},"-","-","-",{"$f":"Forprosjekt!$M$43","v":3099.3749999999995},"-","-","-",null,"-",{"$f":"IFERROR(P31/(Prosjektbeskrivelse!$C$19*Prosjektbeskrivelse!$C$18),0)","v":0},16116.749999999998,{"$f":"IFERROR(R31/(Prosjektbeskrivelse!$C$19*Prosjektbeskrivelse!$C$18),0)","v":2.2229999999999999},16116.749999999998,{"$f":"IFERROR(T31/(Prosjektbeskrivelse!$C$19*Prosjektbeskrivelse!$C$18),0)","v":2.2229999999999999}]
[null,"-","Energibruk konstruskjon",null,"-","-","-",{"$f":"Forprosjekt!N49","v":26700},"-","-","-","-","-","-",null,null,null,26700,{"$f":"IFERROR(R32/(Prosjektbeskrivelse!$C$19*Prosjektbeskrivelse!$C$18),0)","v":3.682758620689655},26700,{"$f":"IFERROR(T32/(Prosjektbeskrivelse!$C$19*Prosjektbeskrivelse!$C$18),0)","v":3.682758620689655}]
[null,{"$f":"IF(COUNTA(Forprosjekt!$K$57:$K$62)=0,\"Nei\",\"Ja\")","v":"Nei"},"Energibruk i drift",null,"-","-","-","-","-","-","-",{"$f":"Forprosjekt!$N$54","v":23814},"-","-",null,null,null,23814,{"$f":"IFERROR(R33/(Prosjektbeskrivelse!$C$19*Prosjektbeskrivelse!$C$18),0)","v":3.2846896551724138},23814,{"$f":"IFERROR(T33/(Prosjektbeskrivelse!$C$19*Prosjektbeskrivelse!$C$18),0)","v":3.2846896551724138}]
[]
[null,null,"Detaljprosjekt",null,{"$f":"SUM(E36:E45)","v":59561.599014993662},{"$f":"SUM(F36:F45)","v":25.492559999999997},{"$f":"SUM(G36:G45)","v":915.59999999999991},{"$f":"SUM(H36:H45)","v":2670},{"$f":"SUM(I36:I45)","v":0},{"$f":"SUM(J36:J45)","v":0},{"$f":"SUM(K36:K45)","v":0},{"$f":"SUM(L36:L45)","v":44537.85},null,{"$f":"SUM(N36:N45)","v":0},null,{"$f":"SUM(P36:P41)","v":60502.69157499366},{"$f":"SUM(Q36:Q41)","v":8.3451988379301589},{"$f":"SUM(R36:R45)","v":107710.54157499367},{"$f":"SUM(S36:S45)","v":14.856626424137055},{"$f":"SUM(T36:T45)","v":107710.54157499367},{"$f":"SUM(U36:U45)","v":14.856626424137055}]
[null,{"$f":"IF(SUMIFS(Detaljprosjekt!$V$9:$V$147,Detaljprosjekt!$C$9:$C$147,\"21\",Detaljprosjekt!$E$9:$E$147,\"(egen data)\")=0,\"Nei\",\"Ja\")","v":"Nei"},"21 Fundamentering",null,{"$f":"Detaljprosjekt!$J$8","v":10375.099014993661},{"$f":"Detaljprosjekt!$K$8","v":3.5388599999999997},{"$f":"Detaljprosjekt!$L$8","v":152.59999999999997},"-",{"$f":"Detaljprosjekt!$N$8","v":0},{"$f":"Detaljprosjekt!$O$8","v":0},{"$f":"Detaljprosjekt!$P$8","v":0},"-","-",{"$f":"SUM(Detaljprosjekt!$R$8:$U$8)","v":0},null,{"$f":"IFERROR(SUM(E36:G36,K36),0)","v":10531.237874993662},{"$f":"IFERROR(P36/(Prosjektbeskrivelse!$C$19*Prosjektbeskrivelse!$C$18),0)","v":1.4525845344818844},{"$f":"IFERROR(SUM(E36:I36,K36:L36),0)","v":10531.237874993662},{"$f":"IFERROR(R36/(Prosjektbeskrivelse!$C$19*Prosjektbeskrivelse!$C$18),0)","v":1.4525845344818844},{"$f":"IFERROR(SUM(E36:N36),0)","v":10531.237874993662},{"$f":"IFERROR(T36/(Prosjektbeskrivelse!$C$19*Prosjektbeskrivelse!$C$18),0)","v":1.4525845344818844}]
[null,{"$f":"IF(SUMIFS(Detaljprosjekt!$V$9:$V$147,Detaljprosjekt!$C$9:$C$147,\"22\",Detaljprosjekt!$E$9:$E$147,\"(egen data)\")=0,\"Nei\",\"Ja\")","v":"Nei"},"22 Bæresystemer",null,{"$f":"Detaljprosjekt!$J$18","v":0},{"$f":"Detaljprosjekt!$K$18","v":0},{"$f":"Detaljprosjekt!$L$18","v":0},"-",{"$f":"Detaljprosjekt!$N$18","v":0},{"$f":"Detaljprosjekt!$O$18","v":0},{"$f":"Detaljprosjekt!$P$18","v":0},"-","-",{"$f":"SUM(Detaljprosjekt!R18:$U$18)","v":0},null,0,{"$f":"IFERROR(P37/(Prosjektbeskrivelse!$C$19*Prosjektbeskrivelse!$C$18),0)","v":0},0,{"$f":"IFERROR(R37/(Prosjektbeskrivelse!$C$19*Prosjektbeskrivelse!$C$18),0)","v":0},0,{"$f":"IFERROR(T37/(Prosjektbeskrivelse!$C$19*Prosjektbeskrivelse!$C$18),0)","v":0}]
[null,{"$f":"IF(SUMIFS(Detaljprosjekt!$V$9:$V$147,Detaljprosjekt!$C$9:$C$147,\"23\",Detaljprosjekt!$E$9:$E$147,\"(egen data)\")=0,\"Nei\",\"Ja\")","v":"Nei"},"23 Yttervegger",null,{"$f":"Detaljprosjekt!$J$37","v":48241},{"$f":"Detaljprosjekt!$K$37","v":21.446099999999998},{"$f":"Detaljprosjekt!$L$37","v":0},"-",{"$f":"Detaljprosjekt!$N$37","v":0},{"$f":"Detaljprosjekt!$O$37","v":0},{"$f":"Detaljprosjekt!$P$37","v":0},"-","-",{"$f":"SUM(Detaljprosjekt!R37:$U$37)","v":0},null,48262.446100000001,{"$f":"IFERROR(P38/(Prosjektbeskrivelse!$C$19*Prosjektbeskrivelse!$C$18),0)","v":6.6568891172413798},48262.446100000001,{"$f":"IFERROR(R38/(Prosjektbeskrivelse!$C$19*Prosjektbeskrivelse!$C$18),0)","v":6.6568891172413798},48262.446100000001,{"$f":"IFERROR(T38/(Prosjektbeskrivelse!$C$19*Prosjektbeskrivelse!$C$18),0)","v":6.6568891172413798}]
[null,{"$f":"IF(SUMIFS(Detaljprosjekt!$V$9:$V$147,Detaljprosjekt!$C$9:$C$147,\"24\",Detaljprosjekt!$E$9:$E$147,\"(egen data)\")=0,\"Nei\",\"Ja\")","v":"Nei"},"24 Innervegger",null,{"$f":"Detaljprosjekt!$J$61","v":0},{"$f":"Detaljprosjekt!$K$61","v":0},{"$f":"Detaljprosjekt!$L$61","v":0},"-",{"$f":"Detaljprosjekt!$N$61","v":0},{"$f":"Detaljprosjekt!$O$61","v":0},{"$f":"Detaljprosjekt!$P$61","v":0},"-","-",{"$f":"SUM(Detaljprosjekt!R61:$U$61)","v":0},null,0,{"$f":"IFERROR(P39/(Prosjektbeskrivelse!$C$19*Prosjektbeskrivelse!$C$18),0)","v":0},0,{"$f":"IFERROR(R39/(Prosjektbeskrivelse!$C$19*Prosjektbeskrivelse!$C$18),0)","v":0},0,{"$f":"IFERROR(T39/(Prosjektbeskrivelse!$C$19*Prosjektbeskrivelse!$C$18),0)","v":0}]
[null,{"$f":"IF(SUMIFS(Detaljprosjekt!$V$9:$V$147,Detaljprosjekt!$C$9:$C$147,\"25\",Detaljprosjekt!$E$9:$E$147,\"(egen data)\")=0,\"Nei\",\"Ja\")","v":"Nei"},"25 Dekker",null,{"$f":"Detaljprosjekt!$J$82","v":945.5},{"$f":"Detaljprosjekt!$K$82","v":0.50759999999999994},{"$f":"Detaljprosjekt!$L$82","v":762.99999999999989},"-",{"$f":"Detaljprosjekt!$N$82","v":0},{"$f":"Detaljprosjekt!$O$82","v":0},{"$f":"Detaljprosjekt!$P$82","v":0},"-","-",{"$f":"SUM(Detaljprosjekt!R82:$U$82)","v":0},null,1709.0075999999999,{"$f":"IFERROR(P40/(Prosjektbeskrivelse!$C$19*Prosjektbeskrivelse!$C$18),0)","v":0.23572518620689653},1709.0075999999999,{"$f":"IFERROR(R40/(Prosjektbeskrivelse!$C$19*Prosjektbeskrivelse!$C$18),0)","v":0.23572518620689653},1709.0075999999999,{"$f":"IFERROR(T40/(Prosjektbeskrivelse!$C$19*Prosjektbeskrivelse!$C$18),0)","v":0.23572518620689653}]
[null,{"$f":"IF(SUMIFS(Detaljprosjekt!$V$9:$V$147,Detaljprosjekt!$C$9:$C$147,\"26\",Detaljprosjekt!$E$9:$E$147,\"(egen data)\")=0,\"Nei\",\"Ja\")","v":"Nei"},"26 Yttertak",null,{"$f":"Detaljprosjekt!$J$103","v":0},{"$f":"Detaljprosjekt!$K$103","v":0},{"$f":"Detaljprosjekt!$L$103","v":0},"-",{"$f":"Detaljprosjekt!$N$103","v":0},{"$f":"Detaljprosjekt!$O$103","v":0},{"$f":"Detaljprosjekt!$P$103","v":0},"-","-",{"$f":"SUM(Detaljprosjekt!R103:$U$103)","v":0},null,0,{"$f":"IFERROR(P41/(Prosjektbeskrivelse!$C$19*Prosjektbeskrivelse!$C$18),0)","v":0},0,{"$f":"IFERROR(R41/(Prosjektbeskrivelse!$C$19*Prosjektbeskrivelse!$C$18),0)","v":0},0,{"$f":"IFERROR(T41/(Prosjektbeskrivelse!$C$19*Prosjektbeskrivelse!$C$18),0)","v":0}]
[null,{"$f":"IF(SUMIFS(Detaljprosjekt!$V$9:$V$147,Detaljprosjekt!$C$9:$C$147,\"28\",Detaljprosjekt!$E$9:$E$147,\"(egen data)\")=0,\"Nei\",\"Ja\")","v":"Nei"},"28 Trapper, balkonger, m.m.",null,{"$f":"Detaljprosjekt!$J$124","v":0},{"$f":"Detaljprosjekt!$K$124","v":0},{"$f":"Detaljprosjekt!$L$124","v":0},"-","-",{"$f":"Detaljprosjekt!$O$124","v":0},{"$f":"Detaljprosjekt!$P$124","v":0},"-","-",{"$f":"SUM(Detaljprosjekt!$R$124:$U$124)","v":0},null,"-",{"$f":"IFERROR(P42/(Prosjektbeskrivelse!$C$19*Prosjektbeskrivelse!$C$18),0)","v":0},0,{"$f":"IFERROR(R42/(Prosjektbeskrivelse!$C$19*Prosjektbeskrivelse!$C$18),0)","v":0},0,{"$f":"IFERROR(T42/(Prosjektbeskrivelse!$C$19*Prosjektbeskrivelse!$C$18),0)","v":0}]
[null,{"$f":"IF(SUMIFS(Detaljprosjekt!$V$9:$V$147,Detaljprosjekt!$C$9:$C$147,\"49\",Detaljprosjekt!$E$9:$E$147,\"(egen data)\")=0,\"Nei\",\"Ja\")","v":"Nei"},"49 Andre elkraftinstallasjoner",null,{"$f":"Detaljprosjekt!$J$145","v":0},{"$f":"Detaljprosjekt!$K$145","v":0},{"$f":"Detaljprosjekt!$L$145","v":0},"-","-",{"$f":"Detaljprosjekt!$O$145","v":0},{"$f":"Detaljprosjekt!$P$145","v":0},"-","-",{"$f":"SUM(Detaljprosjekt!$S$145:$U$145)","v":0},null,"-",{"$f":"IFERROR(P43/(Prosjektbeskrivelse!$C$19*Prosjektbeskrivelse!$C$18),0)","v":0},0,{"$f":"IFERROR(R43/(Prosjektbeskrivelse!$C$19*Prosjektbeskrivelse!$C$18),0)","v":0},0,{"$f":"IFERROR(T43/(Prosjektbeskrivelse!$C$19*Prosjektbeskrivelse!$C$18),0)","v":0}]
[null,"-","Energibruk konstruskjon",null,"-","-","-",{"$f":"Detaljprosjekt!V$150","v":2670},"-","-","-","-","-","-",null,null,null,2670,{"$f":"IFERROR(R44/(Prosjektbeskrivelse!$C$19*Prosjektbeskrivelse!$C$18),0)","v":0.36827586206896551},2670,{"$f":"IFERROR(T44/(Prosjektbeskrivelse!$C$19*Prosjektbeskrivelse!$C$18),0)","v":0.36827586206896551}]
[null,{"$f":"IF(COUNTA(Detaljprosjekt!J157:J163)=0,\"Nei\",\"Ja\")","v":"Ja"},"Energibruk i drift",null,"-","-","-","-","-","-","-",{"$f":"Detaljprosjekt!V$155","v":44537.85},"-","-",null,null,null,44537.85,{"$f":"IFERROR(R45/(Prosjektbeskrivelse!$C$19*Prosjektbeskrivelse!$C$18),0)","v":6.1431517241379305},44537.85,{"$f":"IFERROR(T45/(Prosjektbeskrivelse!$C$19*Prosjektbeskrivelse!$C$18),0)","v":6.1431517241379305}]
[]
[null,null,"Som bygget",null,{"$f":"SUM(E48:E57)","v":8775.0990149936606},{"$f":"SUM(F48:F57)","v":3.5388599999999997},{"$f":"SUM(G48:G57)","v":152.59999999999997},{"$f":"SUM(H48:H57)","v":0},{"$f":"SUM(I48:I57)","v":0},{"$f":"SUM(J48:J57)","v":0},{"$f":"SUM(K48:K57)","v":0},{"$f":"SUM(L48:L57)","v":0},null,{"$f":"SUM(N48:N57)","v":0},null,{"$f":"SUM(P48:P53)","v":8931.2378749936615},{"$f":"SUM(Q48:Q53)","v":1.2318948793094706},{"$f":"SUM(R48:R57)","v":8931.2378749936615},{"$f":"SUM(S48:S57)","v":1.2318948793094706},{"$f":"SUM(T48:T57)","v":8931.2378749936615},{"$f":"SUM(U48:U57)","v":1.2318948793094706}]
[null,{"$f":"IF(SUMIFS('Som bygget'!$V$9:$V$148,'Som bygget'!$C$9:$C$148,\"21\",'Som bygget'!$E$9:$E$148,\"(egen data)\")=0,\"Nei\",\"Ja\")","v":"Nei"},"21 Fundamentering",null,{"$f":"'Som bygget'!$J$8","v":8775.0990149936606},{"$f":"'Som bygget'!$K$8","v":3.5388599999999997},{"$f":"'Som bygget'!$L$8","v":152.59999999999997},"-",{"$f":"'Som bygget'!$N$8","v":0},{"$f":"'Som bygget'!$O$8","v":0},{"$f":"'Som bygget'!$P$8","v":0},"-","-",{"$f":"SUM('Som bygget'!R$8:$U8)","v":0},null,{"$f":"IFERROR(SUM(E48:G48,K48),0)","v":8931.2378749936615},{"$f":"IFERROR(P48/(Prosjektbeskrivelse!$C$19*Prosjektbeskrivelse!$C$18),0)","v":1.2318948793094706},{"$f":"IFERROR(SUM(E48:I48,K48:L48),0)","v":8931.2378749936615},{"$f":"IFERROR(R48/(Prosjektbeskrivelse!$C$19*Prosjektbeskrivelse!$C$18),0)","v":1.2318948793094706},{"$f":"IFERROR(SUM(E48:N48),0)","v":8931.2378749936615},{"$f":"IFERROR(T48/(Prosjektbeskrivelse!$C$19*Prosjektbeskrivelse!$C$18),0)","v":1.2318948793094706}]
[null,{"$f":"IF(SUMIFS('Som bygget'!$V$9:$V$148,'Som bygget'!$C$9:$C$148,\"22\",'Som bygget'!$E$9:$E$148,\"(egen data)\")=0,\"Nei\",\"Ja\")","v":"Nei"},"22 Bæresystemer",null,{"$f":"'Som bygget'!$J$16","v":0},{"$f":"'Som bygget'!$K$16","v":0},{"$f":"'Som bygget'!$L$16","v":0},"-",{"$f":"'Som bygget'!$N$16","v":0},{"$f":"'Som bygget'!$O$16","v":0},{"$f":"'Som bygget'!$P$16","v":0},"-","-",{"$f":"SUM('Som bygget'!R16:U16)","v":0},null,{"$f":"IFERROR(SUM(E49:G49,K49),0)","v":0},{"$f":"IFERROR(P49/(Prosjektbeskrivelse!$C$19*Prosjektbeskrivelse!$C$18),0)","v":0},{"$f":"IFERROR(SUM(E49:I49,K49:L49),0)","v":0},{"$f":"IFERROR(R49/(Prosjektbeskrivelse!$C$19*Prosjektbeskrivelse!$C$18),0)","v":0},0,{"$f":"IFERROR(T49/(Prosjektbeskrivelse!$C$19*Prosjektbeskrivelse!$C$18),0)","v":0}]
[null,{"$f":"IF(SUMIFS('Som bygget'!$V$9:$V$148,'Som bygget'!$C$9:$C$148,\"23\",'Som bygget'!$E$9:$E$148,\"(egen data)\")=0,\"Nei\",\"Ja\")","v":"Nei"},"23 Yttervegger",null,{"$f":"'Som bygget'!$J$35","v":0},{"$f":"'Som bygget'!$K$35","v":0},{"$f":"'Som bygget'!$L$35","v":0},"-",{"$f":"'Som bygget'!$N$35","v":0},{"$f":"'Som bygget'!$O$35","v":0},{"$f":"'Som bygget'!$P$35","v":0},"-","-",{"$f":"SUM('Som bygget'!R35:U35)","v":0},null,0,{"$f":"IFERROR(P50/(Prosjektbeskrivelse!$C$19*Prosjektbeskrivelse!$C$18),0)","v":0},0,{"$f":"IFERROR(R50/(Prosjektbeskrivelse!$C$19*Prosjektbeskrivelse!$C$18),0)","v":0},0,{"$f":"IFERROR(T50/(Prosjektbeskrivelse!$C$19*Prosjektbeskrivelse!$C$18),0)","v":0}]
[null,{"$f":"IF(SUMIFS('Som bygget'!$V$9:$V$148,'Som bygget'!$C$9:$C$148,\"24\",'Som bygget'!$E$9:$E$148,\"(egen data)\")=0,\"Nei\",\"Ja\")","v":"Nei"},"24 Innervegger",null,{"$f":"'Som bygget'!$J$56","v":0},{"$f":"'Som bygget'!$K$56","v":0},{"$f":"'Som bygget'!$L$56","v":0},"-",{"$f":"'Som bygget'!$N$56","v":0},{"$f":"'Som bygget'!$O$56","v":0},{"$f":"'Som bygget'!$P$56","v":0},"-","-",{"$f":"SUM('Som bygget'!R56:U56)","v":0},null,0,{"$f":"IFERROR(P51/(Prosjektbeskrivelse!$C$19*Prosjektbeskrivelse!$C$18),0)","v":0},0,{"$f":"IFERROR(R51/(Prosjektbeskrivelse!$C$19*Prosjektbeskrivelse!$C$18),0)","v":0},0,{"$f":"IFERROR(T51/(Prosjektbeskrivelse!$C$19*Prosjektbeskrivelse!$C$18),0)","v":0}]
[null,{"$f":"IF(SUMIFS('Som bygget'!$V$9:$V$148,'Som bygget'!$C$9:$C$148,\"25\",'Som bygget'!$E$9:$E$148,\"(egen data)\")=0,\"Nei\",\"Ja\")","v":"Nei"},"25 Dekker",null,{"$f":"'Som bygget'!$J$76","v":0},{"$f":"'Som bygget'!$K$76","v":0},{"$f":"'Som bygget'!$L$76","v":0},"-",{"$f":"'Som bygget'!$N$76","v":0},{"$f":"'Som bygget'!$O$76","v":0},{"$f":"'Som bygget'!$P$76","v":0},"-","-",{"$f":"SUM('Som bygget'!R76:U76)","v":0},null,0,{"$f":"IFERROR(P52/(Prosjektbeskrivelse!$C$19*Prosjektbeskrivelse!$C$18),0)","v":0},0,{"$f":"IFERROR(R52/(Prosjektbeskrivelse!$C$19*Prosjektbeskrivelse!$C$18),0)","v":0},0,{"$f":"IFERROR(T52/(Prosjektbeskrivelse!$C$19*Prosjektbeskrivelse!$C$18),0)","v":0}]
[null,{"$f":"IF(SUMIFS('Som bygget'!$V$9:$V$148,'Som bygget'!$C$9:$C$148,\"26\",'Som bygget'!$E$9:$E$148,\"(egen data)\")=0,\"Nei\",\"Ja\")","v":"Nei"},"26 Yttertak",null,{"$f":"'Som bygget'!$J$97","v":0},{"$f":"'Som bygget'!$K$97","v":0},{"$f":"'Som bygget'!$L$97","v":0},"-",{"$f":"'Som bygget'!$N$97","v":0},{"$f":"'Som bygget'!$O$97","v":0},{"$f":"'Som bygget'!$P$97","v":0},"-","-",{"$f":"SUM('Som bygget'!R97:U97)","v":0},null,0,{"$f":"IFERROR(P53/(Prosjektbeskrivelse!$C$19*Prosjektbeskrivelse!$C$18),0)","v":0},0,{"$f":"IFERROR(R53/(Prosjektbeskrivelse!$C$19*Prosjektbeskrivelse!$C$18),0)","v":0},0,{"$f":"IFERROR(T53/(Prosjektbeskrivelse!$C$19*Prosjektbeskrivelse!$C$18),0)","v":0}]
[null,{"$f":"IF(SUMIFS('Som bygget'!$V$9:$V$148,'Som bygget'!$C$9:$C$148,\"28\",'Som bygget'!$E$9:$E$148,\"(egen data)\")=0,\"Nei\",\"Ja\")","v":"Nei"},"28 Trapper, balkonger, m.m.",null,{"$f":"'Som bygget'!J125","v":0},{"$f":"'Som bygget'!K125","v":0},{"$f":"'Som bygget'!L125","v":0},"-",{"$f":"'Som bygget'!N125","v":0},{"$f":"'Som bygget'!O125","v":0},{"$f":"'Som bygget'!P125","v":0},"-","-",{"$f":"SUM('Som bygget'!R125:U125)","v":0},null,"-",{"$f":"IFERROR(P54/(Prosjektbeskrivelse!$C$19*Prosjektbeskrivelse!$C$18),0)","v":0},0,{"$f":"IFERROR(R54/(Prosjektbeskrivelse!$C$19*Prosjektbeskrivelse!$C$18),0)","v":0},0,{"$f":"IFERROR(T54/(Prosjektbeskrivelse!$C$19*Prosjektbeskrivelse!$C$18),0)","v":0}]
[null,{"$f":"IF(SUMIFS('Som bygget'!$V$9:$V$148,'Som bygget'!$C$9:$C$148,\"49\",'Som bygget'!$E$9:$E$148,\"(egen data)\")=0,\"Nei\",\"Ja\")","v":"Nei"},"49 Andre elkraftinstallasjoner",null,{"$f":"'Som bygget'!J146","v":0},{"$f":"'Som bygget'!K146","v":0},{"$f":"'Som bygget'!L146","v":0},"-",{"$f":"'Som bygget'!N146","v":0},{"$f":"'Som bygget'!O146","v":0},{"$f":"'Som bygget'!P146","v":0},"-","-",{"$f":"SUM('Som bygget'!R146:U146)","v":0},null,"-",{"$f":"IFERROR(P55/(Prosjektbeskrivelse!$C$19*Prosjektbeskrivelse!$C$18),0)","v":0},0,{"$f":"IFERROR(R55/(Prosjektbeskrivelse!$C$19*Prosjektbeskrivelse!$C$18),0)","v":0},0,{"$f":"IFERROR(T55/(Prosjektbeskrivelse!$C$19*Prosjektbeskrivelse!$C$18),0)","v":0}]
[null,"-","Energibruk konstruskjon",null,"-","-","-",{"$f":"'Som bygget'!V$119","v":0},"-","-","-","-","-","-",null,null,null,0,{"$f":"IFERROR(R56/(Prosjektbeskrivelse!$C$19*Prosjektbeskrivelse!$C$18),0)","v":0},0,{"$f":"IFERROR(T56/(Prosjektbeskrivelse!$C$19*Prosjektbeskrivelse!$C$18),0)","v":0}]
[null,{"$f":"IF(COUNTA('Som bygget'!J158:J164)=0,\"Nei\",\"Ja\")","v":"Nei"},"Energibruk i drift",null,"-","-","-","-","-","-","-",{"$f":"'Som bygget'!$V$124","v":0},"-","-",null,null,null,0,{"$f":"IFERROR(R57/(Prosjektbeskrivelse!$C$19*Prosjektbeskrivelse!$C$18),0)","v":0},0,{"$f":"IFERROR(T57/(Prosjektbeskrivelse!$C$19*Prosjektbeskrivelse!$C$18),0)","v":0}]
[]
[]
[null,null,"Oppsummering resultater for TEK17 krav"]
[null,null,"Inkluderer livssyklusmoduler A1-3, A4, A5 for materialsvinn, B2 og B4, for bygningselementer 21-26.",null,"Produktstadiet (A1-3)","Transport (A4)","Bygge- og monterings-arbeid - Materialsvinn (A5)","Bygge- og monterings-arbeid - Energibruk (A5)","Vedlikehold (B2)","Reparasjon (B3)","Utskiftning (B4)","Energibruk i drift (B6)","Transport i drift (B8)","Sluttstadiet (C1-4)",null,"Totalt TEK17"]
[null,null,null,"Skisseprosjekt/Reguleringsfase",{"$f":"IFERROR(E8,\"NA\")","v":28057.5},{"$f":"F8","v":652.5},"-","-","-","-",652.5,19197,"-","-",null,{"$f":"SUM(E62:F62,I62,K62)","v":29362.5},{"$f":"ROUND(P62,0)","v":29363}]
[null,null,null,"Referansebygg",{"$f":"SUM(E12:E17)","v":2089180.5476197319},{"$f":"SUM(F12:F17)","v":104086.12908812652},178700.70137300342,"-",0,"-",461740.21051475394,0,"-","-",null,{"$f":"SUM(E63:G63,I63,K63)","v":2833707.5885956157},{"$f":"_xlfn.CONCAT(ROUND(P63,0),\" (Referanse)\")","v":"2833708 (Referanse)"}]
[null,null,null,"Forprosjekt",{"$f":"SUM(E24:E29)","v":64369.131818181821},{"$f":"SUM(F24:F29)","v":38.32938},3220.3730599090909,"-",0,"-",7503.75,0,"-","-",null,{"$f":"SUM(E64:G64,I64,K64)","v":75131.584258090908},{"$f":"_xlfn.CONCAT(ROUND(P64,0),\" (\",IFERROR(ROUND(-($P$63-P64)*100/$P$63,0),\"-\"),\"%)\")","v":"75132 (-97%)"}]
[null,null,null,"Detaljprosjekt",{"$f":"SUM(E36:E41)","v":59561.599014993662},{"$f":"SUM(F36:F41)","v":25.492559999999997},915.59999999999991,"-",0,"-",0,0,"-","-",null,{"$f":"SUM(E65:G65,I65,K65)","v":60502.69157499366},{"$f":"_xlfn.CONCAT(ROUND(P65,0),\" (\",IFERROR(ROUND(-($P$63-P65)*100/$P$63,0),\"-\"),\"%)\")","v":"60503 (-98%)"}]
[null,null,null,"Som bygget",{"$f":"SUM(E48:E53)","v":8775.0990149936606},{"$f":"SUM(F48:F53)","v":3.5388599999999997},152.59999999999997,"-",0,"-",0,0,"-","-",null,{"$f":"SUM(E66:G66,I66,K66)","v":8931.2378749936615},"8931 (-100%)"]
[]
[]
[]
[]
[]
[]
[]
[]
[]
[]
[]
[]
[]
[]
[]
[]
[]
[]
[]
[]
[]
[]
[]
[]
[]
[]
[null,null,"Oppsummering resultater for Trondheim kommunes krav"]
[null,null,"Inkluderer livssyklusmoduler A1-3, A4, A5 for materialsvinn, A5 for energibruk på byggeplass, B2, B4 og B6, for bygningselementer 21-26, 28 og 49.",null,"Produktstadiet (A1-3)","Transport (A4)","Bygge- og monterings-arbeid - Materialsvinn (A5)","Bygge- og monterings-arbeid - Energibruk (A5)","Vedlikehold (B2)","Reparasjon (B3)","Utskiftning (B4)","Energibruk i drift (B6)","Transport i drift (B8)","Sluttstadiet (C1-4)",null,"Totalt Trondheim kommunes krav"]
[null,null,null,"Skisseprosjekt/Reguleringsfase",{"$f":"E8","v":28057.5},{"$f":"F8","v":652.5},"-",11194.588800000001,"-","-",652.5,19197,0,"-",null,{"$f":"SUM(D95:F95,H95,K95:M95)","v":59754.088799999998},{"$f":"ROUND(P95,0)","v":59754}]
[null,null,null,"Referansebygg",{"$f":"E11","v":2098080.5476197321},{"$f":"F11","v":104239.86645564954},179902.09894497739,32400.000000000004,"-","-",462540.21051475394,23814,"-","-",null,{"$f":"SUM(D96:I96,K96,L96)","v":2900976.723535113},{"$f":"_xlfn.CONCAT(ROUND(P96,0),\" (Referanse)\")","v":"2900977 (Referanse)"}]
[null,null,null,"Forprosjekt",{"$f":"E23","v":77419.131818181821},{"$f":"F23","v":38.32938},3872.8730599090909,26700,0,"-",10766.25,23814,"-","-",null,{"$f":"SUM(D97:I97,K97,L97)","v":142610.58425809091},{"$f":"_xlfn.CONCAT(ROUND(P97,0),\" (\",IFERROR(ROUND(-($P$96-P97)*100/$P$96,0),\"-\"),\"%)\")","v":"142611 (-95%)"}]
[null,null,null,"Detaljprosjekt",{"$f":"E35","v":59561.599014993662},{"$f":"F35","v":25.492559999999997},915.59999999999991,2670,0,"-",0,44537.85,"-","-",null,{"$f":"SUM(D98:I98,K98,L98)","v":107710.54157499367},{"$f":"_xlfn.CONCAT(ROUND(P98,0),\" (\",IFERROR(ROUND(-($P$96-P98)*100/$P$96,0),\"-\"),\"%)\")","v":"107711 (-96%)"}]
[null,null,null,"Som bygget",{"$f":"E47","v":8775.0990149936606},{"$f":"F47","v":3.5388599999999997},152.59999999999997,0,0,"-",0,0,"-","-",null,{"$f":"SUM(D99:I99,K99,L99)","v":8931.2378749936615},"8931 (-100%)"]
[]
[]
[]
[]
[]
[]
[]
[]
[]
[]
[]
[]
[]
[]
[]
[]
[]
[]
[]
[]
[]
[]
[]
[]
[]
[]
[]
[null,null,"Oppsummering resultater for alle moduler"]
[null,null,"Inkluderer livssyklusmoduler A1 til C4, for bygningselementer 21-26, 28 og 49.",null,"Produktstadiet (A1-3)","Transport (A4)","Bygge- og monterings-arbeid - Materialsvinn (A5)","Bygge- og monterings-arbeid - Energibruk (A5)","Vedlikehold (B2)","Reparasjon (B3)","Utskiftning (B4)","Energibruk i drift (B6)","Transport i drift (B8)","Sluttstadiet (C1-4)",null,"Totalt alle moduler"]
[null,null,null,"Skisseprosjekt/Reguleringsfase",{"$f":"E8","v":28057.5},{"$f":"F8","v":652.5},"-",11194.588800000001,"-","-",652.5,19197,0,"-",null,{"$f":"SUM(E129:N129)","v":59754.088799999998},{"$f":"ROUND(P129,0)","v":59754}]
[null,null,null,"Referansebygg",{"$f":"E11","v":2098080.5476197321},{"$f":"F11","v":104239.86645564954},179902.09894497739,32400.000000000004,"-",0,462540.21051475394,23814,0,302003.0603464577,null,{"$f":"SUM(E130:N130)","v":3202979.7838815707},{"$f":"_xlfn.CONCAT(ROUND(P130,0),\" (Referanse)\")","v":"3202980 (Referanse)"}]
[null,null,null,"Forprosjekt",{"$f":"E23","v":77419.131818181821},{"$f":"F23","v":38.32938},3872.8730599090909,26700,0,0,10766.25,23814,0,0,null,142610.58425809091,{"$f":"_xlfn.CONCAT(ROUND(P131,0),\" (\",IFERROR(ROUND(-($P$96-P131)*100/$P$96,0),\"-\"),\"%)\")","v":"142611 (-95%)"}]
[null,null,null,"Detaljprosjekt",{"$f":"E35","v":59561.599014993662},{"$f":"F35","v":25.492559999999997},915.59999999999991,2670,0,0,0,44537.85,0,0,null,107710.54157499367,{"$f":"_xlfn.CONCAT(ROUND(P132,0),\" (\",IFERROR(ROUND(-($P$96-P132)*100/$P$96,0),\"-\"),\"%)\")","v":"107711 (-96%)"}]
[null,null,null,"Som bygget",{"$f":"E47","v":8775.0990149936606},{"$f":"F47","v":3.5388599999999997},152.59999999999997,0,0,0,0,0,0,0,null,8931.2378749936615,"8931 (-100%)"]
[]
[]
[]
[]
[]
[]
[]
[]
[]
[]
[]
[]
[]
[]
[]
[]
[]
[]
[]
[]
[]
[]
[]
[]
[]
[]
[]
[]
[{"$f":"Veiledning!$B$2","v":"Versjon 2023-04-13. Utviklet av SINTEF AS."}]

{"sheet":"Utslippsfaktorer","index":8,"n_rows":203,"n_cols":28,"rows_kept":203,"cut":false,"hidden":true,"merged":[[2,7,2,20],[3,8,3,9],[3,10,3,15],[3,16,3,19]]}
[null,"Utslippsfaktorer"]
[]
[null,null,null,null,null,null,null,"GWP per enhet [kgCO2e/enhet]"]
[null,"Kategoriene må listes i alfabetisk rekkefølge, og alle produkter må tilknyttes en kategori.",null,null,null,null,null,"Produkt-stadiet","Gjennomføringsstadiet",null,"Brukstadiet",null,null,null,null,null,"Livsløpets sluttstadium",null,null,null,"Konsekvenser utover systemgrensen"]
["Kategori","Materialer eller prosesser","Detaljert navn","Referanse","Geograsfiske opprinnelse","Funksjonell Enhet","Levetid (AV)","A1-3","A4","A5","B1","B2","B3","B4","B5","B6","C1","C2","C3","C4","D","kg/FU","A4 from EPD","A5 from EPD"]
["(Velg kategori)","(Velg material eller prosesser)",null,"-","-","-",0,0,0,0,0,0,0,0,0,0,0,0,0,0,0,null,0,0]
["_Bygningsdel","Bygningsdel 21, gjennomsnitt, per m2 bygg","gjennomsnittsverdier, fra ZEN report 24","ZEN report 24",null,"m2BTAår",null,{"$f":"1.2*0.75","v":0.89999999999999991},{"$f":"Utslippsfaktorer2[[#This Row],[kg/FU]]*$H$202","v":0},null,null,null,null,{"$f":"Utslippsfaktorer2[[#This Row],[A1-3]]*0.25","v":0.22499999999999998}]
["_Bygningsdel","Bygningsdel 22, gjennomsnitt, per m2 bygg","gjennomsnittsverdier, fra ZEN report 24","ZEN report 24",null,"m2BTAår",null,{"$f":"0.6*0.75","v":0.44999999999999996},{"$f":"Utslippsfaktorer2[[#This Row],[kg/FU]]*$H$202","v":0},null,null,null,null,{"$f":"Utslippsfaktorer2[[#This Row],[A1-3]]*0.25","v":0.11249999999999999}]
["_Bygningsdel","Bygningsdel 23, gjennomsnitt, per m2 bygg","gjennomsnittsverdier, fra ZEN report 24","ZEN report 24",null,"m2BTAår",null,{"$f":"1.2*0.75","v":0.89999999999999991},{"$f":"Utslippsfaktorer2[[#This Row],[kg/FU]]*$H$202","v":0},null,null,null,null,{"$f":"Utslippsfaktorer2[[#This Row],[A1-3]]*0.25","v":0.22499999999999998}]
["_Bygningsdel","Bygningsdel 24, gjennomsnitt, per m2 bygg","gjennomsnittsverdier, fra ZEN report 24","ZEN report 24",null,"m2BTAår",null,{"$f":"0.9*0.75","v":0.67500000000000004},{"$f":"Utslippsfaktorer2[[#This Row],[kg/FU]]*$H$202","v":0},null,null,null,null,{"$f":"Utslippsfaktorer2[[#This Row],[A1-3]]*0.25","v":0.16875000000000001}]
["_Bygningsdel","Bygningsdel 25, gjennomsnitt, per m2 bygg","gjennomsnittsverdier, fra ZEN report 24","ZEN report 24",null,"m2BTAår",null,{"$f":"1.4*0.75","v":1.0499999999999998},{"$f":"Utslippsfaktorer2[[#This Row],[kg/FU]]*$H$202","v":0},null,null,null,null,{"$f":"Utslippsfaktorer2[[#This Row],[A1-3]]*0.25","v":0.26249999999999996}]
["_Bygningsdel","Bygningsdel 26, gjennomsnitt, per m2 bygg","gjennomsnittsverdier, fra ZEN report 24","ZEN report 24",null,"m2BTAår",null,{"$f":"0.5*0.75","v":0.375},{"$f":"Utslippsfaktorer2[[#This Row],[kg/FU]]*$H$202","v":0},null,null,null,null,{"$f":"Utslippsfaktorer2[[#This Row],[A1-3]]*0.25","v":9.375E-2}]
["_Bygningsdel","Bygningsdel 28, gjennomsnitt, per m2 bygg","gjennomsnittsverdier, fra ZEN report 24","ZEN report 24",null,"m2BTAår",null,{"$f":"0.1*0.75","v":7.5000000000000011E-2},{"$f":"Utslippsfaktorer2[[#This Row],[kg/FU]]*$H$202","v":0},null,null,null,null,{"$f":"Utslippsfaktorer2[[#This Row],[A1-3]]*0.25","v":1.8750000000000003E-2}]
["_Bygningsdel","Bygningsdel 49, gjennomsnitt, per m2 bygg","gjennomsnittsverdier, fra ZEN report 24","ZEN report 24",null,"m2BTAår",null,{"$f":"1.9*0.75","v":1.4249999999999998},{"$f":"Utslippsfaktorer2[[#This Row],[kg/FU]]*$H$202","v":0},null,null,null,null,{"$f":"Utslippsfaktorer2[[#This Row],[A1-3]]*0.25","v":0.35624999999999996}]
["Annet","Armeringsduk",null,null,null,"m2",25,1.53796,{"$f":"Utslippsfaktorer2[[#This Row],[kg/FU]]*$H$202","v":8.4599999999999996E-5},null,null,null,null,null,null,null,null,null,null,null,null,1]
["Annet","Fiberduk",null,null,null,"m2",25,0.53111868480000002,{"$f":"Utslippsfaktorer2[[#This Row],[kg/FU]]*$H$202","v":8.4599999999999996E-5},null,null,null,null,null,null,null,null,null,null,null,null,1]
["Annet","Kabel, fiberoptisk",null,null,null,"m",25,1.9963,{"$f":"Utslippsfaktorer2[[#This Row],[kg/FU]]*$H$202","v":8.4599999999999996E-5},null,null,null,null,null,null,null,null,null,null,null,null,1]
["Annet","Kabel, høyspent",null,null,null,"m",25,7.2206000000000001,{"$f":"Utslippsfaktorer2[[#This Row],[kg/FU]]*$H$202","v":8.4599999999999996E-5},null,null,null,null,null,null,null,null,null,null,null,null,1]
["Annet","Kabel, jordledning",null,null,null,"m",25,4.9526888264000002,{"$f":"Utslippsfaktorer2[[#This Row],[kg/FU]]*$H$202","v":8.4599999999999996E-5},null,null,null,null,null,null,null,null,null,null,null,null,1]
["Annet","Kabel, lavspent",null,null,null,"m",25,3.6103000000000001,{"$f":"Utslippsfaktorer2[[#This Row],[kg/FU]]*$H$202","v":8.4599999999999996E-5},null,null,null,null,null,null,null,null,null,null,null,null,1]
["Annet","Kabel, tele",null,null,null,"m",25,0.54927084000000004,{"$f":"Utslippsfaktorer2[[#This Row],[kg/FU]]*$H$202","v":8.4599999999999996E-5},null,null,null,null,null,null,null,null,null,null,null,null,1]
["Annet","Kledning, EPD snitt","gjennomsnittsverdier, samlet av SINTEF",null,"varierer","tonn",25,131.77857142857141,{"$f":"Utslippsfaktorer2[[#This Row],[kg/FU]]*$H$202","v":8.4599999999999995E-2},68.877499999999998,null,null,null,null,null,null,null,null,null,null,null,1000,195.90878333333333,68.877499999999998]
["Annet","Konstruksjonstrevirke",null,null,null,"m3",25,76.599999999999994,{"$f":"Utslippsfaktorer2[[#This Row],[kg/FU]]*$H$202","v":8.4599999999999996E-5},null,null,null,null,null,null,null,null,null,null,null,null,1]
["Annet","Plastmembran inkl. fiberduk",null,null,null,"m2",25,5.6911436212602737,{"$f":"Utslippsfaktorer2[[#This Row],[kg/FU]]*$H$202","v":8.4599999999999996E-5},null,null,null,null,null,null,null,null,null,null,null,null,1]
["Annet","Sprengstoff",null,null,null,"kg",20,1.26,{"$f":"Utslippsfaktorer2[[#This Row],[kg/FU]]*$H$202","v":8.4599999999999996E-5},null,null,null,null,null,null,null,null,null,null,null,null,1]
["Annet","Sykkelstativ","Urban bicycle post, C","NEPD-3037-1695-EN","NO","stk",50,{"$f":"30.5+0.487+0.347","v":31.334},{"$f":"Utslippsfaktorer2[[#This Row],[kg/FU]]*$H$202","v":8.4599999999999996E-5},0.189,null,null,null,null,null,null,null,0.92100000000000004,0.126,4.8200000000000001E-4,-15.1,1,1.77,0.189]
["Annet","Sykkelstativ, rektangulært","Vroom bicycle rack small, C","NEPD-3038-1694-EN","NO","stk",50,{"$f":"21.1+0.127+0.23","v":21.457000000000001},{"$f":"Utslippsfaktorer2[[#This Row],[kg/FU]]*$H$202","v":8.4599999999999996E-5},0.13400000000000001,null,null,null,null,null,null,null,null,null,null,null,1,1.26,0.13400000000000001]
["Annet","Trykkimpregnert tre",null,null,null,"m3",20,115.56156299999999,{"$f":"Utslippsfaktorer2[[#This Row],[kg/FU]]*$H$202","v":8.4599999999999996E-5},null,null,null,null,null,null,null,null,null,null,null,null,1]
["Asfalt","Asfalt, EPD snitt","gjennomsnittsverdier, samlet av SINTEF",null,"varierer","tonn",7,115.05999999999999,{"$f":"Utslippsfaktorer2[[#This Row],[kg/FU]]*$H$202","v":8.4599999999999995E-2},null,null,null,null,null,null,null,null,null,null,null,null,1000]
["Asfalt","Asfaltbetong (Ab PMB)",null,"VegLCA v5.06B",null,"kg",7,5.0350000000000006E-2,{"$f":"Utslippsfaktorer2[[#This Row],[kg/FU]]*$H$202","v":8.4599999999999996E-5},null,null,null,null,null,null,null,null,null,null,null,null,1]
["Asfalt","Asfaltbetong (Ab)",null,"VegLCA v5.06B",null,"kg",7,5.0500000000000003E-2,{"$f":"Utslippsfaktorer2[[#This Row],[kg/FU]]*$H$202","v":8.4599999999999996E-5},null,null,null,null,null,null,null,null,null,null,null,null,1]
["Asfalt","Asfaltert grus (Ag)",null,"VegLCA v5.06B",null,"kg",7,3.4099999999999998E-2,{"$f":"Utslippsfaktorer2[[#This Row],[kg/FU]]*$H$202","v":8.4599999999999996E-5},null,null,null,null,null,null,null,null,null,null,null,null,1]
["Asfalt","Asfaltert pukk (Ap)",null,"VegLCA v5.06B","NO","kg",7,3.4099999999999998E-2,{"$f":"Utslippsfaktorer2[[#This Row],[kg/FU]]*$H$202","v":8.4599999999999996E-5},null,null,null,null,null,null,null,null,null,null,null,null,1]
["Asfalt","Asfaltgrusbetong (Agb)",null,"VegLCA v5.06B",null,"kg",7,7.4700000000000003E-2,{"$f":"Utslippsfaktorer2[[#This Row],[kg/FU]]*$H$202","v":8.4599999999999996E-5},null,null,null,null,null,null,null,null,null,null,null,null,1]
["Asfalt","Gjenbruksasfalt (Gja)",null,"VegLCA v5.06B",null,"kg",7,3.6261854999999998E-3,{"$f":"Utslippsfaktorer2[[#This Row],[kg/FU]]*$H$202","v":8.4599999999999996E-5},null,null,null,null,null,null,null,null,null,null,null,null,1]
["Asfalt","Skjelettasfalt (Ska PMB)",null,"VegLCA v5.06B",null,"kg",7,5.96E-2,{"$f":"Utslippsfaktorer2[[#This Row],[kg/FU]]*$H$202","v":8.4599999999999996E-5},null,null,null,null,null,null,null,null,null,null,null,null,1]
["Asfalt","Skjelettasfalt (Ska)",null,"VegLCA v5.06B",null,"kg",7,6.094999999999999E-2,{"$f":"Utslippsfaktorer2[[#This Row],[kg/FU]]*$H$202","v":8.4599999999999996E-5},null,null,null,null,null,null,null,null,null,null,null,null,1]
["Belysning","LED Vegbelysning",null,null,null,"stk",25,35.091301747480522,{"$f":"Utslippsfaktorer2[[#This Row],[kg/FU]]*$H$202","v":8.4599999999999996E-5},null,null,null,null,null,null,null,null,null,null,null,null,1]
["Belysning","Lysmast av aluminium",null,null,null,"stk",25,206.50953409933766,{"$f":"Utslippsfaktorer2[[#This Row],[kg/FU]]*$H$202","v":8.4599999999999996E-5},null,null,null,null,null,null,null,null,null,null,null,null,1]
["Belysning","Lysmast av fagverk av metallkonstruksjoner - gittermast",null,null,null,"stk",25,523.86729299363049,{"$f":"Utslippsfaktorer2[[#This Row],[kg/FU]]*$H$202","v":8.4599999999999996E-5},null,null,null,null,null,null,null,null,null,null,null,null,1]
["Belysning","Lysmast av fiberforsterket kompositt",null,null,null,"stk",25,427.74691209933769,{"$f":"Utslippsfaktorer2[[#This Row],[kg/FU]]*$H$202","v":8.4599999999999996E-5},null,null,null,null,null,null,null,null,null,null,null,null,1]
["Belysning","Lysmast av stål",null,null,null,"stk",25,232.52489003699932,{"$f":"Utslippsfaktorer2[[#This Row],[kg/FU]]*$H$202","v":8.4599999999999996E-5},null,null,null,null,null,null,null,null,null,null,null,null,1]
["Belysning","Lysmast av tre",null,null,null,"stk",25,74.248530055571436,{"$f":"Utslippsfaktorer2[[#This Row],[kg/FU]]*$H$202","v":8.4599999999999996E-5},null,null,null,null,null,null,null,null,null,null,null,null,1]
["Betong","Betong B30, bransjereferanse",null,"NB37 ",null,"m3",60,280,{"$f":"Utslippsfaktorer2[[#This Row],[kg/FU]]*$H$201","v":0.31920000000000004},null,null,null,null,null,null,null,null,null,null,null,null,2400]
["Betong","Betong B30, lavkarbon A",null,null,null,"m3",60,200,{"$f":"Utslippsfaktorer2[[#This Row],[kg/FU]]*$H$201","v":0.31920000000000004},null,null,null,null,null,null,null,null,null,null,null,null,2400]
["Betong","Betong B30, lavkarbon B",null,null,null,"m3",60,230,{"$f":"Utslippsfaktorer2[[#This Row],[kg/FU]]*$H$201","v":0.31920000000000004},null,null,null,null,null,null,null,null,null,null,null,null,2400]
["Betong","Betong B30, lavkarbon ekstrem",null,null,null,"m3",60,110,{"$f":"Utslippsfaktorer2[[#This Row],[kg/FU]]*$H$201","v":0.31920000000000004},null,null,null,null,null,null,null,null,null,null,null,null,2400]
["Betong","Betong B30, lavkarbon Pluss",null,null,null,"m3",60,150,{"$f":"Utslippsfaktorer2[[#This Row],[kg/FU]]*$H$201","v":0.31920000000000004},null,null,null,null,null,null,null,null,null,null,null,null,2400]
["Betong","Betong B35, bransjereferanse",null,null,null,"m3",60,330,{"$f":"Utslippsfaktorer2[[#This Row],[kg/FU]]*$H$201","v":0.31920000000000004},null,null,null,null,null,null,null,null,null,null,null,null,2400]
["Betong","Betong B35, lavkarbon A",null,null,null,"m3",60,210,{"$f":"Utslippsfaktorer2[[#This Row],[kg/FU]]*$H$201","v":0.31920000000000004},null,null,null,null,null,null,null,null,null,null,null,null,2400]
["Betong","Betong B35, lavkarbon B",null,null,null,"m3",60,280,{"$f":"Utslippsfaktorer2[[#This Row],[kg/FU]]*$H$201","v":0.31920000000000004},null,null,null,null,null,null,null,null,null,null,null,null,2400]
["Betong","Betong B35, lavkarbon Ekstrem",null,null,null,"m3",60,120,{"$f":"Utslippsfaktorer2[[#This Row],[kg/FU]]*$H$201","v":0.31920000000000004},null,null,null,null,null,null,null,null,null,null,null,null,2400]
["Betong","Betong B35, lavkarbon Pluss",null,null,null,"m3",60,160,{"$f":"Utslippsfaktorer2[[#This Row],[kg/FU]]*$H$201","v":0.31920000000000004},null,null,null,null,null,null,null,null,null,null,null,null,2400]
["Betong","Betong B45, bransjereferanse",null,null,null,"m3",60,360,{"$f":"Utslippsfaktorer2[[#This Row],[kg/FU]]*$H$201","v":0.31920000000000004},null,null,null,null,null,null,null,null,null,null,null,null,2400]
["Betong","Betong B45, lavkarbon A",null,null,null,"m3",60,220,{"$f":"Utslippsfaktorer2[[#This Row],[kg/FU]]*$H$201","v":0.31920000000000004},null,null,null,null,null,null,null,null,null,null,null,null,2400]
["Betong","Betong B45, lavkarbon B",null,null,null,"m3",60,290,{"$f":"Utslippsfaktorer2[[#This Row],[kg/FU]]*$H$201","v":0.31920000000000004},null,null,null,null,null,null,null,null,null,null,null,null,2400]
["Betong","Betong B45, lavkarbon Ekstrem",null,null,null,"m3",60,130,{"$f":"Utslippsfaktorer2[[#This Row],[kg/FU]]*$H$201","v":0.31920000000000004},null,null,null,null,null,null,null,null,null,null,null,null,2400]
["Betong","Betong B45, lavkarbon Pluss",null,null,null,"m3",60,170,{"$f":"Utslippsfaktorer2[[#This Row],[kg/FU]]*$H$201","v":0.31920000000000004},null,null,null,null,null,null,null,null,null,null,null,null,2400,null,null,null,"Tettheter"]
["Binder","Avrettingsmasse, tørrgulv, NO","Saint-Gobain Byggevarere: Weber Støpemørtel Bad, dry floor screed","NEPD nr.: 1512-512-EN (2018)","Trondheim, NO","kg",60,0.16710999999999998,{"$f":"Utslippsfaktorer2[[#This Row],[kg/FU]]*$H$202","v":8.4599999999999996E-5},null,null,null,null,null,null,null,null,null,null,null,null,1,4.2299999999999997E-2,null,null,"Asfalt",2500,"kg/m3"]
["Binder","Mørtel, EPD snitt","gjennomsnittsverdier, samlet av SINTEF",null,"varierer","kg",60,0.72708928571428566,{"$f":"Utslippsfaktorer2[[#This Row],[kg/FU]]*$H$202","v":8.4599999999999996E-5},null,null,null,null,null,null,null,null,null,null,null,null,1,1.7615200000000004E-2,null,null,"Asfaltert grus",2400,"kg/m3"]
["Bitumen","Bitumen, EPD snitt","gjennomsnittsverdier, samlet av SINTEF",null,"Malmo, SE","m2",25,4.7275,{"$f":"Utslippsfaktorer2[[#This Row],[kg/FU]]*$H$202","v":2.5379999999999999E-3},3.8149999999999995,null,null,null,null,null,null,null,null,null,null,null,30,null,3.8149999999999995,null,"Betong",2400,"kg/m3"]
["Bygningsplater","Bygningsplater - Gipsplater (12-15 mm)",null,"Grønn materialguide",null,"m2",40,2.82,{"$f":"Utslippsfaktorer2[[#This Row],[kg/FU]]*$H$202","v":2.5379999999999999E-3},null,null,null,null,null,null,null,null,null,null,null,null,30,null,null,null,"EPS 200",30,"kg/m3"]
["Bygningsplater","Bygningsplater - Heltreplater (14 mm)",null,"Grønn materialguide",null,"m2",40,0.78,{"$f":"Utslippsfaktorer2[[#This Row],[kg/FU]]*$H$202","v":2.5379999999999999E-3},null,null,null,null,null,null,null,null,null,null,null,null,30,null,null,null,"Grus",1.66,"tonn/m3"]
["Bygningsplater","Bygningsplater - Kryssfiner (15 mm)",null,"Grønn materialguide",null,"m2",40,2.87,{"$f":"Utslippsfaktorer2[[#This Row],[kg/FU]]*$H$202","v":2.5379999999999999E-3},null,null,null,null,null,null,null,null,null,null,null,null,30,null,null,null,"Jord og leire",1.3,"tonn/m3"]
["Bygningsplater","Bygningsplater - MDF-plater (15 mm)",null,"Grønn materialguide",null,"m2",40,5.0599999999999996,{"$f":"Utslippsfaktorer2[[#This Row],[kg/FU]]*$H$202","v":2.5379999999999999E-3},null,null,null,null,null,null,null,null,null,null,null,null,30,null,null,null,"Kobber",8940,"kg/m3"]
["Bygningsplater","Bygningsplater - OSB-plater (15 mm)",null,"Grønn materialguide",null,"m2",40,5,{"$f":"Utslippsfaktorer2[[#This Row],[kg/FU]]*$H$202","v":2.5379999999999999E-3},null,null,null,null,null,null,null,null,null,null,null,null,30,null,null,null,"Lettbetong",1.35,"tonn/m3"]
["Bygningsplater","Bygningsplater - Pressede trefiberplater (12 mm)",null,"Grønn materialguide",null,"m2",40,4.3099999999999996,{"$f":"Utslippsfaktorer2[[#This Row],[kg/FU]]*$H$202","v":2.5379999999999999E-3},null,null,null,null,null,null,null,null,null,null,null,null,30,null,null,null,"Lettklinker",325,"kg/m3"]
["Bygningsplater","Bygningsplater - Sponplater (12 mm)",null,"Grønn materialguide",null,"m2",40,3.41,{"$f":"Utslippsfaktorer2[[#This Row],[kg/FU]]*$H$202","v":2.5379999999999999E-3},null,null,null,null,null,null,null,null,null,null,null,null,30,null,null,null,"Naturstein",2700,"kg/m3"]
["Bygningsplater","Bygningsplater - Treullsement (25 mm)",null,"Grønn materialguide",null,"m2",40,3.11,{"$f":"Utslippsfaktorer2[[#This Row],[kg/FU]]*$H$202","v":2.5379999999999999E-3},null,null,null,null,null,null,null,null,null,null,null,null,30,null,null,null,"PE-skum",35,"kg/m3"]
["Bygningsplater","Gips 12,5mm, NO","Gyproc: Normal standard plasterboard (12,5mm)","NEPD nr.: 3364-1995-EN (2022)","Fredrikstad, NO","m2",40,1.34,{"$f":"Utslippsfaktorer2[[#This Row],[kg/FU]]*$H$202","v":2.5379999999999999E-3},0.183,0,0,0,0,0,0,4.2999999999999997E-2,7.9000000000000001E-2,5.0000000000000001E-3,0.7,-6.0000000000000001E-3,30,0.13,0.183,null,"Sprengstein",1.66,"tonn/m3"]
["Bygningsplater","Gips 9,5mm, NO","Gyproc: Vindtett sheathing board (9,5mm)","NEPD nr.: 3368-1995-EN (2022)","Fredrikstad, NO","m2",40,1.08,{"$f":"Utslippsfaktorer2[[#This Row],[kg/FU]]*$H$202","v":2.5379999999999999E-3},0.17799999999999999,0,0,0,0,0,0,3.3000000000000002E-2,6.0999999999999999E-2,4.0000000000000001E-3,0.71,-5.0000000000000001E-3,30,0.104,0.17799999999999999,null,"Stål",7400,"kg/m3"]
["Drivstoff","_Elektrisitet (EU28+NO)",null,"NS 3720","EU28+NO","kWh",null,{"$f":"136/1000","v":0.13600000000000001},null,null,null,null,null,null,null,null,null,null,null,null,null,null,null,null,null,"Trevirke",500,"kg/m3"]
["Drivstoff","_Elektrisitet (NO)",null,"NS 3720","NO","kWh",null,{"$f":"18/1000","v":1.7999999999999999E-2},null,null,null,null,null,null,null,null,null,null,null,null,null,null,null,null,null,"XPS 400",35,"kg/m3"]
["Drivstoff","_Fjernvarme, Trondheim, EU28+NO (snitt 2019-2021)",null,"Energisammensetting fra fjernkontrollen.no. Utslippsfaktor for el fra NS3720, for andre energigilder Norsk fjernvarme 2020 (Energi Norge)",null,"kWh",null,4.3700000000000003E-2]
["Drivstoff","_Fjernvarme, Trondheim, NO (snitt 2019-2021)",null,"Energisammensetting fra fjernkontrollen.no. Utslippsfaktor for el fra NS3720, for andre energigilder Norsk fjernvarme 2020 (Energi Norge)",null,"kWh",null,3.0099999999999998E-2]
["Drivstoff","Biodiesel",null,"NS-EN 16258:2012",null,"liter",null,1.92]
["Drivstoff","Diesel",null,"VegLCA v5.06B",null,"liter",null,2.67]
["Drivstoff","Diesel, Well to wheel",null,"NS-EN 16258:2012",null,"liter",null,3.24]
["Drivstoff","Flytende petroleumsgass (LPG)",null,"NS-EN 16258:2012",null,"liter",null,1.9]
["Gulvbelegg","Gulvbelegg - Epoxy",null,"Grønn materialguide","NGBC","m2",20,3.5,{"$f":"Utslippsfaktorer2[[#This Row],[kg/FU]]*$H$202","v":1.2689999999999999E-3},null,null,null,null,null,null,null,null,null,null,null,null,15]
["Gulvbelegg","Gulvbelegg - Gulvteppe",null,"Grønn materialguide","NGBC","m2",8,10,{"$f":"Utslippsfaktorer2[[#This Row],[kg/FU]]*$H$202","v":1.2689999999999999E-3},null,null,null,null,null,null,null,null,null,null,null,null,15]
["Gulvbelegg","Gulvbelegg - Gummi",null,"Grønn materialguide","NGBC","m2",20,16,{"$f":"Utslippsfaktorer2[[#This Row],[kg/FU]]*$H$202","v":1.2689999999999999E-3},null,null,null,null,null,null,null,null,null,null,null,null,15]
["Gulvbelegg","Gulvbelegg - Heltregulv",null,"Grønn materialguide","NGBC","m2",40,2.5,{"$f":"Utslippsfaktorer2[[#This Row],[kg/FU]]*$H$202","v":1.2689999999999999E-3},null,null,null,null,null,null,null,null,null,null,null,null,15]
["Gulvbelegg","Gulvbelegg - Keramisk flis",null,"Grønn materialguide","NGBC","m2",25,12.5,{"$f":"Utslippsfaktorer2[[#This Row],[kg/FU]]*$H$202","v":1.2689999999999999E-3},null,null,null,null,null,null,null,null,null,null,null,null,15]
["Gulvbelegg","Gulvbelegg - Linoleum",null,"Grønn materialguide","NGBC","m2",20,4.2,{"$f":"Utslippsfaktorer2[[#This Row],[kg/FU]]*$H$202","v":1.2689999999999999E-3},null,null,null,null,null,null,null,null,null,null,null,null,15]
["Gulvbelegg","Gulvbelegg - Naturstein",null,"Grønn materialguide","NGBC","m2",25,5.2,{"$f":"Utslippsfaktorer2[[#This Row],[kg/FU]]*$H$202","v":4.2299999999999994E-3},null,null,null,null,null,null,null,null,null,null,null,null,50]
["Gulvbelegg","Gulvbelegg - Parkett",null,"Grønn materialguide","NGBC","m2",40,6,{"$f":"Utslippsfaktorer2[[#This Row],[kg/FU]]*$H$202","v":1.2689999999999999E-3},null,null,null,null,null,null,null,null,null,null,null,null,15]
["Gulvbelegg","Gulvbelegg - Slipt betong",null,"Grønn materialguide","NGBC","m2",25,10.8,{"$f":"Utslippsfaktorer2[[#This Row],[kg/FU]]*$H$202","v":1.2689999999999999E-3},null,null,null,null,null,null,null,null,null,null,null,null,15]
["Gulvbelegg","Gulvbelegg - Vinyl",null,"Grønn materialguide","NGBC","m2",20,7.9,{"$f":"Utslippsfaktorer2[[#This Row],[kg/FU]]*$H$202","v":1.2689999999999999E-3},null,null,null,null,null,null,null,null,null,null,null,null,15]
["Isolasjon","Ekspandert polystyren (EPS 200)",null,null,null,"m3",20,85,{"$f":"Utslippsfaktorer2[[#This Row],[kg/FU]]*$H$202","v":2.5379999999999999E-3},null,null,null,null,null,null,null,null,null,null,null,null,30]
["Isolasjon","Ekstrudert polystyren (XPS 400)",null,null,null,"m3",20,111.8417935566597,{"$f":"Utslippsfaktorer2[[#This Row],[kg/FU]]*$H$202","v":2.5379999999999999E-3},null,null,null,null,null,null,null,null,null,null,null,null,30]
["Isolasjon","Isolasjon - Celluloseisolasjon",null,"Grønn materialguide","NGBC","m3",20,4.62,{"$f":"Utslippsfaktorer2[[#This Row],[kg/FU]]*$H$202","v":2.5379999999999999E-3},null,null,null,null,null,null,null,null,null,null,null,null,30]
["Isolasjon","Isolasjon - EPS",null,"Grønn materialguide","NGBC","m3",20,65.8,{"$f":"Utslippsfaktorer2[[#This Row],[kg/FU]]*$H$202","v":2.5379999999999999E-3},null,null,null,null,null,null,null,null,null,null,null,null,30]
["Isolasjon","Isolasjon - Glassull",null,"Grønn materialguide","NGBC","m3",20,23.4,{"$f":"Utslippsfaktorer2[[#This Row],[kg/FU]]*$H$202","v":2.5379999999999999E-3},null,null,null,null,null,null,null,null,null,null,null,null,30]
["Isolasjon","Isolasjon - Skumglass",null,"Grønn materialguide","NGBC","m3",20,6.97,{"$f":"Utslippsfaktorer2[[#This Row],[kg/FU]]*$H$202","v":2.5379999999999999E-3},null,null,null,null,null,null,null,null,null,null,null,null,30]
["Isolasjon","Isolasjon - Steinull",null,"Grønn materialguide","NGBC","m3",20,34.299999999999997,{"$f":"Utslippsfaktorer2[[#This Row],[kg/FU]]*$H$202","v":2.5379999999999999E-3},null,null,null,null,null,null,null,null,null,null,null,null,30]
["Isolasjon","Isolasjon - Translucent isolasjon",null,"Grønn materialguide","NGBC","m2",20,9.4,{"$f":"Utslippsfaktorer2[[#This Row],[kg/FU]]*$H$202","v":2.5379999999999999E-3},null,null,null,null,null,null,null,null,null,null,null,null,30]
["Isolasjon","Isolasjon - Trefiberisolasjon",null,"Grønn materialguide","NGBC","m3",20,34.700000000000003,{"$f":"Utslippsfaktorer2[[#This Row],[kg/FU]]*$H$202","v":2.5379999999999999E-3},null,null,null,null,null,null,null,null,null,null,null,null,30]
["Isolasjon","Isolasjon - Vakuumisolasjon (20 mm)",null,"Grønn materialguide","NGBC","m2",20,31.15,{"$f":"Utslippsfaktorer2[[#This Row],[kg/FU]]*$H$202","v":2.5379999999999999E-3},null,null,null,null,null,null,null,null,null,null,null,null,30]
["Isolasjon","Isolasjon - XPS",null,"Grønn materialguide","NGBC","m3",20,156,{"$f":"Utslippsfaktorer2[[#This Row],[kg/FU]]*$H$202","v":2.5379999999999999E-3},null,null,null,null,null,null,null,null,null,null,null,null,30]
["Konstruktive materialer ","Konstruktive materialer - Betong (bransjereferanse, B30)",null,"Grønn materialguide","NGBC","m3",60,280,{"$f":"Utslippsfaktorer2[[#This Row],[kg/FU]]*$H$202","v":0.20304},null,null,null,null,null,null,null,null,null,null,null,null,2400]
["Konstruktive materialer ","Konstruktive materialer - Betong (lavkarbon A, B30)",null,"Grønn materialguide","NGBC","m3",60,200,{"$f":"Utslippsfaktorer2[[#This Row],[kg/FU]]*$H$202","v":0.20304},null,null,null,null,null,null,null,null,null,null,null,null,2400]
["Konstruktive materialer ","Konstruktive materialer - Betong (lavkarbon B, B30)",null,"Grønn materialguide","NGBC","m3",60,230,{"$f":"Utslippsfaktorer2[[#This Row],[kg/FU]]*$H$202","v":0.20304},null,null,null,null,null,null,null,null,null,null,null,null,2400]
["Konstruktive materialer ","Konstruktive materialer - Konstruksjonsvirke",null,"Grønn materialguide","NGBC","m3",60,48,{"$f":"Utslippsfaktorer2[[#This Row],[kg/FU]]*$H$202","v":4.2299999999999997E-2},null,null,null,null,null,null,null,null,null,null,null,null,500]
["Konstruktive materialer ","Konstruktive materialer - Limtre",null,"Grønn materialguide","NGBC","m3",60,120,{"$f":"Utslippsfaktorer2[[#This Row],[kg/FU]]*$H$202","v":4.2299999999999997E-2},null,null,null,null,null,null,null,null,null,null,null,null,500]
["Konstruktive materialer ","Konstruktive materialer - Massivtre",null,"Grønn materialguide","NGBC","m3",60,137,{"$f":"Utslippsfaktorer2[[#This Row],[kg/FU]]*$H$202","v":4.2299999999999997E-2},null,null,null,null,null,null,null,null,null,null,null,null,500]
["Konstruktive materialer ","Konstruktive materialer - Stål",null,"Grønn materialguide","NGBC","kg",60,3.18,{"$f":"Utslippsfaktorer2[[#This Row],[kg/FU]]*$H$202","v":0.62603999999999993},null,null,null,null,null,null,null,null,null,null,null,null,7400]
["Kummer","Inspeksjonskum, betong",null,null,null,"stk",100,440.00178963821656,{"$f":"Utslippsfaktorer2[[#This Row],[kg/FU]]*$H$202","v":8.4599999999999996E-5},null,null,null,null,null,null,null,null,null,null,null,null,1]
["Kummer","Inspeksjonskum, plast",null,null,null,"stk",100,53.554905599999998,{"$f":"Utslippsfaktorer2[[#This Row],[kg/FU]]*$H$202","v":8.4599999999999996E-5},null,null,null,null,null,null,null,null,null,null,null,null,1]
["Kummer","Kumring, betong","NEPD-3467-2068-NO",null,null,"tonn",100,90.3,{"$f":"Utslippsfaktorer2[[#This Row],[kg/FU]]*$H$202","v":8.4599999999999996E-5},null,null,null,null,null,null,null,null,null,null,null,null,1,0.82799999999999996]
["Kummer","Sandfangkum, betong",null,null,null,"stk",60,493.31967116433111,{"$f":"Utslippsfaktorer2[[#This Row],[kg/FU]]*$H$202","v":8.4599999999999996E-5},null,null,null,null,null,null,null,null,null,null,null,null,1]
["Kummer","Sandfangkum, plast",null,null,null,"stk",60,36.187814783999997,{"$f":"Utslippsfaktorer2[[#This Row],[kg/FU]]*$H$202","v":8.4599999999999996E-5},null,null,null,null,null,null,null,null,null,null,null,null,1]
["Kummer","Spillvannskum, betong",null,null,null,"stk",60,521.08934377834385,{"$f":"Utslippsfaktorer2[[#This Row],[kg/FU]]*$H$202","v":8.4599999999999996E-5},null,null,null,null,null,null,null,null,null,null,null,null,1]
["Kummer","Spillvannskum, plast",null,null,null,"stk",60,67.836213760000007,{"$f":"Utslippsfaktorer2[[#This Row],[kg/FU]]*$H$202","v":8.4599999999999996E-5},null,null,null,null,null,null,null,null,null,null,null,null,1]
["Kummer","Trekkekum S TK2",null,null,null,"stk",60,268.8989703184713,{"$f":"Utslippsfaktorer2[[#This Row],[kg/FU]]*$H$202","v":8.4599999999999996E-5},null,null,null,null,null,null,null,null,null,null,null,null,1]
["Kummer","Trekkekum S TK3",null,null,null,"stk",60,303.50951171974521,{"$f":"Utslippsfaktorer2[[#This Row],[kg/FU]]*$H$202","v":8.4599999999999996E-5},null,null,null,null,null,null,null,null,null,null,null,null,1]
["Kummer","Trekkekum TK2-900",null,null,null,"stk",60,295.26890662420379,{"$f":"Utslippsfaktorer2[[#This Row],[kg/FU]]*$H$202","v":8.4599999999999996E-5},null,null,null,null,null,null,null,null,null,null,null,null,1]
["Kummer","Trekkekum TK3-900",null,null,null,"stk",60,392.5080467515923,{"$f":"Utslippsfaktorer2[[#This Row],[kg/FU]]*$H$202","v":8.4599999999999996E-5},null,null,null,null,null,null,null,null,null,null,null,null,1]
["Kummer","Vannkum, betong",null,null,null,"stk",60,628.71164632611453,{"$f":"Utslippsfaktorer2[[#This Row],[kg/FU]]*$H$202","v":8.4599999999999996E-5},null,null,null,null,null,null,null,null,null,null,null,null,1]
["Kummer","Vannkum, plast",null,null,null,"stk",60,86.790876826016273,{"$f":"Utslippsfaktorer2[[#This Row],[kg/FU]]*$H$202","v":8.4599999999999996E-5},null,null,null,null,null,null,null,null,null,null,null,null,1]
["Masser","Forurensede masser",null,null,null,"m3",60,0,{"$f":"Utslippsfaktorer2[[#This Row],[kg/FU]]*$H$202","v":8.4599999999999996E-5},null,null,null,null,null,null,null,null,null,null,null,null,1]
["Masser","Lettklinker/Ekspandert leire",null,null,null,"m3",60,61.499000000000002,{"$f":"Utslippsfaktorer2[[#This Row],[kg/FU]]*$H$202","v":8.4599999999999996E-5},null,null,null,null,null,null,null,null,null,null,null,null,1]
["Masser","Pukk/grus 0/2, 2/4 ,4/8, 11/16-45 , 16/22-45 ","knusetrinn 3","Kortreist stein kalkulator",null,"tonn",100,2.6,{"$f":"Utslippsfaktorer2[[#This Row],[kg/FU]]*$H$202","v":8.4599999999999996E-5},null,null,null,null,null,null,null,null,null,null,null,null,1]
["Masser","Pukk/grus 22/120, 22/250 0/16, 0/45","knusetrinn 1","Kortreist stein kalkulator",null,"tonn",100,2.2000000000000002,{"$f":"Utslippsfaktorer2[[#This Row],[kg/FU]]*$H$202","v":8.4599999999999995E-2},null,null,null,null,null,null,null,null,null,null,null,null,1000]
["Masser","Pukk/grus 4-8/16 , 32/63, 0/8 , 0/4","knusetrinn 2","Kortreist stein kalkulator",null,"tonn",100,2.38,{"$f":"Utslippsfaktorer2[[#This Row],[kg/FU]]*$H$202","v":8.4599999999999995E-2},null,null,null,null,null,null,null,null,null,null,null,null,1000]
["Masser","Sprengstein","knusetrinn 0","Kortreist stein kalkulator",null,"tonn",100,2.13,{"$f":"Utslippsfaktorer2[[#This Row],[kg/FU]]*$H$202","v":8.4599999999999995E-2},null,null,null,null,null,null,null,null,null,null,null,null,1000]
["Masser","Stedlige masser ",null,null,null,"m3",60,0,{"$f":"Utslippsfaktorer2[[#This Row],[kg/FU]]*$H$202","v":8.4599999999999995E-2},null,null,null,null,null,null,null,null,null,null,null,null,1000]
["Murstein","Fasadesystem med resirkulert murstein","Gamle Murstein: Facade System with 12.5mm Fermacell and brick shells cut from recycled bricks ","NEPD nr.: 1675-673-EN (2018)","Svendborg, DK","m2",60,55.5,{"$f":"Utslippsfaktorer2[[#This Row],[kg/FU]]*$H$202","v":2.5379999999999999E-3},null,null,null,null,null,null,null,null,null,null,null,null,30]
["Rør","Kabelrør PVC 110mm SN4","NEPD nr.: 2345-1080-NO (2020)",null,null,"m",100,1.75,{"$f":"Utslippsfaktorer2[[#This Row],[kg/FU]]*$H$202","v":8.4599999999999996E-4},null,null,null,null,null,null,null,null,null,null,null,null,10,3.4299999999999997E-2]
["Rør","Kabelrør PVC 125mm SN4","NEPD nr.: 2340-1077-NO (2020)",null,null,"m",100,2.17,{"$f":"Utslippsfaktorer2[[#This Row],[kg/FU]]*$H$202","v":8.4599999999999996E-4},null,null,null,null,null,null,null,null,null,null,null,null,10,4.24E-2]
["Rør","Kabelrør PVC 125mm SN8","NEPD nr.: 2347-1078-NO (2020)",null,null,"m",100,2.66,{"$f":"Utslippsfaktorer2[[#This Row],[kg/FU]]*$H$202","v":8.4599999999999996E-4},null,null,null,null,null,null,null,null,null,null,null,null,10,5.2499999999999998E-2]
["Rør","Kabelrør PVC 160mm SN4","NEPD nr.: 2342-1083-NO (2020)",null,null,"m",100,3.77,{"$f":"Utslippsfaktorer2[[#This Row],[kg/FU]]*$H$202","v":8.4599999999999996E-4},null,null,null,null,null,null,null,null,null,null,null,null,10,7.3800000000000004E-2]
["Rør","Kabelrør PVC 160mm SN8","NEPD nr.: 2344-1081-NO (2020)",null,null,"m",100,4.5599999999999996,{"$f":"Utslippsfaktorer2[[#This Row],[kg/FU]]*$H$202","v":8.4599999999999996E-4},null,null,null,null,null,null,null,null,null,null,null,null,10,8.9700000000000002E-2]
["Rør","Kabelrør PVC 200mm SN8","NEPD nr.: 2346-1079-NO (2020)",null,null,"m",100,7.23,{"$f":"Utslippsfaktorer2[[#This Row],[kg/FU]]*$H$202","v":8.4599999999999996E-4},null,null,null,null,null,null,null,null,null,null,null,null,10,0.14299999999999999]
["Rør","Kabelrør PVC 75mm SN8","NEPD nr.: 2343-1082-NO (2020)",null,null,"m",100,0.96,{"$f":"Utslippsfaktorer2[[#This Row],[kg/FU]]*$H$202","v":8.4599999999999996E-4},null,null,null,null,null,null,null,null,null,null,null,null,10,1.89E-2]
["Rør","PP DN 110, Grunnavløps- og overvannsrør","Pipelife Norge: Grunnavløps- og overvannsrør med homogen rørvegg i PP DN200","NEPD nr.: 1505-513-NO (2018)",null,"m",100,9.167860000000001,{"$f":"Utslippsfaktorer2[[#This Row],[kg/FU]]*$H$202","v":8.4599999999999996E-4},3.3141869999999997E-2,null,null,null,null,null,null,null,null,null,null,null,10,7.6090000000000005E-2,3.3141869999999997E-2]
["Rør","PP DN 125","Pipelife Norge: Grunnavløps- og overvannsrør med homogen rørvegg i PP DN110","NEPD nr.: 1505-513-NO (2018)",null,"m",100,2.66154,{"$f":"Utslippsfaktorer2[[#This Row],[kg/FU]]*$H$202","v":8.4599999999999996E-4},32.032600000000002,null,null,null,null,null,null,null,null,null,null,null,10,2.2100000000000002E-2,32.032600000000002]
["Rør","PP DN 160","Pipelife Norge: Grunnavløps- og overvannsrør med homogen rørvegg i PP DN125","NEPD nr.: 1505-513-NO (2018)",null,"m",100,3.5778300000000001,{"$f":"Utslippsfaktorer2[[#This Row],[kg/FU]]*$H$202","v":8.4599999999999996E-4},32.349350000000001,null,null,null,null,null,null,null,null,null,null,null,10,2.9649999999999999E-2,32.349350000000001]
["Rør","PP DN 160, Pragma grunnavløps-, overvanns- og drensrør","Pipelife Norge: Pragma grunnavløps-, overvanns- og drensrør i PP DN160","NEPD nr.: 1507-513-NO (2018)",null,"m",100,2.7958800000000004,{"$f":"Utslippsfaktorer2[[#This Row],[kg/FU]]*$H$202","v":8.4599999999999996E-4},32.477179999999997,null,null,null,null,null,null,null,null,null,null,null,10,2.3779999999999999E-2,32.477179999999997]
["Rør","PP DN 200","Pipelife Norge: Pragma grunnavløps-, overvanns- og drensrør i PP DN200","NEPD nr.: 1507-513-NO (2018)",null,"m",100,4.0544799999999999,{"$f":"Utslippsfaktorer2[[#This Row],[kg/FU]]*$H$202","v":8.4599999999999996E-4},33.137869999999999,null,null,null,null,null,null,null,null,null,null,null,10,3.449E-2,33.137869999999999]
["Rør","PP DN 200","Pipelife Norge: Grunnavløps- og overvannsrør med homogen rørvegg i PP DN160","NEPD nr.: 1505-513-NO (2018)",null,"m",100,5.7575599999999998,{"$f":"Utslippsfaktorer2[[#This Row],[kg/FU]]*$H$202","v":8.4599999999999996E-4},32.916420000000002,null,null,null,null,null,null,null,null,null,null,null,10,4.7829999999999998E-2,32.916420000000002]
["Rør","PP DN 250","Pipelife Norge: Pragma grunnavløps-, overvanns- og drensrør i PP DN250","NEPD nr.: 1507-513-NO (2018)",null,"m",100,6.8927199999999997,{"$f":"Utslippsfaktorer2[[#This Row],[kg/FU]]*$H$202","v":8.4599999999999996E-4},34.125520000000002,null,null,null,null,null,null,null,null,null,null,null,10,5.595E-2,34.125520000000002]
["Rør","PP DN 315","Pipelife Norge: Pragma grunnavløps-, overvanns- og drensrør i PP DN315","NEPD nr.: 1507-513-NO (2018)",null,"m",100,11.24818,{"$f":"Utslippsfaktorer2[[#This Row],[kg/FU]]*$H$202","v":8.4599999999999996E-4},35.191929999999999,null,null,null,null,null,null,null,null,null,null,null,10,9.5390000000000003E-2,35.191929999999999]
["Rør","PP DN 400","Pipelife Norge: Pragma grunnavløps-, overvanns- og drensrør i PP DN400","NEPD nr.: 1507-513-NO (2018)",null,"m",100,17.91281,{"$f":"Utslippsfaktorer2[[#This Row],[kg/FU]]*$H$202","v":8.4599999999999996E-4},40.840290000000003,null,null,null,null,null,null,null,null,null,null,null,10,0.15217,40.840290000000003]
["Rør","PVC DN 125, Grunnavløps- og overvannsrør","Pipelife Norge: Grunnavløps- og overvannsrør med homogen rørvegg i PVC DN 125","NEPD nr.: 1506-513-NO (2018)",null,"m",100,2.9237900000000003,{"$f":"Utslippsfaktorer2[[#This Row],[kg/FU]]*$H$202","v":8.4599999999999996E-4},32.100340000000003,null,null,null,null,null,null,null,null,null,null,null,10,3.7479999999999999E-2,32.100340000000003]
["Rør","PVC DN 160","Pipelife Norge: Grunnavløps- og overvannsrør med homogen rørvegg i PVC DN 160","NEPD nr.: 1506-513-NO (2018)",null,"m",100,5.0190599999999996,{"$f":"Utslippsfaktorer2[[#This Row],[kg/FU]]*$H$202","v":8.4599999999999996E-4},32.709310000000002,null,null,null,null,null,null,null,null,null,null,null,10,6.4899999999999999E-2,32.709310000000002]
["Rør","PVC DN 200","Pipelife Norge: Grunnavløps- og overvannsrør med homogen rørvegg i PVC DN 200","NEPD nr.: 1506-513-NO (2018)",null,"m",100,7.9015899999999997,{"$f":"Utslippsfaktorer2[[#This Row],[kg/FU]]*$H$202","v":8.4599999999999996E-4},33.374969999999998,null,null,null,null,null,null,null,null,null,null,null,10,0.1021,33.374969999999998]
["Rør","PVC DN 250","Pipelife Norge: Grunnavløps- og overvannsrør med homogen rørvegg i PVC DN 250","NEPD nr.: 1506-513-NO (2018)",null,"m",100,21.553729999999998,{"$f":"Utslippsfaktorer2[[#This Row],[kg/FU]]*$H$202","v":8.4599999999999996E-4},34.366,null,null,null,null,null,null,null,null,null,null,null,10,0.15861,34.366]
["Rør","Rør, betong, 100",null,null,null,"m",100,null,{"$f":"Utslippsfaktorer2[[#This Row],[kg/FU]]*$H$202","v":8.4599999999999988E-3},null,null,null,null,null,null,null,null,null,null,null,null,100]
["Rør","Rør, betong, 150",null,null,null,"m",100,null,{"$f":"Utslippsfaktorer2[[#This Row],[kg/FU]]*$H$202","v":8.4599999999999988E-3},null,null,null,null,null,null,null,null,null,null,null,null,100]
["Rør","Rør, betong, 200",null,null,null,"m",100,null,{"$f":"Utslippsfaktorer2[[#This Row],[kg/FU]]*$H$202","v":8.4599999999999988E-3},null,null,null,null,null,null,null,null,null,null,null,null,100]
["Rør","Rør, betong, 250",null,null,null,"m",100,null,{"$f":"Utslippsfaktorer2[[#This Row],[kg/FU]]*$H$202","v":8.4599999999999988E-3},null,null,null,null,null,null,null,null,null,null,null,null,100]
["Rør","Rør, betong, 300",null,null,null,"m",100,null,{"$f":"Utslippsfaktorer2[[#This Row],[kg/FU]]*$H$202","v":8.4599999999999988E-3},null,null,null,null,null,null,null,null,null,null,null,null,100]
["Rør","Rør, betong, 400",null,null,null,"m",100,null,{"$f":"Utslippsfaktorer2[[#This Row],[kg/FU]]*$H$202","v":8.4599999999999988E-3},null,null,null,null,null,null,null,null,null,null,null,null,100]
["Rør","Rør, betong, 500",null,null,null,"m",100,null,{"$f":"Utslippsfaktorer2[[#This Row],[kg/FU]]*$H$202","v":8.4599999999999988E-3},null,null,null,null,null,null,null,null,null,null,null,null,100]
["Rør","Rør, betong, 600",null,null,null,"m",100,null,{"$f":"Utslippsfaktorer2[[#This Row],[kg/FU]]*$H$202","v":8.4599999999999988E-3},null,null,null,null,null,null,null,null,null,null,null,null,100]
["Rør","Støpejern",null,null,null,"kg",60,1.5517862,{"$f":"Utslippsfaktorer2[[#This Row],[kg/FU]]*$H$202","v":8.4599999999999996E-5},null,null,null,null,null,null,null,null,null,null,null,null,1]
["Stein","betongheller",null,null,null,"kg",60,2,{"$f":"Utslippsfaktorer2[[#This Row],[kg/FU]]*$H$202","v":8.4599999999999996E-5},null,null,null,null,null,null,null,null,null,null,null,null,1]
["Stein","betongstein",null,null,null,"kg",60,3,{"$f":"Utslippsfaktorer2[[#This Row],[kg/FU]]*$H$202","v":8.4599999999999996E-5},null,null,null,null,null,null,null,null,null,null,null,null,1]
["Stein","Fasade- og gulvstein, granitt, CN","Granitt G654 fasade- og gulvtstein\n fra Fujian provinsen i Kina","NEPD-1635-653-NO, white",null,"tonn",60,null,{"$f":"Utslippsfaktorer2[[#This Row],[kg/FU]]*$H$202","v":8.4599999999999995E-2},null,null,null,null,null,null,null,null,null,null,null,null,1000]
["Stein","Murstein, EPD snitt, DK","gjennomsnittsverdier, samlet av SINTEF",null,"Svendborg, DK","m2",60,51,{"$f":"Utslippsfaktorer2[[#This Row],[kg/FU]]*$H$202","v":2.2841999999999998E-2},null,null,null,null,null,null,null,null,null,null,null,null,270]
["Stein","Naturstein",null,"VegLCA v5.06B",null,"kg",60,0.12843333333333301,{"$f":"Utslippsfaktorer2[[#This Row],[kg/FU]]*$H$202","v":8.4599999999999996E-5},null,null,null,null,null,null,null,null,null,null,null,null,1]
["Stål","Stål, kamstål armering",null,null,null,"kg",60,0.56630000000000003,{"$f":"Utslippsfaktorer2[[#This Row],[kg/FU]]*$H$202","v":8.4599999999999996E-5},null,null,null,null,null,null,null,null,null,null,null,null,1]
["Stål","Stål, konstruksjon m/resirk",null,null,null,"kg",60,1.2425454545454546,{"$f":"Utslippsfaktorer2[[#This Row],[kg/FU]]*$H$202","v":8.4599999999999996E-5},null,null,null,null,null,null,null,null,null,null,null,null,1]
["Stål","Stål, konstruksjon u/resirk",null,null,null,"kg",60,2.5137727272727273,{"$f":"Utslippsfaktorer2[[#This Row],[kg/FU]]*$H$202","v":8.4599999999999996E-5},null,null,null,null,null,null,null,null,null,null,null,null,1]
["Stål","Stål, peler",null,null,null,"kg",60,2.5137727272727273,{"$f":"Utslippsfaktorer2[[#This Row],[kg/FU]]*$H$202","v":8.4599999999999996E-5},null,null,null,null,null,null,null,null,null,null,null,null,1]
["Stål","Stål, spunt",null,null,null,"kg",60,0.56630000000000003,{"$f":"Utslippsfaktorer2[[#This Row],[kg/FU]]*$H$202","v":8.4599999999999996E-5},null,null,null,null,null,null,null,null,null,null,null,null,1]
["Taktekking","Taktekking - Ett-lags-membran",null,"Grønn materialguide","NGBC","m2",30,5.7,{"$f":"Utslippsfaktorer2[[#This Row],[kg/FU]]*$H$202","v":8.4599999999999988E-3},null,null,null,null,null,null,null,null,null,null,null,null,100]
["Taktekking","Taktekking - Grønne tak",null,"Grønn materialguide","NGBC","m2",30,7,{"$f":"Utslippsfaktorer2[[#This Row],[kg/FU]]*$H$202","v":8.4599999999999988E-3},null,null,null,null,null,null,null,null,null,null,null,null,100]
["Taktekking","Taktekking - Skifer",null,"Grønn materialguide","NGBC","m2",30,2.8,{"$f":"Utslippsfaktorer2[[#This Row],[kg/FU]]*$H$202","v":8.4599999999999988E-3},null,null,null,null,null,null,null,null,null,null,null,null,100]
["Taktekking","Taktekking - Takbelegg, asfalt/bitumen",null,"Grønn materialguide","NGBC","m2",30,6,{"$f":"Utslippsfaktorer2[[#This Row],[kg/FU]]*$H$202","v":8.4599999999999988E-3},null,null,null,null,null,null,null,null,null,null,null,null,100]
["Taktekking","Taktekking - Takstein, tegl",null,"Grønn materialguide","NGBC","m2",30,14,{"$f":"Utslippsfaktorer2[[#This Row],[kg/FU]]*$H$202","v":8.4599999999999988E-3},null,null,null,null,null,null,null,null,null,null,null,null,100]
["Taktekking","Taktekking - Ubehandlet tre",null,"Grønn materialguide","NGBC","m2",30,4.3,{"$f":"Utslippsfaktorer2[[#This Row],[kg/FU]]*$H$202","v":8.4599999999999988E-3},null,null,null,null,null,null,null,null,null,null,null,null,100]
["Utvendige dekker ","Utvendige dekker - Betong (30-50 mm)",null,"Grønn materialguide","NGBC","m2",30,15,{"$f":"Utslippsfaktorer2[[#This Row],[kg/FU]]*$H$202","v":8.4599999999999988E-3},null,null,null,null,null,null,null,null,null,null,null,null,100]
["Utvendige dekker ","Utvendige dekker - Gummidekke",null,"Grønn materialguide","NGBC","m2",30,35,{"$f":"Utslippsfaktorer2[[#This Row],[kg/FU]]*$H$202","v":8.4599999999999988E-3},null,null,null,null,null,null,null,null,null,null,null,null,100]
["Utvendige dekker ","Utvendige dekker - Kompositt-terrassebord",null,"Grønn materialguide","NGBC","m2",30,28,{"$f":"Utslippsfaktorer2[[#This Row],[kg/FU]]*$H$202","v":8.4599999999999988E-3},null,null,null,null,null,null,null,null,null,null,null,null,100]
["Utvendige dekker ","Utvendige dekker - Limte dekker (30 mm)",null,"Grønn materialguide","NGBC","m2",30,9,{"$f":"Utslippsfaktorer2[[#This Row],[kg/FU]]*$H$202","v":8.4599999999999988E-3},null,null,null,null,null,null,null,null,null,null,null,null,100]
["Utvendige dekker ","Utvendige dekker - Modifisert trevirke (28 mm)",null,"Grønn materialguide","NGBC","m2",30,15.5,{"$f":"Utslippsfaktorer2[[#This Row],[kg/FU]]*$H$202","v":8.4599999999999988E-3},null,null,null,null,null,null,null,null,null,null,null,null,100]
["Utvendige dekker ","Utvendige dekker - Naturstein",null,"Grønn materialguide","NGBC","m2",30,17,{"$f":"Utslippsfaktorer2[[#This Row],[kg/FU]]*$H$202","v":8.4599999999999988E-3},null,null,null,null,null,null,null,null,null,null,null,null,100]
["Utvendige dekker ","Utvendige dekker - Ubehandlet trevirke",null,"Grønn materialguide","NGBC","m2",30,8,{"$f":"Utslippsfaktorer2[[#This Row],[kg/FU]]*$H$202","v":8.4599999999999988E-3},null,null,null,null,null,null,null,null,null,null,null,null,100]
["Utvendige dekker ","Utvendige dekker - Værbestandig stål (4 mm)",null,"Grønn materialguide","NGBC","m2",30,78,{"$f":"Utslippsfaktorer2[[#This Row],[kg/FU]]*$H$202","v":8.4599999999999988E-3},null,null,null,null,null,null,null,null,null,null,null,null,100]
["Utvendige kledninger","Utvendige kledninger - Aluminiumsplater (4 mm)",null,"Grønn materialguide","NGBC","m2",30,54,{"$f":"Utslippsfaktorer2[[#This Row],[kg/FU]]*$H$202","v":8.4599999999999988E-3},null,null,null,null,null,null,null,null,null,null,null,null,100]
["Utvendige kledninger","Utvendige kledninger - Fibersementplater (6 mm)",null,"Grønn materialguide","NGBC","m2",30,19,{"$f":"Utslippsfaktorer2[[#This Row],[kg/FU]]*$H$202","v":8.4599999999999988E-3},null,null,null,null,null,null,null,null,null,null,null,null,100]
["Utvendige kledninger","Utvendige kledninger - Glass (4-12 mm)",null,"Grønn materialguide","NGBC","m2",30,31.3,{"$f":"Utslippsfaktorer2[[#This Row],[kg/FU]]*$H$202","v":8.4599999999999988E-3},null,null,null,null,null,null,null,null,null,null,null,null,100]
["Utvendige kledninger","Utvendige kledninger - Keramiske fasadesystemer",null,"Grønn materialguide","NGBC","m2",30,40.200000000000003,{"$f":"Utslippsfaktorer2[[#This Row],[kg/FU]]*$H$202","v":8.4599999999999988E-3},null,null,null,null,null,null,null,null,null,null,null,null,100]
["Utvendige kledninger","Utvendige kledninger - Keramiske flis (8 mm)",null,"Grønn materialguide","NGBC","m2",30,17.100000000000001,{"$f":"Utslippsfaktorer2[[#This Row],[kg/FU]]*$H$202","v":8.4599999999999988E-3},null,null,null,null,null,null,null,null,null,null,null,null,100]
["Utvendige kledninger","Utvendige kledninger - Kobberplater (< 1 mm)",null,"Grønn materialguide","NGBC","m2",30,11.6,{"$f":"Utslippsfaktorer2[[#This Row],[kg/FU]]*$H$202","v":8.4599999999999988E-3},null,null,null,null,null,null,null,null,null,null,null,null,100]
["Utvendige kledninger","Utvendige kledninger - Komposittplater",null,"Grønn materialguide","NGBC","m2",30,34.1,{"$f":"Utslippsfaktorer2[[#This Row],[kg/FU]]*$H$202","v":8.4599999999999988E-3},null,null,null,null,null,null,null,null,null,null,null,null,100]
["Utvendige kledninger","Utvendige kledninger - Modifisert trevirke (22 mm)",null,"Grønn materialguide","NGBC","m2",30,11.6,{"$f":"Utslippsfaktorer2[[#This Row],[kg/FU]]*$H$202","v":8.4599999999999988E-3},null,null,null,null,null,null,null,null,null,null,null,null,100]
["Utvendige kledninger","Utvendige kledninger - Naturstein",null,"Grønn materialguide","NGBC","m2",30,6,{"$f":"Utslippsfaktorer2[[#This Row],[kg/FU]]*$H$202","v":8.4599999999999988E-3},null,null,null,null,null,null,null,null,null,null,null,null,100]
["Utvendige kledninger","Utvendige kledninger - Polykarbonat (6 mm)",null,"Grønn materialguide","NGBC","m2",30,32.9,{"$f":"Utslippsfaktorer2[[#This Row],[kg/FU]]*$H$202","v":8.4599999999999988E-3},null,null,null,null,null,null,null,null,null,null,null,null,100]
["Utvendige kledninger","Utvendige kledninger - Puss-systemer",null,"Grønn materialguide","NGBC","m2",30,12.5,{"$f":"Utslippsfaktorer2[[#This Row],[kg/FU]]*$H$202","v":8.4599999999999988E-3},null,null,null,null,null,null,null,null,null,null,null,null,100]
["Utvendige kledninger","Utvendige kledninger - Sink",null,"Grønn materialguide","NGBC","m2",30,24.4,{"$f":"Utslippsfaktorer2[[#This Row],[kg/FU]]*$H$202","v":8.4599999999999988E-3},null,null,null,null,null,null,null,null,null,null,null,null,100]
["Utvendige kledninger","Utvendige kledninger - Teglstein",null,"Grønn materialguide","NGBC","m2",30,32.5,{"$f":"Utslippsfaktorer2[[#This Row],[kg/FU]]*$H$202","v":8.4599999999999988E-3},null,null,null,null,null,null,null,null,null,null,null,null,100]
["Utvendige kledninger","Utvendige kledninger - Ubehandlet trevirke",null,"Grønn materialguide","NGBC","m2",30,5.2,{"$f":"Utslippsfaktorer2[[#This Row],[kg/FU]]*$H$202","v":8.4599999999999988E-3},null,null,null,null,null,null,null,null,null,null,null,null,100]
["Vegutstyr","Gang-/sykkelvegrekkverk i stål",null,null,null,"m",30,45,{"$f":"Utslippsfaktorer2[[#This Row],[kg/FU]]*$H$202","v":8.4599999999999988E-3},null,null,null,null,null,null,null,null,null,null,null,null,100]
["Vegutstyr","Standard vegbelysning",null,null,null,"stk",30,35.091301747480522,{"$f":"Utslippsfaktorer2[[#This Row],[kg/FU]]*$H$202","v":8.4599999999999988E-3},null,null,null,null,null,null,null,null,null,null,null,null,100]
["Vegutstyr","Topprekkverk",null,null,null,"m",30,13.925480871355779,{"$f":"Utslippsfaktorer2[[#This Row],[kg/FU]]*$H$202","v":8.4599999999999988E-3},null,null,null,null,null,null,null,null,null,null,null,null,100]
["Vegutstyr","Vegskilt",null,null,null,"stk",30,69.907607612766157,{"$f":"Utslippsfaktorer2[[#This Row],[kg/FU]]*$H$202","v":8.4599999999999988E-3},null,null,null,null,null,null,null,null,null,null,null,null,100]
["Transport","Lastebil 16-32 tonn, EURO 5, diesel",null,"lca.no",null,"kgkm",null,{"$f":"0.1626/1000","v":1.6259999999999999E-4}]
["Transport","Lastebil 16-32 tonn, EURO 5, biodiesel, raps (FAME)",null,"lca.no",null,"kgkm",null,{"$f":"0.133/1000","v":1.3300000000000001E-4}]
["Transport","Lastebil over 32 tonn, EURO 5, diesel",null,"lca.no",null,"kgkm",null,{"$f":"0.0846/1000","v":8.4599999999999996E-5}]
["Transport","Lastebil over 32 tonn, EURO 5, biodiesel, raps (FAME)",null,"lca.no",null,"kgkm",null,{"$f":"0.0713/1000","v":7.1299999999999998E-5}]

{"sheet":"Input_rullegardin","index":9,"n_rows":51,"n_cols":23,"rows_kept":51,"cut":false,"hidden":true,"merged":[[49,8,49,13],[42,8,42,13],[43,8,43,13],[41,8,41,13],[44,8,44,13],[45,8,45,13],[46,8,46,13],[47,8,47,13],[48,8,48,13]]}
["Categories","dynamic:",null,null,"Utslippsnivå for A1-A3 og B4 ",null,null,null,null,"Tabel 2. Brutto energibehov [kWh/(m2 BRA·år)]. Kilde for Lite energieffektivt og TEK10-TEK17: PROFet1 (SINTEF). Kilder for TEK17: TEK17",null,null,null,null,null,null,"Database building impact (not scaled down for different RSP)"]
["(Velg kategori)",{"$f":"_xlfn.UNIQUE(#REF!)","v":{"$error":"#REF!"}},"Velg bygningskategoriene:",null,"Referansenivå"]
["Annet",null,"Småhus",null,"Klimavennlige materialer ",null,null,null,null,null,"Energieffektivitetsnivå3","Romoppvarming4","Oppvarming av varmt tappevann5","Elspesifikt6","Totalt",null,"Used in Skisseprosjekt",null,null,"A1-A3","A4","B4","Kilde"]
["Asfalt",null,"Boligblokk",null,"Ombruk ",null,null,null,{"$f":"J4&\" \"&K4","v":"Småhus Lite energieffektivt"},"Småhus","Lite energieffektivt",141,16,38,195,null,"Referansenivå","Småhus",{"$f":"_xlfn.CONCAT(Q4,\" \",R4)","v":"Referansenivå Småhus"},2.4,0.5,1.66,"ENOVA / AV rapport"]
["Belysning",null,"Kontorbygning",null,"Rehabilitering",null,null,null,"Småhus TEK10-TEK17","Småhus","TEK10-TEK17",76,16,38,130,null,"Referansenivå","Boligblokk","Referansenivå Boligblokk",5.38,1.04,1.62,"ENOVA / AV rapport"]
["Betong",null,"Forretningsbygning",null,null,null,null,null,"Småhus TEK17","Småhus","TEK17",57.951851851851849,25,28.9,111.85185185185185,null,"Referansenivå","Kontorbygning","Referansenivå Kontorbygning",4.3600000000000003,0.67,1.74,"ENOVA / AV rapport"]
["Binder",null,"Hotell",null,null,null,null,null,"Boligblokk Lite energieffektivt","Boligblokk","Lite energieffektivt",96,31,39,166,null,"Referansenivå","Forretningsbygning","Referansenivå Forretningsbygning",3.76,0.69,1.52,"ENOVA / AV rapport"]
["Bitumen",null,"Barnehage",null,null,null,null,null,"Boligblokk TEK10-TEK17","Boligblokk","TEK10-TEK17",52,31,39,122,null,"Referansenivå","Hotell","Referansenivå Hotell","NA","NA","NA"]
["Bygningsplater",null,"Skolebygning",null,null,null,null,null,"Boligblokk TEK17","Boligblokk","TEK17",41.1,25,28.9,95,null,"Referansenivå","Barnehage","Referansenivå Barnehage",3.87,0.09,0.09,"ZEN rapport 24, Kolstad barnehage"]
["Drivstoff",null,"Universitet",null,null,null,null,null,"Kontorbygning Lite energieffektivt","Kontorbygning","Lite energieffektivt",84,12,179,275,null,"Referansenivå","Skolebygning","Referansenivå Skolebygning",4.38,0.69,1.29,"ENOVA / AV rapport"]
["Gulvbelegg",null,"Idrettsbygning",null,null,null,null,null,"Kontorbygning TEK10-TEK17","Kontorbygning","TEK10-TEK17",49,12,128,189,null,"Referansenivå","Universitet","Referansenivå Universitet",2.25,0.05,0.72,"ZEN rapport 24, based on average Ui Agder, Reference"]
["Isolasjon",null,"Sykehjem",null,null,null,null,null,"Kontorbygning TEK17","Kontorbygning","TEK17",78.7,5,31.3,115,null,"Referansenivå","Idrettsbygning","Referansenivå Idrettsbygning",6.07,0.13,0.65,"ZEN rapport 24, average from 3 idrettshaller , Reference"]
["Konstruktive materialer ",null,"Sykehus",null,null,null,null,null,"Forretningsbygning Lite energieffektivt","Forretningsbygning","Lite energieffektivt",103,21,139,263,null,"Referansenivå","Sykehjem","Referansenivå Sykehjem",4.76,0.8,1.28,"ENOVA / AV rapport"]
["Kummer",null,null,null,null,null,null,null,"Forretningsbygning TEK10-TEK17","Forretningsbygning","TEK10-TEK17",42,21,139,202,null,"Referansenivå","Sykehus","Referansenivå Sykehus","NA","NA","NA"]
["Masser",null,null,null,null,null,null,null,"Forretningsbygning TEK17","Forretningsbygning","TEK17",101.9,10,68.099999999999994,180,null,"Referansenivå","Andre","Referansenivå Andre","NA","NA","NA"]
["Murstein",null,"Energieffektivitetsnivå",null,null,null,null,null,"Hotell Lite energieffektivt","Hotell","Lite energieffektivt",100,46,116,262,null,"Klimavennlige materialer ","Småhus","Klimavennlige materialer  Småhus",1.47,0.5,1.33,"ENOVA / AV rapport"]
["Rør",null,"Lite energieffektivt",null,null,null,null,null,"Hotell TEK10-TEK17","Hotell","TEK10-TEK17",51,46,116,213,null,"Klimavennlige materialer ","Boligblokk","Klimavennlige materialer  Boligblokk",2.61,1.04,1.18,"ENOVA / AV rapport"]
["Stein",null,"TEK10-TEK17",null,null,null,null,null,"Hotell TEK17","Hotell","TEK17",116.5,30,23.5,170,null,"Klimavennlige materialer ","Kontorbygning","Klimavennlige materialer  Kontorbygning",2.3199999999999998,0.67,1.0900000000000001,"ENOVA / AV rapport"]
["Stål",null,"TEK17",null,null,null,null,null,"Barnehage Lite energieffektivt","Barnehage","Lite energieffektivt",102,19,75,196,null,"Klimavennlige materialer ","Forretningsbygning","Klimavennlige materialer  Forretningsbygning",2.1,0.69,1.01,"ENOVA / AV rapport"]
["Taktekking",null,null,null,null,null,null,null,"Barnehage TEK10-TEK17","Barnehage","TEK10-TEK17",64,19,75,158,null,"Klimavennlige materialer ","Hotell","Klimavennlige materialer  Hotell","NA","NA","NA"]
["Utvendige dekker ",null,null,null,null,null,null,null,"Barnehage TEK17","Barnehage","TEK17",107,10,18,135,null,"Klimavennlige materialer ","Barnehage","Klimavennlige materialer  Barnehage",2.0699999999999998,0.12,0.13,"ZEN rapport 24, Kolstad barnehage"]
["Utvendige kledninger",null,null,null,null,null,null,null,"Skolebygning Lite energieffektivt","Skolebygning","Lite energieffektivt",103,16,61,180,null,"Klimavennlige materialer ","Skolebygning","Klimavennlige materialer  Skolebygning",2.37,0.69,1.29,"ENOVA / AV rapport"]
["Vegutstyr",null,null,null,null,null,null,null,"Skolebygning TEK10-TEK17","Skolebygning","TEK10-TEK17",48,16,45,109,null,"Klimavennlige materialer ","Universitet","Klimavennlige materialer  Universitet","NA","NA","NA"]
[null,null,null,null,null,null,null,null,"Skolebygning TEK17","Skolebygning","TEK17",86.3,5,18.700000000000003,110,null,"Klimavennlige materialer ","Idrettsbygning","Klimavennlige materialer  Idrettsbygning",3.71,0.16,0.57999999999999996,"ZEN rapport 24, average from 3 idrettshaller , Design"]
[null,null,null,null,null,null,null,null,"Universitet Lite energieffektivt","Universitet","Lite energieffektivt",152,34,179,365,null,"Klimavennlige materialer ","Sykehjem","Klimavennlige materialer  Sykehjem",2.4900000000000002,0.8,1.24,"ENOVA / AV rapport"]
[null,null,null,null,null,null,null,null,"Universitet TEK10-TEK17","Universitet","TEK10-TEK17",65,34,128,227,null,"Klimavennlige materialer ","Sykehus","Klimavennlige materialer  Sykehus","NA","NA","NA"]
[null,null,null,null,null,null,null,null,"Universitet TEK17","Universitet","TEK17",90.4,5,29.6,125,null,"Klimavennlige materialer ","Andre","Klimavennlige materialer  Andre","NA","NA","NA"]
[null,null,null,null,null,null,null,null,"Idrettsbygning Lite energieffektivt","Idrettsbygning","Lite energieffektivt",234,11,139,384,null,"Ombruk ","Småhus","Ombruk  Småhus",1.1399999999999999,0.43,1.33,"ENOVA / AV rapport"]
[null,null,null,null,null,null,null,null,"Idrettsbygning TEK10-TEK17","Idrettsbygning","TEK10-TEK17",62,11,139,212,null,"Ombruk ","Boligblokk","Ombruk  Boligblokk",1.82,0.61,1.18,"ENOVA / AV rapport"]
[null,null,null,null,null,null,null,null,"Idrettsbygning TEK17","Idrettsbygning","TEK17",117.5,10,17.5,145,null,"Ombruk ","Kontorbygning","Ombruk  Kontorbygning",1.35,0.33,1.0900000000000001,"ENOVA / AV rapport"]
[null,null,null,null,null,null,null,null,"Sykehjem Lite energieffektivt","Sykehjem","Lite energieffektivt",142,34,94,270,null,"Ombruk ","Forretningsbygning","Ombruk  Forretningsbygning",1.31,0.36,1.01,"ENOVA / AV rapport"]
[null,null,null,null,null,null,null,null,"Sykehjem TEK10-TEK17","Sykehjem","TEK10-TEK17",76,34,94,204,null,"Ombruk ","Hotell","Ombruk  Hotell","NA","NA","NA"]
[null,null,null,null,null,null,null,null,"Sykehjem TEK17","Sykehjem","TEK17",138.69999999999999,10,46.3,195,null,"Ombruk ","Barnehage","Ombruk  Barnehage","NA","NA","NA"]
[null,null,null,null,null,null,null,null,"Sykehus Lite energieffektivt","Sykehus","Lite energieffektivt",179,36,227,442,null,"Ombruk ","Skolebygning","Ombruk  Skolebygning",1.43,0.36,1.29,"ENOVA / AV rapport"]
[null,null,null,null,null,null,null,null,"Sykehus TEK10-TEK17","Sykehus","TEK10-TEK17",179,36,227,442,null,"Ombruk ","Universitet","Ombruk  Universitet",6.41,0.3,1.95,"ZEN rapport 24, ZEB Campus Evenstad administrasjonsbygg"]
[null,null,null,null,null,null,null,null,"Sykehus TEK17","Sykehus","TEK17",134,15,76,225,null,"Ombruk ","Idrettsbygning","Ombruk  Idrettsbygning","NA","NA","NA"]
[null,null,null,null,null,null,null,null,{"$f":"J37&\" \"&K37","v":"Velg bygningskategoriene: Lite energieffektivt"},"Velg bygningskategoriene:","Lite energieffektivt",{"$f":"MAX($L$4:$L$36)","v":234},{"$f":"MAX($M$4:$M$36)","v":46},{"$f":"MAX($N$4:$N$36)","v":227},{"$f":"SUM(L37:N37)","v":507},null,"Ombruk ","Sykehjem","Ombruk  Sykehjem",1.53,0.42,1.24,"ENOVA / AV rapport"]
[null,null,null,null,null,null,null,null,"Velg bygningskategoriene: TEK10-TEK17","Velg bygningskategoriene:","TEK10-TEK17",{"$f":"MAX(L8,L5,L11,L14,L17,L20,L23,L26,L29,L32,L35)","v":179},{"$f":"MAX($M$4:$M$36)","v":46},{"$f":"MAX($N$4:$N$36)","v":227},452,null,"Ombruk ","Sykehus","Ombruk  Sykehus","NA","NA","NA"]
[null,null,null,null,null,null,null,null,"Velg bygningskategoriene: TEK17","Velg bygningskategoriene:","TEK17",{"$f":"MAX(L6,L9,L12,L15,L18,L21,L24,L27,L30,L33,L36)","v":138.69999999999999},46,227,411.7,null,"Ombruk ","Andre","Ombruk  Andre","NA","NA","NA"]
[null,null,null,null,null,null,null,null,null,null,null,null,null,null,null,null,"Rehabilitering","Småhus","Rehabilitering Småhus",0.82,0.31,1.33,"ENOVA / AV rapport"]
[null,null,null,null,null,null,null,null,null,null,null,null,null,null,null,null,"Rehabilitering","Boligblokk","Rehabilitering Boligblokk",1.25,0.42,1.18,"ENOVA / AV rapport"]
[null,null,null,null,null,null,null,null,"1 Tallene i Tabell 2 er hentet fra modellen PROFet (Energy demand load PROFile estimator), som er en aggregert, klimaavhenig lastprofilmodell som baserer seg på faktiske måledata fra bygninger, og som gjør det mulig å estimere en lastprofil og topplast for et område. Modellen tar også hensyn til nivået på energieffektiviteten til bygningene.\nPROFet data kan ikke brukes til å dimensjonere enkeltanlegg/effektbehov for enkeltbygg. PROFet data kan brukes til å beregne aggregerte effektvarighetskurver i tidligfase, og for dimensjonering av større anlegg og områder. Resultatene er aktuelle for bruk i forprosjekter, tidligfase og på overordnet nivå. Anvisningen kan ikke brukes som et alternativ til energiberegninger i henhold til NS-EN 3031.\nEffektvarighetskurver for et område avhenger av områdets klima. Alle resultater som presenteres i anvisningen er beregnet basert på bruk av dimensjonerende Osloklima fra NS-EN 3031, og er derfor ikke representative for alle områder.",null,null,null,null,null,null,null,"Rehabilitering","Kontorbygning","Rehabilitering Kontorbygning",1.29,0.31,1.0900000000000001,"ENOVA / AV rapport"]
[null,null,null,null,null,null,null,null,"2 Bygningskategoriene er de samme som benyttes i kapittel 14 i TEK-17 og i SN-NSPEK 3031:2020. Det eneste unntaket er kategorien \"lett industri/verksteder\" som ikke benyttes i denne anvisningen. I stedet benyttes bygningskategorien \"Andre\" som tilsvarer typiske næringsbygninger i Norge, og baserer seg på et vektet snitt av Norges næringsbygningsmasse, fordelt på de øvrige kategoriene.",null,null,null,null,null,null,null,"Rehabilitering","Forretningsbygning","Rehabilitering Forretningsbygning",1.1000000000000001,0.31,1.01,"ENOVA / AV rapport"]
[null,null,null,null,null,null,null,null,"3 PROFet skiller på tre forskellige energieffektivitetsnivåer for bygg: Lite energieffektivt, Middels energieffektivt (TEK10-TEK17) og Veldig energieffektivt (Passivshus)",null,null,null,null,null,null,null,"Rehabilitering","Hotell","Rehabilitering Hotell","NA","NA","NA"]
[null,null,null,null,null,null,null,null,"Lite energieffektivt representerer energieffektiviteten til bygg som ble oppført før TEK10/TEK17. Dette nivået  gir et snitt for energibruk for bygg fra 1950-tallet til bygg fra tidlig 2000-tallet.",null,null,null,null,null,null,null,"Rehabilitering","Barnehage","Rehabilitering Barnehage","NA","NA","NA"]
[null,null,null,null,null,null,null,null,"Middels energieffektivt (TEK10-TEK17) representerer bygg bygget etter dagens bygningsstandard, dvs. tilsvarende TEK10/TEK17-bygg. Dette nivået representerer også et ambisiøst men realistisk potensial for det \"lite energieffekitivt nivå som rehabiliteres.",null,null,null,null,null,null,null,"Rehabilitering","Skolebygning","Rehabilitering Skolebygning",1.24,0.31,1.29,"ENOVA / AV rapport"]
[null,null,null,null,null,null,null,null,"Veldig energieffektivt (Passivshus) representerer veldig energieffektive bygg, tilsvarende passivhus. Dette er bygg med spesielt lavt energibehov til romoppvarming.",null,null,null,null,null,null,null,"Rehabilitering","Universitet","Rehabilitering Universitet","NA","NA","NA"]
[null,null,null,null,null,null,null,null,"4 Romoppvarming = Energi til oppvarming av rom og ventilajsonsluft",null,null,null,null,null,null,null,"Rehabilitering","Idrettsbygning","Rehabilitering Idrettsbygning","NA","NA","NA"]
[null,null,null,null,null,null,null,null,"5 Oppvarming av tappevann = Energi til oppvarming av varmt tappevann (til vask, dusj osv).",null,null,null,null,null,null,null,"Rehabilitering","Sykehjem","Rehabilitering Sykehjem",1.25,0.35,1.24,"ENOVA / AV rapport"]
[null,null,null,null,null,null,null,null,"6 Elspesifikt = Energi til oppvarming av varmt tappevann (til vask, dusj osv).",null,null,null,null,null,null,null,"Rehabilitering","Sykehus","Rehabilitering Sykehus","NA","NA","NA"]
[null,null,null,null,null,null,null,null,null,null,null,null,null,null,null,null,"Rehabilitering","Andre","Rehabilitering Andre","NA","NA","NA"]